Workbook

Sheet tank level
A1: 1 | B1: 2 | C1: 3 | D1: 4 | E1: 5 | F1: 6 | G1: 7 | H1: 8 | I1: 9 | J1: 10 | K1: 11 | L1: 12 | M1: 13 | N1: 14 | O1: 15 | P1: 16 | Q1: 17 | R1: 18 | S1: 19 | T1: 20 | U1: 21 | V1: 22 | W1: 23 | X1: 24 | Y1: 25 | Z1: 26 | AA1: 27 | AB1: 28 | AC1: 29 | AD1: 30 | AE1: 31 | AF1: 32 | AG1: 33 | AH1: 34 | AI1: 35 | AJ1: 36 | AK1: 37 | AL1: 38 | AM1: 39 | AN1: 40 | AO1: 41 | AP1: 42 | AQ1: 43 | AR1: 44 | AS1: 45 | AT1: 46 | AU1: 47 | AV1: 48 | AW1: 49 | AX1: 50 | AY1: 51 | AZ1: 52 | BA1: 53 | BB1: 54 | BC1: 55 | BD1: 56 | BE1: 57 | BF1: 58 | BG1: 59 | BH1: 60 | BI1: 61 | BJ1: 62 | BK1: 63
C2: Temperature at Indicated level | AF2: Tunnel | AQ2: =62.4*60/7.48 -> 500.5347594 | AS2: 19.52859528 | AT2: -0.3035722017 | AU2: 3.408674115e-05 | AV2: 0.06084687728
C3: 51 | D3: 49 | E3: 47 | F3: 45 | G3: 43 | H3: 41 | I3: 39 | J3: 37 | K3: 35 | L3: 33 | M3: 31 | N3: 29 | O3: 27 | P3: 25 | Q3: 23 | R3: 21 | S3: 19 | T3: 17 | U3: 15 | V3: 13 | W3: 11 | X3: 9 | Y3: 7 | Z3: 5 | AA3: 3 | AB3: 1 | AL3: =MAX(AL6:AL3593) -> 168025.2274
C4: 51 feet | D4: 49 feet | E4: 47 feet | F4: 45 feet | G4: 43 feet | H4: 41 feet | I4: 39 feet | J4: 37 feet | K4: 35 feet | L4: 33 feet | M4: 31 feet | N4: 29 feet | O4: 27 feet | P4: 25 feet | Q4: 23 feet | R4: 21 feet | S4: 19 feet | T4: 17 feet | U4: 15 feet | V4: 13 feet | W4: 11 feet | X4: 9 feet | Y4: 7 feet | Z4: 5 feet | AA4: 3 feet | AB4: 1 feet | AC4: TES Flow Rate | AD4: Plant Flow (gpm) | AE4: Primary Loop Flow Rate | AF4: Return Temp | AG4: Supply Temp | AH4: Height of chilled water | AI4: Height of chilled water | AJ4: ft^3 of chilled water | AK4: cooling capacity (kBtu) | AL4: load | AM4: OAT | AN4: Twb | AO4: Secondary loop load | AP4: ChWST(opt) | AQ4: dT (regressed) 44 | AR4: dT (regressed) 42 | AS4: Tank cooling capacity (kBtu/h) | AT4: Plant flow predicted (gpm) 44 | AU4: TES tank Flow predicted | AV4: TES tank flow pred- current | AW4: x ( tank chilled water ratio) | AX4: V tank flow meas | AY4: V tank flow (44) | AZ4: x (predicted) 44 | BA4: x (predicted) 44 | BB4: x (meas) | BC4: x (meas) | BD4: Plant flow predicted (gpm) 42 | BE4: v tank flow (42) | BF4: x (predicted) 42 | BG4: x (meas) 42 | BH4: Temperature to keep the tank full | BI4: tank ratio (actual)
B5: Date | C5: TT-246 | D5: TT-247 | E5: TT-248 | F5: TT-249 | G5: TT-250 | H5: TT-251 | I5: TT-252 | J5: TT-253 | K5: TT-254 | L5: TT-255 | M5: TT-256 | N5: TT-257 | O5: TT-258 | P5: TT-259 | Q5: TT-260 | R5: TT-261 | S5: TT-262 | T5: TT-263 | U5: TT-264 | V5: TT-265 | W5: TT-266 | X5: TT-267 | Y5: TT-268 | Z5: TT-269 | AA5: TT-270 | AB5: TT-271
A6: 2013-01-01 | B6: 2013-01-01 | C6: 37.71939 | D6: 37.74161 | E6: 37.37471 | F6: 37.69133 | G6: 37.872 | H6: 37.33307 | I6: 37.4236 | J6: 37.68366 | K6: 37.46595 | L6: 37.26875 | M6: 37.68848 | N6: 37.52667 | O6: 37.55151 | P6: 37.841 | Q6: 38.17137 | R6: 37.66081 | S6: 37.52013 | T6: 38.03698 | U6: 37.76278 | V6: 37.58817 | W6: 37.97047 | X6: 37.34955 | Y6: 37.69805 | Z6: 37.27787 | AA6: 37.65874 | AB6: 37.32798 | AC6: 1490.997 | AD6: 5411.74 | AE6: 6902.737 | AF6: 49.00994 | AG6: 37.93838 | AH6: 51 | AI6: 51 | AJ6: =3.1416*(138/2)^2*AI6 -> 762815.0376 | AK6: =62.4*AJ6*(AF6-AB6)/1000 -> 556057.3048 | AL6: =500*AC6*(C6-AB6)/1000 -> 291.7955679 | AM6: 45 | AN6: 44 | AO6: 29958.20206 | AP6: 44 | AQ6: =19.5286-0.30357*AP6+0.0000341*AO6+0.060847*AN6 -> 9.87036269 | AR6: =19.5286-0.30357*42+0.0000341*AO6+0.060847*AN6 -> 10.47750269 | AS6: =62.4*AJ6*AQ6/1000 -> 469825.8918 | AT6: =AO6*1000/(500*AQ6) -> 6070.334596 | AU6: =AL6*1000/(500*AQ6) -> 59.12560198 | AV6: =AU6-AC6 -> -1431.871398 | AW6: 0 | AX6: =AE6-AD6 -> 1490.997 | AY6: =AE6-AT6 -> 832.4024039 | AZ6: =1+AY6*60/$BK$7 -> 1.008752552 | BA6: =IF(AZ6>1,1,IF(AZ6<0,0,AZ6)) -> 1 | BB6: =1+AX6*60/$BK$7 -> 1.015677548 | BC6: =IF(BB6>1,1,BB6) -> 1 | BD6: =AO6*1000/(500*AR6) -> 5718.576829 | BE6: =AE6-BD6 -> 1184.160171 | BF6: =1+BE6*60/$BK$7 -> 1.012451218 | BG6: =IF(BF6>1,1,IF(BF6<0,0,BF6)) -> 1 | BH6: 44 | BI6: 1
A7: 2013-01-01T01:00:00 | B7: 2013-01-01T01:00:00 | C7: 37.73425 | D7: 37.73518 | E7: 37.37171 | F7: 37.69705 | G7: 37.87906 | H7: 37.34127 | I7: 37.43936 | J7: 37.66469 | K7: 37.4535 | L7: 37.26228 | M7: 37.68524 | N7: 37.52464 | O7: 37.54975 | P7: 37.83596 | Q7: 38.17384 | R7: 37.6609 | S7: 37.52493 | T7: 38.05998 | U7: 37.76202 | V7: 37.57536 | W7: 37.96481 | X7: 37.35252 | Y7: 37.68186 | Z7: 37.29778 | AA7: 37.66668 | AB7: 37.30833 | AC7: 1469.077 | AD7: 5431.933 | AE7: 6901.01 | AF7: 48.68618 | AG7: 37.82503 | AH7: 51 | AI7: 51 | AJ7: =3.1416*(138/2)^2*AI7 -> 762815.0376 | AK7: =62.4*AJ7*(AF7-AB7)/1000 -> 541581.7727 | AL7: =500*AC7*(C7-AB7)/1000 -> 312.8546379 | AM7: 46 | AN7: 44 | AO7: 29498.51955 | AP7: 44 | AQ7: =19.5286-0.30357*AP7+0.0000341*AO7+0.060847*AN7 -> 9.854687517 | AR7: =19.5286-0.30357*42+0.0000341*AO7+0.060847*AN7 -> 10.46182752 | AS7: =62.4*AJ7*AQ7/1000 -> 469079.7589 | AT7: =AO7*1000/(500*AQ7) -> 5986.698107 | AU7: =AL7*1000/(500*AQ7) -> 63.49356839 | AV7: -1405.583432 | AW7: 0 | AX7: =AE7-AD7 -> 1469.077 | AY7: 914.3118928 | AZ7: =IF(AZ6>1,1+AY7*60/$BK$7,IF(AZ6<0,AY7*60/$BK$7,AZ6+AY7*60/$BK$7)) -> 1.009613815 | BA7: =IF(AZ7>1,1,IF(AZ7<0,0,AZ7)) -> 1 | BB7: =IF(BB6>1,1+AX7*60/$BK$7,BB6+AX7*60/$BK$7) -> 1.015447064 | BC7: =IF(BB7>1,1,BB7) -> 1 | BD7: 5639.267041 | BE7: 1261.742959 | BF7: =IF(BF6>1,1+BE7*60/$BK$7,IF(BF6<0,BE7*60/$BK$7,BF6+BE7*60/$BK$7)) -> 1.013266986 | BG7: =IF(BF7>1,1,IF(BF7<0,0,BF7)) -> 1 | BH7: 44 | BI7: 1 | BJ7: tank capacity | BK7: =3.1416*(138/2)^2*51*7.4805 -> 5706237.889
A8: 2013-01-01T02:00:00 | B8: 2013-01-01T02:00:00 | C8: 37.76151 | D8: 37.69548 | E8: 37.36932 | F8: 37.74009 | G8: 37.91158 | H8: 37.37024 | I8: 37.42315 | J8: 37.6687 | K8: 37.46586 | L8: 37.25981 | M8: 37.689 | N8: 37.52787 | O8: 37.54426 | P8: 37.83421 | Q8: 38.17438 | R8: 37.66824 | S8: 37.53283 | T8: 38.09177 | U8: 37.79836 | V8: 37.56774 | W8: 37.96225 | X8: 37.41316 | Y8: 37.66014 | Z8: 37.28229 | AA8: 37.67223 | AB8: 37.2894 | AC8: 1538.498 | AD8: 5365.665 | AE8: 6904.163 | AF8: 48.8141 | AG8: 37.78601 | AH8: 51 | AI8: 51 | AJ8: 762815.0376 | AK8: =62.4*AJ8*(AF8-AB8)/1000 -> 548571.7825 | AL8: 363.1701454 | AM8: 45 | AN8: 43 | AO8: 29586.51826 | AP8: 44 | AQ8: 9.796841273 | AR8: 10.40398127 | AS8: 466326.2975 | AT8: 6040.011763 | AU8: 74.14025302 | AV8: -1464.357747 | AW8: 0 | AX8: 1538.498 | AY8: 864.1512368 | AZ8: =IF(AZ7>1,1+AY8*60/$BK$7,IF(AZ7<0,AY8*60/$BK$7,AZ7+AY8*60/$BK$7)) -> 1.009086385 | BA8: 1 | BB8: =IF(BB7>1,1+AX8*60/$BK$7,BB7+AX8*60/$BK$7) -> 1.016177012 | BC8: 1 | BD8: 5687.537778 | BE8: 1216.625222 | BF8: =IF(BF7>1,1+BE8*60/$BK$7,IF(BF7<0,BE8*60/$BK$7,BF7+BE8*60/$BK$7)) -> 1.012792582 | BG8: 1 | BH8: 44 | BI8: 1 | BJ8: minimum height | BK8: =3.1416*(138/2)^2*5*7.4805 -> 559435.0871
A9: 2013-01-01T03:00:00 | B9: 2013-01-01T03:00:00 | C9: 37.76328 | D9: 37.68644 | E9: 37.37589 | F9: 37.75362 | G9: 37.90531 | H9: 37.35921 | I9: 37.42643 | J9: 37.70511 | K9: 37.45761 | L9: 37.24973 | M9: 37.6844 | N9: 37.52265 | O9: 37.54269 | P9: 37.8336 | Q9: 38.17452 | R9: 37.66763 | S9: 37.54932 | T9: 38.11446 | U9: 37.76162 | V9: 37.54868 | W9: 37.96826 | X9: 37.34657 | Y9: 37.62641 | Z9: 37.24007 | AA9: 37.62785 | AB9: 37.29347 | AC9: 1560.816 | AD9: 5334.89 | AE9: 6895.706 | AF9: 48.47211 | AG9: 37.77615 | AH9: 51 | AI9: 51 | AJ9: 762815.0376 | AK9: 532099.4448 | AL9: 366.6434825 | AM9: 44 | AN9: 43 | AO9: 28530.88502 | AP9: 44 | AQ9: =19.5286-0.30357*AP9+0.0000341*AO9+0.060847*AN9 -> 9.760844179 | AR9: 10.36798418 | AS9: 464612.8481 | AT9: 5845.987191 | AU9: 75.12536329 | AV9: -1485.690637 | AW9: 0 | AX9: 1560.816 | AY9: 1049.718809 | AZ9: 1.011037593 | BA9: 1 | BB9: 1.016411682 | BC9: 1 | BD9: 5503.651342 | BE9: 1392.054658 | BF9: 1.014637188 | BG9: 1 | BH9: 44 | BI9: 1 | BJ9: Xmin= | BK9: =BK8/BK7 -> 0.09803921569
A10: 2013-01-01T04:00:00 | B10: 2013-01-01T04:00:00 | C10: 37.72387 | D10: 37.68569 | E10: 37.37827 | F10: 37.73644 | G10: 37.91106 | H10: 37.35292 | I10: 37.43364 | J10: 37.69892 | K10: 37.45621 | L10: 37.24905 | M10: 37.69974 | N10: 37.51706 | O10: 37.54682 | P10: 37.84006 | Q10: 38.17441 | R10: 37.66604 | S10: 37.60275 | T10: 38.12154 | U10: 37.81524 | V10: 37.52136 | W10: 37.97617 | X10: 37.31559 | Y10: 37.6421 | Z10: 37.25363 | AA10: 37.62909 | AB10: 37.31389 | AC10: 1653.381 | AD10: 5246.31 | AE10: 6899.691 | AF10: 48.77646 | AG10: 37.80518 | AH10: 51 | AI10: 51 | AJ10: 762815.0376 | AK10: 545614.4158 | AL10: 338.9265712 | AM10: 44 | AN10: 43 | AO10: 28779.36799 | AP10: 44 | AQ10: 9.769317448 | AR10: 10.37645745 | AS10: 465016.1728 | AT10: 5891.78684 | AU10: 69.38592649 | AV10: -1583.995074 | AW10: 0 | AX10: 1653.381 | AY10: 1007.90416 | AZ10: 1.010597919 | BA10: 1 | BB10: 1.017384985 | BC10: 1 | BD10: 5547.050741 | BE10: 1352.640259 | BF10: 1.014222754 | BG10: 1 | BH10: 44 | BI10: 1
A11: 2013-01-01T05:00:00 | B11: 2013-01-01T05:00:00 | C11: 37.68983 | D11: 37.69059 | E11: 37.40384 | F11: 37.70133 | G11: 37.90508 | H11: 37.34055 | I11: 37.43328 | J11: 37.70227 | K11: 37.4498 | L11: 37.26245 | M11: 37.71299 | N11: 37.50701 | O11: 37.55582 | P11: 37.83823 | Q11: 38.17634 | R11: 37.67838 | S11: 37.61491 | T11: 38.06925 | U11: 37.76437 | V11: 37.54599 | W11: 37.92855 | X11: 37.31193 | Y11: 37.63943 | Z11: 37.24655 | AA11: 37.64034 | AB11: 37.33566 | AC11: 1563.551 | AD11: 5331.356 | AE11: 6894.907 | AF11: 48.5801 | AG11: 37.68319 | AH11: 51 | AI11: 51 | AJ11: 762815.0376 | AK11: 535231.5023 | AL11: 276.8814288 | AM11: 43 | AN11: 42 | AO11: 29047.65325 | AP11: 44 | AQ11: 9.717618976 | AR11: 10.32475898 | AS11: 462555.3432 | AT11: 5978.34785 | AU11: 56.98544664 | AV11: -1506.565553 | AW11: 0 | AX11: 1563.551 | AY11: 916.5591502 | AZ11: 1.009637444 | BA11: 1 | BB11: 1.01644044 | BC11: 1 | BD11: 5626.795419 | BE11: 1268.111581 | BF11: 1.013333951 | BG11: 1 | BH11: 44 | BI11: 1 | BJ11: Tavrg (winter) | BK11: =AVERAGE(BH6:BH1413) -> 43.68181818
A12: 2013-01-01T06:00:00 | B12: 2013-01-01T06:00:00 | C12: 37.66199 | D12: 37.6852 | E12: 37.38583 | F12: 37.69926 | G12: 37.90116 | H12: 37.3301 | I12: 37.42975 | J12: 37.68132 | K12: 37.45731 | L12: 37.25602 | M12: 37.72207 | N12: 37.50552 | O12: 37.55333 | P12: 37.83444 | Q12: 38.18124 | R12: 37.72424 | S12: 37.63352 | T12: 38.10407 | U12: 37.75954 | V12: 37.52428 | W12: 37.89933 | X12: 37.29656 | Y12: 37.63377 | Z12: 37.25187 | AA12: 37.63437 | AB12: 37.33768 | AC12: 1645.584 | AD12: 5256.443 | AE12: 6902.027 | AF12: 49.20693 | AG12: 37.80403 | AH12: 51 | AI12: 51 | AJ12: 762815.0376 | AK12: 564972.2448 | AL12: 266.8396735 | AM12: 42 | AN12: 40 | AO12: 29969.34694 | AP12: 44 | AQ12: 9.627354731 | AR12: 10.23449473 | AS12: 458258.796 | AT12: 6225.873624 | AU12: 55.43364319 | AV12: -1590.150357 | AW12: 0 | AX12: 1645.584 | AY12: 676.1533762 | AZ12: 1.007109623 | BA12: 1 | BB12: 1.017303001 | BC12: 1 | BD12: 5856.536689 | BE12: 1045.490311 | BF12: 1.010993131 | BG12: 1 | BH12: 44 | BI12: 1 | BJ12: Tavrg (summer) | BK12: =AVERAGE(BH1424:BH3593) -> 42.13327163
A13: 2013-01-01T07:00:00 | B13: 2013-01-01T07:00:00 | C13: 37.64459 | D13: 37.67964 | E13: 37.36849 | F13: 37.7007 | G13: 37.90034 | H13: 37.32029 | I13: 37.43087 | J13: 37.67815 | K13: 37.44943 | L13: 37.24973 | M13: 37.73145 | N13: 37.5043 | O13: 37.54706 | P13: 37.83773 | Q13: 38.20319 | R13: 37.7498 | S13: 37.58269 | T13: 38.0766 | U13: 37.78315 | V13: 37.44687 | W13: 37.88026 | X13: 37.28105 | Y13: 37.62274 | Z13: 37.24944 | AA13: 37.6304 | AB13: 37.32855 | AC13: 1656.401 | AD13: 5249.948 | AE13: 6906.349 | AF13: 48.90063 | AG13: 37.90646 | AH13: 51 | AI13: 51 | AJ13: 762815.0376 | AK13: 550827.0544 | AL13: 261.744486 | AM13: 41 | AN13: 39 | AO13: 28859.4104 | AP13: 44 | AQ13: 9.528658895 | AR13: 10.13579889 | AS13: 453560.9079 | AT13: 6057.391858 | AU13: 54.93836833 | AV13: -1601.462632 | AW13: 0 | AX13: 1656.401 | AY13: 848.9571423 | AZ13: 1.008926622 | BA13: 1 | BB13: 1.01741674 | BC13: 1 | BD13: 5694.550711 | BE13: 1211.798289 | BF13: 1.012741827 | BG13: 1 | BH13: 44 | BI13: 1
A14: 2013-01-01T08:00:00 | B14: 2013-01-01T08:00:00 | C14: 37.64349 | D14: 37.69883 | E14: 37.35204 | F14: 37.70572 | G14: 37.89735 | H14: 37.31811 | I14: 37.44412 | J14: 37.65774 | K14: 37.4478 | L14: 37.25257 | M14: 37.74064 | N14: 37.49992 | O14: 37.54901 | P14: 37.84351 | Q14: 38.25409 | R14: 37.72567 | S14: 37.60983 | T14: 38.07887 | U14: 37.75888 | V14: 37.4395 | W14: 37.88172 | X14: 37.2751 | Y14: 37.6199 | Z14: 37.2468 | AA14: 37.63486 | AB14: 37.304 | AC14: 1639.835 | AD14: 5260.098 | AE14: 6899.934 | AF14: 49.27973 | AG14: 37.97961 | AH14: 51 | AI14: 51 | AJ14: 762815.0376 | AK14: 570040.6564 | AL14: 278.3537921 | AM14: 39 | AN14: 38 | AO14: 29719.86931 | AP14: 44 | AQ14: 9.497153543 | AR14: 10.10429354 | AS14: 452061.2639 | AT14: 6258.689863 | AU14: 58.61836198 | AV14: -1581.216638 | AW14: 0 | AX14: 1639.836 | AY14: 641.2441367 | AZ14: 1.006742559 | BA14: 1 | BB14: 1.017242562 | BC14: 1 | BD14: 5882.621913 | BE14: 1017.312087 | BF14: 1.010696842 | BG14: 1 | BH14: 44 | BI14: 1
A15: 2013-01-01T09:00:00 | B15: 2013-01-01T09:00:00 | C15: 37.64305 | D15: 37.68678 | E15: 37.33938 | F15: 37.70722 | G15: 37.88291 | H15: 37.32217 | I15: 37.44415 | J15: 37.65842 | K15: 37.44308 | L15: 37.26579 | M15: 37.74909 | N15: 37.49505 | O15: 37.54853 | P15: 37.86829 | Q15: 38.27302 | R15: 37.71542 | S15: 37.59303 | T15: 38.11127 | U15: 37.72464 | V15: 37.45387 | W15: 37.896 | X15: 37.29228 | Y15: 37.6365 | Z15: 37.25256 | AA15: 37.63016 | AB15: 37.34099 | AC15: 1577.514 | AD15: 5324.326 | AE15: 6901.839 | AF15: 49.21418 | AG15: 37.99192 | AH15: 51 | AI15: 51 | AJ15: 762815.0376 | AK15: 565159.7875 | AL15: 238.2519394 | AM15: 40 | AN15: 38 | AO15: 29875.48535 | AP15: 44 | AQ15: 9.50246005 | AR15: 10.10960005 | AS15: 452313.8518 | AT15: 6287.947582 | AU15: 50.14531777 | AV15: -1527.368682 | AW15: 0 | AX15: 1577.513 | AY15: 613.891418 | AZ15: 1.006454951 | BA15: 1 | BB15: 1.016587247 | BC15: 1 | BD15: 5910.319933 | BE15: 991.5190666 | BF15: 1.010425633 | BG15: 1 | BH15: 44 | BI15: 1
A16: 2013-01-01T10:00:00 | B16: 2013-01-01T10:00:00 | C16: 37.64119 | D16: 37.67471 | E16: 37.3396 | F16: 37.6788 | G16: 37.8858 | H16: 37.32252 | I16: 37.43077 | J16: 37.66038 | K16: 37.46777 | L16: 37.24878 | M16: 37.72319 | N16: 37.49994 | O16: 37.55463 | P16: 37.94233 | Q16: 38.25016 | R16: 37.73223 | S16: 37.58536 | T16: 38.07126 | U16: 37.72999 | V16: 37.46459 | W16: 37.90236 | X16: 37.29654 | Y16: 37.64788 | Z16: 37.26435 | AA16: 37.64458 | AB16: 37.28267 | AC16: 1567.49 | AD16: 5334.724 | AE16: 6902.215 | AF16: 49.26714 | AG16: 37.93641 | AH16: 51 | AI16: 51 | AJ16: 762815.0376 | AK16: 570456.6775 | AL16: 280.9882574 | AM16: 40 | AN16: 38 | AO16: 30223.15863 | AP16: 44 | AQ16: 9.514315709 | AR16: 10.12145571 | AS16: 452878.1772 | AT16: 6353.1965 | AU16: 59.06641444 | AV16: -1508.423586 | AW16: 0 | AX16: 1567.491 | AY16: 549.0184996 | AZ16: 1.005772825 | BA16: 1 | BB16: 1.016481868 | BC16: 1 | BD16: 5972.097197 | BE16: 930.1178033 | BF16: 1.009780011 | BG16: 1 | BH16: 44 | BI16: 1
A17: 2013-01-01T11:00:00 | B17: 2013-01-01T11:00:00 | C17: 37.6855 | D17: 37.69614 | E17: 37.3358 | F17: 37.68123 | G17: 37.91756 | H17: 37.32822 | I17: 37.41106 | J17: 37.67674 | K17: 37.46478 | L17: 37.24243 | M17: 37.71358 | N17: 37.51125 | O17: 37.57785 | P17: 37.97757 | Q17: 38.27002 | R17: 37.74195 | S17: 37.59181 | T17: 38.05802 | U17: 37.73624 | V17: 37.48239 | W17: 37.92322 | X17: 37.31363 | Y17: 37.65237 | Z17: 37.26856 | AA17: 37.64956 | AB17: 37.28562 | AC17: 1505.514 | AD17: 5398.526 | AE17: 6904.04 | AF17: 49.02234 | AG17: 37.98927 | AH17: 51 | AI17: 51 | AJ17: 762815.0376 | AK17: 558663.8621 | AL17: 301.0124692 | AM17: 40 | AN17: 38 | AO17: 29781.15763 | AP17: 44 | AQ17: 9.499243475 | AR17: 10.10638348 | AS17: 452160.744 | AT17: 6270.216719 | AU17: 63.37609304 | AV17: -1442.137907 | AW17: 0 | AX17: 1505.514 | AY17: 633.8232811 | AZ17: 1.006664531 | BA17: 1 | BB17: 1.015830192 | BC17: 1 | BD17: 5893.534062 | BE17: 1010.505938 | BF17: 1.010625277 | BG17: 1 | BH17: 44 | BI17: 1
A18: 2013-01-01T12:00:00 | B18: 2013-01-01T12:00:00 | C18: 37.71091 | D18: 37.70175 | E18: 37.33685 | F18: 37.67867 | G18: 37.88796 | H18: 37.35242 | I18: 37.41793 | J18: 37.68752 | K18: 37.47076 | L18: 37.25184 | M18: 37.69897 | N18: 37.52233 | O18: 37.62515 | P18: 37.93644 | Q18: 38.24236 | R18: 37.71246 | S18: 37.56176 | T18: 38.05832 | U18: 37.74435 | V18: 37.51882 | W18: 37.94704 | X18: 37.32504 | Y18: 37.64858 | Z18: 37.2658 | AA18: 37.64886 | AB18: 37.2707 | AC18: 1468.088 | AD18: 5434.371 | AE18: 6902.459 | AF18: 49.39424 | AG18: 37.91878 | AH18: 51 | AI18: 51 | AJ18: 762815.0376 | AK18: 577076.3619 | AL18: 323.1335092 | AM18: 42 | AN18: 39 | AO18: 31180.95352 | AP18: 44 | AQ18: 9.607823515 | AR18: 10.21496351 | AS18: 457329.1168 | AT18: 6490.742356 | AU18: 67.26466379 | AV18: -1400.823336 | AW18: 0 | AX18: 1468.088 | AY18: 411.7166442 | AZ18: 1.004329122 | BA18: 1 | BB18: 1.015436665 | BC18: 1 | BD18: 6104.956415 | BE18: 797.5025854 | BF18: 1.008385587 | BG18: 1 | BH18: 44 | BI18: 1
A19: 2013-01-01T13:00:00 | B19: 2013-01-01T13:00:00 | C19: 37.65973 | D19: 37.68213 | E19: 37.33464 | F19: 37.68346 | G19: 37.88303 | H19: 37.33079 | I19: 37.43834 | J19: 37.67847 | K19: 37.45138 | L19: 37.25214 | M19: 37.69517 | N19: 37.54312 | O19: 37.68458 | P19: 37.95074 | Q19: 38.28561 | R19: 37.71962 | S19: 37.56017 | T19: 38.06389 | U19: 37.74567 | V19: 37.51348 | W19: 37.94277 | X19: 37.33163 | Y19: 37.6606 | Z19: 37.27415 | AA19: 37.64889 | AB19: 37.27747 | AC19: 1559.671 | AD19: 5402.033 | AE19: 6779.708 | AF19: 49.23382 | AG19: 37.92024 | AH19: 51 | AI19: 51 | AJ19: 762815.0376 | AK19: 569118.1751 | AL19: 298.0999182 | AM19: 43 | AN19: 39 | AO19: 30558.16625 | AP19: 44 | AQ19: 9.586586469 | AR19: 10.19372647 | AS19: 456318.2406 | AT19: 6375.192328 | AU19: 62.19104562 | AV19: -1497.479954 | AW19: 0 | AX19: 1377.675 | AY19: 404.5156723 | AZ19: 1.004253405 | BA19: 1 | BB19: 1.014485989 | BC19: 1 | BD19: 5995.48484 | BE19: 784.2231601 | BF19: 1.008245957 | BG19: 1 | BH19: 44 | BI19: 1
A20: 2013-01-01T14:00:00 | B20: 2013-01-01T14:00:00 | C20: 37.78084 | D20: 37.77577 | E20: 37.42065 | F20: 37.75452 | G20: 37.90781 | H20: 37.33443 | I20: 37.43082 | J20: 37.66735 | K20: 37.44863 | L20: 37.23888 | M20: 37.70883 | N20: 37.54977 | O20: 37.66448 | P20: 37.90839 | Q20: 38.25638 | R20: 37.69965 | S20: 37.56421 | T20: 38.07016 | U20: 37.74342 | V20: 37.50466 | W20: 37.93829 | X20: 37.32728 | Y20: 37.66383 | Z20: 37.28555 | AA20: 37.66678 | AB20: 37.27805 | AC20: 1904.311 | AD20: 5412.536 | AE20: 6084.99 | AF20: 49.41634 | AG20: 39.12998 | AH20: 51 | AI20: 51 | AJ20: 762815.0376 | AK20: 577778.4569 | AL20: 478.7342638 | AM20: 41 | AN20: 38 | AO20: 27837.6469 | AP20: 44 | AQ20: 9.432969759 | AR20: 10.04010976 | AS20: 449006.1377 | AT20: 5902.202088 | AU20: 101.5023425 | AV20: -1802.808657 | AW20: 0 | AX20: 672.454 | AY20: 182.7879121 | AZ20: 1.00192198 | BA20: 1 | BB20: 1.007070725 | BC20: 1 | BD20: 5545.287367 | BE20: 539.7026333 | BF20: 1.00567487 | BG20: 1 | BH20: 44 | BI20: 1
A21: 2013-01-01T15:00:00 | B21: 2013-01-01T15:00:00 | C21: 37.63158 | D21: 37.65477 | E21: 37.31802 | F21: 37.70029 | G21: 37.89054 | H21: 37.32389 | I21: 37.42999 | J21: 37.65866 | K21: 37.45073 | L21: 37.23635 | M21: 37.71773 | N21: 37.61842 | O21: 37.66223 | P21: 37.88124 | Q21: 38.26663 | R21: 37.69512 | S21: 37.57758 | T21: 38.08154 | U21: 37.7584 | V21: 37.51173 | W21: 37.93267 | X21: 37.33883 | Y21: 37.671 | Z21: 37.29366 | AA21: 37.68122 | AB21: 37.55744 | AC21: 1455.74 | AD21: 5445.338 | AE21: 6901.079 | AF21: 49.29808 | AG21: 38.5416 | AH21: 51 | AI21: 51 | AJ21: 762815.0376 | AK21: 558850.4528 | AL21: 53.9642818 | AM21: 40 | AN21: 37 | AO21: 29286.33465 | AP21: 44 | AQ21: 9.421523011 | AR21: 10.02866301 | AS21: 448461.2764 | AT21: 6216.900306 | AU21: 11.45553256 | AV21: -1444.284467 | AW21: 0 | AX21: 1455.741 | AY21: 684.1786942 | AZ21: 1.007194008 | BA21: 1 | BB21: 1.015306838 | BC21: 1 | BD21: 5840.526222 | BE21: 1060.552778 | BF21: 1.01115151 | BG21: 1 | BH21: 44 | BI21: 1
A22: 2013-01-01T16:00:00 | B22: 2013-01-01T16:00:00 | C22: 37.58682 | D22: 37.65049 | E22: 37.30823 | F22: 37.69411 | G22: 37.90207 | H22: 37.3222 | I22: 37.432 | J22: 37.65724 | K22: 37.44902 | L22: 37.23264 | M22: 37.74093 | N22: 37.65181 | O22: 37.67934 | P22: 37.91095 | Q22: 38.2384 | R22: 37.7438 | S22: 37.63051 | T22: 38.11718 | U22: 37.77842 | V22: 37.50123 | W22: 37.93238 | X22: 37.34299 | Y22: 37.71709 | Z22: 37.31455 | AA22: 37.69184 | AB22: 37.6823 | AC22: 1531.353 | AD22: 5372.292 | AE22: 6903.645 | AF22: 49.45098 | AG22: 38.70779 | AH22: 51 | AI22: 51 | AJ22: 762815.0376 | AK22: 560185.1472 | AL22: -73.10679222 | AM22: 39 | AN22: 36 | AO22: 28857.77685 | AP22: 44 | AQ22: 9.34606219 | AR22: 9.95320219 | AS22: 444869.3671 | AT22: 6175.387293 | AU22: -15.64440525 | AV22: -1546.997405 | AW22: 0 | AX22: 1531.353 | AY22: 728.2577069 | AZ22: 1.00765749 | BA22: 1 | BB22: 1.016101884 | BC22: 1 | BD22: 5798.691977 | BE22: 1104.953023 | BF22: 1.01161837 | BG22: 1 | BH22: 44 | BI22: 1
A23: 2013-01-01T17:00:00 | B23: 2013-01-01T17:00:00 | C23: 37.61032 | D23: 37.65672 | E23: 37.3074 | F23: 37.68185 | G23: 37.89665 | H23: 37.3172 | I23: 37.41846 | J23: 37.65345 | K23: 37.45061 | L23: 37.23002 | M23: 37.77834 | N23: 37.61275 | O23: 37.59783 | P23: 37.90181 | Q23: 38.22933 | R23: 37.73099 | S23: 37.63474 | T23: 38.1299 | U23: 37.79287 | V23: 37.48763 | W23: 37.93595 | X23: 37.34948 | Y23: 37.69333 | Z23: 37.33517 | AA23: 37.91444 | AB23: 37.82379 | AC23: 2009.811 | AD23: 5363.007 | AE23: 6079.005 | AF23: 49.48284 | AG23: 38.9185 | AH23: 51 | AI23: 51 | AJ23: 762815.0376 | AK23: 554966.7966 | AL23: -214.5171771 | AM23: 38 | AN23: 35 | AO23: 28328.31469 | AP23: 44 | AQ23: 9.267160531 | AR23: 9.874300531 | AS23: 441113.6751 | AT23: 6113.698925 | AU23: -46.29620397 | AV23: -2056.107204 | AW23: 0 | AX23: 715.998 | AY23: -34.69392453 | AZ23: 0.9996352 | BA23: 0.9996352 | BB23: 1.007528582 | BC23: 1 | BD23: 5737.78661 | BE23: 341.2183898 | BF23: 1.003587846 | BG23: 1 | BH23: 44 | BI23: 1
A24: 2013-01-01T18:00:00 | B24: 2013-01-01T18:00:00 | C24: 37.73092 | D24: 37.76561 | E24: 37.34137 | F24: 37.69692 | G24: 37.8778 | H24: 37.28968 | I24: 37.41351 | J24: 37.64988 | K24: 37.45235 | L24: 37.23343 | M24: 37.81013 | N24: 37.60378 | O24: 37.59916 | P24: 37.89796 | Q24: 38.24041 | R24: 37.75275 | S24: 37.62087 | T24: 38.12105 | U24: 37.77923 | V24: 37.48132 | W24: 37.92752 | X24: 37.33923 | Y24: 37.73582 | Z24: 37.32505 | AA24: 38.00504 | AB24: 37.74992 | AC24: 1593.061 | AD24: 5305.244 | AE24: 6898.304 | AF24: 49.20465 | AG24: 37.85323 | AH24: 51 | AI24: 51 | AJ24: 762815.0376 | AK24: 545241.2344 | AL24: -15.1340795 | AM24: 38 | AN24: 35 | AO24: 30111.02642 | AP24: 44 | AQ24: 9.327951001 | AR24: 9.935091001 | AS24: 444007.2807 | AT24: 6456.085891 | AU24: -3.244888293 | AV24: -1596.305888 | AW24: 0 | AX24: 1593.06 | AY24: 442.2181093 | AZ24: 1.004285039 | BA24: 1 | BB24: 1.016750721 | BC24: 1 | BD24: 6061.5502 | BE24: 836.7537998 | BF24: 1.008798306 | BG24: 1 | BH24: 44 | BI24: 1
A25: 2013-01-01T19:00:00 | B25: 2013-01-01T19:00:00 | C25: 37.5777 | D25: 37.6509 | E25: 37.31718 | F25: 37.68617 | G25: 37.88136 | H25: 37.28331 | I25: 37.41211 | J25: 37.65591 | K25: 37.44543 | L25: 37.24095 | M25: 37.86188 | N25: 37.58036 | O25: 37.63609 | P25: 37.88394 | Q25: 38.26093 | R25: 37.74948 | S25: 37.62097 | T25: 38.11345 | U25: 37.80365 | V25: 37.52035 | W25: 37.93243 | X25: 37.34304 | Y25: 37.69833 | Z25: 37.40633 | AA25: 37.84431 | AB25: 37.62267 | AC25: 1655.528 | AD25: 5241.263 | AE25: 6896.791 | AF25: 49.24855 | AG25: 37.90301 | AH25: 51 | AI25: 51 | AJ25: 762815.0376 | AK25: 553387.916 | AL25: -37.22454708 | AM25: 37 | AN25: 34 | AO25: 29732.47951 | AP25: 44 | AQ25: 9.254195551 | AR25: 9.861335551 | AS25: 440496.5465 | AT25: 6425.72968 | AU25: -8.044901769 | AV25: -1663.572902 | AW25: 0 | AX25: 1655.528 | AY25: 471.0613201 | AZ25: 1.00495312 | BA25: 1 | BB25: 1.01740756 | BC25: 1 | BD25: 6030.112119 | BE25: 866.678881 | BF25: 1.009112963 | BG25: 1 | BH25: 44 | BI25: 1
A26: 2013-01-01T20:00:00 | B26: 2013-01-01T20:00:00 | C26: 37.57257 | D26: 37.64864 | E26: 37.30098 | F26: 37.6802 | G26: 37.88009 | H26: 37.28546 | I26: 37.4141 | J26: 37.66302 | K26: 37.45842 | L26: 37.26064 | M26: 37.84018 | N26: 37.55376 | O26: 37.63256 | P26: 37.89338 | Q26: 38.25335 | R26: 37.74617 | S26: 37.61194 | T26: 38.11372 | U26: 37.81244 | V26: 37.49263 | W26: 37.92706 | X26: 37.3782 | Y26: 37.74595 | Z26: 37.41892 | AA26: 37.80237 | AB26: 37.53183 | AC26: 1672.633 | AD26: 5227.607 | AE26: 6900.24 | AF26: 49.00811 | AG26: 37.75895 | AH26: 51 | AI26: 51 | AJ26: 762815.0376 | AK26: 546267.0071 | AL26: 34.07153421 | AM26: 37 | AN26: 34 | AO26: 29403.09378 | AP26: 44 | AQ26: 9.242963498 | AR26: 9.850103498 | AS26: 439961.9046 | AT26: 6362.265476 | AU26: 7.372426434 | AV26: -1665.260574 | AW26: 0 | AX26: 1672.633 | AY26: 537.9745238 | AZ26: 1.005656699 | BA26: 1 | BB26: 1.017587416 | BC26: 1 | BD26: 5970.108596 | BE26: 930.1314044 | BF26: 1.009780154 | BG26: 1 | BH26: 44 | BI26: 1
A27: 2013-01-01T21:00:00 | B27: 2013-01-01T21:00:00 | C27: 37.55029 | D27: 37.63811 | E27: 37.30933 | F27: 37.68015 | G27: 37.88531 | H27: 37.27081 | I27: 37.42418 | J27: 37.68494 | K27: 37.45641 | L27: 37.33076 | M27: 37.83939 | N27: 37.58059 | O27: 37.59666 | P27: 37.91481 | Q27: 38.24243 | R27: 37.73994 | S27: 37.61449 | T27: 38.12001 | U27: 37.77522 | V27: 37.47206 | W27: 37.93153 | X27: 37.36864 | Y27: 37.75322 | Z27: 37.40672 | AA27: 37.80971 | AB27: 37.48949 | AC27: 1697.193 | AD27: 5204.426 | AE27: 6901.62 | AF27: 49.15263 | AG27: 37.76286 | AH27: 51 | AI27: 51 | AJ27: 762815.0376 | AK27: 555161.4792 | AL27: 51.5946672 | AM27: 36 | AN27: 33 | AO27: 29638.60756 | AP27: 44 | AQ27: 9.190147518 | AR27: 9.797287518 | AS27: 437447.882 | AT27: 6450.083092 | AU27: 11.22825659 | AV27: -1685.964743 | AW27: 0 | AX27: 1697.194 | AY27: 451.5369075 | AZ27: 1.004747824 | BA27: 1 | BB27: 1.01784567 | BC27: 1 | BD27: 6050.370066 | BE27: 851.2499344 | BF27: 1.00895073 | BG27: 1 | BH27: 44 | BI27: 1
A28: 2013-01-01T22:00:00 | B28: 2013-01-01T22:00:00 | C28: 37.53551 | D28: 37.63885 | E28: 37.30872 | F28: 37.67682 | G28: 37.87687 | H28: 37.27427 | I28: 37.42394 | J28: 37.67929 | K28: 37.47215 | L28: 37.3054 | M28: 37.82356 | N28: 37.55659 | O28: 37.59492 | P28: 37.90854 | Q28: 38.25556 | R28: 37.74617 | S28: 37.61583 | T28: 38.10995 | U28: 37.77434 | V28: 37.45348 | W28: 37.94595 | X28: 37.38169 | Y28: 37.7401 | Z28: 37.37971 | AA28: 37.76884 | AB28: 37.47982 | AC28: 1802.37 | AD28: 5096.683 | AE28: 6899.054 | AF28: 48.55652 | AG28: 37.76416 | AH28: 51 | AI28: 51 | AJ28: 762815.0376 | AK28: 527247.1356 | AL28: 50.18699265 | AM28: 36 | AN28: 33 | AO28: 27502.61887 | AP28: 44 | AQ28: 9.117310303 | AR28: 9.724450303 | AS28: 433980.8555 | AT28: 6033.055354 | AU28: 11.0091663 | AV28: -1791.360834 | AW28: 0 | AX28: 1802.371 | AY28: 865.9986459 | AZ28: 1.00910581 | BA28: 1 | BB28: 1.018951586 | BC28: 1 | BD28: 5656.385299 | BE28: 1242.668701 | BF28: 1.013066424 | BG28: 1 | BH28: 44 | BI28: 1
A29: 2013-01-01T23:00:00 | B29: 2013-01-01T23:00:00 | C29: 37.54227 | D29: 37.64093 | E29: 37.30688 | F29: 37.67009 | G29: 37.86932 | H29: 37.28123 | I29: 37.44288 | J29: 37.67926 | K29: 37.52103 | L29: 37.3212 | M29: 37.82267 | N29: 37.52143 | O29: 37.62447 | P29: 37.91088 | Q29: 38.26077 | R29: 37.73546 | S29: 37.61666 | T29: 38.10349 | U29: 37.75995 | V29: 37.45114 | W29: 37.9261 | X29: 37.35499 | Y29: 37.70205 | Z29: 37.35002 | AA29: 37.74133 | AB29: 37.43306 | AC29: 1957.011 | AD29: 4940.051 | AE29: 6897.062 | AF29: 48.36747 | AG29: 37.7725 | AH29: 51 | AI29: 51 | AJ29: 762815.0376 | AK29: 520474.1802 | AL29: 106.8625857 | AM29: 36 | AN29: 33 | AO29: 26169.84607 | AP29: 44 | AQ29: 9.071862751 | AR29: 9.679002751 | AS29: 431817.5675 | AT29: 5769.453703 | AU29: 23.55912751 | AV29: -1933.451872 | AW29: 0 | AX29: 1957.011 | AY29: 1127.608297 | AZ29: 1.011856586 | BA29: 1 | BB29: 1.020577596 | BC29: 1 | BD29: 5407.550084 | BE29: 1489.511916 | BF29: 1.015661933 | BG29: 1 | BH29: 44 | BI29: 1
A30: 2013-01-02 | B30: 2013-01-02 | C30: 37.55145 | D30: 37.63632 | E30: 37.30349 | F30: 37.66841 | G30: 37.87282 | H30: 37.29397 | I30: 37.44223 | J30: 37.68232 | K30: 37.51035 | L30: 37.26505 | M30: 37.80063 | N30: 37.54614 | O30: 37.62746 | P30: 37.91452 | Q30: 38.24578 | R30: 37.73081 | S30: 37.5943 | T30: 38.09475 | U30: 37.75492 | V30: 37.43942 | W30: 37.90718 | X30: 37.33892 | Y30: 37.68972 | Z30: 37.33944 | AA30: 37.72656 | AB30: 37.39004 | AC30: 1907.593 | AD30: 4988.217 | AE30: 6895.81 | AF30: 47.96195 | AG30: 37.7863 | AH30: 51 | AI30: 51 | AJ30: 762815.0376 | AK30: 503219.3041 | AL30: 153.9522931 | AM30: 36 | AN30: 33 | AO30: 25379.17516 | AP30: 44 | AQ30: 9.044900873 | AR30: 9.652040873 | AS30: 430534.1913 | AT30: 5611.819414 | AU30: 34.04178669 | AV30: -1873.551213 | AW30: 0 | AX30: 1907.593 | AY30: 1283.990586 | AZ30: 1.013500915 | BA30: 1 | BB30: 1.020057976 | BC30: 1 | BD30: 5258.82049 | BE30: 1636.98951 | BF30: 1.017212632 | BG30: 1 | BH30: 44 | BI30: 1
A31: 2013-01-02T01:00:00 | B31: 2013-01-02T01:00:00 | C31: 37.54502 | D31: 37.64545 | E31: 37.2998 | F31: 37.67291 | G31: 37.89042 | H31: 37.29755 | I31: 37.4374 | J31: 37.7359 | K31: 37.53838 | L31: 37.27976 | M31: 37.81756 | N31: 37.56518 | O31: 37.62643 | P31: 37.91398 | Q31: 38.24563 | R31: 37.73346 | S31: 37.6018 | T31: 38.11063 | U31: 37.76551 | V31: 37.44452 | W31: 37.90987 | X31: 37.3319 | Y31: 37.6805 | Z31: 37.32204 | AA31: 37.71238 | AB31: 37.36333 | AC31: 1978.703 | AD31: 4918.525 | AE31: 6897.228 | AF31: 48.02168 | AG31: 37.7622 | AH31: 51 | AI31: 51 | AJ31: 762815.0376 | AK31: 507333.8185 | AL31: 179.755274 | AM31: 35 | AN31: 32 | AO31: 25230.75443 | AP31: 44 | AQ31: 8.978992726 | AR31: 9.586132726 | AS31: 427396.9861 | AT31: 5619.952082 | AU31: 40.03907332 | AV31: -1938.663927 | AW31: 0 | AX31: 1978.703 | AY31: 1277.275918 | AZ31: 1.013430312 | BA31: 1 | BB31: 1.020805684 | BC31: 1 | BD31: 5264.011078 | BE31: 1633.216922 | BF31: 1.017172964 | BG31: 1 | BH31: 44 | BI31: 1
A32: 2013-01-02T02:00:00 | B32: 2013-01-02T02:00:00 | C32: 37.52787 | D32: 37.63902 | E32: 37.28769 | F32: 37.68082 | G32: 37.88422 | H32: 37.28316 | I32: 37.45047 | J32: 37.73438 | K32: 37.50287 | L32: 37.25501 | M32: 37.8279 | N32: 37.55736 | O32: 37.61794 | P32: 37.90292 | Q32: 38.24609 | R32: 37.74453 | S32: 37.62222 | T32: 38.12305 | U32: 37.77914 | V32: 37.44059 | W32: 37.91963 | X32: 37.34268 | Y32: 37.695 | Z32: 37.31714 | AA32: 37.69693 | AB32: 37.34421 | AC32: 1978.172 | AD32: 4920.823 | AE32: 6898.995 | AF32: 47.65092 | AG32: 37.82713 | AH32: 51 | AI32: 51 | AJ32: 762815.0376 | AK32: 490595.8747 | AL32: 181.6555348 | AM32: 35 | AN32: 32 | AO32: 24170.56589 | AP32: 44 | AQ32: 8.942840297 | AR32: 9.549980297 | AS32: 425676.1428 | AT32: 5405.568049 | AU32: 40.62591497 | AV32: -1937.546085 | AW32: 0 | AX32: 1978.172 | AY32: 1493.426951 | AZ32: 1.015703099 | BA32: 1 | BB32: 1.0208001 | BC32: 1 | BD32: 5061.909059 | BE32: 1837.085941 | BF32: 1.019316607 | BG32: 1 | BH32: 44 | BI32: 1
A33: 2013-01-02T03:00:00 | B33: 2013-01-02T03:00:00 | C33: 37.58572 | D33: 37.62891 | E33: 37.28486 | F33: 37.68036 | G33: 37.88869 | H33: 37.28612 | I33: 37.49976 | J33: 37.74109 | K33: 37.50677 | L33: 37.25616 | M33: 37.81281 | N33: 37.52421 | O33: 37.60007 | P33: 37.88076 | Q33: 38.22202 | R33: 37.72859 | S33: 37.61646 | T33: 38.11386 | U33: 37.76504 | V33: 37.42038 | W33: 37.89992 | X33: 37.34072 | Y33: 37.70074 | Z33: 37.32931 | AA33: 37.69798 | AB33: 37.41312 | AC33: 2042.274 | AD33: 4857.007 | AE33: 6899.281 | AF33: 47.81394 | AG33: 37.76021 | AH33: 51 | AI33: 51 | AJ33: 762815.0376 | AK33: 495075.4785 | AL33: 176.2482462 | AM33: 33 | AN33: 31 | AO33: 24415.51849 | AP33: 44 | AQ33: 8.890346181 | AR33: 9.497486181 | AS33: 423177.4408 | AT33: 5492.591176 | AU33: 39.64935507 | AV33: -2002.624645 | AW33: 0 | AX33: 2042.274 | AY33: 1406.689824 | AZ33: 1.014791074 | BA33: 1 | BB33: 1.02147412 | BC33: 1 | BD33: 5141.469654 | BE33: 1757.811346 | BF33: 1.01848305 | BG33: 1 | BH33: 44 | BI33: 1
A34: 2013-01-02T04:00:00 | B34: 2013-01-02T04:00:00 | C34: 37.57296 | D34: 37.64089 | E34: 37.29184 | F34: 37.67675 | G34: 37.89238 | H34: 37.30944 | I34: 37.50858 | J34: 37.70944 | K34: 37.48834 | L34: 37.23492 | M34: 37.81114 | N34: 37.51331 | O34: 37.59766 | P34: 37.87999 | Q34: 38.21739 | R34: 37.72837 | S34: 37.60521 | T34: 38.11066 | U34: 37.74933 | V34: 37.40128 | W34: 37.89352 | X34: 37.32478 | Y34: 37.70143 | Z34: 37.33217 | AA34: 37.70763 | AB34: 37.36144 | AC34: 2060.502 | AD34: 4848.056 | AE34: 6908.558 | AF34: 47.53895 | AG34: 37.70332 | AH34: 51 | AI34: 51 | AJ34: 762815.0376 | AK34: 484445.9988 | AL34: 217.9186915 | AM34: 32 | AN34: 30 | AO34: 23841.84252 | AP34: 44 | AQ34: 8.80993683 | AR34: 9.41707683 | AS34: 419349.9832 | AT34: 5412.48887 | AU34: 49.4711133 | AV34: -2011.030887 | AW34: 0 | AX34: 2060.502 | AY34: 1496.06913 | AZ34: 1.015730881 | BA34: 1 | BB34: 1.021665784 | BC34: 1 | BD34: 5063.53361 | BE34: 1845.02439 | BF34: 1.019400079 | BG34: 1 | BH34: 44 | BI34: 1
A35: 2013-01-02T05:00:00 | B35: 2013-01-02T05:00:00 | C35: 37.52849 | D35: 37.68198 | E35: 37.29737 | F35: 37.68599 | G35: 37.89042 | H35: 37.34636 | I35: 37.52153 | J35: 37.69455 | K35: 37.47831 | L35: 37.22212 | M35: 37.80566 | N35: 37.5079 | O35: 37.58979 | P35: 37.87713 | Q35: 38.2065 | R35: 37.72202 | S35: 37.59988 | T35: 38.09568 | U35: 37.73955 | V35: 37.37881 | W35: 37.89014 | X35: 37.31113 | Y35: 37.69278 | Z35: 37.31927 | AA35: 37.70829 | AB35: 37.32286 | AC35: 1947.862 | AD35: 4950.53 | AE35: 6898.393 | AF35: 47.92542 | AG35: 37.75412 | AH35: 51 | AI35: 51 | AJ35: 762815.0376 | AK35: 504678.2336 | AL35: 200.2694315 | AM35: 32 | AN35: 30 | AO35: 25176.66289 | AP35: 44 | AQ35: 8.855454205 | AR35: 9.462594205 | AS35: 421516.5946 | AT35: 5686.136998 | AU35: 45.23075314 | AV35: -1902.631247 | AW35: 0 | AX35: 1947.863 | AY35: 1212.256002 | AZ35: 1.01274664 | BA35: 1 | BB35: 1.020481407 | BC35: 1 | BD35: 5321.302457 | BE35: 1577.090543 | BF35: 1.016582805 | BG35: 1 | BH35: 44 | BI35: 1
A36: 2013-01-02T06:00:00 | B36: 2013-01-02T06:00:00 | C36: 37.50718 | D36: 37.66023 | E36: 37.28754 | F36: 37.66835 | G36: 37.91506 | H36: 37.34908 | I36: 37.48164 | J36: 37.67115 | K36: 37.46606 | L36: 37.21981 | M36: 37.80278 | N36: 37.50487 | O36: 37.59171 | P36: 37.86929 | Q36: 38.20111 | R36: 37.71728 | S36: 37.59714 | T36: 38.0961 | U36: 37.73698 | V36: 37.37259 | W36: 37.87894 | X36: 37.30441 | Y36: 37.67957 | Z36: 37.30995 | AA36: 37.70512 | AB36: 37.33999 | AC36: 1930.903 | AD36: 4963.355 | AE36: 6894.258 | AF36: 47.81356 | AG36: 37.68725 | AH36: 51 | AI36: 51 | AJ36: 762815.0376 | AK36: 498538.3537 | AL36: 161.4138363 | AM36: 31 | AN36: 29 | AO36: 25130.23569 | AP36: 44 | AQ36: 8.793024037 | AR36: 9.400164037 | AS36: 418544.94 | AT36: 5715.948365 | AU36: 36.71406688 | AV36: -1894.188933 | AW36: 0 | AX36: 1930.903 | AY36: 1178.309635 | AZ36: 1.0123897 | BA36: 1 | BB36: 1.020303076 | BC36: 1 | BD36: 5346.765351 | BE36: 1547.492649 | BF36: 1.016271589 | BG36: 1 | BH36: 44 | BI36: 1
A37: 2013-01-02T07:00:00 | B37: 2013-01-02T07:00:00 | C37: 37.49577 | D37: 37.63779 | E37: 37.2725 | F37: 37.68472 | G37: 37.9404 | H37: 37.34307 | I37: 37.47004 | J37: 37.67546 | K37: 37.46362 | L37: 37.21719 | M37: 37.80002 | N37: 37.49235 | O37: 37.58772 | P37: 37.86058 | Q37: 38.19827 | R37: 37.71238 | S37: 37.59683 | T37: 38.0956 | U37: 37.73602 | V37: 37.37113 | W37: 37.87476 | X37: 37.30418 | Y37: 37.68084 | Z37: 37.30713 | AA37: 37.69237 | AB37: 37.33158 | AC37: 1898.54 | AD37: 4997.24 | AE37: 6895.78 | AF37: 48.24705 | AG37: 37.78906 | AH37: 51 | AI37: 51 | AJ37: 762815.0376 | AK37: 519572.6427 | AL37: 155.8606413 | AM37: 32 | AN37: 30 | AO37: 26130.54297 | AP37: 44 | AQ37: 8.887981515 | AR37: 9.495121515 | AS37: 423064.8835 | AT37: 5879.972394 | AU37: 35.07222445 | AV37: -1863.467776 | AW37: 0 | AX37: 1898.54 | AY37: 1015.807606 | AZ37: 1.010681023 | BA37: 1 | BB37: 1.019962785 | BC37: 1 | BD37: 5503.993378 | BE37: 1391.786622 | BF37: 1.01463437 | BG37: 1 | BH37: 44 | BI37: 1
A38: 2013-01-02T08:00:00 | B38: 2013-01-02T08:00:00 | C38: 37.49635 | D38: 37.6233 | E38: 37.27904 | F38: 37.70859 | G38: 37.93444 | H38: 37.30657 | I38: 37.4638 | J38: 37.6695 | K38: 37.46057 | L38: 37.2107 | M38: 37.79115 | N38: 37.49289 | O38: 37.58783 | P38: 37.85904 | Q38: 38.19368 | R38: 37.71161 | S38: 37.5927 | T38: 38.0901 | U38: 37.73589 | V38: 37.37547 | W38: 37.86457 | X38: 37.30168 | Y38: 37.67299 | Z38: 37.30163 | AA38: 37.69145 | AB38: 37.3793 | AC38: 1860.397 | AD38: 5037.883 | AE38: 6898.28 | AF38: 48.2674 | AG38: 37.78212 | AH38: 51 | AI38: 51 | AJ38: 762815.0376 | AK38: 518269.84 | AL38: 108.8797344 | AM38: 32 | AN38: 30 | AO38: 26411.80693 | AP38: 44 | AQ38: 8.897572616 | AR38: 9.504712616 | AS38: 423521.4166 | AT38: 5936.856729 | AU38: 24.47403109 | AV38: -1835.922969 | AW38: 0 | AX38: 1860.397 | AY38: 961.4232707 | AZ38: 1.010109182 | BA38: 1 | BB38: 1.019561719 | BC38: 1 | BD38: 5557.623465 | BE38: 1340.656535 | BF38: 1.014096747 | BG38: 1 | BH38: 44 | BI38: 1
A39: 2013-01-02T09:00:00 | B39: 2013-01-02T09:00:00 | C39: 37.49951 | D39: 37.62164 | E39: 37.29134 | F39: 37.72385 | G39: 37.95004 | H39: 37.2968 | I39: 37.45803 | J39: 37.67104 | K39: 37.45995 | L39: 37.21342 | M39: 37.78505 | N39: 37.49202 | O39: 37.5839 | P39: 37.86089 | Q39: 38.19359 | R39: 37.71124 | S39: 37.59357 | T39: 38.09277 | U39: 37.73771 | V39: 37.38205 | W39: 37.8694 | X39: 37.30266 | Y39: 37.67882 | Z39: 37.30395 | AA39: 37.71138 | AB39: 37.35002 | AC39: 1792.681 | AD39: 5107.341 | AE39: 6900.022 | AF39: 48.2846 | AG39: 37.80417 | AH39: 51 | AI39: 51 | AJ39: 762815.0376 | AK39: 520482.2722 | AL39: 133.9939413 | AM39: 33 | AN39: 31 | AO39: 26763.56492 | AP39: 44 | AQ39: 8.970414564 | AR39: 9.577554564 | AS39: 426988.6685 | AT39: 5967.074259 | AU39: 29.87463743 | AV39: -1762.806363 | AW39: 0 | AX39: 1792.681 | AY39: 932.9477409 | AZ39: 1.009809767 | BA39: 1 | BB39: 1.018849698 | BC39: 1 | BD39: 5588.809699 | BE39: 1311.212301 | BF39: 1.013787147 | BG39: 1 | BH39: 44 | BI39: 1
A40: 2013-01-02T10:00:00 | B40: 2013-01-02T10:00:00 | C40: 37.53876 | D40: 37.59295 | E40: 37.33649 | F40: 37.71654 | G40: 37.9171 | H40: 37.31763 | I40: 37.45327 | J40: 37.67817 | K40: 37.47227 | L40: 37.22375 | M40: 37.78205 | N40: 37.50119 | O40: 37.58475 | P40: 37.86043 | Q40: 38.19667 | R40: 37.70834 | S40: 37.58415 | T40: 38.08416 | U40: 37.73322 | V40: 37.40651 | W40: 37.87746 | X40: 37.30186 | Y40: 37.66968 | Z40: 37.29436 | AA40: 37.68919 | AB40: 37.36945 | AC40: 1788.582 | AD40: 5115.912 | AE40: 6904.494 | AF40: 48.52702 | AG40: 37.83515 | AH40: 51 | AI40: 51 | AJ40: 762815.0376 | AK40: 531096.52 | AL40: 151.4124092 | AM40: 34 | AN40: 31 | AO40: 27349.33302 | AP40: 44 | AQ40: 8.990389256 | AR40: 9.597529256 | AS40: 427939.457 | AT40: 6084.126558 | AU40: 33.68317097 | AV40: -1754.898829 | AW40: 0 | AX40: 1788.582 | AY40: 820.3674424 | AZ40: 1.008626007 | BA40: 1 | BB40: 1.018806598 | BC40: 1 | BD40: 5699.244522 | BE40: 1205.249478 | BF40: 1.012672968 | BG40: 1 | BH40: 44 | BI40: 1
A41: 2013-01-02T11:00:00 | B41: 2013-01-02T11:00:00 | C41: 37.57265 | D41: 37.62815 | E41: 37.37008 | F41: 37.71555 | G41: 37.90735 | H41: 37.32119 | I41: 37.45395 | J41: 37.68371 | K41: 37.47895 | L41: 37.23742 | M41: 37.76963 | N41: 37.51663 | O41: 37.58808 | P41: 37.86747 | Q41: 38.20352 | R41: 37.69873 | S41: 37.57655 | T41: 38.07755 | U41: 37.74118 | V41: 37.44011 | W41: 37.89211 | X41: 37.31047 | Y41: 37.66655 | Z41: 37.28132 | AA41: 37.69366 | AB41: 37.32549 | AC41: 1110.645 | AD41: 5196.424 | AE41: 6307.068 | AF41: 48.43954 | AG41: 38.35199 | AH41: 51 | AI41: 51 | AJ41: 762815.0376 | AK41: 529024.9828 | AL41: 137.2535091 | AM41: 36 | AN41: 33 | AO41: 26209.59346 | AP41: 44 | AQ41: 9.073218137 | AR41: 9.680358137 | AS41: 431882.0834 | AT41: 5777.353319 | AU41: 30.2546477 | AV41: -1080.390352 | AW41: 0 | AX41: 1110.644 | AY41: 529.7146806 | AZ41: 1.005569849 | BA41: 1 | BB41: 1.011678209 | BC41: 1 | BD41: 5415.004918 | BE41: 892.0630819 | BF41: 1.009379873 | BG41: 1 | BH41: 44 | BI41: 1
A42: 2013-01-02T12:00:00 | B42: 2013-01-02T12:00:00 | C42: 37.62069 | D42: 37.64731 | E42: 37.3858 | F42: 37.73368 | G42: 37.90593 | H42: 37.32724 | I42: 37.44896 | J42: 37.6886 | K42: 37.4814 | L42: 37.25083 | M42: 37.76311 | N42: 37.52592 | O42: 37.58869 | P42: 37.86699 | Q42: 38.20929 | R42: 37.70068 | S42: 37.57918 | T42: 38.08142 | U42: 37.74075 | V42: 37.45695 | W42: 37.90064 | X42: 37.31326 | Y42: 37.66319 | Z42: 37.2813 | AA42: 37.70415 | AB42: 37.31911 | AC42: 519.388 | AD42: 5285.544 | AE42: 5804.932 | AF42: 49.07726 | AG42: 39.70829 | AH42: 51 | AI42: 51 | AJ42: 762815.0376 | AK42: 559683.9228 | AL42: 78.31851652 | AM42: 37 | AN42: 33 | AO42: 24760.05158 | AP42: 44 | AQ42: 9.023788759 | AR42: 9.630928759 | AS42: 429529.2619 | AT42: 5487.728546 | AU42: 17.35823358 | AV42: -502.0297664 | AW42: 0 | AX42: 519.388 | AY42: 317.2034536 | AZ42: 1.003335334 | BA42: 1 | BB42: 1.005461265 | BC42: 1 | BD42: 5141.778577 | BE42: 663.153423 | BF42: 1.006972931 | BG42: 1 | BH42: 44 | BI42: 1
A43: 2013-01-02T13:00:00 | B43: 2013-01-02T13:00:00 | C43: 37.65417 | D43: 37.68289 | E43: 37.39296 | F43: 37.73602 | G43: 37.90654 | H43: 37.33963 | I43: 37.44577 | J43: 37.69776 | K43: 37.4882 | L43: 37.26679 | M43: 37.75352 | N43: 37.52851 | O43: 37.58706 | P43: 37.87159 | Q43: 38.21239 | R43: 37.70065 | S43: 37.57942 | T43: 38.07723 | U43: 37.74654 | V43: 37.46893 | W43: 37.90868 | X43: 37.3465 | Y43: 37.68233 | Z43: 37.28423 | AA43: 37.71043 | AB43: 37.37862 | AC43: 371.1728 | AD43: 5431.546 | AE43: 5802.719 | AF43: 49.35653 | AG43: 39.59887 | AH43: 51 | AI43: 51 | AJ43: 762815.0376 | AK43: 570144.4237 | AL43: 51.13833252 | AM43: 37 | AN43: 33 | AO43: 26499.58957 | AP43: 44 | AQ43: 9.083107004 | AR43: 9.690247004 | AS43: 432352.7901 | AT43: 5834.917404 | AU43: 11.2600969 | AV43: -359.9127031 | AW43: 0 | AX43: 371.173 | AY43: -32.19840401 | AZ43: 0.9996614399 | BA43: 0.9996614399 | BB43: 1.003902813 | BC43: 1 | BD43: 5469.332115 | BE43: 333.3868851 | BF43: 1.003505499 | BG43: 1 | BH43: 44 | BI43: 1
A44: 2013-01-02T14:00:00 | B44: 2013-01-02T14:00:00 | C44: 37.6375 | D44: 37.68359 | E44: 37.38627 | F44: 37.73273 | G44: 37.90516 | H44: 37.34451 | I44: 37.44691 | J44: 37.70066 | K44: 37.48555 | L44: 37.27422 | M44: 37.74073 | N44: 37.53431 | O44: 37.58975 | P44: 37.86708 | Q44: 38.21046 | R44: 37.69925 | S44: 37.57737 | T44: 38.07375 | U44: 37.75049 | V44: 37.48442 | W44: 37.91053 | X44: 37.33294 | Y44: 37.67155 | Z44: 37.28431 | AA44: 37.70343 | AB44: 37.37389 | AC44: 399.0711 | AD44: 5392.231 | AE44: 5791.303 | AF44: 49.71011 | AG44: 39.79114 | AH44: 51 | AI44: 51 | AJ44: 762815.0376 | AK44: 587199.8573 | AL44: 52.59956634 | AM44: 39 | AN44: 34 | AO44: 26742.68876 | AP44: 44 | AQ44: 9.152243687 | AR44: 9.759383687 | AS44: 435643.6726 | AT44: 5843.963442 | AU44: 11.49435442 | AV44: -387.5767456 | AW44: 0 | AX44: 399.072 | AY44: -52.66044248 | AZ44: 0.9991077255 | BA44: 0.9991077255 | BB44: 1.004196166 | BC44: 1 | BD44: 5480.405243 | BE44: 310.8977573 | BF44: 1.00326903 | BG44: 1 | BH44: 44 | BI44: 1
A45: 2013-01-02T15:00:00 | B45: 2013-01-02T15:00:00 | C45: 37.63328 | D45: 37.68739 | E45: 37.38162 | F45: 37.72879 | G45: 37.9016 | H45: 37.35304 | I45: 37.44425 | J45: 37.70036 | K45: 37.49002 | L45: 37.28025 | M45: 37.74319 | N45: 37.53919 | O45: 37.58906 | P45: 37.86858 | Q45: 38.21303 | R45: 37.69907 | S45: 37.57878 | T45: 38.06697 | U45: 37.75697 | V45: 37.49752 | W45: 37.92475 | X45: 37.37365 | Y45: 37.70955 | Z45: 37.29063 | AA45: 37.70931 | AB45: 37.36155 | AC45: 352.4558 | AD45: 5443.516 | AE45: 5795.971 | AF45: 50.00838 | AG45: 39.87338 | AH45: 51 | AI45: 51 | AJ45: 762815.0376 | AK45: 601984.7872 | AL45: 47.88640727 | AM45: 40 | AN45: 35 | AO45: 27585.01733 | AP45: 44 | AQ45: 9.241814091 | AR45: 9.848954091 | AS45: 439907.1932 | AT45: 5969.610957 | AU45: 10.36298865 | AV45: -342.0928113 | AW45: 0 | AX45: 352.455 | AY45: -173.639957 | AZ45: 0.9972819345 | BA45: 0.9972819345 | BB45: 1.003705997 | BC45: 1 | BD45: 5601.613547 | BE45: 194.357453 | BF45: 1.002043631 | BG45: 1 | BH45: 44 | BI45: 1
A46: 2013-01-02T16:00:00 | B46: 2013-01-02T16:00:00 | C46: 37.6142 | D46: 37.69852 | E46: 37.37765 | F46: 37.72694 | G46: 37.89817 | H46: 37.35443 | I46: 37.45338 | J46: 37.70159 | K46: 37.4982 | L46: 37.28044 | M46: 37.73772 | N46: 37.54543 | O46: 37.58608 | P46: 37.87611 | Q46: 38.21169 | R46: 37.70239 | S46: 37.5775 | T46: 38.06879 | U46: 37.76127 | V46: 37.50246 | W46: 37.92666 | X46: 37.40058 | Y46: 37.83158 | Z46: 37.29692 | AA46: 37.68866 | AB46: 37.42533 | AC46: 288.7068 | AD46: 5509.792 | AE46: 5798.5 | AF46: 49.98735 | AG46: 39.89967 | AH46: 51 | AI46: 51 | AJ46: 762815.0376 | AK46: 597947.8601 | AL46: 27.26402666 | AM46: 40 | AN46: 35 | AO46: 27790.50928 | AP46: 44 | AQ46: 9.248821366 | AR46: 9.855961366 | AS46: 440240.7372 | AT46: 6009.524496 | AU46: 5.895675909 | AV46: -282.8111241 | AW46: 0 | AX46: 288.708 | AY46: -211.0244962 | AZ46: 0.9950630523 | BA46: 0.9950630523 | BB46: 1.003035709 | BC46: 1 | BD46: 5639.329995 | BE46: 159.1700051 | BF46: 1.001673642 | BG46: 1 | BH46: 44 | BI46: 1
A47: 2013-01-02T17:00:00 | B47: 2013-01-02T17:00:00 | C47: 37.58102 | D47: 37.68717 | E47: 37.37519 | F47: 37.7224 | G47: 37.90438 | H47: 37.35227 | I47: 37.45353 | J47: 37.70252 | K47: 37.49795 | L47: 37.27415 | M47: 37.74291 | N47: 37.5442 | O47: 37.58621 | P47: 37.88345 | Q47: 38.21755 | R47: 37.69988 | S47: 37.58588 | T47: 38.07292 | U47: 37.75605 | V47: 37.49451 | W47: 37.9292 | X47: 37.43434 | Y47: 37.76167 | Z47: 37.29207 | AA47: 37.71104 | AB47: 37.40773 | AC47: 371.9125 | AD47: 5430.35 | AE47: 5802.262 | AF47: 50.25925 | AG47: 39.96303 | AH47: 51 | AI47: 51 | AJ47: 762815.0376 | AK47: 611727.9612 | AL47: 32.22435856 | AM47: 40 | AN47: 35 | AO47: 27956.03914 | AP47: 44 | AQ47: 9.254465935 | AR47: 9.861605935 | AS47: 440509.4167 | AT47: 6041.63208 | AU47: 6.964066601 | AV47: -364.9484334 | AW47: 0 | AX47: 371.912 | AY47: -239.3700803 | AZ47: 0.9925461217 | BA47: 0.9925461217 | BB47: 1.003910584 | BC47: 1 | BD47: 5669.672734 | BE47: 132.5892664 | BF47: 1.001394151 | BG47: 1 | BH47: 44 | BI47: 1
A48: 2013-01-02T18:00:00 | B48: 2013-01-02T18:00:00 | C48: 37.5519 | D48: 37.68146 | E48: 37.38 | F48: 37.71228 | G48: 37.90947 | H48: 37.36237 | I48: 37.4558 | J48: 37.70002 | K48: 37.49751 | L48: 37.26877 | M48: 37.75397 | N48: 37.54159 | O48: 37.58312 | P48: 37.8763 | Q48: 38.21722 | R48: 37.70194 | S48: 37.59325 | T48: 38.07771 | U48: 37.75397 | V48: 37.47425 | W48: 37.92587 | X48: 37.33841 | Y48: 37.76717 | Z48: 37.28224 | AA48: 37.72706 | AB48: 37.58796 | AC48: 385.5977 | AD48: 5416.716 | AE48: 5802.313 | AF48: 49.96796 | AG48: 39.89902 | AH48: 51 | AI48: 51 | AJ48: 762815.0376 | AK48: 589283.7703 | AL48: -6.952326531 | AM48: 38 | AN48: 33 | AO48: 27270.2942 | AP48: 44 | AQ48: 9.109388032 | AR48: 9.716528032 | AS48: 433603.7581 | AT48: 5987.294449 | AU48: -1.52640913 | AV48: -387.1241091 | AW48: 0 | AX48: 385.597 | AY48: -184.9814492 | AZ48: 0.9906010771 | BA48: 0.9906010771 | BB48: 1.004054479 | BC48: 1 | BD48: 5613.176664 | BE48: 189.1363365 | BF48: 1.001988732 | BG48: 1 | BH48: 44 | BI48: 1
A49: 2013-01-02T19:00:00 | B49: 2013-01-02T19:00:00 | C49: 37.55711 | D49: 37.6927 | E49: 37.38461 | F49: 37.71473 | G49: 37.90855 | H49: 37.36239 | I49: 37.46306 | J49: 37.69779 | K49: 37.49286 | L49: 37.26434 | M49: 37.75817 | N49: 37.5396 | O49: 37.58677 | P49: 37.88611 | Q49: 38.21638 | R49: 37.70438 | S49: 37.59965 | T49: 38.07616 | U49: 37.75505 | V49: 37.47507 | W49: 37.92377 | X49: 37.33443 | Y49: 37.70614 | Z49: 37.30934 | AA49: 37.74391 | AB49: 38.26109 | AC49: 410.1378 | AD49: 5393.113 | AE49: 5803.25 | AF49: 50.15661 | AG49: 39.9069 | AH49: 51 | AI49: 51 | AJ49: 762815.0376 | AK49: 566222.6879 | AL49: -144.3644042 | AM49: 38 | AN49: 33 | AO49: 27638.92212 | AP49: 44 | AQ49: 9.121958244 | AR49: 9.729098244 | AS49: 434202.0959 | AT49: 6059.865959 | AU49: -31.65206425 | AV49: -441.7898643 | AW49: 0 | AX49: 410.137 | AY49: -256.6159593 | AZ49: 0.9879028094 | BA49: 0.9879028094 | BB49: 1.004312512 | BC49: 1 | BD49: 5681.70275 | BE49: 121.5472503 | BF49: 1.001278046 | BG49: 1 | BH49: 44 | BI49: 1
A50: 2013-01-02T20:00:00 | B50: 2013-01-02T20:00:00 | C50: 37.55445 | D50: 37.68863 | E50: 37.38235 | F50: 37.71055 | G50: 37.92811 | H50: 37.34856 | I50: 37.45543 | J50: 37.70914 | K50: 37.49482 | L50: 37.26802 | M50: 37.76536 | N50: 37.53586 | O50: 37.58686 | P50: 37.88459 | Q50: 38.2131 | R50: 37.70551 | S50: 37.59789 | T50: 38.07478 | U50: 37.75901 | V50: 37.47038 | W50: 37.92368 | X50: 37.37302 | Y50: 37.67013 | Z50: 37.32967 | AA50: 37.82248 | AB50: 38.36594 | AC50: 465.0042 | AD50: 5337.29 | AE50: 5802.294 | AF50: 50.18391 | AG50: 39.82648 | AH50: 51 | AI50: 51 | AJ50: 762815.0376 | AK50: 562531.3343 | AL50: -188.6731291 | AM50: 34 | AN50: 31 | AO50: 27640.30378 | AP50: 44 | AQ50: 9.000311359 | AR50: 9.607451359 | AS50: 428411.7457 | AT50: 6142.077242 | AU50: -41.92591158 | AV50: -506.9301116 | AW50: 0 | AX50: 465.004 | AY50: -339.7832415 | AZ50: 0.9843300536 | BA50: 0.9843300536 | BB50: 1.004889428 | BC50: 1 | BD50: 5753.930517 | BE50: 48.36348303 | BF50: 1.000508533 | BG50: 1 | BH50: 44 | BI50: 1
A51: 2013-01-02T21:00:00 | B51: 2013-01-02T21:00:00 | C51: 37.5548 | D51: 37.69506 | E51: 37.3819 | F51: 37.71634 | G51: 37.91906 | H51: 37.35006 | I51: 37.44968 | J51: 37.70723 | K51: 37.49178 | L51: 37.25962 | M51: 37.76612 | N51: 37.5374 | O51: 37.58664 | P51: 37.88002 | Q51: 38.21373 | R51: 37.70255 | S51: 37.59465 | T51: 38.07476 | U51: 37.75428 | V51: 37.45475 | W51: 37.92508 | X51: 37.36118 | Y51: 37.67948 | Z51: 37.33281 | AA51: 37.82655 | AB51: 38.66249 | AC51: 513.8663 | AD51: 5284.927 | AE51: 5798.793 | AF51: 50.04975 | AG51: 39.73715 | AH51: 51 | AI51: 51 | AJ51: 762815.0376 | AK51: 542029.6855 | AL51: -284.6022809 | AM51: 35 | AN51: 31 | AO51: 27250.66909 | AP51: 44 | AQ51: 8.987024816 | AR51: 9.594164816 | AS51: 427779.3108 | AT51: 6064.447278 | AU51: -63.33626239 | AV51: -577.2025624 | AW51: 0 | AX51: 513.866 | AY51: -265.6542777 | AZ51: 0.9815367497 | BA51: 0.9815367497 | BB51: 1.005403203 | BC51: 1 | BD51: 5680.675622 | BE51: 118.1173783 | BF51: 1.001241982 | BG51: 1 | BH51: 44 | BI51: 1
A52: 2013-01-02T22:00:00 | B52: 2013-01-02T22:00:00 | C52: 37.55281 | D52: 37.70189 | E52: 37.38099 | F52: 37.72061 | G52: 37.93075 | H52: 37.35569 | I52: 37.46284 | J52: 37.7322 | K52: 37.49088 | L52: 37.2584 | M52: 37.77226 | N52: 37.53794 | O52: 37.59576 | P52: 37.88133 | Q52: 38.21704 | R52: 37.70905 | S52: 37.59867 | T52: 38.07563 | U52: 37.75372 | V52: 37.4605 | W52: 37.91504 | X52: 37.34645 | Y52: 37.66568 | Z52: 37.34309 | AA52: 37.87624 | AB52: 38.83701 | AC52: 709.2844 | AD52: 5086.813 | AE52: 5796.097 | AF52: 49.95835 | AG52: 39.68214 | AH52: 51 | AI52: 51 | AJ52: 762815.0376 | AK52: 529371.9844 | AL52: -455.4315132 | AM52: 36 | AN52: 32 | AO52: 26136.57931 | AP52: 44 | AQ52: 9.009881354 | AR52: 9.617021354 | AS52: 428867.2742 | AT52: 5801.75882 | AU52: -101.0960068 | AV52: -810.3804068 | AW52: 0 | AX52: 709.284 | AY52: -5.661820377 | AZ52: 0.9814772167 | BA52: 0.9814772167 | BB52: 1.007457986 | BC52: 1 | BD52: 5435.483264 | BE52: 360.6137363 | BF52: 1.003791784 | BG52: 1 | BH52: 44 | BI52: 1
A53: 2013-01-02T23:00:00 | B53: 2013-01-02T23:00:00 | C53: 37.56046 | D53: 37.69487 | E53: 37.37006 | F53: 37.72235 | G53: 37.92896 | H53: 37.34827 | I53: 37.4717 | J53: 37.71894 | K53: 37.49202 | L53: 37.26099 | M53: 37.77674 | N53: 37.53415 | O53: 37.60304 | P53: 37.88766 | Q53: 38.21355 | R53: 37.70525 | S53: 37.59704 | T53: 38.08053 | U53: 37.75592 | V53: 37.45169 | W53: 37.91906 | X53: 37.37696 | Y53: 37.66818 | Z53: 37.3572 | AA53: 38.1497 | AB53: 38.90302 | AC53: 742.756 | AD53: 5051.206 | AE53: 5793.961 | AF53: 49.35428 | AG53: 39.38684 | AH53: 51 | AI53: 51 | AJ53: 762815.0376 | AK53: 497476.4053 | AL53: -498.5972477 | AM53: 34 | AN53: 31 | AO53: 25173.79637 | AP53: 44 | AQ53: 8.916203456 | AR53: 9.523343456 | AS53: 424408.2383 | AT53: 5646.75234 | AU53: -111.8407067 | AV53: -854.5967067 | AW53: 0 | AX53: 742.755 | AY53: 147.2086597 | AZ53: 0.9830250876 | BA53: 0.9830250876 | BB53: 1.007809927 | BC53: 1 | BD53: 5286.755955 | BE53: 507.2050445 | BF53: 1.005333164 | BG53: 1 | BH53: 44 | BI53: 1
A54: 2013-01-03 | B54: 2013-01-03 | C54: 37.57596 | D54: 37.70538 | E54: 37.35923 | F54: 37.72295 | G54: 37.9285 | H54: 37.34736 | I54: 37.46767 | J54: 37.71888 | K54: 37.48984 | L54: 37.24711 | M54: 37.78228 | N54: 37.53659 | O54: 37.59955 | P54: 37.88479 | Q54: 38.20927 | R54: 37.70789 | S54: 37.59767 | T54: 38.0773 | U54: 37.75264 | V54: 37.43934 | W54: 37.91128 | X54: 37.39406 | Y54: 37.67061 | Z54: 37.36151 | AA54: 38.8069 | AB54: 38.84125 | AC54: 798.4347 | AD54: 5006.217 | AE54: 5804.651 | AF54: 49.29296 | AG54: 39.35356 | AH54: 51 | AI54: 51 | AJ54: 762815.0376 | AK54: 497497.8251 | AL54: -505.1257208 | AM54: 33 | AN54: 30 | AO54: 24879.39662 | AP54: 44 | AQ54: 8.845317425 | AR54: 9.452457425 | AS54: 421034.0874 | AT54: 5625.438959 | AU54: -114.2131359 | AV54: -912.6478359 | AW54: 0 | AX54: 798.434 | AY54: 179.2120407 | AZ54: 0.984909468 | BA54: 0.984909468 | BB54: 1.008395381 | BC54: 1 | BD54: 5264.111861 | BE54: 540.5391386 | BF54: 1.005683666 | BG54: 1 | BH54: 44 | BI54: 1
A55: 2013-01-03T01:00:00 | B55: 2013-01-03T01:00:00 | C55: 37.57922 | D55: 37.70257 | E55: 37.34251 | F55: 37.73518 | G55: 37.94035 | H55: 37.34329 | I55: 37.46761 | J55: 37.70587 | K55: 37.49827 | L55: 37.24242 | M55: 37.78673 | N55: 37.53237 | O55: 37.60879 | P55: 37.8753 | Q55: 38.20601 | R55: 37.7061 | S55: 37.59811 | T55: 38.08162 | U55: 37.75124 | V55: 37.41999 | W55: 37.89938 | X55: 37.35563 | Y55: 37.67504 | Z55: 37.46423 | AA55: 38.96641 | AB55: 38.75246 | AC55: 915.8364 | AD55: 4879.926 | AE55: 5795.763 | AF55: 48.86695 | AG55: 39.25685 | AH55: 51 | AI55: 51 | AJ55: 762815.0376 | AK55: 481446.2683 | AL55: -537.247949 | AM55: 33 | AN55: 30 | AO55: 23448.28843 | AP55: 44 | AQ55: 8.796516635 | AR55: 9.403656635 | AS55: 418711.1865 | AT55: 5331.266773 | AU55: -122.1501581 | AV55: -1037.986558 | AW55: 0 | AX55: 915.837 | AY55: 464.4962274 | AZ55: 0.989793557 | BA55: 0.989793557 | BB55: 1.009629851 | BC55: 1 | BD55: 4987.057553 | BE55: 808.7054466 | BF55: 1.008503383 | BG55: 1 | BH55: 44 | BI55: 1
A56: 2013-01-03T02:00:00 | B56: 2013-01-03T02:00:00 | C56: 37.56363 | D56: 37.69282 | E56: 37.33036 | F56: 37.74184 | G56: 37.91677 | H56: 37.33565 | I56: 37.46266 | J56: 37.69326 | K56: 37.48686 | L56: 37.23602 | M56: 37.79688 | N56: 37.51901 | O56: 37.5981 | P56: 37.8716 | Q56: 38.20095 | R56: 37.70537 | S56: 37.59716 | T56: 38.08315 | U56: 37.74437 | V56: 37.39893 | W56: 37.89973 | X56: 37.31287 | Y56: 37.69986 | Z56: 37.46515 | AA56: 38.84001 | AB56: 38.70155 | AC56: 948.0551 | AD56: 4851.866 | AE56: 5799.921 | AF56: 48.90544 | AG56: 39.35573 | AH56: 51 | AI56: 51 | AJ56: 762815.0376 | AK56: 485701.6778 | AL56: -539.4054297 | AM56: 30 | AN56: 28 | AO56: 23166.95663 | AP56: 44 | AQ56: 8.665229221 | AR56: 9.272369221 | AS56: 412461.9504 | AT56: 5347.107627 | AU56: -124.4988253 | AV56: -1072.553925 | AW56: 0 | AX56: 948.055 | AY56: 452.8133729 | AZ56: 0.994554803 | BA56: 0.994554803 | BB56: 1.009968617 | BC56: 1 | BD56: 4996.987518 | BE56: 802.9334821 | BF56: 1.008442692 | BG56: 1 | BH56: 44 | BI56: 1
A57: 2013-01-03T03:00:00 | B57: 2013-01-03T03:00:00 | C57: 37.55105 | D57: 37.69765 | E57: 37.32685 | F57: 37.7396 | G57: 37.9108 | H57: 37.32528 | I57: 37.46498 | J57: 37.6807 | K57: 37.48481 | L57: 37.22672 | M57: 37.80563 | N57: 37.5166 | O57: 37.59133 | P57: 37.8713 | Q57: 38.19179 | R57: 37.70171 | S57: 37.60773 | T57: 38.08482 | U57: 37.75418 | V57: 37.3851 | W57: 37.90464 | X57: 37.30633 | Y57: 37.71977 | Z57: 37.97283 | AA57: 38.91219 | AB57: 38.64262 | AC57: 986.7525 | AD57: 4811.29 | AE57: 5798.042 | AF57: 48.91714 | AG57: 38.98242 | AH57: 51 | AI57: 51 | AJ57: 762815.0376 | AK57: 489063.6417 | AL57: -538.5547132 | AM57: 29 | AN57: 27 | AO57: 23899.40949 | AP57: 44 | AQ57: 8.629358864 | AR57: 9.236498864 | AS57: 410754.5337 | AT57: 5539.092735 | AU57: -124.8191718 | AV57: -1111.571672 | AW57: 0 | AX57: 986.752 | AY57: 258.9492651 | AZ57: 0.997277605 | BA57: 0.997277605 | BB57: 1.010375509 | BC57: 1 | BD57: 5174.993219 | BE57: 623.0487808 | BF57: 1.006551239 | BG57: 1 | BH57: 44 | BI57: 1
A58: 2013-01-03T04:00:00 | B58: 2013-01-03T04:00:00 | C58: 37.56474 | D58: 37.68053 | E58: 37.33107 | F58: 37.7476 | G58: 37.9137 | H58: 37.32077 | I58: 37.46062 | J58: 37.68071 | K58: 37.48175 | L58: 37.22687 | M58: 37.80507 | N58: 37.51461 | O58: 37.59096 | P58: 37.86274 | Q58: 38.19432 | R58: 37.70494 | S58: 37.60983 | T58: 38.09115 | U58: 37.74733 | V58: 37.38616 | W58: 37.94263 | X58: 37.33139 | Y58: 37.69017 | Z58: 38.31133 | AA58: 38.8804 | AB58: 38.57619 | AC58: 955.4995 | AD58: 4844.796 | AE58: 5800.295 | AF58: 48.84359 | AG58: 38.71886 | AH58: 51 | AI58: 51 | AJ58: 762815.0376 | AK58: 488724.7321 | AL58: -483.2199846 | AM58: 31 | AN58: 29 | AO58: 24526.1257 | AP58: 44 | AQ58: 8.772423886 | AR58: 9.379563886 | AS58: 417564.3799 | AT58: 5591.641722 | AU58: -110.1679515 | AV58: -1065.667452 | AW58: 0 | AX58: 955.499 | AY58: 208.6532782 | AZ58: 0.9994715543 | BA58: 0.9994715543 | BB58: 1.010046889 | BC58: 1 | BD58: 5229.694259 | BE58: 570.6007414 | BF58: 1.005999758 | BG58: 1 | BH58: 44 | BI58: 1
A59: 2013-01-03T05:00:00 | B59: 2013-01-03T05:00:00 | C59: 37.55048 | D59: 37.66594 | E59: 37.32758 | F59: 37.75042 | G59: 37.92316 | H59: 37.30645 | I59: 37.46147 | J59: 37.6768 | K59: 37.47179 | L59: 37.21441 | M59: 37.80808 | N59: 37.51135 | O59: 37.5873 | P59: 37.86278 | Q59: 38.19626 | R59: 37.70905 | S59: 37.61446 | T59: 38.0918 | U59: 37.7432 | V59: 37.38583 | W59: 37.9049 | X59: 37.33015 | Y59: 37.69809 | Z59: 38.40677 | AA59: 38.84394 | AB59: 38.54654 | AC59: 874.1207 | AD59: 4921.823 | AE59: 5795.944 | AF59: 48.99398 | AG59: 39.24089 | AH59: 51 | AI59: 51 | AJ59: 762815.0376 | AK59: 497294.5746 | AL59: -435.3383322 | AM59: 30 | AN59: 28 | AO59: 24001.49134 | AP59: 44 | AQ59: 8.693686855 | AR59: 9.300826855 | AS59: 413816.5241 | AT59: 5521.590953 | AU59: -100.1504516 | AV59: -974.2711516 | AW59: 0 | AX59: 874.121 | AY59: 274.3530473 | AZ59: 1.002356324 | BA59: 1 | BB59: 1.009191215 | BC59: 1 | BD59: 5161.152168 | BE59: 634.7918323 | BF59: 1.006674715 | BG59: 1 | BH59: 44 | BI59: 1
A60: 2013-01-03T06:00:00 | B60: 2013-01-03T06:00:00 | C60: 37.53651 | D60: 37.65204 | E60: 37.32515 | F60: 37.73528 | G60: 37.92511 | H60: 37.29787 | I60: 37.46405 | J60: 37.67385 | K60: 37.46646 | L60: 37.21372 | M60: 37.80856 | N60: 37.50837 | O60: 37.58363 | P60: 37.86153 | Q60: 38.19592 | R60: 37.70981 | S60: 37.61866 | T60: 38.09822 | U60: 37.74357 | V60: 37.36374 | W60: 37.90988 | X60: 37.33035 | Y60: 37.78014 | Z60: 38.37376 | AA60: 38.84488 | AB60: 38.52155 | AC60: 829.1487 | AD60: 4972.152 | AE60: 5801.3 | AF60: 48.86446 | AG60: 38.45023 | AH60: 51 | AI60: 51 | AJ60: 762815.0376 | AK60: 492318.9823 | AL60: -408.3723177 | AM60: 29 | AN60: 28 | AO60: 25890.56726 | AP60: 44 | AQ60: 8.758104344 | AR60: 9.365244344 | AS60: 416882.7745 | AT60: 5912.367847 | AU60: -93.25586947 | AV60: -922.4045695 | AW60: 0 | AX60: 829.148 | AY60: -111.0678471 | AZ60: 0.9988321428 | BA60: 0.9988321428 | BB60: 1.008718333 | BC60: 1 | BD60: 5529.074589 | BE60: 272.2254107 | BF60: 1.002862398 | BG60: 1 | BH60: 44 | BI60: 1
A61: 2013-01-03T07:00:00 | B61: 2013-01-03T07:00:00 | C61: 37.54097 | D61: 37.65222 | E61: 37.33444 | F61: 37.73077 | G61: 37.91283 | H61: 37.2986 | I61: 37.46122 | J61: 37.67372 | K61: 37.47116 | L61: 37.2149 | M61: 37.80907 | N61: 37.50608 | O61: 37.58163 | P61: 37.85743 | Q61: 38.1885 | R61: 37.71045 | S61: 37.6147 | T61: 38.09429 | U61: 37.7414 | V61: 37.3825 | W61: 37.89314 | X61: 37.31553 | Y61: 38.14916 | Z61: 38.43503 | AA61: 38.81677 | AB61: 38.56434 | AC61: 783.3563 | AD61: 5019.721 | AE61: 5803.078 | AF61: 49.2289 | AG61: 39.42924 | AH61: 51 | AI61: 51 | AJ61: 762815.0376 | AK61: 507629.4124 | AL61: -400.8316684 | AM61: 30 | AN61: 28 | AO61: 24595.77955 | AP61: 44 | AQ61: 8.713952083 | AR61: 9.321092083 | AS61: 414781.142 | AT61: 5645.149139 | AU61: -91.99767558 | AV61: -875.3539756 | AW61: 0 | AX61: 783.357 | AY61: 157.9288612 | AZ61: 1.000492735 | BA61: 1 | BB61: 1.008236849 | BC61: 1 | BD61: 5277.445889 | BE61: 525.6321107 | BF61: 1.005526921 | BG61: 1 | BH61: 44 | BI61: 1
A62: 2013-01-03T08:00:00 | B62: 2013-01-03T08:00:00 | C62: 37.52203 | D62: 37.66038 | E62: 37.33988 | F62: 37.73076 | G62: 37.90925 | H62: 37.29939 | I62: 37.46135 | J62: 37.6748 | K62: 37.47126 | L62: 37.2161 | M62: 37.79348 | N62: 37.50696 | O62: 37.57037 | P62: 37.84188 | Q62: 38.18533 | R62: 37.68369 | S62: 37.60387 | T62: 38.06298 | U62: 37.74564 | V62: 37.41157 | W62: 37.88083 | X62: 37.3113 | Y62: 38.47787 | Z62: 38.33001 | AA62: 38.82248 | AB62: 38.53237 | AC62: 725.3785 | AD62: 5074.327 | AE62: 5799.706 | AF62: 49.13744 | AG62: 39.16666 | AH62: 51 | AI62: 51 | AJ62: 762815.0376 | AK62: 504797.7087 | AL62: -366.4394568 | AM62: 32 | AN62: 30 | AO62: 25297.49908 | AP62: 44 | AQ62: 8.859574719 | AR62: 9.466714719 | AS62: 421712.7297 | AT62: 5710.770525 | AU62: -82.721681 | AV62: -808.100181 | AW62: 0 | AX62: 725.379 | AY62: 88.93547529 | AZ62: 1.00093514 | BA62: 1 | BB62: 1.007627221 | BC62: 1 | BD62: 5344.514931 | BE62: 455.1910686 | BF62: 1.004786247 | BG62: 1 | BH62: 44 | BI62: 1
A63: 2013-01-03T09:00:00 | B63: 2013-01-03T09:00:00 | C63: 37.57933 | D63: 37.67046 | E63: 37.35732 | F63: 37.72353 | G63: 37.90859 | H63: 37.31578 | I63: 37.45589 | J63: 37.67756 | K63: 37.47535 | L63: 37.22674 | M63: 37.77281 | N63: 37.51244 | O63: 37.5535 | P63: 37.86129 | Q63: 38.18938 | R63: 37.65648 | S63: 37.60178 | T63: 38.00068 | U63: 37.75569 | V63: 37.41014 | W63: 37.90256 | X63: 37.33408 | Y63: 38.67285 | Z63: 38.39897 | AA63: 38.76481 | AB63: 38.54602 | AC63: 500.5314 | AD63: 5305.451 | AE63: 5805.982 | AF63: 49.86528 | AG63: 39.77872 | AH63: 51 | AI63: 51 | AJ63: 762815.0376 | AK63: 538792.9087 | AL63: -241.9293495 | AM63: 35 | AN63: 32 | AO63: 26756.87492 | AP63: 44 | AQ63: 9.031033435 | AR63: 9.638173435 | AS63: 429874.106 | AT63: 5925.539998 | AU63: -53.57733448 | AV63: -554.1087345 | AW63: 0 | AX63: 500.531 | AY63: -119.5579977 | AZ63: 0.9987428705 | BA63: 0.9987428705 | BB63: 1.005262988 | BC63: 1 | BD63: 5552.270895 | BE63: 253.7111054 | BF63: 1.002667724 | BG63: 1 | BH63: 44 | BI63: 1
A64: 2013-01-03T10:00:00 | B64: 2013-01-03T10:00:00 | C64: 37.61634 | D64: 37.68468 | E64: 37.36444 | F64: 37.7188 | G64: 37.90599 | H64: 37.33843 | I64: 37.45429 | J64: 37.69263 | K64: 37.48256 | L64: 37.24942 | M64: 37.77355 | N64: 37.52862 | O64: 37.55277 | P64: 37.87818 | Q64: 38.20382 | R64: 37.65968 | S64: 37.59526 | T64: 37.99863 | U64: 37.76243 | V64: 37.46468 | W64: 37.92971 | X64: 37.35454 | Y64: 38.76895 | Z64: 38.38219 | AA64: 38.77509 | AB64: 38.55945 | AC64: 353.5826 | AD64: 5449.344 | AE64: 5802.927 | AF64: 49.79545 | AG64: 39.68817 | AH64: 51 | AI64: 51 | AJ64: 762815.0376 | AK64: 534829.7612 | AL64: -166.7336429 | AM64: 39 | AN64: 35 | AO64: 27539.02281 | AP64: 44 | AQ64: 9.240245678 | AR64: 9.847385678 | AS64: 439832.5373 | AT64: 5960.668963 | AU64: -36.08857356 | AV64: -389.6711736 | AW64: 0 | AX64: 353.583 | AY64: -157.7419632 | AZ64: 0.9970842439 | BA64: 0.9970842439 | BB64: 1.003717858 | BC64: 1 | BD64: 5593.16426 | BE64: 209.7627404 | BF64: 1.002205615 | BG64: 1 | BH64: 44 | BI64: 1
A65: 2013-01-03T11:00:00 | B65: 2013-01-03T11:00:00 | C65: 37.76786 | D65: 37.69698 | E65: 37.38898 | F65: 37.71541 | G65: 37.90427 | H65: 37.36925 | I65: 37.44621 | J65: 37.70885 | K65: 37.49685 | L65: 37.28581 | M65: 37.75932 | N65: 37.55544 | O65: 37.55906 | P65: 37.88542 | Q65: 38.20058 | R65: 37.64006 | S65: 37.57613 | T65: 37.98283 | U65: 37.77499 | V65: 37.55519 | W65: 37.96061 | X65: 37.3882 | Y65: 38.77469 | Z65: 38.36192 | AA65: 38.69421 | AB65: 38.55557 | AC65: 279.1417 | AD65: 5526.457 | AE65: 5800.252 | AF65: 50.06811 | AG65: 39.90128 | AH65: 51 | AI65: 51 | AJ65: 762815.0376 | AK65: 547992.9707 | AL65: -109.9413543 | AM65: 43 | AN65: 37 | AO65: 28093.27441 | AP65: 44 | AQ65: 9.380839657 | AR65: 9.987979657 | AS65: 446524.7627 | AT65: 5989.501033 | AU65: -23.43955515 | AV65: -302.5812552 | AW65: 0 | AX65: 273.795 | AY65: -189.2490333 | AZ65: 0.9950943266 | BA65: 0.9950943266 | BB65: 1.002878902 | BC65: 1 | BD65: 5625.416826 | BE65: 174.8351741 | BF65: 1.001838358 | BG65: 1 | BH65: 44 | BI65: 1
A66: 2013-01-03T12:00:00 | B66: 2013-01-03T12:00:00 | C66: 37.79032 | D66: 37.65045 | E66: 37.36983 | F66: 37.71589 | G66: 37.89404 | H66: 37.38226 | I66: 37.43783 | J66: 37.71673 | K66: 37.49997 | L66: 37.3114 | M66: 37.73525 | N66: 37.58326 | O66: 37.55822 | P66: 37.89221 | Q66: 38.20518 | R66: 37.63446 | S66: 37.5699 | T66: 37.9915 | U66: 37.7811 | V66: 37.60534 | W66: 37.97565 | X66: 37.41169 | Y66: 38.76223 | Z66: 38.3716 | AA66: 38.64728 | AB66: 38.58924 | AC66: 120.618 | AD66: 5753.223 | AE66: 5794.864 | AF66: 50.5141 | AG66: 40.00621 | AH66: 51 | AI66: 51 | AJ66: 762815.0376 | AK66: 567619.2618 | AL66: -48.18206628 | AM66: 45 | AN66: 38 | AO66: 30227.11721 | AP66: 44 | AQ66: 9.514450697 | AR66: 10.1215907 | AS66: 452884.6025 | AT66: 6353.938483 | AU66: -10.12818665 | AV66: -130.7461867 | AW66: 0 | AX66: 41.641 | AY66: -559.0744831 | AZ66: 0.9892157653 | BA66: 0.9892157653 | BB66: 1.000437847 | BC66: 1 | BD66: 5972.799754 | BE66: -177.9357544 | BF66: 0.9981290396 | BG66: 0.9981290396 | BH66: 44 | BI66: 1
A67: 2013-01-03T13:00:00 | B67: 2013-01-03T13:00:00 | C67: 37.79124 | D67: 37.63737 | E67: 37.36674 | F67: 37.71837 | G67: 37.89236 | H67: 37.3912 | I67: 37.43017 | J67: 37.72395 | K67: 37.50951 | L67: 37.32762 | M67: 37.71465 | N67: 37.5977 | O67: 37.55375 | P67: 37.87702 | Q67: 38.20901 | R67: 37.68301 | S67: 37.57225 | T67: 38.00566 | U67: 37.77843 | V67: 37.641 | W67: 38.00892 | X67: 37.41796 | Y67: 38.79337 | Z67: 38.37479 | AA67: 38.65707 | AB67: 38.60075 | AC67: 100.0358 | AD67: 5800.765 | AE67: 5799.055 | AF67: 50.49348 | AG67: 39.97956 | AH67: 51 | AI67: 51 | AJ67: 762815.0376 | AK67: 566089.8848 | AL67: -40.48999023 | AM67: 47 | AN67: 39 | AO67: 30494.38957 | AP67: 44 | AQ67: 9.584411684 | AR67: 10.19155168 | AS67: 456214.7216 | AT67: 6363.330495 | AU67: -8.44913419 | AV67: -108.4849342 | AW67: 0 | AX67: -1.71 | AY67: -564.275495 | AZ67: 0.9832825164 | BA67: 0.9832825164 | BB67: 0.9999820197 | BC67: 0.9999820197 | BD67: 5984.248624 | BE67: -185.1936244 | BF67: 0.996181764 | BG67: 0.996181764 | BH67: 44 | BI67: 1
A68: 2013-01-03T14:00:00 | B68: 2013-01-03T14:00:00 | C68: 37.82057 | D68: 37.63108 | E68: 37.38668 | F68: 37.75308 | G68: 37.90229 | H68: 37.39664 | I68: 37.42416 | J68: 37.72571 | K68: 37.51406 | L68: 37.33498 | M68: 37.7002 | N68: 37.60958 | O68: 37.55707 | P68: 37.88519 | Q68: 38.20885 | R68: 37.68814 | S68: 37.55119 | T68: 37.97073 | U68: 37.77668 | V68: 37.6215 | W68: 38.00066 | X68: 37.41946 | Y68: 39.10213 | Z68: 38.38582 | AA68: 38.6778 | AB68: 38.558 | AC68: 123.7272 | AD68: 5866.62 | AE68: 5799.717 | AF68: 51.47417 | AG68: 40.02142 | AH68: 51 | AI68: 51 | AJ68: 762815.0376 | AK68: 614805.2791 | AL68: -45.62007455 | AM68: 48 | AN68: 39 | AO68: 33594.4661 | AP68: 44 | AQ68: 9.690124294 | AR68: 10.29726429 | AS68: 461246.6057 | AT68: 6933.753393 | AU68: -9.415787283 | AV68: -133.1429873 | AW68: 0 | AX68: -66.903 | AY68: -1134.036393 | AZ68: 0.9713583406 | BA68: 0.9713583406 | BB68: 0.9992785474 | BC68: 0.9992785474 | BD68: 6524.930339 | BE68: -725.2133394 | BF68: 0.9885562845 | BG68: 0.9885562845 | BH68: 44 | BI68: 1
A69: 2013-01-03T15:00:00 | B69: 2013-01-03T15:00:00 | C69: 37.79185 | D69: 37.65469 | E69: 37.39247 | F69: 37.81519 | G69: 37.91184 | H69: 37.41943 | I69: 37.42081 | J69: 37.72787 | K69: 37.51865 | L69: 37.34583 | M69: 37.69159 | N69: 37.59694 | O69: 37.57075 | P69: 37.86329 | Q69: 38.21602 | R69: 37.68889 | S69: 37.57121 | T69: 38.01283 | U69: 37.77585 | V69: 37.62236 | W69: 37.99447 | X69: 37.40783 | Y69: 39.30805 | Z69: 38.41482 | AA69: 38.73346 | AB69: 38.50669 | AC69: 127.585 | AD69: 5910.782 | AE69: 5801.823 | AF69: 51.34299 | AG69: 39.94702 | AH69: 51 | AI69: 51 | AJ69: 762815.0376 | AK69: 611003.4944 | AL69: -45.6014307 | AM69: 48 | AN69: 39 | AO69: 33679.54717 | AP69: 44 | AQ69: 9.693025559 | AR69: 10.30016556 | AS69: 461384.7049 | AT69: 6949.233131 | AU69: -9.409122141 | AV69: -136.9941221 | AW69: 0 | AX69: -108.959 | AY69: -1147.410131 | AZ69: 0.9592935426 | BA69: 0.9592935426 | BB69: 0.9981328644 | BC69: 0.9981328644 | BD69: 6539.612782 | BE69: -737.7897824 | BF69: 0.980798566 | BG69: 0.980798566 | BH69: 44 | BI69: 1
A70: 2013-01-03T16:00:00 | B70: 2013-01-03T16:00:00 | C70: 38.09801 | D70: 37.7564 | E70: 37.4155 | F70: 37.83446 | G70: 37.94491 | H70: 37.44383 | I70: 37.43167 | J70: 37.74105 | K70: 37.51612 | L70: 37.33676 | M70: 37.69434 | N70: 37.58947 | O70: 37.57571 | P70: 37.87894 | Q70: 38.2056 | R70: 37.69505 | S70: 37.57677 | T70: 38.05003 | U70: 37.77673 | V70: 37.61959 | W70: 37.99897 | X70: 37.40329 | Y70: 39.41502 | Z70: 38.43664 | AA70: 38.74676 | AB70: 38.48681 | AC70: 161.6342 | AD70: 5910.434 | AE70: 5797.898 | AF70: 51.64568 | AG70: 40.07352 | AH70: 51 | AI70: 51 | AJ70: 762815.0376 | AK70: 626357.7162 | AL70: -31.42168848 | AM70: 49 | AN70: 39 | AO70: 34198.24396 | AP70: 44 | AQ70: 9.710713119 | AR70: 10.31785312 | AS70: 462226.6268 | AT70: =AO70*1000/(500*AQ70) -> 7043.405266 | AU70: -6.471551182 | AV70: =AU70-AC70 -> -168.1057512 | AW70: 0 | AX70: =AE70-AD70 -> -112.536 | AY70: =AE70-AT70 -> -1245.507266 | AZ70: 0.9461972719 | BA70: 0.9461972719 | BB70: 0.9969495699 | BC70: 0.9969495699 | BD70: =AO70*1000/(500*AR70) -> 6628.945686 | BE70: =AE70-BD70 -> -831.0476856 | BF70: 0.9720602586 | BG70: 0.9720602586 | BH70: 44 | BI70: 1
A71: 2013-01-03T17:00:00 | B71: 2013-01-03T17:00:00 | C71: 38.60939 | D71: 37.76503 | E71: 37.45002 | F71: 37.85502 | G71: 37.99884 | H71: 37.43906 | I71: 37.44594 | J71: 37.73481 | K71: 37.51883 | L71: 37.32648 | M71: 37.71526 | N71: 37.58223 | O71: 37.58045 | P71: 37.88908 | Q71: 38.2081 | R71: 37.69645 | S71: 37.57727 | T71: 38.05853 | U71: 37.776 | V71: 37.61138 | W71: 37.99593 | X71: 37.39399 | Y71: 39.50891 | Z71: 38.43914 | AA71: 38.74918 | AB71: 38.48251 | AC71: 184.5049 | AD71: 5956.865 | AE71: 5803.162 | AF71: 51.42969 | AG71: 40.01389 | AH71: 51 | AI71: 51 | AJ71: =3.1416*(138/2)^2*AI71 -> 762815.0376 | AK71: =62.4*AJ71*(AF71-AB71)/1000 -> 616281.3445 | AL71: =500*AC71*(C71-AB71)/1000 -> 11.70499086 | AM71: 47 | AN71: 39 | AO71: 34001.18973 | AP71: 44 | AQ71: =19.5286-0.30357*AP71+0.0000341*AO71+0.060847*AN71 -> 9.70399357 | AR71: =19.5286-0.30357*42+0.0000341*AO71+0.060847*AN71 -> 10.31113357 | AS71: =62.4*AJ71*AQ71/1000 -> 461906.7785 | AT71: 7007.669469 | AU71: =AL71*1000/(500*AQ71) -> 2.412406969 | AV71: -182.092493 | AW71: 0 | AX71: -153.703 | AY71: -1204.507469 | AZ71: 0.9335321062 | BA71: =IF(AZ71>1,1,IF(AZ71<0,0,AZ71)) -> 0.9335321062 | BB71: 0.9953334122 | BC71: =IF(BB71>1,1,BB71) -> 0.9953334122 | BD71: 6595.043989 | BE71: -791.8819887 | BF71: 0.9637337709 | BG71: =IF(BF71>1,1,IF(BF71<0,0,BF71)) -> 0.9637337709 | BH71: 44 | BI71: 1
A72: 2013-01-03T18:00:00 | B72: 2013-01-03T18:00:00 | C72: 38.74731 | D72: 37.83647 | E72: 37.4968 | F72: 37.84766 | G72: 37.95208 | H72: 37.45003 | I72: 37.48901 | J72: 37.74311 | K72: 37.51125 | L72: 37.31538 | M72: 37.73035 | N72: 37.57879 | O72: 37.59705 | P72: 37.88971 | Q72: 38.21579 | R72: 37.69746 | S72: 37.57553 | T72: 38.06044 | U72: 37.77064 | V72: 37.60075 | W72: 37.98879 | X72: 37.39041 | Y72: 39.56201 | Z72: 38.44103 | AA72: 38.75717 | AB72: 38.46628 | AC72: 147.8693 | AD72: 5914.418 | AE72: 5801.133 | AF72: 51.24875 | AG72: 39.88607 | AH72: 51 | AI72: 51 | AJ72: 762815.0376 | AK72: 608441.2048 | AL72: 20.77785469 | AM72: 44 | AN72: 37 | AO72: 33601.81956 | AP72: 44 | AQ72: 9.568681047 | AR72: 10.17582105 | AS72: 455465.9487 | AT72: 7023.291799 | AU72: 4.342887925 | AV72: -143.5264121 | AW72: 0 | AX72: -113.285 | AY72: -1222.158799 | AZ72: =IF(AZ71>1,1+AY72*60/$BK$7,IF(AZ71<0,AY72*60/$BK$7,AZ71+AY72*60/$BK$7)) -> 0.9206813402 | BA72: 0.9206813402 | BB72: =IF(BB71>1,1+AX72*60/$BK$7,BB71+AX72*60/$BK$7) -> 0.9941422421 | BC72: 0.9941422421 | BD72: 6604.247344 | BE72: -803.1143438 | BF72: =IF(BF71>1,1+BE72*60/$BK$7,IF(BF71<0,BE72*60/$BK$7,BF71+BE72*60/$BK$7)) -> 0.9552891772 | BG72: 0.9552891772 | BH72: 44 | BI72: 1
A73: 2013-01-03T19:00:00 | B73: 2013-01-03T19:00:00 | C73: 38.81483 | D73: 37.82907 | E73: 37.58891 | F73: 37.81009 | G73: 37.98253 | H73: 37.41934 | I73: 37.52904 | J73: 37.74818 | K73: 37.52238 | L73: 37.30651 | M73: 37.73895 | N73: 37.57804 | O73: 37.59425 | P73: 37.89225 | Q73: 38.21217 | R73: 37.70148 | S73: 37.57761 | T73: 38.06176 | U73: 37.77066 | V73: 37.60483 | W73: 37.99304 | X73: 37.39728 | Y73: 39.63345 | Z73: 38.44751 | AA73: 38.75568 | AB73: 38.46718 | AC73: 117.1785 | AD73: 5860.082 | AE73: 5800.248 | AF73: 51.10979 | AG73: 39.93815 | AH73: 51 | AI73: 51 | AJ73: 762815.0376 | AK73: 601783.9166 | AL73: 20.36855276 | AM73: 42 | AN73: 36 | AO73: 32733.36324 | AP73: 44 | AQ73: 9.478219686 | AR73: 10.08535969 | AS73: 451160.0188 | AT73: 6907.06996 | AU73: 4.297970175 | AV73: -112.8805298 | AW73: 0 | AX73: -59.834 | AY73: -1106.82196 | AZ73: 0.909043319 | BA73: 0.909043319 | BB73: 0.993513099 | BC73: 0.993513099 | BD73: 6491.263426 | BE73: -691.0154264 | BF73: 0.9480232822 | BG73: 0.9480232822 | BH73: 44 | BI73: 1
A74: 2013-01-03T20:00:00 | B74: 2013-01-03T20:00:00 | C74: 38.84053 | D74: 37.84772 | E74: 37.5989 | F74: 37.77261 | G74: 38.01813 | H74: 37.40615 | I74: 37.53297 | J74: 37.75668 | K74: 37.54647 | L74: 37.30439 | M74: 37.7424 | N74: 37.57459 | O74: 37.59297 | P74: 37.88928 | Q74: 38.20912 | R74: 37.70253 | S74: 37.5762 | T74: 38.06347 | U74: 37.77077 | V74: 37.60041 | W74: 37.99293 | X74: 37.39724 | Y74: 39.69527 | Z74: 38.44129 | AA74: 38.75354 | AB74: 38.4652 | AC74: 104.5921 | AD74: 5832.645 | AE74: 5793.046 | AF74: 50.70551 | AG74: 39.85004 | AH74: 51 | AI74: 51 | AJ74: 762815.0376 | AK74: 582634.5741 | AL74: 19.62827645 | AM74: 44 | AN74: 37 | AO74: 31658.05141 | AP74: 44 | AQ74: 9.502398553 | AR74: 10.10953855 | AS74: 452310.9246 | AT74: 6663.170616 | AU74: 4.131225677 | AV74: -100.4608743 | AW74: 0 | AX74: -39.599 | AY74: -870.1246158 | AZ74: 0.8998941251 | BA74: 0.8998941251 | BB74: 0.9930967231 | BC74: 0.9930967231 | BD74: 6263.006218 | BE74: -469.9602179 | BF74: 0.9430817403 | BG74: 0.9430817403 | BH74: 44 | BI74: 1
A75: 2013-01-03T21:00:00 | B75: 2013-01-03T21:00:00 | C75: 38.86535 | D75: 37.80491 | E75: 37.64161 | F75: 37.74796 | G75: 38.03331 | H75: 37.45873 | I75: 37.52248 | J75: 37.77785 | K75: 37.5497 | L75: 37.32015 | M75: 37.74535 | N75: 37.57026 | O75: 37.59723 | P75: 37.8801 | Q75: 38.21168 | R75: 37.69358 | S75: 37.57523 | T75: 38.06578 | U75: 37.77423 | V75: 37.60038 | W75: 37.99999 | X75: 37.41101 | Y75: 39.73268 | Z75: 38.43418 | AA75: 38.76511 | AB75: 38.46364 | AC75: 110.7471 | AD75: 5755.998 | AE75: 5803.929 | AF75: 50.82468 | AG75: 39.95991 | AH75: 51 | AI75: 51 | AJ75: 762815.0376 | AK75: 588381.2808 | AL75: 22.24410877 | AM75: 44 | AN75: 38 | AO75: 31268.7972 | AP75: 44 | AQ75: 9.549971984 | AR75: 10.15711198 | AS75: 454575.4037 | AT75: 6548.458414 | AU75: 4.658465764 | AV75: -106.0886342 | AW75: 0 | AX75: 47.931 | AY75: -744.5294136 | AZ75: 0.8920655407 | BA75: 0.8920655407 | BB75: 0.9936007084 | BC75: 0.9936007084 | BD75: 6157.025194 | BE75: -353.0961944 | BF75: 0.9393690014 | BG75: 0.9393690014 | BH75: 44 | BI75: 1
A76: 2013-01-03T22:00:00 | B76: 2013-01-03T22:00:00 | C76: 38.96509 | D76: 37.86785 | E76: 37.68079 | F76: 37.8119 | G76: 38.03289 | H76: 37.45424 | I76: 37.53007 | J76: 37.7986 | K76: 37.53352 | L76: 37.31291 | M76: 37.75139 | N76: 37.56637 | O76: 37.59087 | P76: 37.88348 | Q76: 38.20439 | R76: 37.69748 | S76: 37.57495 | T76: 38.06761 | U76: 37.77768 | V76: 37.59937 | W76: 38.01771 | X76: 37.40815 | Y76: 39.75611 | Z76: 38.4423 | AA76: 38.78105 | AB76: 38.4831 | AC76: 193.1882 | AD76: 5610.94 | AE76: 5799.457 | AF76: 50.36501 | AG76: 39.81895 | AH76: 51 | AI76: 51 | AJ76: 762815.0376 | AK76: 565574.8565 | AL76: 46.55739026 | AM76: 43 | AN76: 37 | AO76: 29586.65495 | AP76: 44 | AQ76: 9.431763934 | AR76: 10.03890393 | AS76: 448948.7408 | AT76: 6273.832797 | AU76: 9.872467247 | AV76: -183.3157328 | AW76: 0 | AX76: 188.517 | AY76: -474.3757965 | AZ76: 0.8870775699 | BA76: 0.8870775699 | BB76: 0.9955829286 | BC76: 0.9955829286 | BD76: 5894.399457 | BE76: -94.94245705 | BF76: 0.9383706996 | BG76: 0.9383706996 | BH76: 44 | BI76: 1
A77: 2013-01-03T23:00:00 | B77: 2013-01-03T23:00:00 | C77: 38.85002 | D77: 37.94634 | E77: 37.67781 | F77: 37.846 | G77: 38.01161 | H77: 37.44152 | I77: 37.52369 | J77: 37.78115 | K77: 37.5267 | L77: 37.32428 | M77: 37.76734 | N77: 37.56936 | O77: 37.59507 | P77: 37.88498 | Q77: 38.20633 | R77: 37.70061 | S77: 37.58226 | T77: 38.06532 | U77: 37.77542 | V77: 37.59247 | W77: 38.01098 | X77: 37.41761 | Y77: 39.66449 | Z77: 38.44893 | AA77: 38.83262 | AB77: 38.54647 | AC77: 273.6024 | AD77: 5522.94 | AE77: 5793.267 | AF77: 50.17273 | AG77: 39.76927 | AH77: 51 | AI77: 51 | AJ77: 762815.0376 | AK77: 553406.0038 | AL77: 41.52600426 | AM77: 43 | AN77: 37 | AO77: 28728.84269 | AP77: 44 | AQ77: 9.402512536 | AR77: 10.00965254 | AS77: 447556.3843 | AT77: 6110.886335 | AU77: 8.832959085 | AV77: -264.7694409 | AW77: 0 | AX77: 270.327 | AY77: -317.6193354 | AZ77: 0.8837378634 | BA77: 0.8837378634 | BB77: 0.9984253653 | BC77: 0.9984253653 | BD77: 5740.227762 | BE77: 53.03923804 | BF77: 0.9389283971 | BG77: 0.9389283971 | BH77: 44 | BI77: 1
A78: 2013-01-04 | B78: 2013-01-04 | C78: 38.77315 | D78: 38.00908 | E78: 37.7155 | F78: 37.865 | G78: 38.02943 | H78: 37.4674 | I78: 37.52874 | J78: 37.77557 | K78: 37.52187 | L78: 37.32289 | M78: 37.78349 | N78: 37.56902 | O78: 37.59518 | P78: 37.88516 | Q78: 38.20625 | R78: 37.69353 | S78: 37.58155 | T78: 38.06872 | U78: 37.77311 | V78: 37.56617 | W78: 38.01323 | X78: 37.42228 | Y78: 39.49271 | Z78: 38.4561 | AA78: 38.89228 | AB78: 38.6414 | AC78: 356.7108 | AD78: 5442.944 | AE78: 5799.655 | AF78: 49.71032 | AG78: 39.61731 | AH78: 51 | AI78: 51 | AJ78: 762815.0376 | AK78: 526876.8103 | AL78: 23.49832395 | AM78: 43 | AN78: 38 | AO78: 27467.84411 | AP78: 44 | AQ78: 9.420359484 | AR78: 10.02749948 | AS78: 448405.8929 | AT78: 5831.591492 | AU78: 4.988838056 | AV78: -351.7219619 | AW78: 0 | AX78: 356.711 | AY78: -31.93649221 | AZ78: 0.8834020573 | BA78: 0.8834020573 | BB78: 1.002176113 | BC78: 1 | BD78: 5478.503221 | BE78: 321.1517791 | BF78: 0.9423052466 | BG78: 0.9423052466 | BH78: 44 | BI78: 1
A79: 2013-01-04T01:00:00 | B79: 2013-01-04T01:00:00 | C79: 38.72643 | D79: 37.95474 | E79: 37.69735 | F79: 37.84928 | G79: 38.00879 | H79: 37.44324 | I79: 37.54868 | J79: 37.76234 | K79: 37.5118 | L79: 37.3151 | M79: 37.79862 | N79: 37.56021 | O79: 37.59321 | P79: 37.88393 | Q79: 38.20223 | R79: 37.6933 | S79: 37.58236 | T79: 38.07104 | U79: 37.76848 | V79: 37.54795 | W79: 38.01979 | X79: 37.44458 | Y79: 39.32338 | Z79: 38.46607 | AA79: 38.86197 | AB79: 38.72264 | AC79: 446.7213 | AD79: 5357.257 | AE79: 5803.979 | AF79: 49.52072 | AG79: 39.64127 | AH79: 51 | AI79: 51 | AJ79: 762815.0376 | AK79: 513984.9188 | AL79: 0.8465368635 | AM79: 40 | AN79: 36 | AO79: 26463.37633 | AP79: 44 | AQ79: 9.264413133 | AR79: 9.871553133 | AS79: 440982.8999 | AT79: 5712.909378 | AU79: 0.1827502404 | AV79: -446.5385498 | AW79: 0 | AX79: 446.722 | AY79: 91.06962206 | AZ79: 0.8843596369 | BA79: 0.8843596369 | BB79: 1.004697196 | BC79: 1 | BD79: 5361.542602 | BE79: 442.4363982 | BF79: 0.9469573807 | BG79: 0.9469573807 | BH79: 44 | BI79: 1
A80: 2013-01-04T02:00:00 | B80: 2013-01-04T02:00:00 | C80: 38.90596 | D80: 37.95747 | E80: 37.63184 | F80: 37.85351 | G80: 37.99174 | H80: 37.41081 | I80: 37.54775 | J80: 37.73973 | K80: 37.5164 | L80: 37.34323 | M80: 37.79498 | N80: 37.55852 | O80: 37.58758 | P80: 37.88358 | Q80: 38.20061 | R80: 37.69987 | S80: 37.58558 | T80: 38.06771 | U80: 37.76746 | V80: 37.55833 | W80: 37.99218 | X80: 37.51388 | Y80: 39.13472 | Z80: 38.45744 | AA80: 38.81776 | AB80: 38.69462 | AC80: 619.8235 | AD80: 5177.199 | AE80: 5797.023 | AF80: 49.57997 | AG80: 39.70344 | AH80: 51 | AI80: 51 | AJ80: 762815.0376 | AK80: 518138.941 | AL80: 65.49674924 | AM80: 40 | AN80: 36 | AO80: 25566.38062 | AP80: 44 | AQ80: 9.233825579 | AR80: 9.840965579 | AS80: 439526.9428 | AT80: 5537.548961 | AU80: 14.1862652 | AV80: -605.6372348 | AW80: 0 | AX80: 619.824 | AY80: 259.4740393 | AZ80: 0.8870879568 | BA80: 0.8870879568 | BB80: 1.006517331 | BC80: 1 | BD80: 5195.908961 | BE80: 601.1140388 | BF80: 0.9532779798 | BG80: 0.9532779798 | BH80: 44 | BI80: 1
A81: 2013-01-04T03:00:00 | B81: 2013-01-04T03:00:00 | C81: 39.14446 | D81: 37.83793 | E81: 37.59959 | F81: 37.85834 | G81: 37.97474 | H81: 37.42669 | I81: 37.5482 | J81: 37.74167 | K81: 37.54352 | L81: 37.33777 | M81: 37.78526 | N81: 37.56462 | O81: 37.58171 | P81: 37.87795 | Q81: 38.20227 | R81: 37.69393 | S81: 37.58022 | T81: 38.06925 | U81: 37.76147 | V81: 37.55111 | W81: 38.01793 | X81: 37.6917 | Y81: 38.99575 | Z81: 38.43998 | AA81: 38.78598 | AB81: 38.65266 | AC81: 599.9 | AD81: 5199.112 | AE81: 5799.013 | AF81: 49.30973 | AG81: 39.50298 | AH81: 51 | AI81: 51 | AJ81: 762815.0376 | AK81: 507272.891 | AL81: 147.51541 | AM81: 40 | AN81: 36 | AO81: 25493.1958 | AP81: 44 | AQ81: 9.231329977 | AR81: 9.838469977 | AS81: 439408.153 | AT81: 5523.190237 | AU81: 31.95973069 | AV81: -567.9402693 | AW81: 0 | AX81: 599.901 | AY81: 275.8227627 | AZ81: 0.8899881804 | BA81: 0.8899881804 | BB81: 1.006307844 | BC81: 1 | BD81: 5182.349667 | BE81: 616.6633333 | BF81: 0.9597620769 | BG81: 0.9597620769 | BH81: 44 | BI81: 1
A82: 2013-01-04T04:00:00 | B82: 2013-01-04T04:00:00 | C82: 39.04453 | D82: 37.81068 | E82: 37.60171 | F82: 37.84378 | G82: 37.968 | H82: 37.43682 | I82: 37.55272 | J82: 37.75256 | K82: 37.55617 | L82: 37.30781 | M82: 37.79327 | N82: 37.56355 | O82: 37.57918 | P82: 37.88008 | Q82: 38.20543 | R82: 37.69421 | S82: 37.58148 | T82: 38.07177 | U82: 37.77533 | V82: 37.54174 | W82: 38.09321 | X82: 38.07674 | Y82: 38.91663 | Z82: 38.4052 | AA82: 38.81705 | AB82: 38.62868 | AC82: 568.9913 | AD82: 5235.085 | AE82: 5804.077 | AF82: 49.85145 | AG82: 39.79142 | AH82: 51 | AI82: 51 | AJ82: 762815.0376 | AK82: 534200.0177 | AL82: 118.3075161 | AM82: 41 | AN82: 36 | AO82: 26332.55608 | AP82: 44 | AQ82: 9.259952162 | AR82: 9.867092162 | AS82: 440770.5592 | AT82: 5687.406504 | AU82: 25.55251128 | AV82: -543.4387887 | AW82: 0 | AX82: 568.992 | AY82: 116.6704962 | AZ82: 0.8912149484 | BA82: 0.8912149484 | BB82: 1.005982842 | BC82: 1 | BD82: 5337.450111 | BE82: 466.6268894 | BF82: 0.9646685693 | BG82: 0.9646685693 | BH82: 44 | BI82: 1
A83: 2013-01-04T05:00:00 | B83: 2013-01-04T05:00:00 | C83: 38.85099 | D83: 37.8685 | E83: 37.57637 | F83: 37.85138 | G83: 37.95938 | H83: 37.43303 | I83: 37.55216 | J83: 37.7513 | K83: 37.53539 | L83: 37.28983 | M83: 37.79586 | N83: 37.56771 | O83: 37.57795 | P83: 37.88054 | Q83: 38.207 | R83: 37.69616 | S83: 37.58211 | T83: 38.07274 | U83: 37.79802 | V83: 37.54995 | W83: 38.09074 | X83: 38.63131 | Y83: 38.84696 | Z83: 38.40207 | AA83: 39.02211 | AB83: 38.57976 | AC83: 413.1434 | AD83: 5384.63 | AE83: 5797.774 | AF83: 49.68413 | AG83: 39.63022 | AH83: 51 | AI83: 51 | AJ83: 762815.0376 | AK83: 528564.2182 | AL83: 56.02844219 | AM83: 40 | AN83: 35 | AO83: 27068.2927 | AP83: 44 | AQ83: 9.224193781 | AR83: 9.831333781 | AS83: 439068.4725 | AT83: 5868.977462 | AU83: 12.14814943 | AV83: -400.9952506 | AW83: 0 | AX83: 413.144 | AY83: -71.20346165 | AZ83: 0.8904662576 | BA83: 0.8904662576 | BB83: 1.00434413 | BC83: 1 | BD83: 5506.535187 | BE83: 291.2388128 | BF83: 0.9677308898 | BG83: 0.9677308898 | BH83: 44 | BI83: 1
A84: 2013-01-04T06:00:00 | B84: 2013-01-04T06:00:00 | C84: 38.71181 | D84: 37.92519 | E84: 37.56641 | F84: 37.82652 | G84: 37.96743 | H84: 37.43637 | I84: 37.54224 | J84: 37.76154 | K84: 37.52689 | L84: 37.27834 | M84: 37.79979 | N84: 37.57307 | O84: 37.58133 | P84: 37.88587 | Q84: 38.20477 | R84: 37.70179 | S84: 37.58055 | T84: 38.06523 | U84: 37.80858 | V84: 37.54311 | W84: 38.01223 | X84: 38.9275 | Y84: 38.83325 | Z84: 38.68526 | AA84: 39.00252 | AB84: 38.55353 | AC84: 354.4661 | AD84: 5447.987 | AE84: 5802.453 | AF84: 50.16664 | AG84: 39.72602 | AH84: 51 | AI84: 51 | AJ84: 762815.0376 | AK84: 552780.0683 | AL84: 28.05244715 | AM84: 40 | AN84: 35 | AO84: 28440.18102 | AP84: 44 | AQ84: 9.270975173 | AR84: 9.878115173 | AS84: 441295.2508 | AT84: 6135.31597 | AU84: 6.051671293 | AV84: -348.4144287 | AW84: 0 | AX84: 354.466 | AY84: -332.8629698 | AZ84: 0.8869662671 | BA84: 0.8869662671 | BB84: 1.003727142 | BC84: 1 | BD84: 5758.22017 | BE84: 44.23282967 | BF84: 0.9681959895 | BG84: 0.9681959895 | BH84: 44 | BI84: 1
A85: 2013-01-04T07:00:00 | B85: 2013-01-04T07:00:00 | C85: 38.58403 | D85: 37.95986 | E85: 37.55391 | F85: 37.8173 | G85: 37.96483 | H85: 37.44047 | I85: 37.52391 | J85: 37.76677 | K85: 37.52565 | L85: 37.27755 | M85: 37.80304 | N85: 37.56693 | O85: 37.58538 | P85: 37.89094 | Q85: 38.20859 | R85: 37.70629 | S85: 37.58086 | T85: 38.06437 | U85: 37.81994 | V85: 37.63939 | W85: 38.02241 | X85: 39.04086 | Y85: 38.84926 | Z85: 38.71104 | AA85: 39.00222 | AB85: 38.52038 | AC85: 290.2633 | AD85: 5507.116 | AE85: 5797.379 | AF85: 50.27639 | AG85: 39.71691 | AH85: 51 | AI85: 51 | AJ85: 762815.0376 | AK85: 559582.0595 | AL85: 9.237629522 | AM85: 40 | AN85: 35 | AO85: 29076.14063 | AP85: 44 | AQ85: 9.292661395 | AR85: 9.899801395 | AS85: 442327.5076 | AT85: 6257.871538 | AU85: 1.988155842 | AV85: -288.2751442 | AW85: 0 | AX85: 290.263 | AY85: -460.4925381 | AZ85: 0.8821242762 | BA85: 0.8821242762 | BB85: 1.00305206 | BC85: 1 | BD85: 5874.085644 | BE85: -76.70664441 | BF85: 0.9673894338 | BG85: 0.9673894338 | BH85: 44 | BI85: 1
A86: 2013-01-04T08:00:00 | B86: 2013-01-04T08:00:00 | C86: 38.49876 | D86: 37.99082 | E86: 37.53625 | F86: 37.80299 | G86: 37.96875 | H86: 37.45501 | I86: 37.53555 | J86: 37.76996 | K86: 37.51989 | L86: 37.28579 | M86: 37.81296 | N86: 37.56448 | O86: 37.58411 | P86: 37.89986 | Q86: 38.20275 | R86: 37.70047 | S86: 37.58364 | T86: 38.07449 | U86: 37.80819 | V86: 37.64841 | W86: 38.072 | X86: 39.04273 | Y86: 38.85463 | Z86: 38.67382 | AA86: 39.02284 | AB86: 38.52484 | AC86: 254.931 | AD86: 5548.008 | AE86: 5802.939 | AF86: 50.19149 | AG86: 39.72478 | AH86: 51 | AI86: 51 | AJ86: 762815.0376 | AK86: 555328.554 | AL86: -3.32430024 | AM86: 41 | AN86: 36 | AO86: 29034.69541 | AP86: 44 | AQ86: 9.352095113 | AR86: 9.959235113 | AS86: 445156.5322 | AT86: 6209.23869 | AU86: -0.7109209647 | AV86: -255.641921 | AW86: 0 | AX86: 254.931 | AY86: -406.2996903 | AZ86: 0.8778521126 | BA86: 0.8778521126 | BB86: 1.002680551 | BC86: 1 | BD86: 5830.707896 | BE86: -27.768896 | BF86: 0.9670974492 | BG86: 0.9670974492 | BH86: 44 | BI86: 1
A87: 2013-01-04T09:00:00 | B87: 2013-01-04T09:00:00 | C87: 38.40163 | D87: 38.01009 | E87: 37.52311 | F87: 37.78808 | G87: 37.96422 | H87: 37.44621 | I87: 37.56061 | J87: 37.76407 | K87: 37.53376 | L87: 37.29092 | M87: 37.81717 | N87: 37.56544 | O87: 37.58445 | P87: 37.90597 | Q87: 38.2066 | R87: 37.69334 | S87: 37.58729 | T87: 38.08833 | U87: 37.81276 | V87: 37.65458 | W87: 38.03121 | X87: 39.00847 | Y87: 38.85579 | Z87: 38.67529 | AA87: 39.00287 | AB87: 38.53468 | AC87: 270.9405 | AD87: 5543.17 | AE87: 5801.601 | AF87: 50.40789 | AG87: 39.82724 | AH87: 51 | AI87: 51 | AJ87: 762815.0376 | AK87: 565160.7395 | AL87: -18.02431676 | AM87: 41 | AN87: 36 | AO87: 29325.17083 | AP87: 44 | AQ87: 9.362000325 | AR87: 9.969140325 | AS87: 445628.0169 | AT87: 6264.723309 | AU87: -3.85052684 | AV87: -274.7910268 | AW87: 0 | AX87: 258.431 | AY87: -463.1223094 | AZ87: 0.8729824701 | BA87: 0.8729824701 | BB87: 1.002717353 | BC87: 1 | BD87: 5883.189497 | BE87: -81.58849745 | BF87: 0.9662395617 | BG87: 0.9662395617 | BH87: 44 | BI87: 1
A88: 2013-01-04T10:00:00 | B88: 2013-01-04T10:00:00 | C88: 38.40088 | D88: 37.98978 | E88: 37.53104 | F88: 37.79288 | G88: 37.95231 | H88: 37.42753 | I88: 37.56149 | J88: 37.76485 | K88: 37.5365 | L88: 37.30279 | M88: 37.80579 | N88: 37.56923 | O88: 37.58786 | P88: 37.90271 | Q88: 38.20955 | R88: 37.6972 | S88: 37.58964 | T88: 38.08764 | U88: 37.82191 | V88: 37.66955 | W88: 38.03618 | X88: 38.9786 | Y88: 38.85759 | Z88: 38.59789 | AA88: 38.99681 | AB88: 38.58845 | AC88: 115.0278 | AD88: 5798.732 | AE88: 5802.227 | AF88: 50.47234 | AG88: 39.79977 | AH88: 51 | AI88: 51 | AJ88: 762815.0376 | AK88: 565669.1038 | AL88: -10.78788222 | AM88: 42 | AN88: 37 | AO88: 30943.68659 | AP88: 44 | AQ88: 9.478038713 | AR88: 10.08517871 | AS88: 451151.4045 | AT88: 6529.554801 | AU88: -2.276395476 | AV88: -117.3041955 | AW88: 0 | AX88: 3.495 | AY88: -727.327801 | AZ88: 0.8653347574 | BA88: 0.8653347574 | BB88: 1.000036749 | BC88: 1 | BD88: 6136.467676 | BE88: -334.2406764 | BF88: 0.9627250849 | BG88: 0.9627250849 | BH88: 44 | BI88: 1
A89: 2013-01-04T11:00:00 | B89: 2013-01-04T11:00:00 | C89: 38.45527 | D89: 37.96457 | E89: 37.55391 | F89: 37.79108 | G89: 37.94794 | H89: 37.43466 | I89: 37.53771 | J89: 37.75652 | K89: 37.53513 | L89: 37.31573 | M89: 37.80764 | N89: 37.58471 | O89: 37.58656 | P89: 37.89471 | Q89: 38.21104 | R89: 37.69802 | S89: 37.58498 | T89: 38.0814 | U89: 37.82341 | V89: 37.67431 | W89: 38.03839 | X89: 38.98 | Y89: 38.83502 | Z89: 38.52468 | AA89: 38.96718 | AB89: 38.61896 | AC89: 121.0671 | AD89: 5831.308 | AE89: 5807.569 | AF89: 50.76883 | AG89: 39.83015 | AH89: 51 | AI89: 51 | AJ89: 762815.0376 | AK89: 578329.661 | AL89: -9.9087368 | AM89: 43 | AN89: 38 | AO89: 31893.4061 | AP89: 44 | AQ89: 9.571271148 | AR89: 10.17841115 | AS89: 455589.2366 | AT89: 6664.403422 | AU89: -2.070516371 | AV89: -123.1376164 | AW89: 0 | AX89: -23.739 | AY89: -856.8344223 | AZ89: 0.8563253073 | BA89: 0.8563253073 | BB89: 0.999750389 | BC89: 0.999750389 | BD89: 6266.873215 | BE89: -459.3042149 | BF89: 0.957895589 | BG89: 0.957895589 | BH89: 44 | BI89: 1
A90: 2013-01-04T12:00:00 | B90: 2013-01-04T12:00:00 | C90: 38.53543 | D90: 37.92086 | E90: 37.56001 | F90: 37.78939 | G90: 37.93596 | H90: 37.45605 | I90: 37.5408 | J90: 37.76746 | K90: 37.5452 | L90: 37.32607 | M90: 37.8049 | N90: 37.585 | O90: 37.60255 | P90: 37.89564 | Q90: 38.2134 | R90: 37.69758 | S90: 37.58434 | T90: 38.07426 | U90: 37.82931 | V90: 37.66578 | W90: 38.04488 | X90: 38.97288 | Y90: 38.87973 | Z90: 38.58299 | AA90: 38.95464 | AB90: 38.64865 | AC90: 153.5175 | AD90: 5914.787 | AE90: 5806.401 | AF90: 50.57775 | AG90: 39.83181 | AH90: 51 | AI90: 51 | AJ90: 762815.0376 | AK90: 567821.0844 | AL90: -8.690625675 | AM90: 45 | AN90: 39 | AO90: 31779.97311 | AP90: 44 | AQ90: 9.628250083 | AR90: 10.23539008 | AS90: 458301.4144 | AT90: 6601.401674 | AU90: -1.805234721 | AV90: -155.3227347 | AW90: 0 | AX90: -108.386 | AY90: -795.0006739 | AZ90: 0.8479660273 | BA90: 0.8479660273 | BB90: 0.9986107309 | BC90: 0.9986107309 | BD90: 6209.82158 | BE90: -403.4205798 | BF90: 0.9536536987 | BG90: 0.9536536987 | BH90: 44 | BI90: 1
A91: 2013-01-04T13:00:00 | B91: 2013-01-04T13:00:00 | C91: 38.55798 | D91: 37.88686 | E91: 37.56695 | F91: 37.80344 | G91: 37.93817 | H91: 37.47155 | I91: 37.56987 | J91: 37.78716 | K91: 37.57033 | L91: 37.34526 | M91: 37.80196 | N91: 37.58409 | O91: 37.59973 | P91: 37.8955 | Q91: 38.21055 | R91: 37.69249 | S91: 37.57819 | T91: 38.06433 | U91: 37.83395 | V91: 37.62513 | W91: 38.05758 | X91: 38.95363 | Y91: 38.9408 | Z91: 38.58556 | AA91: 39.02085 | AB91: 38.66633 | AC91: 188.0355 | AD91: 5965.901 | AE91: 5794.542 | AF91: 51.09348 | AG91: 39.86238 | AH91: 51 | AI91: 51 | AJ91: 762815.0376 | AK91: 591528.0942 | AL91: -10.18682321 | AM91: 46 | AN91: 39 | AO91: 33501.81536 | AP91: 44 | AQ91: 9.686964904 | AR91: 10.2941049 | AS91: 461096.2198 | AT91: 6916.885876 | AU91: -2.103202255 | AV91: -190.1387023 | AW91: 0 | AX91: -171.359 | AY91: -1122.343876 | AZ91: 0.8361647961 | BA91: 0.8361647961 | BB91: 0.9968089238 | BC91: 0.9968089238 | BD91: 6508.932185 | BE91: -714.3901847 | BF91: 0.9461420226 | BG91: 0.9461420226 | BH91: 44 | BI91: 1
A92: 2013-01-04T14:00:00 | B92: 2013-01-04T14:00:00 | C92: 38.69307 | D92: 37.83859 | E92: 37.59459 | F92: 37.83303 | G92: 37.93147 | H92: 37.46291 | I92: 37.57623 | J92: 37.80433 | K92: 37.58356 | L92: 37.378 | M92: 37.78668 | N92: 37.61868 | O92: 37.60323 | P92: 37.8917 | Q92: 38.20984 | R92: 37.68997 | S92: 37.57227 | T92: 38.03351 | U92: 37.84866 | V92: 37.60516 | W92: 38.09996 | X92: 38.79594 | Y92: 39.07134 | Z92: 38.61288 | AA92: 39.04117 | AB92: 38.65279 | AC92: 274.3759 | AD92: 6066.02 | AE92: 5799.373 | AF92: 50.99048 | AG92: 39.91751 | AH92: 51 | AI92: 51 | AJ92: 762815.0376 | AK92: 587269.8288 | AL92: 5.525930626 | AM92: 47 | AN92: 40 | AO92: 33584.42874 | AP92: 44 | AQ92: 9.75062902 | AR92: 10.35776902 | AS92: 464126.61 | AT92: 6888.669166 | AU92: 1.133451107 | AV92: -273.2424489 | AW92: 0 | AX92: -266.647 | AY92: -1089.296166 | AZ92: 0.8247110553 | BA92: 0.8247110553 | BB92: 0.9940051816 | BC92: 0.9940051816 | BD92: 6484.876941 | BE92: -685.5039411 | BF92: 0.9389340798 | BG92: 0.9389340798 | BH92: 44 | BI92: 1
A93: 2013-01-04T15:00:00 | B93: 2013-01-04T15:00:00 | C93: 38.58773 | D93: 37.93938 | E93: 37.59534 | F93: 37.81182 | G93: 37.96328 | H93: 37.50381 | I93: 37.51972 | J93: 37.78734 | K93: 37.56152 | L93: 37.36857 | M93: 37.72387 | N93: 37.6088 | O93: 37.59725 | P93: 37.89679 | Q93: 38.22757 | R93: 37.72711 | S93: 37.62784 | T93: 38.09309 | U93: 37.85484 | V93: 37.66034 | W93: 38.1105 | X93: 38.48978 | Y93: 39.20405 | Z93: 38.62558 | AA93: 39.05892 | AB93: 38.60358 | AC93: 329.4825 | AD93: 6124.715 | AE93: 5797.15 | AF93: 51.43334 | AG93: 39.91744 | AH93: 51 | AI93: 51 | AJ93: 762815.0376 | AK93: 610692.1927 | AL93: -2.611148813 | AM93: 49 | AN93: 41 | AO93: 35265.80273 | AP93: 44 | AQ93: 9.868810873 | AR93: 10.47595087 | AS93: 469752.0258 | AT93: 7146.920371 | AU93: -0.5291719227 | AV93: -330.0116719 | AW93: 0 | AX93: -327.565 | AY93: -1349.770371 | AZ93: 0.810518478 | BA93: 0.810518478 | BB93: 0.9905608983 | BC93: 0.9905608983 | BD93: 6732.716325 | BE93: -935.5663254 | BF93: 0.9290967788 | BG93: 0.9290967788 | BH93: 44 | BI93: 1
A94: 2013-01-04T16:00:00 | B94: 2013-01-04T16:00:00 | C94: 38.21513 | D94: 37.94734 | E94: 37.56314 | F94: 37.83347 | G94: 37.98199 | H94: 37.48718 | I94: 37.50747 | J94: 37.80547 | K94: 37.61366 | L94: 37.4418 | M94: 37.84232 | N94: 37.74555 | O94: 37.74142 | P94: 38.03543 | Q94: 38.37688 | R94: 37.88577 | S94: 37.80945 | T94: 38.25903 | U94: 37.96762 | V94: 37.7753 | W94: 38.16382 | X94: 37.95283 | Y94: 39.40846 | Z94: 38.63375 | AA94: 39.07806 | AB94: 38.62446 | AC94: 281.1536 | AD94: 6080.446 | AE94: 5800.89 | AF94: 51.64223 | AG94: 40.08568 | AH94: 51 | AI94: 51 | AJ94: 762815.0376 | AK94: 619641.4044 | AL94: -57.54230154 | AM94: 50 | AN94: 41 | AO94: 35134.48911 | AP94: 44 | AQ94: 9.864333079 | AR94: 10.47147308 | AS94: 469538.8844 | AT94: 7123.540706 | AU94: -11.66673937 | AV94: -292.8203394 | AW94: 0 | AX94: -279.556 | AY94: -1322.650706 | AZ94: 0.7966110588 | BA94: 0.7966110588 | BB94: 0.9876214204 | BC94: 0.9876214204 | BD94: 6710.515101 | BE94: -909.6251007 | BF94: 0.9195322448 | BG94: 0.9195322448 | BH94: 44 | BI94: 1
A95: 2013-01-04T17:00:00 | B95: 2013-01-04T17:00:00 | C95: 37.98361 | D95: 37.8332 | E95: 37.47568 | F95: 37.77841 | G95: 37.9489 | H95: 37.44473 | I95: 37.49011 | J95: 37.7833 | K95: 37.59748 | L95: 37.41533 | M95: 37.81187 | N95: 37.70767 | O95: 37.75164 | P95: 38.10426 | Q95: 38.47287 | R95: 37.97562 | S95: 37.89074 | T95: 38.36483 | U95: 38.09547 | V95: 37.89622 | W95: 38.2891 | X95: 37.77747 | Y95: 39.45138 | Z95: 38.61781 | AA95: 39.05677 | AB95: 38.68464 | AC95: 244.0664 | AD95: 6036.484 | AE95: 5797.44 | AF95: 51.68374 | AG95: 40.02781 | AH95: 51 | AI95: 51 | AJ95: 762815.0376 | AK95: 618752.7188 | AL95: -85.5489342 | AM95: 48 | AN95: 40 | AO95: 35180.41748 | AP95: 44 | AQ95: 9.805052236 | AR95: 10.41219224 | AS95: 466717.1365 | AT95: 7175.977573 | AU95: -17.4499701 | AV95: -261.5163701 | AW95: 0 | AX95: -239.044 | AY95: -1378.537573 | AZ95: 0.7821159999 | BA95: 0.7821159999 | BB95: 0.9851079184 | BC95: 0.9851079184 | BD95: 6757.542826 | BE95: -960.1028263 | BF95: 0.9094369472 | BG95: 0.9094369472 | BH95: 44 | BI95: 1
A96: 2013-01-04T18:00:00 | B96: 2013-01-04T18:00:00 | C96: 37.90892 | D96: 37.79098 | E96: 37.45827 | F96: 37.8335 | G96: 38.0237 | H96: 37.53924 | I96: 37.62182 | J96: 37.91685 | K96: 37.7362 | L96: 37.57045 | M96: 37.97985 | N96: 37.88797 | O96: 37.9365 | P96: 38.26255 | Q96: 38.60468 | R96: 38.1054 | S96: 38.04015 | T96: 38.5447 | U96: 38.28989 | V96: 38.09207 | W96: 38.4262 | X96: 37.79449 | Y96: 39.52911 | Z96: 38.61541 | AA96: 39.02743 | AB96: 38.72425 | AC96: 221.8522 | AD96: 6010.146 | AE96: 5799.583 | AF96: 51.50876 | AG96: 40.02712 | AH96: 51 | AI96: 51 | AJ96: 762815.0376 | AK96: 608538.3081 | AL96: -90.44137711 | AM96: 46 | AN96: 39 | AO96: 34503.16636 | AP96: 44 | AQ96: 9.721110973 | AR96: 10.32825097 | AS96: 462721.5611 | AT96: 7098.605593 | AU96: -18.60721009 | AV96: -240.4594101 | AW96: 0 | AX96: -210.563 | AY96: -1299.022593 | AZ96: 0.7684570258 | BA96: 0.7684570258 | BB96: 0.9828938888 | BC96: 0.9828938888 | BD96: 6681.318347 | BE96: -881.7353472 | BF96: 0.9001656687 | BG96: 0.9001656687 | BH96: 44 | BI96: 1
A97: 2013-01-04T19:00:00 | B97: 2013-01-04T19:00:00 | C97: 37.89517 | D97: 37.8509 | E97: 37.54732 | F97: 37.9365 | G97: 38.12672 | H97: 37.64918 | I97: 37.73966 | J97: 38.06242 | K97: 37.88147 | L97: 37.70825 | M97: 38.1347 | N97: 38.02271 | O97: 38.03709 | P97: 38.33606 | Q97: 38.66153 | R97: 38.14892 | S97: 38.06165 | T97: 38.52891 | U97: 38.30074 | V97: 38.11908 | W97: 38.51783 | X97: 37.91876 | Y97: 39.55274 | Z97: 38.62075 | AA97: 39.027 | AB97: 38.7806 | AC97: 166.8982 | AD97: 5962.38 | AE97: 5799.401 | AF97: 51.04478 | AG97: 39.96902 | AH97: 51 | AI97: 51 | AJ97: 762815.0376 | AK97: 583770.7779 | AL97: -73.88833661 | AM97: 47 | AN97: 40 | AO97: 33018.94495 | AP97: 44 | AQ97: 9.731346023 | AR97: 10.33848602 | AS97: 463208.7459 | AT97: 6786.100274 | AU97: -15.18563546 | AV97: -182.0838355 | AW97: 0 | AX97: -162.979 | AY97: -986.6992736 | AZ97: 0.7580820716 | BA97: 0.7580820716 | BB97: 0.9811801958 | BC97: 0.9811801958 | BD97: 6387.57839 | BE97: -588.1773903 | BF97: 0.893981096 | BG97: 0.893981096 | BH97: 44 | BI97: 1
A98: 2013-01-04T20:00:00 | B98: 2013-01-04T20:00:00 | C98: 37.9697 | D98: 37.94895 | E98: 37.68526 | F98: 38.06021 | G98: 38.26279 | H98: 37.76945 | I98: 37.84951 | J98: 38.15482 | K98: 37.96386 | L98: 37.78207 | M98: 38.2136 | N98: 38.07736 | O98: 38.0822 | P98: 38.38982 | Q98: 38.71449 | R98: 38.17875 | S98: 38.11279 | T98: 38.58367 | U98: 38.32035 | V98: 38.13371 | W98: 38.5324 | X98: 37.98989 | Y98: 39.74813 | Z98: 38.61415 | AA98: 39.01146 | AB98: 38.78805 | AC98: 153.1771 | AD98: 5909.445 | AE98: 5796.746 | AF98: 51.15297 | AG98: 39.94874 | AH98: 51 | AI98: 51 | AJ98: 762815.0376 | AK98: 588565.9675 | AL98: -62.67623989 | AM98: 46 | AN98: 39 | AO98: 33105.39048 | AP98: 44 | AQ98: 9.673446815 | AR98: 10.28058682 | AS98: 460452.7634 | AT98: 6844.590374 | AU98: -12.95840895 | AV98: -166.1355089 | AW98: 0 | AX98: -112.699 | AY98: -1047.844374 | AZ98: 0.7470641884 | BA98: 0.7470641884 | BB98: 0.9799951873 | BC98: 0.9799951873 | BD98: 6440.36981 | BE98: -643.6238098 | BF98: 0.8872135147 | BG98: 0.8872135147 | BH98: 44 | BI98: 1
A99: 2013-01-04T21:00:00 | B99: 2013-01-04T21:00:00 | C99: 37.98553 | D99: 38.00221 | E99: 37.80391 | F99: 38.17647 | G99: 38.36095 | H99: 37.85433 | I99: 37.91716 | J99: 38.19967 | K99: 38.0062 | L99: 37.82282 | M99: 38.25518 | N99: 38.15483 | O99: 38.19125 | P99: 38.46765 | Q99: 38.78097 | R99: 38.28994 | S99: 38.20168 | T99: 38.62451 | U99: 38.36211 | V99: 38.16841 | W99: 38.55916 | X99: 37.96906 | Y99: 39.83183 | Z99: 38.64267 | AA99: 39.0383 | AB99: 38.71583 | AC99: 112.206 | AD99: 5860.007 | AE99: 5800.117 | AF99: 51.02043 | AG99: 40.00206 | AH99: 51 | AI99: 51 | AJ99: 762815.0376 | AK99: 585694.7561 | AL99: -40.9720209 | AM99: 46 | AN99: 39 | AO99: 32283.86266 | AP99: 44 | AQ99: 9.645432717 | AR99: 10.25257272 | AS99: 459119.3019 | AT99: 6694.124279 | AU99: -8.495631477 | AV99: -120.7016315 | AW99: 0 | AX99: -59.89 | AY99: -894.0072787 | AZ99: 0.7376638729 | BA99: 0.7376638729 | BB99: 0.9793654554 | BC99: 0.9793654554 | BD99: 6297.709571 | BE99: -497.5925712 | BF99: 0.881981424 | BG99: 0.881981424 | BH99: 44 | BI99: 1
A100: 2013-01-04T22:00:00 | B100: 2013-01-04T22:00:00 | C100: 38.0658 | D100: 38.13387 | E100: 37.88725 | F100: 38.24968 | G100: 38.45462 | H100: 37.94072 | I100: 38.02685 | J100: 38.31968 | K100: 38.1292 | L100: 37.94811 | M100: 38.38828 | N100: 38.24508 | O100: 38.25941 | P100: 38.56219 | Q100: 38.87988 | R100: 38.36818 | S100: 38.27453 | T100: 38.71867 | U100: 38.44039 | V100: 38.23623 | W100: 38.58606 | X100: 37.98005 | Y100: 39.93003 | Z100: 38.67767 | AA100: 39.05972 | AB100: 38.75208 | AC100: 128.5854 | AD100: 5736.779 | AE100: 5798.806 | AF100: 51.06645 | AG100: 40.05035 | AH100: 51 | AI100: 51 | AJ100: 762815.0376 | AK100: 586159.8047 | AL100: -44.12279416 | AM100: 45 | AN100: 39 | AO100: 31598.46557 | AP100: 44 | AQ100: 9.622060676 | AR100: 10.22920068 | AS100: 458006.8008 | AT100: 6567.920664 | AU100: -9.171173544 | AV100: -137.7565735 | AW100: 0 | AX100: 62.027 | AY100: -769.1146638 | AZ100: 0.7295767793 | BA100: 0.7295767793 | BB100: 0.9800176575 | BC100: 0.9800176575 | BD100: 6178.090854 | BE100: -379.2848542 | BF100: 0.8779933163 | BG100: 0.8779933163 | BH100: 44 | BI100: 1
A101: 2013-01-04T23:00:00 | B101: 2013-01-04T23:00:00 | C101: 38.15041 | D101: 38.18192 | E101: 37.9441 | F101: 38.3187 | G101: 38.5143 | H101: 37.99876 | I101: 38.07903 | J101: 38.35939 | K101: 38.16075 | L101: 37.96906 | M101: 38.41527 | N101: 38.25406 | O101: 38.2653 | P101: 38.56577 | Q101: 38.8884 | R101: 38.37851 | S101: 38.28845 | T101: 38.74492 | U101: 38.46615 | V101: 38.28441 | W101: 38.64256 | X101: 37.9883 | Y101: 39.85594 | Z101: 38.66332 | AA101: 39.03827 | AB101: 38.84374 | AC101: 243.6236 | AD101: 5562.869 | AE101: 5801.959 | AF101: 50.45149 | AG101: 39.90795 | AH101: 51 | AI101: 51 | AJ101: 762815.0376 | AK101: 552524.9342 | AL101: -84.45577529 | AM101: 46 | AN101: 39 | AO101: 29326.16591 | AP101: 44 | AQ101: 9.544575257 | AR101: 10.15171526 | AS101: 454318.5213 | AT101: 6145.096061 | AU101: -17.69712596 | AV101: -261.320726 | AW101: 0 | AX101: 239.09 | AY101: -343.1370608 | AZ101: 0.7259687588 | BA101: 0.7259687588 | BB101: 0.9825316431 | BC101: 0.9825316431 | BD101: 5777.578501 | BE101: 24.38049935 | BF101: 0.8782496726 | BG101: 0.8782496726 | BH101: 44 | BI101: 1
A102: 2013-01-05 | B102: 2013-01-05 | C102: 38.13839 | D102: 38.16468 | E102: 37.89677 | F102: 38.28335 | G102: 38.51432 | H102: 37.99426 | I102: 38.07845 | J102: 38.34656 | K102: 38.15519 | L102: 37.94688 | M102: 38.39235 | N102: 38.23702 | O102: 38.26086 | P102: 38.56365 | Q102: 38.8829 | R102: 38.36979 | S102: 38.26947 | T102: 38.72519 | U102: 38.45849 | V102: 38.26567 | W102: 38.5701 | X102: 37.98863 | Y102: 39.71946 | Z102: 38.6647 | AA102: 39.02712 | AB102: 38.835 | AC102: 201.799 | AD102: 5603.652 | AE102: 5796.92 | AF102: 50.38888 | AG102: 40.04988 | AH102: 51 | AI102: 51 | AJ102: 762815.0376 | AK102: 549960.7406 | AL102: -70.28760069 | AM102: 45 | AN102: 40 | AO102: 28968.07901 | AP102: 44 | AQ102: 9.593211494 | AR102: 10.20035149 | AS102: 456633.5896 | AT102: 6039.287059 | AU102: -14.65361224 | AV102: -216.4526122 | AW102: 0 | AX102: 193.268 | AY102: -242.3670586 | AZ102: 0.7234203155 | BA102: 0.7234203155 | BB102: 0.9845638192 | BC102: 0.9845638192 | BD102: 5679.819765 | BE102: 117.100235 | BF102: 0.8794809591 | BG102: 0.8794809591 | BH102: 44 | BI102: 1
A103: 2013-01-05T01:00:00 | B103: 2013-01-05T01:00:00 | C103: 38.1845 | D103: 38.15473 | E103: 37.93345 | F103: 38.28316 | G103: 38.51074 | H103: 37.99601 | I103: 38.0877 | J103: 38.3489 | K103: 38.13143 | L103: 37.90773 | M103: 38.39293 | N103: 38.20893 | O103: 38.25076 | P103: 38.55148 | Q103: 38.87237 | R103: 38.36419 | S103: 38.26927 | T103: 38.72395 | U103: 38.44822 | V103: 38.23532 | W103: 38.59937 | X103: 38.00246 | Y103: 39.64826 | Z103: 38.71404 | AA103: 39.02355 | AB103: 39.00717 | AC103: 310.8877 | AD103: 5494.507 | AE103: 5805.168 | AF103: 50.26511 | AG103: 40.06931 | AH103: 51 | AI103: 51 | AJ103: 762815.0376 | AK103: 535874.0977 | AL103: -127.8789921 | AM103: 45 | AN103: 41 | AO103: 28010.44724 | AP103: 44 | AQ103: 9.621403251 | AR103: 10.22854325 | AS103: 457975.5075 | AT103: 5822.528483 | AU103: -26.58219155 | AV103: -337.4698915 | AW103: 0 | AX103: 310.661 | AY103: -17.36048267 | AZ103: 0.7232377733 | BA103: 0.7232377733 | BB103: 0.9878303602 | BC103: 0.9878303602 | BD103: 5476.918179 | BE103: 328.2498214 | BF103: 0.8829324432 | BG103: 0.8829324432 | BH103: 44 | BI103: 1
A104: 2013-01-05T02:00:00 | B104: 2013-01-05T02:00:00 | C104: 38.09837 | D104: 38.18414 | E104: 37.9039 | F104: 38.2895 | G104: 38.52363 | H104: 37.98464 | I104: 38.06528 | J104: 38.32061 | K104: 38.12841 | L104: 37.92108 | M104: 38.40752 | N104: 38.21698 | O104: 38.24809 | P104: 38.55077 | Q104: 38.86918 | R104: 38.35812 | S104: 38.26829 | T104: 38.71665 | U104: 38.43454 | V104: 38.23928 | W104: 38.6476 | X104: 38.02269 | Y104: 39.56073 | Z104: 38.74929 | AA104: 39.03942 | AB104: 39.21727 | AC104: 282.823 | AD104: 5518.911 | AE104: 5801.025 | AF104: 49.83093 | AG104: 40.04899 | AH104: 51 | AI104: 51 | AJ104: 762815.0376 | AK104: 505206.5898 | AL104: -158.2253273 | AM104: 43 | AN104: 40 | AO104: 26992.82813 | AP104: 44 | AQ104: 9.525855439 | AR104: 10.13299544 | AS104: 453427.4644 | AT104: 5667.276457 | AU104: -33.22018235 | AV104: -316.0431823 | AW104: 0 | AX104: 282.114 | AY104: 133.7485427 | AZ104: 0.7246441137 | BA104: 0.7246441137 | BB104: 0.9907967349 | BC104: 0.9907967349 | BD104: 5327.70952 | BE104: 473.3154801 | BF104: 0.887909265 | BG104: 0.887909265 | BH104: 44 | BI104: 1
A105: 2013-01-05T03:00:00 | B105: 2013-01-05T03:00:00 | C105: 38.14474 | D105: 38.23181 | E105: 37.93654 | F105: 38.3089 | G105: 38.51831 | H105: 37.9871 | I105: 38.07241 | J105: 38.31587 | K105: 38.13017 | L105: 37.92234 | M105: 38.39241 | N105: 38.21006 | O105: 38.23293 | P105: 38.541 | Q105: 38.86643 | R105: 38.36092 | S105: 38.25666 | T105: 38.71973 | U105: 38.42473 | V105: 38.20867 | W105: 38.62037 | X105: 38.00805 | Y105: 39.50684 | Z105: 38.78549 | AA105: 39.05001 | AB105: 39.40201 | AC105: 282.7344 | AD105: 5523.273 | AE105: 5798.164 | AF105: 50.08247 | AG105: 40.10548 | AH105: 51 | AI105: 51 | AJ105: 762815.0376 | AK105: 508386.247 | AL105: -177.7367395 | AM105: 43 | AN105: 40 | AO105: 27552.81974 | AP105: 44 | AQ105: 9.544951153 | AR105: 10.15209115 | AS105: 454336.4138 | AT105: 5773.276217 | AU105: -37.24204277 | AV105: -319.9764428 | AW105: 0 | AX105: 274.891 | AY105: 24.88778272 | AZ105: 0.724905804 | BA105: 0.724905804 | BB105: 0.9936871612 | BC105: 0.9936871612 | BD105: 5428.008738 | BE105: 370.1552621 | BF105: 0.8918013768 | BG105: 0.8918013768 | BH105: 44 | BI105: 1
A106: 2013-01-05T04:00:00 | B106: 2013-01-05T04:00:00 | C106: 38.17347 | D106: 38.21761 | E106: 37.96554 | F106: 38.33445 | G106: 38.51858 | H106: 37.9971 | I106: 38.05912 | J106: 38.32736 | K106: 38.12958 | L106: 37.91966 | M106: 38.4021 | N106: 38.2128 | O106: 38.23392 | P106: 38.54426 | Q106: 38.86112 | R106: 38.35051 | S106: 38.25922 | T106: 38.70802 | U106: 38.40799 | V106: 38.20757 | W106: 38.60349 | X106: 38.04776 | Y106: 39.47268 | Z106: 38.77409 | AA106: 39.07365 | AB106: 39.0773 | AC106: 891.7307 | AD106: 5491.321 | AE106: 5309.331 | AF106: 49.7901 | AG106: 40.91415 | AH106: 51 | AI106: 51 | AJ106: 762815.0376 | AK106: 509925.6199 | AL106: -402.9864793 | AM106: 42 | AN106: 40 | AO106: 24370.34531 | AP106: 44 | AQ106: 9.436428775 | AR106: 10.04356878 | AS106: 449170.7857 | AT106: 5165.162774 | AU106: -85.41080294 | AV106: -977.1415029 | AW106: 0 | AX106: -181.99 | AY106: 144.1682259 | AZ106: 0.7264217053 | BA106: 0.7264217053 | BB106: 0.9917735711 | BC106: 0.9917735711 | BD106: 4852.925461 | BE106: 456.4055389 | BF106: 0.8966003937 | BG106: 0.8966003937 | BH106: 44 | BI106: 1
A107: 2013-01-05T05:00:00 | B107: 2013-01-05T05:00:00 | C107: 38.37693 | D107: 38.38031 | E107: 38.03478 | F107: 38.34223 | G107: 38.52015 | H107: 37.97196 | I107: 38.08519 | J107: 38.34326 | K107: 38.1379 | L107: 37.92702 | M107: 38.42016 | N107: 38.21195 | O107: 38.23031 | P107: 38.52424 | Q107: 38.84662 | R107: 38.33945 | S107: 38.2436 | T107: 38.70171 | U107: 38.41177 | V107: 38.17571 | W107: 38.59773 | X107: 38.03818 | Y107: 39.69428 | Z107: 38.82716 | AA107: 39.07334 | AB107: 39.14449 | AC107: 102.1635 | AD107: 5756.73 | AE107: 5801.744 | AF107: 50.21384 | AG107: 41.11581 | AH107: 51 | AI107: 51 | AJ107: 762815.0376 | AK107: 526897.2781 | AL107: -39.20830803 | AM107: 39 | AN107: 37 | AO107: 26187.45112 | AP107: 44 | AQ107: 9.315851083 | AR107: 9.922991083 | AS107: 443431.3288 | AT107: 5622.127466 | AU107: -8.417547185 | AV107: -110.5810472 | AW107: 0 | AX107: 45.014 | AY107: 179.6165342 | AZ107: 0.7283103388 | BA107: 0.7283103388 | BB107: 0.9922468847 | BC107: 0.9922468847 | BD107: 5278.136582 | BE107: 523.6074177 | BF107: 0.9021060256 | BG107: 0.9021060256 | BH107: 44 | BI107: 1
A108: 2013-01-05T06:00:00 | B108: 2013-01-05T06:00:00 | C108: 38.29791 | D108: 38.30082 | E108: 37.99908 | F108: 38.34588 | G108: 38.54358 | H108: 37.98394 | I108: 38.09476 | J108: 38.34829 | K108: 38.14352 | L108: 37.91881 | M108: 38.43714 | N108: 38.21431 | O108: 38.2505 | P108: 38.54144 | Q108: 38.8555 | R108: 38.3686 | S108: 38.26563 | T108: 38.72657 | U108: 38.43323 | V108: 38.17789 | W108: 38.60049 | X108: 38.03218 | Y108: 39.79365 | Z108: 38.78787 | AA108: 39.00665 | AB108: 39.20267 | AC108: 112.2624 | AD108: 5864.281 | AE108: 5798.446 | AF108: 50.4952 | AG108: 41.17854 | AH108: 51 | AI108: 51 | AJ108: 762815.0376 | AK108: 537520.5699 | AL108: -50.78526451 | AM108: 38 | AN108: 36 | AO108: 27317.75611 | AP108: 44 | AQ108: 9.293547483 | AR108: 9.900687483 | AS108: 442369.685 | AT108: 5878.865129 | AU108: -10.92914511 | AV108: -123.1915451 | AW108: 0 | AX108: -65.835 | AY108: -80.41912865 | AZ108: 0.727464747 | BA108: 0.727464747 | BB108: 0.9915546423 | BC108: 0.9915546423 | BD108: 5518.355398 | BE108: 280.0906016 | BF108: 0.9050511247 | BG108: 0.9050511247 | BH108: 44 | BI108: 1
A109: 2013-01-05T07:00:00 | B109: 2013-01-05T07:00:00 | C109: 38.2789 | D109: 38.31325 | E109: 38.03334 | F109: 38.38371 | G109: 38.56268 | H109: 38.01023 | I109: 38.12385 | J109: 38.37266 | K109: 38.16548 | L109: 37.94315 | M109: 38.47118 | N109: 38.25114 | O109: 38.30111 | P109: 38.61102 | Q109: 38.93019 | R109: 38.44887 | S109: 38.3573 | T109: 38.82655 | U109: 38.52387 | V109: 38.24839 | W109: 38.66279 | X109: 38.09081 | Y109: 39.93373 | Z109: 38.76661 | AA109: 39.01684 | AB109: 39.18647 | AC109: 128.0629 | AD109: 5910.738 | AE109: 5803.484 | AF109: 50.29618 | AG109: 41.03374 | AH109: 51 | AI109: 51 | AJ109: 762815.0376 | AK109: 528818.4003 | AL109: -58.11302308 | AM109: 39 | AN109: 38 | AO109: 27373.92804 | AP109: 44 | AQ109: 9.417156946 | AR109: 10.02429695 | AS109: 448253.4532 | AT109: 5813.628932 | AU109: -12.34194639 | AV109: -140.4048464 | AW109: 0 | AX109: -107.254 | AY109: -10.14493213 | AZ109: 0.727358075 | BA109: 0.727358075 | BB109: 0.990426887 | BC109: 0.990426887 | BD109: 5461.515793 | BE109: 341.9682075 | BF109: 0.908646855 | BG109: 0.908646855 | BH109: 44 | BI109: 1
A110: 2013-01-05T08:00:00 | B110: 2013-01-05T08:00:00 | C110: 38.30463 | D110: 38.35271 | E110: 38.032 | F110: 38.39083 | G110: 38.59228 | H110: 38.03958 | I110: 38.17072 | J110: 38.42105 | K110: 38.22651 | L110: 38.01643 | M110: 38.54493 | N110: 38.31442 | O110: 38.35318 | P110: 38.65286 | Q110: 38.96473 | R110: 38.46613 | S110: 38.37416 | T110: 38.82985 | U110: 38.52311 | V110: 38.25117 | W110: 38.6687 | X110: 38.1158 | Y110: 39.90102 | Z110: 38.77402 | AA110: 39.05021 | AB110: 39.04251 | AC110: 186.9827 | AD110: 5981.358 | AE110: 5802.958 | AF110: 50.66151 | AG110: 41.11639 | AH110: 51 | AI110: 51 | AJ110: 762815.0376 | AK110: 553060.4303 | AL110: -68.98539734 | AM110: 40 | AN110: 38 | AO110: 28546.38994 | AP110: 44 | AQ110: 9.457137897 | AR110: 10.0642779 | AS110: 450156.5328 | AT110: 6037.004059 | AU110: -14.58906449 | AV110: -201.5717645 | AW110: 0 | AX110: -178.4 | AY110: -234.0460593 | AZ110: 0.7248971255 | BA110: 0.7248971255 | BB110: 0.9885510451 | BC110: 0.9885510451 | BD110: 5672.81433 | BE110: 130.1436701 | BF110: 0.9100152908 | BG110: 0.9100152908 | BH110: 44 | BI110: 1
A111: 2013-01-05T09:00:00 | B111: 2013-01-05T09:00:00 | C111: 38.35702 | D111: 38.37728 | E111: 38.0793 | F111: 38.44137 | G111: 38.64967 | H111: 38.10978 | I111: 38.23769 | J111: 38.49399 | K111: 38.29221 | L111: 38.07829 | M111: 38.58663 | N111: 38.36872 | O111: 38.40685 | P111: 38.71679 | Q111: 39.05526 | R111: 38.5786 | S111: 38.51269 | T111: 38.96585 | U111: 38.70787 | V111: 38.4683 | W111: 38.90791 | X111: 38.40852 | Y111: 38.80884 | Z111: 38.94955 | AA111: 39.0954 | AB111: 38.88899 | AC111: 285.584 | AD111: 6088.479 | AE111: 5802.895 | AF111: 50.51664 | AG111: 41.07886 | AH111: 51 | AI111: 51 | AJ111: 762815.0376 | AK111: 553472.1674 | AL111: -75.96106024 | AM111: 41 | AN111: 39 | AO111: 28730.86267 | AP111: 44 | AQ111: 9.524275417 | AR111: 10.13141542 | AS111: 453352.2558 | AT111: 6033.186024 | AU111: -15.95104234 | AV111: -301.5350423 | AW111: 0 | AX111: -285.584 | AY111: -230.2910242 | AZ111: 0.7224756594 | BA111: 0.7224756594 | BB111: 0.985548184 | BC111: 0.985548184 | BD111: 5671.63846 | BE111: 131.2565397 | BF111: 0.9113954282 | BG111: 0.9113954282 | BH111: 44 | BI111: 1
A112: 2013-01-05T10:00:00 | B112: 2013-01-05T10:00:00 | C112: 38.42035 | D112: 38.4292 | E112: 38.14515 | F112: 38.51803 | G112: 38.75355 | H112: 38.2329 | I112: 38.35133 | J112: 38.60614 | K112: 38.41217 | L112: 38.21491 | M112: 38.7218 | N112: 38.52761 | O112: 38.56268 | P112: 38.87504 | Q112: 39.20829 | R112: 38.71817 | S112: 38.62983 | T112: 39.09961 | U112: 38.82225 | V112: 38.59036 | W112: 39.01587 | X112: 38.48503 | Y112: 38.88435 | Z112: 39.29121 | AA112: 39.10939 | AB112: 38.78278 | AC112: 375.6247 | AD112: 6175.898 | AE112: 5800.294 | AF112: 50.96499 | AG112: 41.02252 | AH112: 51 | AI112: 51 | AJ112: 762815.0376 | AK112: 579869.0339 | AL112: -68.06883001 | AM112: 42 | AN112: 39 | AO112: 30701.84029 | AP112: 44 | AQ112: 9.591485754 | AR112: 10.19862575 | AS112: 456551.4449 | AT112: 6401.894572 | AU112: -14.19359456 | AV112: -389.8182946 | AW112: 0 | AX112: -375.604 | AY112: -601.6005722 | AZ112: 0.7161499444 | BA112: 0.7161499444 | BB112: 0.9815987798 | BC112: 0.9815987798 | BD112: 6020.779865 | BE112: -220.4858648 | BF112: 0.9090770615 | BG112: 0.9090770615 | BH112: 44 | BI112: 1
A113: 2013-01-05T11:00:00 | B113: 2013-01-05T11:00:00 | C113: 38.51293 | D113: 38.49758 | E113: 38.25962 | F113: 38.64801 | G113: 38.87754 | H113: 38.39552 | I113: 38.49553 | J113: 38.75536 | K113: 38.56321 | L113: 38.36565 | M113: 38.8423 | N113: 38.65024 | O113: 38.68388 | P113: 38.98048 | Q113: 39.30026 | R113: 38.80935 | S113: 38.72836 | T113: 39.20482 | U113: 38.93048 | V113: 38.71811 | W113: 39.15087 | X113: 38.66081 | Y113: 39.03146 | Z113: 38.95107 | AA113: 39.20539 | AB113: 38.71139 | AC113: 479.4763 | AD113: 6277.32 | AE113: 5797.844 | AF113: 51.04248 | AG113: 41.03139 | AH113: 51 | AI113: 51 | AJ113: 762815.0376 | AK113: 586955.671 | AL113: -47.57843325 | AM113: 45 | AN113: 41 | AO113: 31421.40774 | AP113: 44 | AQ113: 9.737717004 | AR113: 10.344857 | AS113: 463512.0025 | AT113: 6453.547115 | AU113: -9.771989313 | AV113: -489.2482893 | AW113: 0 | AX113: -479.476 | AY113: -655.7031152 | AZ113: 0.7092553516 | BA113: 0.7092553516 | BB113: 0.9765571814 | BC113: 0.9765571814 | BD113: 6074.788221 | BE113: -276.9442213 | BF113: 0.906165046 | BG113: 0.906165046 | BH113: 44 | BI113: 1
A114: 2013-01-05T12:00:00 | B114: 2013-01-05T12:00:00 | C114: 38.71098 | D114: 38.66499 | E114: 38.41571 | F114: 38.79775 | G114: 38.99868 | H114: 38.50271 | I114: 38.57974 | J114: 38.85472 | K114: 38.66373 | L114: 38.48612 | M114: 38.9053 | N114: 38.74808 | O114: 38.77629 | P114: 39.07399 | Q114: 39.40311 | R114: 38.90037 | S114: 38.82194 | T114: 39.28949 | U114: 39.02573 | V114: 38.86721 | W114: 39.27667 | X114: 38.77547 | Y114: 39.05782 | Z114: 38.78562 | AA114: 39.40465 | AB114: 38.68726 | AC114: 626.4025 | AD114: 6419.082 | AE114: 5792.679 | AF114: 51.3418 | AG114: 40.99586 | AH114: 51 | AI114: 51 | AJ114: 762815.0376 | AK114: 602351.7805 | AL114: 7.42913365 | AM114: 47 | AN114: 42 | AO114: 33205.71861 | AP114: 44 | AQ114: 9.859409005 | AR114: 10.466549 | AS114: 469304.5001 | AT114: 6735.843619 | AU114: 1.50701399 | AV114: -624.895486 | AW114: 0 | AX114: -626.403 | AY114: -943.1646185 | AZ114: 0.699338156 | BA114: 0.699338156 | BB114: 0.9699706736 | BC114: 0.9699706736 | BD114: 6345.113102 | BE114: -552.4341024 | BF114: 0.900356307 | BG114: 0.900356307 | BH114: 44 | BI114: 1
A115: 2013-01-05T13:00:00 | B115: 2013-01-05T13:00:00 | C115: 38.89109 | D115: 38.82549 | E115: 38.54424 | F115: 38.91225 | G115: 39.10472 | H115: 38.67429 | I115: 38.71815 | J115: 39.01326 | K115: 38.80682 | L115: 38.63521 | M115: 39.01788 | N115: 38.90705 | O115: 38.90775 | P115: 39.18873 | Q115: 39.50649 | R115: 39.00127 | S115: 38.90932 | T115: 39.37504 | U115: 39.13695 | V115: 39.05247 | W115: 39.4524 | X115: 38.90488 | Y115: 39.17607 | Z115: 38.81013 | AA115: 39.25769 | AB115: 38.84902 | AC115: 758.7434 | AD115: 6561.741 | AE115: 5802.998 | AF115: 51.69932 | AG115: 40.98924 | AH115: 51 | AI115: 51 | AJ115: 762815.0376 | AK115: 611669.8896 | AL115: 15.96016742 | AM115: 50 | AN115: 43 | AO115: 35138.38552 | AP115: 44 | AQ115: 9.986159946 | AR115: 10.59329995 | AS115: 475337.8016 | AT115: 7037.416928 | AU115: 3.196457398 | AV115: -755.5469426 | AW115: 0 | AX115: -758.743 | AY115: -1234.418928 | AZ115: 0.6863584771 | BA115: 0.6863584771 | BB115: 0.9619926361 | BC115: 0.9619926361 | BD115: 6634.077332 | BE115: -831.0793324 | BF115: 0.8916176668 | BG115: 0.8916176668 | BH115: 44 | BI115: 1
A116: 2013-01-05T14:00:00 | B116: 2013-01-05T14:00:00 | C116: 39.02191 | D116: 38.91754 | E116: 38.72855 | F116: 39.13811 | G116: 39.30018 | H116: 38.82853 | I116: 38.84862 | J116: 39.14644 | K116: 38.95081 | L116: 38.77803 | M116: 39.1028 | N116: 39.03804 | O116: 39.02282 | P116: 39.30149 | Q116: 39.63773 | R116: 39.1279 | S116: 39.02871 | T116: 39.51159 | U116: 39.33316 | V116: 39.28247 | W116: 39.66251 | X116: 39.10526 | Y116: 39.34095 | Z116: 38.94286 | AA116: 39.28521 | AB116: 38.88079 | AC116: 962.1918 | AD116: 6760.322 | AE116: 5798.13 | AF116: 52.05668 | AG116: 40.95509 | AH116: 51 | AI116: 51 | AJ116: 762815.0376 | AK116: 627167.8624 | AL116: 67.89225341 | AM116: 51 | AN116: 44 | AO116: 37525.16156 | AP116: 44 | AQ116: 10.12839601 | AR116: 10.73553601 | AS116: 482108.1896 | AT116: 7409.892252 | AU116: 13.4063189 | AV116: -948.7854811 | AW116: 0 | AX116: -962.192 | AY116: -1611.762252 | AZ116: 0.6694111053 | BA116: 0.6694111053 | BB116: 0.9518753712 | BC116: 0.9518753712 | BD116: 6990.831482 | BE116: -1192.701482 | BF116: 0.8790766388 | BG116: 0.8790766388 | BH116: 44 | BI116: 1
A117: 2013-01-05T15:00:00 | B117: 2013-01-05T15:00:00 | C117: 39.23081 | D117: 39.11172 | E117: 38.82616 | F117: 39.18858 | G117: 39.35169 | H117: 38.89703 | I117: 38.8952 | J117: 39.21917 | K117: 39.02763 | L117: 38.8663 | M117: 39.20326 | N117: 39.16448 | O117: 39.18414 | P117: 39.4781 | Q117: 39.81431 | R117: 39.30408 | S117: 39.19818 | T117: 39.69223 | U117: 39.48279 | V117: 39.4132 | W117: 39.79757 | X117: 39.23344 | Y117: 39.47397 | Z117: 39.03633 | AA117: 39.35367 | AB117: 38.89936 | AC117: 1061.244 | AD117: 6858.79 | AE117: 5797.546 | AF117: 52.63488 | AG117: 40.99907 | AH117: 51 | AI117: 51 | AJ117: 762815.0376 | AK117: 653806.0592 | AL117: 175.8746619 | AM117: 52 | AN117: 45 | AO117: 39903.78863 | AP117: 44 | AQ117: 10.27035419 | AR117: 10.87749419 | AS117: 488865.3507 | AT117: 7770.67429 | AU117: 34.2489964 | AV117: -1026.995004 | AW117: 0 | AX117: -1061.244 | AY117: -1973.12829 | AZ117: 0.6486640387 | BA117: 0.6486640387 | BB117: 0.9407165936 | BC117: 0.9407165936 | BD117: 7336.945059 | BE117: -1539.399059 | BF117: 0.8628901522 | BG117: 0.8628901522 | BH117: 44 | BI117: 1
A118: 2013-01-05T16:00:00 | B118: 2013-01-05T16:00:00 | C118: 39.33495 | D118: 39.19579 | E118: 38.95304 | F118: 39.31716 | G118: 39.52718 | H118: 39.10848 | I118: 39.20189 | J118: 39.59276 | K118: 39.41618 | L118: 39.26191 | M118: 39.594 | N118: 39.53604 | O118: 39.56219 | P118: 39.83119 | Q118: 40.17934 | R118: 39.64752 | S118: 39.52713 | T118: 39.98317 | U118: 39.7378 | V118: 39.61068 | W118: 39.94044 | X118: 39.33393 | Y118: 39.45718 | Z118: 39.04606 | AA118: 39.36474 | AB118: 38.94963 | AC118: 962.3507 | AD118: 6761.819 | AE118: 5799.468 | AF118: 52.60321 | AG118: 41.0786 | AH118: 51 | AI118: 51 | AJ118: 762815.0376 | AK118: 649905.7432 | AL118: 185.4064859 | AM118: 53 | AN118: 46 | AO118: 38963.66343 | AP118: 44 | AQ118: 10.29914292 | AR118: 10.90628292 | AS118: 490235.6844 | AT118: 7566.389499 | AU118: 36.00425535 | AV118: -926.3464446 | AW118: 0 | AX118: -962.351 | AY118: -1766.921499 | AZ118: 0.6300851971 | BA118: 0.6300851971 | BB118: 0.9305976569 | BC118: 0.9305976569 | BD118: 7145.177456 | BE118: -1345.709456 | BF118: 0.8487402746 | BG118: 0.8487402746 | BH118: 44 | BI118: 1
A119: 2013-01-05T17:00:00 | B119: 2013-01-05T17:00:00 | C119: 39.42174 | D119: 39.41148 | E119: 39.23264 | F119: 39.6615 | G119: 39.84761 | H119: 39.41856 | I119: 39.49089 | J119: 39.83337 | K119: 39.66026 | L119: 39.50433 | M119: 39.87271 | N119: 39.79039 | O119: 39.79347 | P119: 40.06563 | Q119: 40.39686 | R119: 39.86689 | S119: 39.75162 | T119: 40.20507 | U119: 39.93689 | V119: 39.79877 | W119: 40.13316 | X119: 39.57056 | Y119: 39.78493 | Z119: 39.36474 | AA119: 39.67692 | AB119: 39.10254 | AC119: 803.3871 | AD119: 6602.137 | AE119: 5798.75 | AF119: 52.72572 | AG119: 41.16787 | AH119: 51 | AI119: 51 | AJ119: 762815.0376 | AK119: 648458.7136 | AL119: 128.2205812 | AM119: 51 | AN119: 45 | AO119: 38153.25456 | AP119: 44 | AQ119: 10.21066098 | AR119: 10.81780098 | AS119: 486023.9742 | AT119: 7473.219341 | AU119: 25.11504033 | AV119: -778.2720597 | AW119: 0 | AX119: -803.387 | AY119: -1674.469341 | AZ119: 0.6124784722 | BA119: 0.6124784722 | BB119: 0.9221501962 | BC119: 0.9221501962 | BD119: 7053.791178 | BE119: -1255.041178 | BF119: 0.8355437567 | BG119: 0.8355437567 | BH119: 44 | BI119: 1
A120: 2013-01-05T18:00:00 | B120: 2013-01-05T18:00:00 | C120: 39.55503 | D120: 39.53642 | E120: 39.37373 | F120: 39.85849 | G120: 40.13964 | H120: 39.63416 | I120: 39.68245 | J120: 39.96833 | K120: 39.74822 | L120: 39.5683 | M120: 39.95301 | N120: 39.86343 | O120: 39.8918 | P120: 40.18588 | Q120: 40.52389 | R120: 39.99942 | S120: 39.9094 | T120: 40.37455 | U120: 40.11774 | V120: 39.98639 | W120: 40.34738 | X120: 39.77686 | Y120: 39.99468 | Z120: 39.6024 | AA120: 39.97442 | AB120: 39.49303 | AC120: 712.7406 | AD120: 6510.871 | AE120: 5798.13 | AF120: 52.28114 | AG120: 41.24195 | AH120: 51 | AI120: 51 | AJ120: 762815.0376 | AK120: 608709.6669 | AL120: 22.0949586 | AM120: 46 | AN120: 42 | AO120: 35937.37102 | AP120: 44 | AQ120: 9.952558352 | AR120: 10.55969835 | AS120: 473738.3772 | AT120: 7221.735306 | AU120: 4.440056078 | AV120: -708.3005439 | AW120: 0 | AX120: -712.741 | AY120: -1423.605306 | AZ120: 0.5975095347 | BA120: 0.5975095347 | BB120: 0.9146558609 | BC120: 0.9146558609 | BD120: 6806.514698 | BE120: -1008.384698 | BF120: 0.8249407844 | BG120: 0.8249407844 | BH120: 44 | BI120: 1
A121: 2013-01-05T19:00:00 | B121: 2013-01-05T19:00:00 | C121: 39.78539 | D121: 39.76239 | E121: 39.58252 | F121: 39.951 | G121: 40.26137 | H121: 39.8018 | I121: 39.88167 | J121: 40.16799 | K121: 39.9904 | L121: 39.82542 | M121: 40.2362 | N121: 40.11243 | O121: 40.12246 | P121: 40.38027 | Q121: 40.7088 | R121: 40.18747 | S121: 40.08568 | T121: 40.53688 | U121: 40.28637 | V121: 40.14749 | W121: 40.5033 | X121: 39.92348 | Y121: 40.13266 | Z121: 39.73946 | AA121: 40.14032 | AB121: 39.7564 | AC121: 655.2402 | AD121: 6458.35 | AE121: 5803.11 | AF121: 52.03675 | AG121: 41.23211 | AH121: 51 | AI121: 51 | AJ121: 762815.0376 | AK121: 584540.4644 | AL121: 9.497706699 | AM121: 45 | AN121: 41 | AO121: 34890.07337 | AP121: 44 | AQ121: 9.855998502 | AR121: 10.4631385 | AS121: 469142.1614 | AT121: 7079.967264 | AU121: 1.927294672 | AV121: -653.3129053 | AW121: 0 | AX121: -655.24 | AY121: -1276.857264 | AZ121: 0.5840836248 | BA121: 0.5840836248 | BB121: 0.9077661376 | BC121: 0.9077661376 | BD121: 6669.141074 | BE121: -866.0310738 | BF121: 0.8158346334 | BG121: 0.8158346334 | BH121: 44 | BI121: 1
A122: 2013-01-05T20:00:00 | B122: 2013-01-05T20:00:00 | C122: 39.92847 | D122: 39.89283 | E122: 39.67091 | F122: 40.06967 | G122: 40.33895 | H122: 39.87591 | I122: 40.00171 | J122: 40.32021 | K122: 40.12027 | L122: 39.94842 | M122: 40.36355 | N122: 40.20835 | O122: 40.21211 | P122: 40.46094 | Q122: 40.77954 | R122: 40.2524 | S122: 40.16386 | T122: 40.61946 | U122: 40.36773 | V122: 40.21594 | W122: 40.56288 | X122: 40.01236 | Y122: 40.25682 | Z122: 39.89638 | AA122: 40.29913 | AB122: 39.93387 | AC122: 547.6452 | AD122: 6348.686 | AE122: 5801.041 | AF122: 51.83736 | AG122: 41.30396 | AH122: 51 | AI122: 51 | AJ122: 762815.0376 | AK122: 566602.0571 | AL122: -1.47864204 | AM122: 43 | AN122: 40 | AO122: 33436.62456 | AP122: 44 | AQ122: 9.745588897 | AR122: 10.3527289 | AS122: 463886.7019 | AT122: 6861.899247 | AU122: -0.3034484741 | AV122: -547.9486485 | AW122: 0 | AX122: -547.645 | AY122: -1060.858247 | AZ122: 0.5729289033 | BA122: 0.5729289033 | BB122: 0.9020077552 | BC122: 0.9020077552 | BD122: 6459.480372 | BE122: -658.4393723 | BF122: 0.8089112693 | BG122: 0.8089112693 | BH122: 44 | BI122: 1
A123: 2013-01-05T21:00:00 | B123: 2013-01-05T21:00:00 | C123: 40.13772 | D123: 40.16989 | E123: 39.9329 | F123: 40.31877 | G123: 40.5249 | H123: 40.03601 | I123: 40.11044 | J123: 40.39221 | K123: 40.18784 | L123: 40.00895 | M123: 40.44797 | N123: 40.29368 | O123: 40.30147 | P123: 40.56274 | Q123: 40.85488 | R123: 40.33525 | S123: 40.24555 | T123: 40.69211 | U123: 40.42937 | V123: 40.2746 | W123: 40.64178 | X123: 40.10415 | Y123: 40.35664 | Z123: 40.00601 | AA123: 40.40843 | AB123: 40.01169 | AC123: 507.031 | AD123: 6308.622 | AE123: 5801.59 | AF123: 51.62753 | AG123: 41.29241 | AH123: 51 | AI123: 51 | AJ123: 762815.0376 | AK123: 552910.0154 | AL123: 31.95055847 | AM123: 44 | AN123: 40 | AO123: 32600.1827 | AP123: 44 | AQ123: 9.71706623 | AR123: 10.32420623 | AS123: 462529.0327 | AT123: 6709.881754 | AU123: 6.576173859 | AV123: -500.4548261 | AW123: 0 | AX123: -507.032 | AY123: -908.2917545 | AZ123: 0.5633783892 | BA123: 0.5633783892 | BB123: 0.8966764107 | BC123: 0.8966764107 | BD123: 6315.290876 | BE123: -513.7008758 | BF123: 0.8035098028 | BG123: 0.8035098028 | BH123: 44 | BI123: 1
A124: 2013-01-05T22:00:00 | B124: 2013-01-05T22:00:00 | C124: 40.12838 | D124: 40.24496 | E124: 40.01899 | F124: 40.39156 | G124: 40.5812 | H124: 40.092 | I124: 40.18367 | J124: 40.46368 | K124: 40.27217 | L124: 40.0936 | M124: 40.52833 | N124: 40.36912 | O124: 40.39454 | P124: 40.66819 | Q124: 40.99133 | R124: 40.46229 | S124: 40.37135 | T124: 40.8304 | U124: 40.56108 | V124: 40.39815 | W124: 40.76859 | X124: 40.23972 | Y124: 40.4869 | Z124: 40.14237 | AA124: 40.5266 | AB124: 40.15449 | AC124: 289.4957 | AD124: 6086.193 | AE124: 5797.477 | AF124: 51.44842 | AG124: 41.20871 | AH124: 51 | AI124: 51 | AJ124: 762815.0376 | AK124: 537587.2094 | AL124: -3.779366364 | AM124: 43 | AN124: 40 | AO124: 31160.42566 | AP124: 44 | AQ124: 9.667970515 | AR124: 10.27511052 | AS124: 460192.0934 | AT124: 6446.115162 | AU124: -0.7818324141 | AV124: -290.2775324 | AW124: 0 | AX124: -288.716 | AY124: -648.6381621 | AZ124: 0.556558083 | BA124: 0.556558083 | BB124: 0.8936406172 | BC124: 0.8936406172 | BD124: 6065.224431 | BE124: -267.7474307 | BF124: 0.8006944898 | BG124: 0.8006944898 | BH124: 44 | BI124: 1
A125: 2013-01-05T23:00:00 | B125: 2013-01-05T23:00:00 | C125: 40.35288 | D125: 40.41584 | E125: 40.14468 | F125: 40.50824 | G125: 40.69613 | H125: 40.17673 | I125: 40.25444 | J125: 40.51414 | K125: 40.30662 | L125: 40.11285 | M125: 40.55365 | N125: 40.39152 | O125: 40.40973 | P125: 40.68209 | Q125: 40.99686 | R125: 40.4764 | S125: 40.37614 | T125: 40.82982 | U125: 40.55613 | V125: 40.38789 | W125: 40.76131 | X125: 40.22031 | Y125: 40.46813 | Z125: 40.11525 | AA125: 40.50373 | AB125: 40.1211 | AC125: 279.549 | AD125: 6068.039 | AE125: 5799.562 | AF125: 50.83221 | AG125: 41.232 | AH125: 51 | AI125: 51 | AJ125: 762815.0376 | AK125: 509845.1765 | AL125: 32.39693361 | AM125: 42 | AN125: 39 | AO125: 29127.22434 | AP125: 44 | AQ125: 9.53779135 | AR125: 10.14493135 | AS125: 453995.6096 | AT125: 6107.750374 | AU125: 6.793382749 | AV125: -272.7556173 | AW125: 0 | AX125: -268.477 | AY125: -308.1883742 | AZ125: 0.5533175412 | BA125: 0.5533175412 | BB125: 0.8908176329 | BC125: 0.8908176329 | BD125: 5742.222069 | BE125: 57.33993091 | BF125: 0.8012974082 | BG125: 0.8012974082 | BH125: 44 | BI125: 1
A126: 2013-01-06 | B126: 2013-01-06 | C126: 40.38523 | D126: 40.47023 | E126: 40.18231 | F126: 40.55352 | G126: 40.71497 | H126: 40.20023 | I126: 40.28323 | J126: 40.54768 | K126: 40.33209 | L126: 40.13024 | M126: 40.57288 | N126: 40.40985 | O126: 40.44095 | P126: 40.71106 | Q126: 41.0349 | R126: 40.52218 | S126: 40.42287 | T126: 40.8892 | U126: 40.62402 | V126: 40.44957 | W126: 40.82645 | X126: 40.28971 | Y126: 40.53639 | Z126: 40.17973 | AA126: 40.56137 | AB126: 40.1692 | AC126: 235.1094 | AD126: 6036.996 | AE126: 5804.195 | AF126: 50.75916 | AG126: 41.27044 | AH126: 51 | AI126: 51 | AJ126: 762815.0376 | AK126: 504078.4779 | AL126: 25.39534184 | AM126: 36 | AN126: 34 | AO126: 28641.68234 | AP126: 44 | AQ126: 9.216999368 | AR126: 9.824139368 | AS126: 438726.0209 | AT126: 6214.968928 | AU126: 5.510544338 | AV126: -229.5988557 | AW126: 0 | AX126: -232.801 | AY126: -410.7739285 | AZ126: 0.5489983319 | BA126: 0.5489983319 | BB126: 0.8883697749 | BC126: 0.8883697749 | BD126: 5830.878669 | BE126: -26.68366937 | BF126: 0.8010168345 | BG126: 0.8010168345 | BH126: 44 | BI126: 1
A127: 2013-01-06T01:00:00 | B127: 2013-01-06T01:00:00 | C127: 40.50029 | D127: 40.54418 | E127: 40.24494 | F127: 40.60785 | G127: 40.78814 | H127: 40.25898 | I127: 40.35565 | J127: 40.63053 | K127: 40.41605 | L127: 40.19953 | M127: 40.66748 | N127: 40.47905 | O127: 40.50396 | P127: 40.77958 | Q127: 41.09433 | R127: 40.58154 | S127: 40.48553 | T127: 40.92732 | U127: 40.6683 | V127: 40.47147 | W127: 40.86002 | X127: 40.33 | Y127: 40.59705 | Z127: 40.23663 | AA127: 40.6278 | AB127: 40.23067 | AC127: 159.92 | AD127: 5951.307 | AE127: 5803.433 | AF127: 50.50413 | AG127: 41.26212 | AH127: 51 | AI127: 51 | AJ127: 762815.0376 | AK127: 489013.186 | AL127: 21.5588152 | AM127: 39 | AN127: 37 | AO127: 27501.0194 | AP127: 44 | AQ127: 9.360643762 | AR127: 9.967783762 | AS127: 445563.445 | AT127: 5875.882066 | AU127: 4.606267635 | AV127: -155.3137324 | AW127: 0 | AX127: -147.874 | AY127: -72.44906618 | AZ127: 0.5482365438 | BA127: 0.5482365438 | BB127: 0.8868149081 | BC127: 0.8868149081 | BD127: 5517.980739 | BE127: 285.452261 | BF127: 0.8040183105 | BG127: 0.8040183105 | BH127: 44 | BI127: 1
A128: 2013-01-06T02:00:00 | B128: 2013-01-06T02:00:00 | C128: 40.47069 | D128: 40.52214 | E128: 40.25064 | F128: 40.63896 | G128: 40.83072 | H128: 40.29414 | I128: 40.40487 | J128: 40.66388 | K128: 40.44636 | L128: 40.23116 | M128: 40.71408 | N128: 40.51558 | O128: 40.55282 | P128: 40.83162 | Q128: 41.15371 | R128: 40.64802 | S128: 40.54808 | T128: 40.98764 | U128: 40.72362 | V128: 40.507 | W128: 40.90631 | X128: 40.38016 | Y128: 40.66097 | Z128: 40.31101 | AA128: 40.70953 | AB128: 40.31071 | AC128: 90.81715 | AD128: 5827.702 | AE128: 5799.329 | AF128: 50.15161 | AG128: 41.27806 | AH128: 51 | AI128: 51 | AJ128: 762815.0376 | AK128: 468423.4778 | AL128: 7.264463828 | AM128: 34 | AN128: 33 | AO128: 25856.20254 | AP128: 44 | AQ128: 9.061167507 | AR128: 9.668307507 | AS128: 431308.4775 | AT128: 5707.03555 | AU128: 1.603427775 | AV128: -89.21372222 | AW128: 0 | AX128: -28.373 | AY128: 92.29345032 | AZ128: 0.5492069918 | BA128: 0.5492069918 | BB128: 0.8865165714 | BC128: 0.8865165714 | BD128: 5348.651255 | BE128: 450.6777447 | BF128: 0.8087571007 | BG128: 0.8087571007 | BH128: 44 | BI128: 1
A129: 2013-01-06T03:00:00 | B129: 2013-01-06T03:00:00 | C129: 40.50075 | D129: 40.56167 | E129: 40.25257 | F129: 40.64132 | G129: 40.83115 | H129: 40.27392 | I129: 40.39276 | J129: 40.63265 | K129: 40.43195 | L129: 40.21054 | M129: 40.73636 | N129: 40.52063 | O129: 40.57074 | P129: 40.85909 | Q129: 41.17066 | R129: 40.66557 | S129: 40.55989 | T129: 41.01727 | U129: 40.72514 | V129: 40.4785 | W129: 40.89807 | X129: 40.3665 | Y129: 40.65385 | Z129: 40.30294 | AA129: 40.69389 | AB129: 40.30589 | AC129: 175.634 | AD129: 5672.449 | AE129: 5803.371 | AF129: 50.01615 | AG129: 41.28491 | AH129: 51 | AI129: 51 | AJ129: 762815.0376 | AK129: 462205.0585 | AL129: 17.11202062 | AM129: 36 | AN129: 35 | AO129: 24763.7568 | AP129: 44 | AQ129: 9.145609107 | AR129: 9.752749107 | AS129: 435327.8689 | AT129: 5415.441774 | AU129: 3.742128145 | AV129: -171.8918719 | AW129: 0 | AX129: 130.922 | AY129: 387.929226 | AZ129: 0.5532859934 | BA129: 0.5532859934 | BB129: 0.8878931912 | BC129: 0.8878931912 | BD129: 5078.313106 | BE129: 725.0578943 | BF129: 0.8163809458 | BG129: 0.8163809458 | BH129: 44 | BI129: 1
A130: 2013-01-06T04:00:00 | B130: 2013-01-06T04:00:00 | C130: 40.57287 | D130: 40.62329 | E130: 40.30002 | F130: 40.68365 | G130: 40.86417 | H130: 40.30961 | I130: 40.4342 | J130: 40.66349 | K130: 40.4628 | L130: 40.20995 | M130: 40.75499 | N130: 40.50444 | O130: 40.55374 | P130: 40.84193 | Q130: 41.15046 | R130: 40.65496 | S130: 40.55387 | T130: 41.00941 | U130: 40.71561 | V130: 40.44057 | W130: 40.87751 | X130: 40.34888 | Y130: 40.64654 | Z130: 40.293 | AA130: 40.68574 | AB130: 40.28539 | AC130: 201.7906 | AD130: 5615.584 | AE130: 5801.278 | AF130: 49.80191 | AG130: 41.1923 | AH130: 51 | AI130: 51 | AJ130: 762815.0376 | AK130: 452983.1006 | AL130: 29.00538084 | AM130: 34 | AN130: 32 | AO130: 24173.99408 | AP130: 44 | AQ130: 8.942957198 | AR130: 9.550097198 | AS130: 425681.7072 | AT130: 5406.264068 | AU130: 6.486753811 | AV130: -195.3038462 | AW130: 0 | AX130: 185.694 | AY130: 395.013932 | AZ130: 0.5574394893 | BA130: 0.5574394893 | BB130: 0.8898457281 | BC130: 0.8898457281 | BD130: 5062.565036 | BE130: 738.7129644 | BF130: 0.8241483714 | BG130: 0.8241483714 | BH130: 44 | BI130: 1
A131: 2013-01-06T05:00:00 | B131: 2013-01-06T05:00:00 | C131: 40.59257 | D131: 40.63468 | E131: 40.30672 | F131: 40.68773 | G131: 40.86784 | H131: 40.30478 | I131: 40.43157 | J131: 40.66801 | K131: 40.46367 | L131: 40.21384 | M131: 40.7629 | N131: 40.50169 | O131: 40.55527 | P131: 40.8477 | Q131: 41.15462 | R131: 40.66184 | S131: 40.5606 | T131: 41.02109 | U131: 40.72798 | V131: 40.44567 | W131: 40.88776 | X131: 40.36099 | Y131: 40.65955 | Z131: 40.31171 | AA131: 40.69852 | AB131: 40.29574 | AC131: 115.0738 | AD131: 5760.003 | AE131: 5801.129 | AF131: 49.91203 | AG131: 41.17859 | AH131: 51 | AI131: 51 | AJ131: 762815.0376 | AK131: 457732.1186 | AL131: 17.07867803 | AM131: 35 | AN131: 33 | AO131: 25152.3203 | AP131: 44 | AQ131: 9.037165122 | AR131: 9.644305122 | AS131: 430165.9722 | AT131: 5566.418221 | AU131: 3.779653862 | AV131: -111.2941461 | AW131: 0 | AX131: 41.126 | AY131: 234.7107793 | AZ131: 0.5599074283 | BA131: 0.5599074283 | BB131: 0.8902781601 | BC131: 0.8902781601 | BD131: 5215.994306 | BE131: 585.1346943 | BF131: 0.8303009508 | BG131: 0.8303009508 | BH131: 44 | BI131: 1
A132: 2013-01-06T06:00:00 | B132: 2013-01-06T06:00:00 | C132: 40.59477 | D132: 40.64363 | E132: 40.32498 | F132: 40.7102 | G132: 40.89119 | H132: 40.32186 | I132: 40.44374 | J132: 40.66724 | K132: 40.4748 | L132: 40.21801 | M132: 40.77914 | N132: 40.51163 | O132: 40.57758 | P132: 40.88632 | Q132: 41.19025 | R132: 40.70365 | S132: 40.60759 | T132: 41.07341 | U132: 40.77311 | V132: 40.47979 | W132: 40.92824 | X132: 40.40915 | Y132: 40.70624 | Z132: 40.36226 | AA132: 40.74771 | AB132: 40.34666 | AC132: 115.3848 | AD132: 5718.004 | AE132: 5800.469 | AF132: 50.01062 | AG132: 41.24729 | AH132: 51 | AI132: 51 | AJ132: 762815.0376 | AK132: 460001.1943 | AL132: 14.31406136 | AM132: 34 | AN132: 32 | AO132: 25054.378 | AP132: 44 | AQ132: 8.97297829 | AR132: 9.58011829 | AS132: 427110.7009 | AT132: 5584.406245 | AU132: 3.190481667 | AV132: -112.1943183 | AW132: 0 | AX132: 82.465 | AY132: 216.0627554 | AZ132: 0.5621792868 | BA132: 0.5621792868 | BB132: 0.8911452638 | BC132: 0.8911452638 | BD132: 5230.494497 | BE132: 569.9745032 | BF132: 0.8362941236 | BG132: 0.8362941236 | BH132: 44 | BI132: 1
A133: 2013-01-06T07:00:00 | B133: 2013-01-06T07:00:00 | C133: 40.65147 | D133: 40.70351 | E133: 40.3872 | F133: 40.77858 | G133: 40.96608 | H133: 40.39294 | I133: 40.52914 | J133: 40.74893 | K133: 40.55177 | L133: 40.30031 | M133: 40.85804 | N133: 40.58593 | O133: 40.64167 | P133: 40.94021 | Q133: 41.24093 | R133: 40.75804 | S133: 40.65368 | T133: 41.12298 | U133: 40.81581 | V133: 40.52186 | W133: 40.96819 | X133: 40.45232 | Y133: 40.75464 | Z133: 40.41217 | AA133: 40.80881 | AB133: 40.39867 | AC133: 172.9763 | AD133: 5638.63 | AE133: 5801.506 | AF133: 50.05102 | AG133: 41.09532 | AH133: 51 | AI133: 51 | AJ133: 762815.0376 | AK133: 459448.5622 | AL133: 21.86420432 | AM133: 34 | AN133: 31 | AO133: 25248.93935 | AP133: 44 | AQ133: 8.918765832 | AR133: 9.525905832 | AS133: 424530.2065 | AT133: 5661.980552 | AU133: 4.902966337 | AV133: -168.0733337 | AW133: 0 | AX133: 162.876 | AY133: 139.5254475 | AZ133: 0.5636463702 | BA133: 0.5636463702 | BB133: 0.8928578738 | BC133: 0.8928578738 | BD133: 5301.110423 | BE133: 500.3955772 | BF133: 0.8415556874 | BG133: 0.8415556874 | BH133: 44 | BI133: 1
A134: 2013-01-06T08:00:00 | B134: 2013-01-06T08:00:00 | C134: 40.68524 | D134: 40.74348 | E134: 40.41515 | F134: 40.8062 | G134: 40.98324 | H134: 40.41443 | I134: 40.55388 | J134: 40.76694 | K134: 40.5722 | L134: 40.31815 | M134: 40.87412 | N134: 40.5955 | O134: 40.66565 | P134: 40.95936 | Q134: 41.2648 | R134: 40.77687 | S134: 40.69455 | T134: 41.16345 | U134: 40.8657 | V134: 40.57403 | W134: 41.01511 | X134: 40.50248 | Y134: 40.80616 | Z134: 40.46242 | AA134: 40.85243 | AB134: 40.44059 | AC134: 93.41387 | AD134: 5807.038 | AE134: 5801.618 | AF134: 50.32558 | AG134: 41.13791 | AH134: 51 | AI134: 51 | AJ134: 762815.0376 | AK134: 470522.1468 | AL134: 11.42685165 | AM134: 34 | AN134: 31 | AO134: 26676.57441 | AP134: 44 | AQ134: 8.967448187 | AR134: 9.574588187 | AS134: 426847.47 | AT134: =AO134*1000/(500*AQ134) -> 5949.646734 | AU134: 2.54851802 | AV134: =AU134-AC134 -> -90.86535198 | AW134: 0 | AX134: =AE134-AD134 -> -5.42 | AY134: =AE134-AT134 -> -148.0287341 | AZ134: 0.5620898764 | BA134: 0.5620898764 | BB134: 0.8928008835 | BC134: 0.8928008835 | BD134: =AO134*1000/(500*AR134) -> 5572.370088 | BE134: =AE134-BD134 -> 229.2479119 | BF134: 0.8439661854 | BG134: 0.8439661854 | BH134: 44 | BI134: 1
A135: 2013-01-06T09:00:00 | B135: 2013-01-06T09:00:00 | C135: 40.75215 | D135: 40.77177 | E135: 40.44304 | F135: 40.83377 | G135: 41.01058 | H135: 40.46245 | I135: 40.57469 | J135: 40.79257 | K135: 40.60247 | L135: 40.36646 | M135: 40.89439 | N135: 40.64542 | O135: 40.70302 | P135: 40.98994 | Q135: 41.2963 | R135: 40.79847 | S135: 40.70077 | T135: 41.16185 | U135: 40.87022 | V135: 40.58879 | W135: 41.01459 | X135: 40.49841 | Y135: 40.7878 | Z135: 40.44343 | AA135: 40.83354 | AB135: 40.42919 | AC135: 133.7814 | AD135: 5897.562 | AE135: 5803.881 | AF135: 50.38312 | AG135: 41.17043 | AH135: 51 | AI135: 51 | AJ135: =3.1416*(138/2)^2*AI135 -> 762815.0376 | AK135: =62.4*AJ135*(AF135-AB135)/1000 -> 473803.6672 | AL135: =500*AC135*(C135-AB135)/1000 -> 21.60302047 | AM135: 38 | AN135: 34 | AO135: 27166.20523 | AP135: 44 | AQ135: =19.5286-0.30357*AP135+0.0000341*AO135+0.060847*AN135 -> 9.166685598 | AR135: =19.5286-0.30357*42+0.0000341*AO135+0.060847*AN135 -> 9.773825598 | AS135: =62.4*AJ135*AQ135/1000 -> 436331.1026 | AT135: 5927.159809 | AU135: =AL135*1000/(500*AQ135) -> 4.71337655 | AV135: -129.0680234 | AW135: 0 | AX135: -93.681 | AY135: -123.2788091 | AZ135: 0.5607936233 | BA135: =IF(AZ135>1,1,IF(AZ135<0,0,AZ135)) -> 0.5607936233 | BB135: 0.8918158457 | BC135: =IF(BB135>1,1,BB135) -> 0.8918158457 | BD135: 5558.970734 | BE135: 244.9102659 | BF135: 0.84654137 | BG135: =IF(BF135>1,1,IF(BF135<0,0,BF135)) -> 0.84654137 | BH135: 44 | BI135: 1
A136: 2013-01-06T10:00:00 | B136: 2013-01-06T10:00:00 | C136: 40.87061 | D136: 40.84198 | E136: 40.51122 | F136: 40.88125 | G136: 41.05421 | H136: 40.52957 | I136: 40.62179 | J136: 40.85999 | K136: 40.65911 | L136: 40.4447 | M136: 40.91863 | N136: 40.71519 | O136: 40.7533 | P136: 41.02224 | Q136: 41.32735 | R136: 40.82121 | S136: 40.73171 | T136: 41.18935 | U136: 40.90974 | V136: 40.69781 | W136: 41.09706 | X136: 40.57125 | Y136: 40.82999 | Z136: 40.48339 | AA136: 40.86794 | AB136: 40.47254 | AC136: 312.3947 | AD136: 6111.275 | AE136: 5799.771 | AF136: 50.54101 | AG136: 41.19646 | AH136: 51 | AI136: 51 | AJ136: 762815.0376 | AK136: 479255.7321 | AL136: 62.17747911 | AM136: 43 | AN136: 37 | AO136: 28553.5574 | AP136: 44 | AQ136: 9.396535307 | AR136: 10.00367531 | AS136: 447271.8703 | AT136: 6077.465037 | AU136: 13.23412877 | AV136: -299.1605712 | AW136: 0 | AX136: -311.504 | AY136: -277.6940372 | AZ136: =IF(AZ135>1,1+AY136*60/$BK$7,IF(AZ135<0,AY136*60/$BK$7,AZ135+AY136*60/$BK$7)) -> 0.5578737236 | BA136: 0.5578737236 | BB136: =IF(BB135>1,1+AX136*60/$BK$7,BB135+AX136*60/$BK$7) -> 0.8885404408 | BC136: 0.8885404408 | BD136: 5708.613389 | BE136: 91.15761076 | BF136: =IF(BF135>1,1+BE136*60/$BK$7,IF(BF135<0,BE136*60/$BK$7,BF135+BE136*60/$BK$7)) -> 0.8474998748 | BG136: 0.8474998748 | BH136: 44 | BI136: 1
A137: 2013-01-06T11:00:00 | B137: 2013-01-06T11:00:00 | C137: 41.03021 | D137: 40.88271 | E137: 40.56034 | F137: 40.89575 | G137: 41.0514 | H137: 40.55577 | I137: 40.59378 | J137: 40.86168 | K137: 40.66513 | L137: 40.47679 | M137: 40.88729 | N137: 40.76105 | O137: 40.7798 | P137: 41.08379 | Q137: 41.39159 | R137: 40.86829 | S137: 40.77454 | T137: 41.23075 | U137: 40.94777 | V137: 40.79951 | W137: 41.15678 | X137: 40.61301 | Y137: 40.84077 | Z137: 40.48597 | AA137: 40.87028 | AB137: 40.48871 | AC137: 475.0751 | AD137: 6273.115 | AE137: 5798.04 | AF137: 51.03215 | AG137: 41.26145 | AH137: 51 | AI137: 51 | AJ137: 762815.0376 | AK137: 501864.1418 | AL137: 128.6265833 | AM137: 48 | AN137: 39 | AO137: 30646.36237 | AP137: 44 | AQ137: 9.589593957 | AR137: 10.19673396 | AS137: 456461.396 | AT137: 6391.587069 | AU137: 26.82628355 | AV137: -448.2488164 | AW137: 0 | AX137: -475.075 | AY137: -593.547069 | AZ137: 0.5516326897 | BA137: 0.5516326897 | BB137: 0.883545118 | BC137: 0.883545118 | BD137: 6011.015389 | BE137: -212.975389 | BF137: 0.8452604793 | BG137: 0.8452604793 | BH137: 44 | BI137: 1
A138: 2013-01-06T12:00:00 | B138: 2013-01-06T12:00:00 | C138: 41.12741 | D138: 40.90062 | E138: 40.56934 | F138: 40.95094 | G138: 41.09649 | H138: 40.62341 | I138: 40.62759 | J138: 40.90704 | K138: 40.70934 | L138: 40.54237 | M138: 40.90443 | N138: 40.81107 | O138: 40.80868 | P138: 41.10757 | Q138: 41.42249 | R138: 40.89648 | S138: 40.79661 | T138: 41.26065 | U138: 40.97916 | V138: 40.8536 | W138: 41.19492 | X138: 40.6404 | Y138: 40.86613 | Z138: 40.501 | AA138: 40.89366 | AB138: 40.51288 | AC138: 589.1479 | AD138: 6389.544 | AE138: 5800.397 | AF138: 51.47756 | AG138: 41.30569 | AH138: 51 | AI138: 51 | AJ138: 762815.0376 | AK138: 521915.0219 | AL138: 181.0245295 | AM138: 51 | AN138: 41 | AO138: 32496.80546 | AP138: 44 | AQ138: 9.774388066 | AR138: 10.38152807 | AS138: 465257.5325 | AT138: 6649.379019 | AU138: 37.04058572 | AV138: -552.1073143 | AW138: 0 | AX138: -589.147 | AY138: -848.9820185 | AZ138: 0.5427058062 | BA138: 0.5427058062 | BB138: 0.87735035 | BC138: 0.87735035 | BD138: 6260.505247 | BE138: -460.1082466 | BF138: 0.8404225291 | BG138: 0.8404225291 | BH138: 44 | BI138: 1
A139: 2013-01-06T13:00:00 | B139: 2013-01-06T13:00:00 | C139: 41.12841 | D139: 40.86856 | E139: 40.53139 | F139: 40.96548 | G139: 41.10449 | H139: 40.65288 | I139: 40.64655 | J139: 40.946 | K139: 40.75184 | L139: 40.59399 | M139: 40.91663 | N139: 40.85019 | O139: 40.83276 | P139: 41.10271 | Q139: 41.41586 | R139: 40.88856 | S139: 40.79676 | T139: 41.24651 | U139: 40.98542 | V139: 40.85018 | W139: 41.20301 | X139: 40.65316 | Y139: 40.88099 | Z139: 40.52504 | AA139: 40.93912 | AB139: 40.55212 | AC139: 833.8565 | AD139: 6628.112 | AE139: 5794.256 | AF139: 51.87742 | AG139: 41.27299 | AH139: 51 | AI139: 51 | AJ139: 762815.0376 | AK139: 539080.4107 | AL139: 240.2715812 | AM139: 53 | AN139: 41 | AO139: 35143.67487 | AP139: 44 | AQ139: 9.864646313 | AR139: 10.47178631 | AS139: 469553.7942 | AT139: 7125.17687 | AU139: 48.71367377 | AV139: -785.1428262 | AW139: 0 | AX139: -833.856 | AY139: -1330.92087 | AZ139: 0.5287114278 | BA139: 0.5287114278 | BB139: 0.8685825136 | BC139: 0.8685825136 | BD139: 6712.068756 | BE139: -917.8127565 | BF139: 0.8307719035 | BG139: 0.8307719035 | BH139: 44 | BI139: 1
A140: 2013-01-06T14:00:00 | B140: 2013-01-06T14:00:00 | C140: 41.28417 | D140: 40.97931 | E140: 40.67385 | F140: 41.06673 | G140: 41.17484 | H140: 40.6954 | I140: 40.66755 | J140: 40.95695 | K140: 40.75434 | L140: 40.58995 | M140: 40.86668 | N140: 40.8184 | O140: 40.81981 | P140: 41.07521 | Q140: 41.40908 | R140: 40.88977 | S140: 40.68008 | T140: 41.18706 | U140: 41.02312 | V140: 40.89667 | W140: 41.23577 | X140: 40.68532 | Y140: 40.91323 | Z140: 40.55381 | AA140: 40.94255 | AB140: 40.56714 | AC140: 1258.898 | AD140: 7057.497 | AE140: 5798.599 | AF140: 54.38084 | AG140: 42.42944 | AH140: 51 | AI140: 51 | AJ140: 762815.0376 | AK140: 657527.4005 | AL140: 451.3338165 | AM140: 55 | AN140: 42 | AO140: 42173.48482 | AP140: 44 | AQ140: 10.16520983 | AR140: 10.77234983 | AS140: 483860.515 | AT140: 8297.612252 | AU140: 88.79970486 | AV140: -1170.098295 | AW140: 0 | AX140: -1258.898 | AY140: -2499.013252 | AZ140: 0.5024347814 | BA140: 0.5024347814 | BB140: 0.8553454419 | BC140: 0.8553454419 | BD140: 7829.950842 | BE140: -2031.351842 | BF140: 0.8094126274 | BG140: 0.8094126274 | BH140: 44 | BI140: 1
A141: 2013-01-06T15:00:00 | B141: 2013-01-06T15:00:00 | C141: 41.18142 | D141: 40.94956 | E141: 40.61153 | F141: 40.98155 | G141: 41.13576 | H141: 40.69654 | I141: 40.63858 | J141: 40.9443 | K141: 40.76067 | L141: 40.60933 | M141: 40.86864 | N141: 40.83449 | O141: 40.83386 | P141: 41.09456 | Q141: 41.43045 | R141: 40.90139 | S141: 40.75103 | T141: 41.19069 | U141: 41.01006 | V141: 40.90366 | W141: 41.24859 | X141: 40.69844 | Y141: 40.90979 | Z141: 40.54669 | AA141: 40.93695 | AB141: 40.55818 | AC141: 1226.408 | AD141: 7024.238 | AE141: 5797.83 | AF141: 53.12477 | AG141: 42.11213 | AH141: 51 | AI141: 51 | AJ141: 762815.0376 | AK141: 598165.3906 | AL141: 382.173261 | AM141: 57 | AN141: 43 | AO141: 38677.70218 | AP141: 44 | AQ141: 10.10685064 | AR141: 10.71399064 | AS141: 481082.6376 | AT141: 7653.759523 | AU141: 75.62657734 | AV141: -1150.781423 | AW141: 0 | AX141: -1226.408 | AY141: -1855.929523 | AZ141: 0.4829200374 | BA141: 0.4829200374 | BB141: 0.8424499964 | BC141: 0.8424499964 | BD141: 7220.03658 | BE141: -1422.20658 | BF141: 0.7944583973 | BG141: 0.7944583973 | BH141: 44 | BI141: 1
A142: 2013-01-06T16:00:00 | B142: 2013-01-06T16:00:00 | C142: 44.71906 | D142: 40.96856 | E142: 40.6487 | F142: 40.99781 | G142: 41.14019 | H142: 40.71757 | I142: 40.68394 | J142: 40.99005 | K142: 40.79696 | L142: 40.64891 | M142: 40.91891 | N142: 40.86626 | O142: 40.87564 | P142: 41.13049 | Q142: 41.4608 | R142: 40.92835 | S142: 40.8055 | T142: 41.22738 | U142: 41.0403 | V142: 40.94564 | W142: 41.27261 | X142: 40.71869 | Y142: 40.92559 | Z142: 40.56213 | AA142: 40.94987 | AB142: 40.56801 | AC142: 1297.503 | AD142: 7092.795 | AE142: 5795.292 | AF142: 53.2417 | AG142: 41.84642 | AH142: 49 | AI142: 49 | AJ142: 732900.7224 | AK142: 579605.9291 | AL142: 2692.999914 | AM142: 56 | AN142: 43 | AO142: 40412.1925 | AP142: 44 | AQ142: 10.16599676 | AR142: 10.77313676 | AS142: 464921.5816 | AT142: 7950.463381 | AU142: 529.8053849 | AV142: -767.6976151 | AW142: 0 | AX142: -1297.503 | AY142: -2155.171381 | AZ142: 0.4602588226 | BA142: 0.4602588226 | BB142: 0.8288070005 | BC142: 0.8288070005 | BD142: 7502.400348 | BE142: -1707.108348 | BF142: 0.7765084795 | BG142: 0.7765084795 | BH142: 44 | BI142: 0.9863570041
A143: 2013-01-06T17:00:00 | B143: 2013-01-06T17:00:00 | C143: 50.15462 | D143: 41.13332 | E143: 40.71843 | F143: 41.02545 | G143: 41.17372 | H143: 40.72044 | I143: 40.71869 | J143: 41.00253 | K143: 40.80647 | L143: 40.65067 | M143: 40.95161 | N143: 40.87516 | O143: 40.89805 | P143: 41.18604 | Q143: 41.50623 | R143: 40.97473 | S143: 40.85433 | T143: 41.27667 | U143: 41.06068 | V143: 40.96178 | W143: 41.2796 | X143: 40.73351 | Y143: 40.94628 | Z143: 40.58708 | AA143: 40.97135 | AB143: 40.59657 | AC143: 1046.456 | AD143: 6849.104 | AE143: 5802.648 | AF143: 53.36145 | AG143: 42.24887 | AH143: 49 | AI143: 49 | AJ143: 732900.7224 | AK143: 583776.3219 | AL143: 5001.039385 | AM143: 54 | AN143: 42 | AO143: 38055.60806 | AP143: 44 | AQ143: 10.02479023 | AR143: 10.63193023 | AS143: 458463.7827 | AT143: 7592.300122 | AU143: 997.7344699 | AV143: -48.72153012 | AW143: 0 | AX143: -1046.456 | AY143: -1789.652122 | AZ143: 0.4414409728 | BA143: 0.4414409728 | BB143: 0.8178037158 | BC143: 0.8178037158 | BD143: 7158.739236 | BE143: -1356.091236 | BF143: 0.7622494395 | BG143: 0.7622494395 | BH143: 44 | BI143: 0.9753537194
A144: 2013-01-06T18:00:00 | B144: 2013-01-06T18:00:00 | C144: 52.16269 | D144: 41.2683 | E144: 40.77278 | F144: 41.09204 | G144: 41.21159 | H144: 40.71218 | I144: 40.73303 | J144: 41.01419 | K144: 40.81966 | L144: 40.64377 | M144: 40.99139 | N144: 40.87787 | O144: 40.90286 | P144: 41.16303 | Q144: 41.48012 | R144: 40.95077 | S144: 40.82529 | T144: 41.2381 | U144: 41.02601 | V144: 40.91857 | W144: 41.25274 | X144: 40.71683 | Y144: 40.93381 | Z144: 40.57126 | AA144: 40.96175 | AB144: 40.59339 | AC144: 952.2869 | AD144: 6754.021 | AE144: 5801.733 | AF144: 52.94923 | AG144: 41.71878 | AH144: 49 | AI144: 49 | AJ144: 732900.7224 | AK144: 565069.6935 | AL144: 5508.646416 | AM144: 48 | AN144: 38 | AO144: 37925.34757 | AP144: 44 | AQ144: 9.776960352 | AR144: 10.38410035 | AS144: 447129.7774 | AT144: 7758.106038 | AU144: 1126.862791 | AV144: 174.5758912 | AW144: 1 | AX144: -952.288 | AY144: -1956.373038 | AZ144: 0.4208700845 | BA144: 0.4208700845 | BB144: 0.8077905896 | BC144: 0.8077905896 | BD144: 7304.503286 | BE144: -1502.770286 | BF144: 0.7464480974 | BG144: 0.7464480974 | BH144: 44 | BI144: 0.9653405932
A145: 2013-01-06T19:00:00 | B145: 2013-01-06T19:00:00 | C145: 52.81689 | D145: 45.32207 | E145: 40.71046 | F145: 41.06269 | G145: 41.20977 | H145: 40.7009 | I145: 40.73472 | J145: 41.00288 | K145: 40.79526 | L145: 40.617 | M145: 40.98498 | N145: 40.85072 | O145: 40.87254 | P145: 41.14499 | Q145: 41.4724 | R145: 40.96039 | S145: 40.85185 | T145: 41.26282 | U145: 41.05137 | V145: 40.92514 | W145: 41.26265 | X145: 40.72485 | Y145: 40.93987 | Z145: 40.5772 | AA145: 40.96162 | AB145: 40.59058 | AC145: 759.0236 | AD145: 6557.641 | AE145: 5798.617 | AF145: 52.77338 | AG145: 41.8584 | AH145: 47 | AI145: 47 | AJ145: 702986.4072 | AK145: 534414.9908 | AL145: 4640.028915 | AM145: 47 | AN145: 38 | AO145: 35788.26018 | AP145: 44 | AQ145: 9.704085672 | AR145: 10.31122567 | AS145: 425682.8361 | AT145: 7375.915957 | AU145: 956.3041944 | AV145: 197.2805944 | AW145: 1 | AX145: -759.024 | AY145: -1577.298957 | AZ145: 0.4042850876 | BA145: 0.4042850876 | BB145: 0.7998095974 | BC145: 0.7998095974 | BD145: 6941.611273 | BE145: -1142.994273 | BF145: 0.7344297312 | BG145: 0.7344297312 | BH145: 44 | BI145: 0.9573596011
A146: 2013-01-06T20:00:00 | B146: 2013-01-06T20:00:00 | C146: 53.15878 | D146: 49.67531 | E146: 40.72048 | F146: 41.05281 | G146: 41.22297 | H146: 40.71994 | I146: 40.76634 | J146: 41.02488 | K146: 40.81253 | L146: 40.6308 | M146: 41.019 | N146: 40.86889 | O146: 40.89891 | P146: 41.18193 | Q146: 41.50731 | R146: 40.99545 | S146: 40.87923 | T146: 41.29127 | U146: 41.07005 | V146: 40.93981 | W146: 41.27773 | X146: 40.73565 | Y146: 40.94582 | Z146: 40.58427 | AA146: 40.97166 | AB146: 40.59628 | AC146: 680.291 | AD146: 6478.466 | AE146: 5798.175 | AF146: 52.22258 | AG146: 41.37725 | AH146: 47 | AI146: 47 | AJ146: 702986.4072 | AK146: 510003.366 | AL146: 4273.077844 | AM146: 45 | AN146: 37 | AO146: 35130.55083 | AP146: 44 | AQ146: 9.620810783 | AR146: 10.22795078 | AS146: 422029.8705 | AT146: 7303.033315 | AU146: 888.2989054 | AV146: 208.0079054 | AW146: 1 | AX146: -680.291 | AY146: -1504.858315 | AZ146: 0.3884617903 | BA146: 0.3884617903 | BB146: 0.7926564677 | BC146: 0.7926564677 | BD146: 6869.518944 | BE146: -1071.343944 | BF146: 0.7231647546 | BG146: 0.7231647546 | BH146: 44 | BI146: 0.9502064713
A147: 2013-01-06T21:00:00 | B147: 2013-01-06T21:00:00 | C147: 53.23729 | D147: 51.36311 | E147: 40.73729 | F147: 41.07 | G147: 41.2358 | H147: 40.7362 | I147: 40.78355 | J147: 41.04701 | K147: 40.83794 | L147: 40.65676 | M147: 41.04468 | N147: 40.88976 | O147: 40.91762 | P147: 41.1965 | Q147: 41.5162 | R147: 40.99171 | S147: 40.87819 | T147: 41.28913 | U147: 41.06638 | V147: 40.92793 | W147: 41.28455 | X147: 40.74712 | Y147: 40.97882 | Z147: 40.62141 | AA147: 40.99987 | AB147: 40.62384 | AC147: 566.2719 | AD147: 6363.928 | AE147: 5797.656 | AF147: 51.98771 | AG147: 41.3466 | AH147: 47 | AI147: 47 | AJ147: 702986.4072 | AK147: 498491.5193 | AL147: 3571.321149 | AM147: 45 | AN147: 37 | AO147: 33859.62894 | AP147: 44 | AQ147: 9.577472347 | AR147: 10.18461235 | AS147: 420128.7714 | AT147: 7070.68164 | AU147: 745.7752984 | AV147: 179.5033984 | AW147: 1 | AX147: -566.272 | AY147: -1273.02564 | AZ147: 0.3750761692 | BA147: 0.3750761692 | BB147: 0.7867022259 | BC147: 0.7867022259 | BD147: 6649.173829 | BE147: -851.5178295 | BF147: 0.7142112075 | BG147: 0.7142112075 | BH147: 44 | BI147: 0.9442522295
A148: 2013-01-06T22:00:00 | B148: 2013-01-06T22:00:00 | C148: 53.20605 | D148: 52.10048 | E148: 40.76732 | F148: 41.10131 | G148: 41.27411 | H148: 40.76895 | I148: 40.82795 | J148: 41.09118 | K148: 40.89116 | L148: 40.70638 | M148: 41.1062 | N148: 40.94639 | O148: 40.9589 | P148: 41.22544 | Q148: 41.52964 | R148: 40.99754 | S148: 40.89116 | T148: 41.30371 | U148: 41.07421 | V148: 40.93283 | W148: 41.28217 | X148: 40.75245 | Y148: 40.98374 | Z148: 40.62637 | AA148: 41.00882 | AB148: 40.62172 | AC148: 358.7938 | AD148: 6159.646 | AE148: 5800.852 | AF148: 51.53973 | AG148: 41.39682 | AH148: 47 | AI148: 47 | AJ148: 702986.4072 | AK148: 478933.2677 | AL148: 2257.589791 | AM148: 42 | AN148: 35 | AO148: 31238.3675 | AP148: 44 | AQ148: 9.366393332 | AR148: 9.973533332 | AS148: 410869.5051 | AT148: 6670.308709 | AU148: 482.0617095 | AV148: 123.2679095 | AW148: 1 | AX148: -358.794 | AY148: -869.4567086 | AZ148: 0.3659339982 | BA148: 0.3659339982 | BB148: 0.7829295756 | BC148: 0.7829295756 | BD148: 6264.252891 | BE148: -463.4008912 | BF148: 0.7093386357 | BG148: 0.7093386357 | BH148: 44 | BI148: 0.9404795793
A149: 2013-01-06T23:00:00 | B149: 2013-01-06T23:00:00 | C149: 53.09457 | D149: 52.62993 | E149: 41.72142 | F149: 41.16846 | G149: 41.32484 | H149: 40.80701 | I149: 40.87172 | J149: 41.131 | K149: 40.92334 | L149: 40.73065 | M149: 41.15864 | N149: 40.98321 | O149: 40.99283 | P149: 41.27038 | Q149: 41.56688 | R149: 41.00496 | S149: 40.89424 | T149: 41.30046 | U149: 41.06999 | V149: 40.917 | W149: 41.26922 | X149: 40.74433 | Y149: 40.98909 | Z149: 40.62546 | AA149: 41.01339 | AB149: 40.60967 | AC149: 270.4763 | AD149: 6072.991 | AE149: 5803.646 | AF149: 51.39226 | AG149: 41.34107 | AH149: 47 | AI149: 47 | AJ149: 702986.4072 | AK149: 472992.8864 | AL149: 1688.434779 | AM149: 43 | AN149: 36 | AO149: 30520.3932 | AP149: 44 | AQ149: 9.402757408 | AR149: 10.00989741 | AS149: 412464.6644 | AT149: 6491.79637 | AU149: 359.1360929 | AV149: 88.65979288 | AW149: 1 | AX149: -269.345 | AY149: -688.1503698 | AZ149: 0.3586982287 | BA149: 0.3586982287 | BB149: 0.7800974645 | BC149: 0.7800974645 | BD149: 6098.043159 | BE149: -294.3971586 | BF149: 0.7062431059 | BG149: 0.7062431059 | BH149: 44 | BI149: 0.9376474681
A150: 2013-01-07 | B150: 2013-01-07 | C150: 52.77538 | D150: 52.67074 | E150: 43.92771 | F150: 41.16417 | G150: 41.3368 | H150: 40.81497 | I150: 40.89682 | J150: 41.14115 | K150: 40.92368 | L150: 40.72757 | M150: 41.16835 | N150: 40.97777 | O150: 40.99684 | P150: 41.24635 | Q150: 41.54927 | R150: 41.01841 | S150: 40.90469 | T150: 41.31858 | U150: 41.08073 | V150: 40.89155 | W150: 41.26036 | X150: 40.75382 | Y150: 40.98921 | Z150: 40.63628 | AA150: 41.02537 | AB150: 40.6225 | AC150: 185.8871 | AD150: 5967.952 | AE150: 5799.154 | AF150: 51.04849 | AG150: 41.33525 | AH150: 45 | AI150: 45 | AJ150: 673072.092 | AK150: 437888.437 | AL150: 1129.53181 | AM150: 38 | AN150: 33 | AO150: 28984.07504 | AP150: 44 | AQ150: 9.167827959 | AR150: 9.774967959 | AS150: 385046.0105 | AT150: 6322.997153 | AU150: 246.4120869 | AV150: 60.52498692 | AW150: 1 | AX150: -168.798 | AY150: -523.8431531 | AZ150: 0.3531901181 | BA150: 0.3531901181 | BB150: 0.7783225858 | BC150: 0.7783225858 | BD150: 5930.264972 | BE150: -131.1109715 | BF150: 0.7048644991 | BG150: 0.7048644991 | BH150: 44 | BI150: 0.9358725894
A151: 2013-01-07T01:00:00 | B151: 2013-01-07T01:00:00 | C151: 52.63281 | D151: 52.47112 | E151: 46.69147 | F151: 41.16796 | G151: 41.34533 | H151: 40.8091 | I151: 40.90204 | J151: 41.131 | K151: 40.93064 | L151: 40.71173 | M151: 41.19984 | N151: 40.98982 | O151: 41.02061 | P151: 41.29907 | Q151: 41.60977 | R151: 41.07999 | S151: 40.97641 | T151: 41.37154 | U151: 41.11839 | V151: 40.87928 | W151: 41.25139 | X151: 40.74869 | Y151: 41.00794 | Z151: 40.65725 | AA151: 41.04217 | AB151: 40.64108 | AC151: 159.3273 | AD151: 5944.875 | AE151: 5793.457 | AF151: 50.6166 | AG151: 41.27324 | AH151: 45 | AI151: 45 | AJ151: 673072.092 | AK151: 418968.8328 | AL151: 955.3049816 | AM151: 34 | AN151: 31 | AO151: 27772.55364 | AP151: 44 | AQ151: 9.004821079 | AR151: 9.611961079 | AS151: 378199.7707 | AT151: 6168.37434 | AU151: 212.1763383 | AV151: 52.84903826 | AW151: 1 | AX151: -151.418 | AY151: -374.9173399 | AZ151: 0.349247934 | BA151: 0.349247934 | BB151: 0.7767304545 | BC151: 0.7767304545 | BD151: 5778.748668 | BE151: 14.7083323 | BF151: 0.7050191544 | BG151: 0.7050191544 | BH151: 44 | BI151: 0.9342804581
A152: 2013-01-07T02:00:00 | B152: 2013-01-07T02:00:00 | C152: 52.55197 | D152: 52.37759 | E152: 47.99418 | F152: 41.34243 | G152: 41.45008 | H152: 40.83381 | I152: 40.93967 | J152: 41.15741 | K152: 40.94746 | L152: 40.7228 | M152: 41.22588 | N152: 40.99409 | O152: 41.03806 | P152: 41.32753 | Q152: 41.62445 | R152: 41.09523 | S152: 40.98379 | T152: 41.36721 | U152: 41.10191 | V152: 40.86673 | W152: 41.25161 | X152: 40.74559 | Y152: 41.01788 | Z152: 40.6629 | AA152: 41.05164 | AB152: 40.65038 | AC152: 206.5841 | AD152: 5786.145 | AE152: 5800.001 | AF152: 50.45691 | AG152: 41.28569 | AH152: 45 | AI152: 45 | AJ152: 673072.092 | AK152: 411871.3037 | AL152: 1229.339629 | AM152: 33 | AN152: 30 | AO152: 26533.00437 | AP152: 44 | AQ152: 8.901705449 | AR152: 9.508845449 | AS152: 373868.9454 | AT152: 5961.330562 | AU152: 276.2031695 | AV152: 69.61906947 | AW152: 1 | AX152: 13.856 | AY152: -161.3295619 | AZ152: 0.3475515845 | BA152: 0.3475515845 | BB152: 0.7768761477 | BC152: 0.7768761477 | BD152: 5580.699469 | BE152: 219.3015312 | BF152: 0.7073250681 | BG152: 0.7073250681 | BH152: 44 | BI152: 0.9344261513
A153: 2013-01-07T03:00:00 | B153: 2013-01-07T03:00:00 | C153: 52.47274 | D153: 52.30727 | E153: 49.01313 | F153: 41.21274 | G153: 41.39749 | H153: 40.82938 | I153: 40.92998 | J153: 41.15313 | K153: 40.95192 | L153: 40.71527 | M153: 41.22591 | N153: 40.98589 | O153: 41.02554 | P153: 41.30409 | Q153: 41.60355 | R153: 41.0927 | S153: 40.97463 | T153: 41.37804 | U153: 41.12022 | V153: 40.87453 | W153: 41.25522 | X153: 40.74802 | Y153: 41.01895 | Z153: 40.66718 | AA153: 41.0613 | AB153: 40.65909 | AC153: 105.4809 | AD153: 5771.222 | AE153: 5801.278 | AF153: 50.06255 | AG153: 41.20485 | AH153: 45 | AI153: 45 | AJ153: 673072.092 | AK153: 394942.4852 | AL153: 623.0572171 | AM153: 35 | AN153: 33 | AO153: 25559.87655 | AP153: 44 | AQ153: 9.051062791 | AR153: 9.658202791 | AS153: 380141.9087 | AT153: 5647.928237 | AU153: 137.6760346 | AV153: 32.19513464 | AW153: 1 | AX153: 30.056 | AY153: 153.349763 | AZ153: 0.3491640279 | BA153: 0.3491640279 | BB153: 0.7771921808 | BC153: 0.7771921808 | BD153: 5292.884631 | BE153: 508.3933694 | BF153: 0.7126707271 | BG153: 0.7126707271 | BH153: 44 | BI153: 0.9347421844
A154: 2013-01-07T04:00:00 | B154: 2013-01-07T04:00:00 | C154: 52.39738 | D154: 52.2376 | E154: 50.00331 | F154: 41.17432 | G154: 41.35126 | H154: 40.79511 | I154: 40.91688 | J154: 41.1358 | K154: 40.93892 | L154: 40.69969 | M154: 41.22076 | N154: 40.96395 | O154: 41.01095 | P154: 41.28424 | Q154: 41.58422 | R154: 41.07432 | S154: 40.97396 | T154: 41.38799 | U154: 41.13793 | V154: 40.88122 | W154: 41.26922 | X154: 40.76689 | Y154: 41.03416 | Z154: 40.67569 | AA154: 41.0663 | AB154: 40.66139 | AC154: 101.8466 | AD154: 5831.704 | AE154: 5798.784 | AF154: 50.37066 | AG154: 41.2205 | AH154: 45 | AI154: 45 | AJ154: 673072.092 | AK154: 407786.4131 | AL154: 597.6353396 | AM154: 33 | AN154: 30 | AO154: 26680.51234 | AP154: 44 | AQ154: 8.906735471 | AR154: 9.513875471 | AS154: 374080.2048 | AT154: 5991.086729 | AU154: 134.1985156 | AV154: 32.35191561 | AW154: 1 | AX154: -32.92 | AY154: -192.3027285 | AZ154: 0.3471420015 | BA154: 0.3471420015 | BB154: 0.7768460333 | BC154: 0.7768460333 | BD154: 5608.757949 | BE154: 190.0260509 | BF154: 0.7146688147 | BG154: 0.7146688147 | BH154: 44 | BI154: 0.9343960369
A155: 2013-01-07T05:00:00 | B155: 2013-01-07T05:00:00 | C155: 52.30644 | D155: 52.17454 | E155: 50.9184 | F155: 41.17018 | G155: 41.35985 | H155: 40.79783 | I155: 40.9236 | J155: 41.14907 | K155: 40.94983 | L155: 40.70655 | M155: 41.24471 | N155: 40.97004 | O155: 41.02497 | P155: 41.29541 | Q155: 41.59646 | R155: 41.08306 | S155: 40.97699 | T155: 41.416 | U155: 41.15957 | V155: 40.89951 | W155: 41.28761 | X155: 40.79418 | Y155: 41.06466 | Z155: 40.70762 | AA155: 41.09438 | AB155: 40.68372 | AC155: 150.1827 | AD155: 5917.975 | AE155: 5798.438 | AF155: 50.31581 | AG155: 41.28162 | AH155: 45 | AI155: 45 | AJ155: 673072.092 | AK155: 404544.8763 | AL155: 872.7657355 | AM155: 31 | AN155: 29 | AO155: 26732.05528 | AP155: 44 | AQ155: 8.847646085 | AR155: 9.454786085 | AS155: 371598.4684 | AT155: 6042.749682 | AU155: 197.2876688 | AV155: 47.10496885 | AW155: 1 | AX155: -119.537 | AY155: -244.3116818 | AZ155: 0.3445731109 | BA155: 0.3445731109 | BB155: 0.7755891246 | BC155: 0.7755891246 | BD155: 5654.713928 | BE155: 143.7240716 | BF155: 0.7161800458 | BG155: 0.7161800458 | BH155: 44 | BI155: 0.9331391282
A156: 2013-01-07T06:00:00 | B156: 2013-01-07T06:00:00 | C156: 52.21312 | D156: 52.03756 | E156: 51.34386 | F156: 41.20351 | G156: 41.39025 | H156: 40.82862 | I156: 40.94123 | J156: 41.15237 | K156: 40.95587 | L156: 40.71239 | M156: 41.23976 | N156: 40.96907 | O156: 41.02944 | P156: 41.31604 | Q156: 41.6168 | R156: 41.10322 | S156: 41.00312 | T156: 41.43066 | U156: 41.17251 | V156: 40.91181 | W156: 41.29996 | X156: 40.81141 | Y156: 41.0804 | Z156: 40.71998 | AA156: 41.11462 | AB156: 40.69076 | AC156: 130.1198 | AD156: 5890.156 | AE156: 5795.183 | AF156: 50.38303 | AG156: 41.20184 | AH156: 45 | AI156: 45 | AJ156: 673072.092 | AK156: 407072.4182 | AL156: 749.6435894 | AM156: 29 | AN156: 27 | AO156: 27039.32068 | AP156: 44 | AQ156: 8.736429835 | AR156: 9.343569835 | AS156: 366927.4194 | AT156: 6190.016103 | AU156: 171.613257 | AV156: 41.49345702 | AW156: 1 | AX156: -94.973 | AY156: -394.8331033 | AZ156: 0.3404215163 | BA156: 0.3404215163 | BB156: 0.7745905016 | BC156: 0.7745905016 | BD156: 5787.792281 | BE156: 7.390719428 | BF156: 0.7162577578 | BG156: 0.7162577578 | BH156: 44 | BI156: 0.9321405053
A157: 2013-01-07T07:00:00 | B157: 2013-01-07T07:00:00 | C157: 52.18961 | D157: 52.03856 | E157: 51.49528 | F157: 41.25996 | G157: 41.39761 | H157: 40.83647 | I157: 40.95531 | J157: 41.17302 | K157: 40.98082 | L157: 40.73985 | M157: 41.27074 | N157: 41.00894 | O157: 41.06157 | P157: 41.32469 | Q157: 41.61419 | R157: 41.10657 | S157: 41.00493 | T157: 41.43386 | U157: 41.17501 | V157: 40.91743 | W157: 41.30361 | X157: 40.81968 | Y157: 41.09215 | Z157: 40.73782 | AA157: 41.13225 | AB157: 40.71316 | AC157: 156.3253 | AD157: 5951.28 | AE157: 5795.415 | AF157: 50.82472 | AG157: 41.20424 | AH157: 45 | AI157: 45 | AJ157: 673072.092 | AK157: 424682.4718 | AL157: 897.0297446 | AM157: 29 | AN157: 27 | AO157: 28627.08511 | AP157: 44 | AQ157: 8.790572602 | AR157: 9.397712602 | AS157: 369201.3993 | AT157: 6513.133195 | AU157: 204.0890361 | AV157: 47.76373611 | AW157: 1 | AX157: -155.865 | AY157: -717.7181946 | AZ157: 0.3328748468 | BA157: 0.3328748468 | BB157: 0.772951611 | BC157: 0.772951611 | BD157: 6092.351686 | BE157: -296.9366858 | BF157: 0.7131355254 | BG157: 0.7131355254 | BH157: 44 | BI157: 0.9305016146
A158: 2013-01-07T08:00:00 | B158: 2013-01-07T08:00:00 | C158: 52.1385 | D158: 52.01748 | E158: 51.55824 | F158: 41.6403 | G158: 41.42691 | H158: 40.86487 | I158: 40.97836 | J158: 41.19473 | K158: 40.99744 | L158: 40.75961 | M158: 41.27694 | N158: 41.03152 | O158: 41.07861 | P158: 41.3374 | Q158: 41.6283 | R158: 41.12091 | S158: 41.0096 | T158: 41.42997 | U158: 41.17738 | V158: 40.92326 | W158: 41.31793 | X158: 40.82779 | Y158: 41.10049 | Z158: 40.73999 | AA158: 41.13125 | AB158: 40.71544 | AC158: 284.2264 | AD158: 6079.464 | AE158: 5797.029 | AF158: 50.9421 | AG158: 41.16993 | AH158: 45 | AI158: 45 | AJ158: 673072.092 | AK158: 429516.6371 | AL158: 1623.36761 | AM158: 31 | AN158: 29 | AO158: 29704.77786 | AP158: 44 | AQ158: 8.949015925 | AR158: 9.556155925 | AS158: 375855.9711 | AT158: 6638.669125 | AU158: 362.803603 | AV158: 78.57720299 | AW158: 1 | AX158: -282.435 | AY158: -841.6401246 | AZ158: 0.3240251619 | BA158: 0.3240251619 | BB158: 0.769981861 | BC158: 0.769981861 | BD158: 6216.888484 | BE158: -419.8594835 | BF158: 0.7087207832 | BG158: 0.7087207832 | BH158: 44 | BI158: 0.9275318646
A159: 2013-01-07T09:00:00 | B159: 2013-01-07T09:00:00 | C159: 52.20509 | D159: 52.0489 | E159: 51.61617 | F159: 41.89904 | G159: 41.42387 | H159: 40.88295 | I159: 40.97766 | J159: 41.20587 | K159: 41.01158 | L159: 40.777 | M159: 41.27433 | N159: 41.04918 | O159: 41.08917 | P159: 41.35336 | Q159: 41.64304 | R159: 41.12481 | S159: 41.022 | T159: 41.44323 | U159: 41.2019 | V159: 40.97462 | W159: 41.36625 | X159: 40.86771 | Y159: 41.12547 | Z159: 40.76355 | AA159: 41.14293 | AB159: 40.72957 | AC159: 429.1951 | AD159: 6229.402 | AE159: 5800.207 | AF159: 51.24594 | AG159: 41.23319 | AH159: 45 | AI159: 45 | AJ159: 673072.092 | AK159: 441684.3697 | AL159: 2462.618477 | AM159: 38 | AN159: 34 | AO159: 31186.72244 | AP159: 44 | AQ159: 9.303785235 | AR159: 9.910925235 | AS159: 390756.1752 | AT159: 6704.093366 | AU159: 529.3799061 | AV159: 100.1848061 | AW159: 1 | AX159: -429.195 | AY159: -903.8863662 | AZ159: 0.3145209696 | BA159: 0.3145209696 | BB159: 0.7654689576 | BC159: 0.7654689576 | BD159: 6293.402825 | BE159: -493.1958252 | BF159: 0.7035349234 | BG159: 0.7035349234 | BH159: 44 | BI159: 0.9230189613
A160: 2013-01-07T10:00:00 | B160: 2013-01-07T10:00:00 | C160: 52.30453 | D160: 52.07369 | E160: 51.62585 | F160: 46.99775 | G160: 41.44539 | H160: 40.91666 | I160: 41.00185 | J160: 41.24193 | K160: 41.05167 | L160: 40.82237 | M160: 41.29555 | N160: 41.09242 | O160: 41.12139 | P160: 41.39086 | Q160: 41.68982 | R160: 41.15363 | S160: 41.04947 | T160: 41.4557 | U160: 41.20907 | V160: 41.01196 | W160: 41.38789 | X160: 40.89417 | Y160: 41.15972 | Z160: 40.78597 | AA160: 41.16354 | AB160: 40.75265 | AC160: 702.2173 | AD160: 6502.956 | AE160: 5800.738 | AF160: 51.35768 | AG160: 41.31446 | AH160: 43 | AI160: 43 | AJ160: 643157.7768 | AK160: 425612.1491 | AL160: 4055.964992 | AM160: 40 | AN160: 36 | AO160: 32655.30888 | AP160: 44 | AQ160: 9.475558033 | AR160: 10.08269803 | AS160: 380282.9995 | AT160: 6892.53525 | AU160: 856.089948 | AV160: 153.872648 | AW160: 1 | AX160: -702.218 | AY160: -1091.79725 | AZ160: 0.3030409303 | BA160: 0.3030409303 | BB160: 0.7580852697 | BC160: 0.7580852697 | BD160: 6477.494173 | BE160: -676.7561733 | BF160: 0.6964189617 | BG160: 0.6964189617 | BH160: 44 | BI160: 0.9156352733
A161: 2013-01-07T11:00:00 | B161: 2013-01-07T11:00:00 | C161: 52.45192 | D161: 52.06944 | E161: 51.66712 | F161: 51.0675 | G161: 41.46391 | H161: 40.94991 | I161: 40.99027 | J161: 41.25445 | K161: 41.06009 | L161: 40.86896 | M161: 41.27849 | N161: 41.13433 | O161: 41.14911 | P161: 41.41769 | Q161: 41.72657 | R161: 41.19729 | S161: 41.09246 | T161: 41.49234 | U161: 41.25254 | V161: 41.10853 | W161: 41.47151 | X161: 40.95414 | Y161: 41.17922 | Z161: 40.81063 | AA161: 41.18097 | AB161: 40.77296 | AC161: 1002.576 | AD161: 6802.408 | AE161: 5799.831 | AF161: 52.06137 | AG161: 41.29538 | AH161: 43 | AI161: 43 | AJ161: 643157.7768 | AK161: 453038.2696 | AL161: 5854.5225 | AM161: 49 | AN161: 41 | AO161: 36617.32825 | AP161: 44 | AQ161: 9.914897893 | AR161: 10.52203789 | AS161: 397915.046 | AT161: 7386.324831 | AU161: 1180.954673 | AV161: 178.3786731 | AW161: 1 | AX161: -1002.577 | AY161: -1586.493831 | AZ161: 0.2863592511 | BA161: 0.2863592511 | BB161: 0.7475433643 | BC161: 0.7475433643 | BD161: 6960.120962 | BE161: -1160.289962 | BF161: 0.6842187347 | BG161: 0.6842187347 | BH161: 44 | BI161: 0.9050933679
A162: 2013-01-07T12:00:00 | B162: 2013-01-07T12:00:00 | C162: 52.46837 | D162: 52.06775 | E162: 51.69434 | F162: 52.00136 | G162: 41.47551 | H162: 40.97136 | I162: 40.98953 | J162: 41.25979 | K162: 41.07212 | L162: 40.89029 | M162: 41.2507 | N162: 41.14729 | O162: 41.15563 | P162: 41.40268 | Q162: 41.70341 | R162: 41.16521 | S162: 41.04864 | T162: 41.46409 | U162: 41.24983 | V162: 41.13091 | W162: 41.46428 | X162: 40.92733 | Y162: 41.13011 | Z162: 40.75935 | AA162: 41.14593 | AB162: 40.74587 | AC162: 1168.523 | AD162: 6965.988 | AE162: 5797.465 | AF162: 52.34204 | AG162: 41.54735 | AH162: 43 | AI162: 43 | AJ162: 643157.7768 | AK162: 465389.6156 | AL162: 6849.005434 | AM162: 51 | AN162: 42 | AO162: 37597.8405 | AP162: 44 | AQ162: 10.00918036 | AR162: 10.61632036 | AS162: 401698.8886 | AT162: 7512.671197 | AU162: 1368.544713 | AV162: 200.0217133 | AW162: 1 | AX162: -1168.523 | AY162: -1715.206197 | AZ162: 0.268324186 | BA162: 0.268324186 | BB162: 0.7352565684 | BC162: 0.7352565684 | BD162: 7083.026741 | BE162: -1285.561741 | BF162: 0.6707012989 | BG162: 0.6707012989 | BH162: 44 | BI162: 0.892806572
A163: 2013-01-07T13:00:00 | B163: 2013-01-07T13:00:00 | C163: 52.47708 | D163: 52.13016 | E163: 51.71761 | F163: 52.02319 | G163: 47.9535 | H163: 40.97592 | I163: 40.99121 | J163: 41.26628 | K163: 41.07232 | L163: 40.89602 | M163: 41.23253 | N163: 41.13517 | O163: 41.12175 | P163: 41.39199 | Q163: 41.68795 | R163: 41.15317 | S163: 41.03224 | T163: 41.46333 | U163: 41.24594 | V163: 41.13728 | W163: 41.47186 | X163: 40.93856 | Y163: 41.13115 | Z163: 40.76506 | AA163: 41.15027 | AB163: 40.74778 | AC163: 1559.71 | AD163: 7361.653 | AE163: 5801.943 | AF163: 55.31725 | AG163: 42.82955 | AH163: 41 | AI163: 41 | AJ163: 613243.4616 | AK163: 557521.0503 | AL163: 9147.153252 | AM163: 54 | AN163: 44 | AO163: 45965.05708 | AP163: 44 | AQ163: 10.41619645 | AR163: 11.02333645 | AS163: 398590.2564 | AT163: 8825.689362 | AU163: 1756.332707 | AV163: 196.6227071 | AW163: 1 | AX163: -1559.71 | AY163: -3023.746362 | AZ163: 0.2365300714 | BA163: 0.2365300714 | BB163: 0.7188565161 | BC163: 0.7188565161 | BD163: 8339.590705 | BE163: -2537.647705 | BF163: 0.6440184186 | BG163: 0.6440184186 | BH163: 44 | BI163: 0.8764065197
A164: 2013-01-07T14:00:00 | B164: 2013-01-07T14:00:00 | C164: 52.36341 | D164: 52.25256 | E164: 51.72486 | F164: 51.98938 | G164: 52.1097 | H164: 43.40316 | I164: 40.99965 | J164: 41.27954 | K164: 41.09269 | L164: 40.92402 | M164: 41.2517 | N164: 41.16377 | O164: 41.1383 | P164: 41.38481 | Q164: 41.69055 | R164: 41.15973 | S164: 41.0364 | T164: 41.47328 | U164: 41.2537 | V164: 41.15551 | W164: 41.47855 | X164: 40.94561 | Y164: 41.13733 | Z164: 40.76415 | AA164: 41.14766 | AB164: 40.76 | AC164: 2548.755 | AD164: 8352.175 | AE164: 5803.419 | AF164: 57.71213 | AG164: 41.75337 | AH164: 39 | AI164: 39 | AJ164: 583329.1464 | AK164: 617053.103 | AL164: 14787.12463 | AM164: 54 | AN164: 43 | AO164: 66645.17815 | AP164: 44 | AQ164: 11.06054157 | AR164: 11.66768157 | AS164: 402600.8236 | AT164: 12050.97919 | AU164: 2673.851823 | AV164: 125.0968231 | AW164: 1 | AX164: -2548.756 | AY164: -6247.560186 | AZ164: 0.170838171 | BA164: 0.170838171 | BB164: 0.6920568342 | BC164: 0.6920568342 | BD164: 11423.89389 | BE164: -5620.474894 | BF164: 0.5849202001 | BG164: 0.5849202001 | BH164: 44 | BI164: 0.8496068379
A165: 2013-01-07T15:00:00 | B165: 2013-01-07T15:00:00 | C165: 54.45833 | D165: 52.6584 | E165: 51.80607 | F165: 52.07869 | G165: 52.22922 | H165: 52.19284 | I165: 42.93345 | J165: 41.32886 | K165: 41.126 | L165: 40.96077 | M165: 41.26808 | N165: 41.19104 | O165: 41.17173 | P165: 41.41125 | Q165: 41.72606 | R165: 41.17811 | S165: 41.0615 | T165: 41.49449 | U165: 41.26581 | V165: 41.16667 | W165: 41.49377 | X165: 40.96194 | Y165: 41.15215 | Z165: 40.77936 | AA165: 41.15245 | AB165: 40.77917 | AC165: 2779.099 | AD165: 8580.899 | AE165: 5801.802 | AF165: 56.46623 | AG165: 41.47227 | AH165: 39 | AI165: 39 | AJ165: 583329.1464 | AK165: 571004.8855 | AL165: 19007.86994 | AM165: 55 | AN165: 44 | AO165: 64330.82819 | AP165: 44 | AQ165: 11.04246924 | AR165: 11.64960924 | AS165: 401942.9954 | AT165: 11651.52952 | AU165: 3442.684697 | AV165: 663.5856973 | AW165: 1 | AX165: -2779.097 | AY165: -5849.727523 | AZ165: 0.1093294049 | BA165: 0.1093294049 | BB165: 0.6628351608 | BC165: 0.6628351608 | BD165: 11044.28944 | BE165: -5242.487444 | BF165: 0.5297964473 | BG165: 0.5297964473 | BH165: 44 | BI165: 0.8203851645
A166: 2013-01-07T16:00:00 | B166: 2013-01-07T16:00:00 | C166: 55.91328 | D166: 54.42066 | E166: 52.49568 | F166: 52.26324 | G166: 52.22462 | H166: 51.9488 | I166: 51.61615 | J166: 43.57321 | K166: 41.15814 | L166: 40.98174 | M166: 41.31227 | N166: 41.22717 | O166: 41.21713 | P166: 41.46598 | Q166: 41.77841 | R166: 41.23719 | S166: 41.08068 | T166: 41.51395 | U166: 41.28432 | V166: 41.18809 | W166: 41.51149 | X166: 40.98561 | Y166: 41.18154 | Z166: 40.79716 | AA166: 41.17063 | AB166: 40.79281 | AC166: 3727.753 | AD166: 8450.381 | AE166: 4722.628 | AF166: 54.38017 | AG166: 42.13431 | AH166: 35 | AI166: 35 | AJ166: 523500.516 | AK166: 443850.5742 | AL166: 28182.6887 | AM166: 54 | AN166: 43 | AO166: 51741.09134 | AP166: 44 | AQ166: 10.55231221 | AR166: 11.15945221 | AS166: 344706.3915 | AT166: 9806.588411 | AU166: 5341.519115 | AV166: 1613.766115 | AW166: 1 | AX166: -3727.753 | AY166: -5083.960411 | AZ166: 0.05587253357 | BA166: 0.05587253357 | BB166: 0.623638551 | BC166: 0.623638551 | BD166: 9273.052179 | BE166: -4550.424179 | BF166: 0.4819496074 | BG166: 0.4819496074 | BH166: 44 | BI166: 0.7811885546
A167: 2013-01-07T17:00:00 | B167: 2013-01-07T17:00:00 | C167: 55.43175 | D167: 54.92847 | E167: 53.88657 | F167: 53.41347 | G167: 52.44362 | H167: 51.89651 | I167: 52.09467 | J167: 51.69569 | K167: 42.30888 | L167: 41.02002 | M167: 41.34142 | N167: 41.24202 | O167: 41.23449 | P167: 41.49213 | Q167: 41.8101 | R167: 41.26258 | S167: 41.14047 | T167: 41.54858 | U167: 41.32338 | V167: 41.2089 | W167: 41.5268 | X167: 40.99439 | Y167: 41.19083 | Z167: 40.81456 | AA167: 41.19331 | AB167: 40.81086 | AC167: 2206.708 | AD167: 8361.16 | AE167: 6154.453 | AF167: 52.6306 | AG167: 40.7027 | AH167: 35 | AI167: 35 | AJ167: 523500.516 | AK167: 386108.7353 | AL167: 16132.01747 | AM167: 52 | AN167: 42 | AO167: 49865.54018 | AP167: 44 | AQ167: 10.42750892 | AR167: 11.03464892 | AS167: 340629.5131 | AT167: 9564.228727 | AU167: 3094.126812 | AV167: 887.4188118 | AW167: 1 | AX167: -2206.707 | AY167: -3409.775727 | AZ167: 0.02001939397 | BA167: 0.02001939397 | BB167: 0.600435449 | BC167: 0.600435449 | BD167: 9037.99306 | BE167: -2883.54006 | BF167: 0.4516297352 | BG167: 0.4516297352 | BH167: 44 | BI167: 0.7579854526
A168: 2013-01-07T18:00:00 | B168: 2013-01-07T18:00:00 | C168: 54.96696 | D168: 54.82382 | E168: 54.42227 | F168: 54.15481 | G168: 53.33286 | H168: 52.01373 | I168: 51.97989 | J168: 52.43578 | K168: 47.7713 | L168: 41.43053 | M168: 41.42979 | N168: 41.29017 | O168: 41.28001 | P168: 41.52378 | Q168: 41.8413 | R168: 41.31599 | S168: 41.2008 | T168: 41.62273 | U168: 41.3821 | V168: 41.25771 | W168: 41.53157 | X168: 41.00066 | Y168: 41.18692 | Z168: 40.81836 | AA168: 41.19859 | AB168: 40.82792 | AC168: 1758.999 | AD168: 7765.95 | AE168: 6006.951 | AF168: 51.93093 | AG168: 40.66854 | AH168: 33 | AI168: 33 | AJ168: 493586.2008 | AK168: 341970.2535 | AL168: 12435.27861 | AM168: 49 | AN168: 41 | AO168: 43731.57881 | AP168: 44 | AQ168: 10.15749384 | AR168: 10.76463384 | AS168: 312848.5647 | AT168: 8610.702504 | AU168: 2448.493459 | AV168: 689.494459 | AW168: 1 | AX168: -1758.999 | AY168: -2603.751504 | AZ168: -0.007358555092 | BA168: 0 | BB168: 0.5819399109 | BC168: 0.5819399109 | BD168: 8125.047163 | BE168: -2118.096163 | BF168: 0.4293583592 | BG168: 0.4293583592 | BH168: 43 | BI168: 0.7394899146
A169: 2013-01-07T19:00:00 | B169: 2013-01-07T19:00:00 | C169: 54.62768 | D169: 54.50151 | E169: 54.34677 | F169: 54.48265 | G169: 53.71295 | H169: 52.07154 | I169: 52.01542 | J169: 52.27667 | K169: 51.72561 | L169: 41.28782 | M169: 41.39787 | N169: 41.28888 | O169: 41.28778 | P169: 41.53349 | Q169: 41.85491 | R169: 41.32821 | S169: 41.21432 | T169: 41.6381 | U169: 41.38186 | V169: 41.27745 | W169: 41.5695 | X169: 41.03418 | Y169: 41.19944 | Z169: 40.82861 | AA169: 41.20851 | AB169: 40.83327 | AC169: 806.419 | AD169: 6797.71 | AE169: 5991.292 | AF169: 52.16879 | AG169: 40.5569 | AH169: 33 | AI169: 33 | AJ169: 493586.2008 | AK169: 349131.5101 | AL169: 5562.037159 | AM169: 47 | AN169: 40 | AO169: 39467.13039 | AP169: 44 | AQ169: 9.951229146 | AR169: 10.55836915 | AS169: 306495.6578 | AT169: 7932.111663 | AU169: 1117.859327 | AV169: 311.4403272 | AW169: 1 | AX169: -806.418 | AY169: -1940.819663 | AZ169: -0.02040734755 | BA169: 0 | BB169: 0.5734605799 | BC169: 0.5734605799 | BD169: 7475.989869 | BE169: -1484.697869 | BF169: 0.413747045 | BG169: 0.413747045 | BH169: 43 | BI169: 0.7310105835
A170: 2013-01-07T20:00:00 | B170: 2013-01-07T20:00:00 | C170: 54.55193 | D170: 54.40273 | E170: 54.09374 | F170: 54.6228 | G170: 53.81061 | H170: 52.2496 | I170: 52.0657 | J170: 52.29545 | K170: 52.18623 | L170: 42.1814 | M170: 41.4166 | N170: 41.27812 | O170: 41.28841 | P170: 41.53869 | Q170: 41.85835 | R170: 41.33751 | S170: 41.2235 | T170: 41.63383 | U170: 41.38196 | V170: 41.24213 | W170: 41.56054 | X170: 41.03957 | Y170: 41.20797 | Z170: 40.82933 | AA170: 41.21284 | AB170: 40.84135 | AC170: 619.9716 | AD170: 6586.152 | AE170: 5966.181 | AF170: 52.01969 | AG170: 40.50535 | AH170: 33 | AI170: 33 | AJ170: 493586.2008 | AK170: 344290.4008 | AL170: 4250.08511 | AM170: 48 | AN170: 41 | AO170: 37917.59671 | AP170: 44 | AQ170: 9.959237048 | AR170: 10.56637705 | AS170: 306742.2994 | AT170: 7614.558531 | AU170: 853.4961241 | AV170: 233.5245241 | AW170: 1 | AX170: -619.971 | AY170: -1648.377531 | AZ170: -0.01733237446 | BA170: 0 | BB170: 0.5669417034 | BC170: 0.5669417034 | BD170: 7177.028898 | BE170: -1210.847898 | BF170: 0.401015211 | BG170: 0.401015211 | BH170: 43 | BI170: 0.724491707
A171: 2013-01-07T21:00:00 | B171: 2013-01-07T21:00:00 | C171: 54.49007 | D171: 54.28864 | E171: 53.96844 | F171: 54.68669 | G171: 53.92991 | H171: 52.40503 | I171: 52.11765 | J171: 52.33739 | K171: 52.20368 | L171: 42.05368 | M171: 41.40259 | N171: 41.27139 | O171: 41.27745 | P171: 41.542 | Q171: 41.86723 | R171: 41.34145 | S171: 41.24186 | T171: 41.6643 | U171: 41.41245 | V171: 41.24916 | W171: 41.559 | X171: 41.04586 | Y171: 41.24219 | Z171: 40.84896 | AA171: 41.22316 | AB171: 40.85057 | AC171: 594.4617 | AD171: 6547.297 | AE171: 5952.836 | AF171: 51.82045 | AG171: 40.52046 | AH171: 33 | AI171: 33 | AJ171: 493586.2008 | AK171: 337869.8789 | AL171: 4054.080179 | AM171: 46 | AN171: 40 | AO171: 36992.19531 | AP171: 44 | AQ171: 9.86683386 | AR171: 10.47397386 | AS171: 303896.3016 | AT171: 7498.290908 | AU171: 821.7590842 | AV171: 227.2973842 | AW171: 1 | AX171: -594.461 | AY171: -1545.454908 | AZ171: -0.01625016277 | BA171: 0 | BB171: 0.5606910597 | BC171: 0.5606910597 | BD171: 7063.640946 | BE171: -1110.804946 | BF171: 0.3893353094 | BG171: 0.3893353094 | BH171: 43 | BI171: 0.7182410633
A172: 2013-01-07T22:00:00 | B172: 2013-01-07T22:00:00 | C172: 54.44071 | D172: 54.22072 | E172: 53.86253 | F172: 54.54816 | G172: 54.00241 | H172: 52.4669 | I172: 52.12312 | J172: 52.33728 | K172: 52.17853 | L172: 42.86662 | M172: 41.42587 | N172: 41.3017 | O172: 41.30532 | P172: 41.5517 | Q172: 41.88087 | R172: 41.35065 | S172: 41.24477 | T172: 41.6638 | U172: 41.42686 | V172: 41.28271 | W172: 41.57402 | X172: 41.05741 | Y172: 41.2515 | Z172: 40.86183 | AA172: 41.23214 | AB172: 40.85619 | AC172: 398.2027 | AD172: 6358.358 | AE172: 5961.156 | AF172: 51.48916 | AG172: 40.42501 | AH172: 33 | AI172: 33 | AJ172: 493586.2008 | AK172: 327493.1254 | AL172: 2704.696271 | AM172: 46 | AN172: 40 | AO172: 35174.91333 | AP172: 44 | AQ172: 9.804864545 | AR172: 10.41200454 | AS172: 301987.6604 | AT172: 7174.992204 | AU172: 551.7049744 | AV172: 153.5022744 | AW172: 1 | AX172: -397.202 | AY172: -1213.836204 | AZ172: -0.01276325552 | BA172: 0 | BB172: 0.5565145566 | BC172: 0.5565145566 | BD172: 6756.607372 | BE172: -795.4513722 | BF172: 0.3809712904 | BG172: 0.3809712904 | BH172: 43 | BI172: 0.7140645603
A173: 2013-01-07T23:00:00 | B173: 2013-01-07T23:00:00 | C173: 54.39912 | D173: 54.18895 | E173: 53.84793 | F173: 54.30873 | G173: 54.0829 | H173: 52.51563 | I173: 52.15766 | J173: 52.35993 | K173: 52.12384 | L173: 43.63812 | M173: 41.50341 | N173: 41.34129 | O173: 41.33261 | P173: 41.58394 | Q173: 41.89347 | R173: 41.36436 | S173: 41.24664 | T173: 41.66192 | U173: 41.4305 | V173: 41.26633 | W173: 41.56825 | X173: 41.0423 | Y173: 41.22021 | Z173: 40.86568 | AA173: 41.24076 | AB173: 40.87795 | AC173: 315.3978 | AD173: 6295.877 | AE173: 5980.695 | AF173: 50.88279 | AG173: 40.45077 | AH173: 31 | AI173: 31 | AJ173: 463671.8856 | AK173: 289471.2929 | AL173: 2132.273636 | AM173: 45 | AN173: 39 | AO173: 32839.35739 | AP173: 44 | AQ173: 9.664375087 | AR173: 10.27151509 | AS173: 279620.5788 | AT173: 6795.960855 | AU173: 441.2646687 | AV173: 125.8668687 | AW173: 1 | AX173: -315.182 | AY173: -815.2658552 | AZ173: -0.008572364536 | BA173: 0 | BB173: 0.5532004782 | BC173: 0.5532004782 | BD173: 6394.257734 | BE173: -413.5627337 | BF173: 0.3766227573 | BG173: 0.3766227573 | BH173: 43 | BI173: 0.7107504818
A174: 2013-01-08 | B174: 2013-01-08 | C174: 54.31684 | D174: 54.19849 | E174: 53.86628 | F174: 54.33223 | G174: 54.04812 | H174: 52.67511 | I174: 52.14725 | J174: 52.36153 | K174: 52.16108 | L174: 44.42788 | M174: 41.4518 | N174: 41.30348 | O174: 41.29578 | P174: 41.57661 | Q174: 41.89777 | R174: 41.38115 | S174: 41.26916 | T174: 41.69016 | U174: 41.43924 | V174: 41.26233 | W174: 41.56673 | X174: 41.04211 | Y174: 41.23105 | Z174: 40.86533 | AA174: 41.23973 | AB174: 40.88155 | AC174: 346.2892 | AD174: 6306.597 | AE174: 5960.308 | AF174: 50.67471 | AG174: 40.46223 | AH174: 31 | AI174: 31 | AJ174: 463671.8856 | AK174: 283346.7289 | AL174: 2326.247913 | AM174: 46 | AN174: 40 | AO174: 32202.99787 | AP174: 44 | AQ174: 9.703522227 | AR174: 10.31066223 | AS174: 280753.228 | AT174: 6637.383233 | AU174: 479.4646436 | AV174: 133.1754436 | AW174: 1 | AX174: -346.289 | AY174: -677.0752329 | AZ174: -0.007119316573 | BA174: 0 | BB174: 0.5495593156 | BC174: 0.5495593156 | BD174: 6246.543075 | BE174: -286.2350747 | BF174: 0.3736130503 | BG174: 0.3736130503 | BH174: 43 | BI174: 0.7071093192
A175: 2013-01-08T01:00:00 | B175: 2013-01-08T01:00:00 | C175: 54.29889 | D175: 54.16603 | E175: 53.81742 | F175: 54.25941 | G175: 54.09156 | H175: 52.66706 | I175: 52.12725 | J175: 52.3401 | K175: 52.14206 | L175: 46.23696 | M175: 41.46118 | N175: 41.31625 | O175: 41.30545 | P175: 41.5962 | Q175: 41.91459 | R175: 41.39444 | S175: 41.26968 | T175: 41.68798 | U175: 41.41459 | V175: 41.26243 | W175: 41.58379 | X175: 41.0499 | Y175: 41.24172 | Z175: 40.86134 | AA175: 41.25042 | AB175: 40.87883 | AC175: 260.3374 | AD175: 6232.85 | AE175: 5972.514 | AF175: 50.35812 | AG175: 40.43668 | AH175: 31 | AI175: 31 | AJ175: 463671.8856 | AK175: 274265.4888 | AL175: 1746.871764 | AM175: 45 | AN175: 39 | AO175: 30919.42365 | AP175: 44 | AQ175: 9.598905347 | AR175: 10.20604535 | AS175: 277726.3346 | AT175: 6442.281184 | AU175: 363.9731201 | AV175: 103.6357201 | AW175: 1 | AX175: -260.336 | AY175: -469.7671843 | AZ175: -0.004939512093 | BA175: 0 | BB175: 0.5468219323 | BC175: 0.5468219323 | BD175: 6059.04101 | BE175: -86.52700994 | BF175: 0.3727032353 | BG175: 0.3727032353 | BH175: 43 | BI175: 0.704371936
A176: 2013-01-08T02:00:00 | B176: 2013-01-08T02:00:00 | C176: 54.27657 | D176: 54.10334 | E176: 53.79092 | F176: 54.2011 | G176: 54.18063 | H176: 52.7268 | I176: 52.12406 | J176: 52.34365 | K176: 52.14073 | L176: 47.40497 | M176: 41.50465 | N176: 41.35209 | O176: 41.32712 | P176: 41.6184 | Q176: 41.92512 | R176: 41.39394 | S176: 41.2715 | T176: 41.6926 | U176: 41.43085 | V176: 41.27275 | W176: 41.59177 | X176: 41.05613 | Y176: 41.23467 | Z176: 40.86883 | AA176: 41.2565 | AB176: 40.88099 | AC176: 286.3195 | AD176: 6250.669 | AE176: 5966.747 | AF176: 50.3742 | AG176: 40.43751 | AH176: 31 | AI176: 31 | AJ176: 463671.8856 | AK176: 274668.2379 | AL176: 1917.707884 | AM176: 45 | AN176: 40 | AO176: 31055.48007 | AP176: 44 | AQ176: 9.66439187 | AR176: 10.27153187 | AS176: 279621.0644 | AT176: 6426.784114 | AU176: 396.8605391 | AV176: 110.5410391 | AW176: 1 | AX176: -283.922 | AY176: -460.0371141 | AZ176: -0.004837202266 | BA176: 0 | BB176: 0.5438365468 | BC176: 0.5438365468 | BD176: 6046.903318 | BE176: -80.15631771 | BF176: 0.371860407 | BG176: 0.371860407 | BH176: 43 | BI176: 0.7013865504
A177: 2013-01-08T03:00:00 | B177: 2013-01-08T03:00:00 | C177: 54.24415 | D177: 54.07832 | E177: 53.7601 | F177: 54.15783 | G177: 54.17626 | H177: 52.77892 | I177: 52.09975 | J177: 52.31901 | K177: 52.13113 | L177: 48.17507 | M177: 41.46212 | N177: 41.32739 | O177: 41.33498 | P177: 41.62077 | Q177: 41.92676 | R177: 41.39373 | S177: 41.27136 | T177: 41.67871 | U177: 41.4168 | V177: 41.25874 | W177: 41.56599 | X177: 41.03768 | Y177: 41.22156 | Z177: 40.86613 | AA177: 41.25016 | AB177: 40.87774 | AC177: 287.233 | AD177: 6242.406 | AE177: 5955.832 | AF177: 50.45672 | AG177: 40.46681 | AH177: 31 | AI177: 31 | AJ177: 463671.8856 | AK177: 277149.832 | AL177: 1919.637022 | AM177: 47 | AN177: 41 | AO177: 31180.53706 | AP177: 44 | AQ177: 9.729503314 | AR177: 10.33664331 | AS177: 281504.942 | AT177: 6409.48177 | AU177: 394.6012371 | AV177: 107.3682371 | AW177: 1 | AX177: -286.574 | AY177: -453.6497703 | AZ177: -0.004770040567 | BA177: 0 | BB177: 0.540823276 | BC177: 0.540823276 | BD177: 6033.010159 | BE177: -77.17815913 | BF177: 0.3710488934 | BG177: 0.3710488934 | BH177: 43 | BI177: 0.6983732796
A178: 2013-01-08T04:00:00 | B178: 2013-01-08T04:00:00 | C178: 54.21052 | D178: 54.0356 | E178: 53.70785 | F178: 54.10434 | G178: 54.23837 | H178: 52.78415 | I178: 52.10492 | J178: 52.3161 | K178: 52.11104 | L178: 48.89454 | M178: 41.48698 | N178: 41.34008 | O178: 41.34204 | P178: 41.63319 | Q178: 41.96225 | R178: 41.45433 | S178: 41.35322 | T178: 41.76991 | U178: 41.51509 | V178: 41.30774 | W178: 41.60363 | X178: 41.05806 | Y178: 41.24095 | Z178: 40.87505 | AA178: 41.24959 | AB178: 40.8693 | AC178: 312.3975 | AD178: 6282.047 | AE178: 5969.649 | AF178: 50.48387 | AG178: 40.44333 | AH178: 31 | AI178: 31 | AJ178: 463671.8856 | AK178: 278179.562 | AL178: 2083.881887 | AM178: 47 | AN178: 41 | AO178: 31537.57209 | AP178: 44 | AQ178: 9.741678208 | AR178: 10.34881821 | AS178: 281857.1998 | AT178: 6474.771886 | AU178: 427.8281099 | AV178: 115.4306099 | AW178: 1 | AX178: -312.398 | AY178: -505.1228859 | AZ178: -0.005311270534 | BA178: 0 | BB178: 0.5375384708 | BC178: 0.5375384708 | BD178: 6094.912764 | BE178: -125.2637635 | BF178: 0.3697317689 | BG178: 0.3697317689 | BH178: 43 | BI178: 0.6950884744
A179: 2013-01-08T05:00:00 | B179: 2013-01-08T05:00:00 | C179: 54.16402 | D179: 53.98612 | E179: 53.66214 | F179: 54.05838 | G179: 54.30545 | H179: 52.86934 | I179: 52.09745 | J179: 52.31195 | K179: 52.11254 | L179: 49.95073 | M179: 41.5447 | N179: 41.39742 | O179: 41.41372 | P179: 41.71416 | Q179: 42.04708 | R179: 41.54652 | S179: 41.42367 | T179: 41.85571 | U179: 41.57979 | V179: 41.37437 | W179: 41.65842 | X179: 41.0806 | Y179: 41.24018 | Z179: 40.87292 | AA179: 41.24451 | AB179: 40.86536 | AC179: 473.4287 | AD179: 6434.086 | AE179: 5960.657 | AF179: 50.74399 | AG179: 40.42396 | AH179: 31 | AI179: 31 | AJ179: 463671.8856 | AK179: 285819.6432 | AL179: 3147.983658 | AM179: 47 | AN179: 41 | AO179: 33199.98027 | AP179: 44 | AQ179: 9.798366327 | AR179: 10.40550633 | AS179: 283497.3642 | AT179: 6776.635852 | AU179: 642.5527588 | AV179: 169.1240588 | AW179: 1 | AX179: -473.429 | AY179: -815.9788518 | AZ179: -0.008579861559 | BA179: 0 | BB179: 0.5325604554 | BC179: 0.5325604554 | BD179: 6381.233018 | BE179: -420.5760178 | BF179: 0.3653094925 | BG179: 0.3653094925 | BH179: 43 | BI179: 0.690110459
A180: 2013-01-08T06:00:00 | B180: 2013-01-08T06:00:00 | C180: 54.13224 | D180: 53.95596 | E180: 53.60326 | F180: 53.97713 | G180: 54.17059 | H180: 53.00001 | I180: 52.12479 | J180: 52.3196 | K180: 52.11867 | L180: 51.53182 | M180: 41.67197 | N180: 41.54536 | O180: 41.54906 | P180: 41.80003 | Q180: 42.10349 | R180: 41.58045 | S180: 41.47136 | T180: 41.87271 | U180: 41.60149 | V180: 41.46642 | W180: 41.7558 | X180: 41.2056 | Y180: 41.33747 | Z180: 40.91386 | AA180: 41.27726 | AB180: 40.88931 | AC180: 511.3298 | AD180: 6463.014 | AE180: 5951.684 | AF180: 51.26224 | AG180: 40.45437 | AH180: 31 | AI180: 31 | AJ180: 463671.8856 | AK180: 300121.2872 | AL180: 3385.752374 | AM180: 48 | AN180: 42 | AO180: 34925.70756 | AP180: 44 | AQ180: 9.918060628 | AR180: 10.52520063 | AS180: 286960.4945 | AT180: 7042.850184 | AU180: 682.7448432 | AV180: 171.4150432 | AW180: 1 | AX180: -511.33 | AY180: -1091.166184 | AZ180: -0.01147340373 | BA180: 0 | BB180: 0.5271839183 | BC180: 0.5271839183 | BD180: 6636.587519 | BE180: -684.9035189 | BF180: 0.358107863 | BG180: 0.358107863 | BH180: 43 | BI180: 0.6847339219
A181: 2013-01-08T07:00:00 | B181: 2013-01-08T07:00:00 | C181: 54.0663 | D181: 53.90616 | E181: 53.52266 | F181: 53.89837 | G181: 54.01085 | H181: 53.14898 | I181: 52.13791 | J181: 52.3171 | K181: 52.1229 | L181: 51.94562 | M181: 41.68433 | N181: 41.53551 | O181: 41.51094 | P181: 41.76849 | Q181: 42.0893 | R181: 41.55794 | S181: 41.42641 | T181: 41.84517 | U181: 41.6055 | V181: 41.4684 | W181: 41.80309 | X181: 41.30067 | Y181: 41.47502 | Z181: 40.9977 | AA181: 41.28255 | AB181: 40.88906 | AC181: 553.9821 | AD181: 6497.344 | AE181: 5943.362 | AF181: 51.41769 | AG181: 40.4997 | AH181: 31 | AI181: 31 | AJ181: 463671.8856 | AK181: 304626.1748 | AL181: 3649.977544 | AM181: 48 | AN181: 43 | AO181: 35468.96841 | AP181: 44 | AQ181: 9.997432823 | AR181: 10.60457282 | AS181: 289256.9802 | AT181: 7095.615252 | AU181: 730.1829596 | AV181: 176.2008596 | AW181: 1 | AX181: -553.982 | AY181: -1152.253252 | AZ181: -0.01211572256 | BA181: 0 | BB181: 0.5213589035 | BC181: 0.5213589035 | BD181: 6689.372406 | BE181: -746.0104061 | BF181: 0.3502637063 | BG181: 0.3502637063 | BH181: 43 | BI181: 0.6789089071
A182: 2013-01-08T08:00:00 | B182: 2013-01-08T08:00:00 | C182: 54.01478 | D182: 53.84333 | E182: 53.47745 | F182: 53.84324 | G182: 53.9548 | H182: 53.3622 | I182: 52.11758 | J182: 52.28068 | K182: 52.11255 | L182: 51.94261 | M182: 41.64745 | N182: 41.50425 | O182: 41.50608 | P182: 41.78503 | Q182: 42.09722 | R182: 41.56933 | S182: 41.4532 | T182: 41.87996 | U182: 41.63598 | V182: 41.49751 | W182: 41.8097 | X182: 41.28318 | Y182: 41.4533 | Z182: 41.08203 | AA182: 41.38188 | AB182: 40.93773 | AC182: 635.4213 | AD182: 6589.716 | AE182: 5954.294 | AF182: 51.60094 | AG182: 40.55247 | AH182: 31 | AI182: 31 | AJ182: 463671.8856 | AK182: 308519.9949 | AL182: 4154.718056 | AM182: 49 | AN182: 43 | AO182: 36403.13977 | AP182: 44 | AQ182: 10.02928807 | AR182: 10.63642807 | AS182: 290178.6519 | AT182: 7259.366672 | AU182: 828.5170449 | AV182: 193.0957449 | AW182: 1 | AX182: -635.422 | AY182: -1305.072672 | AZ182: -0.01372258954 | BA182: 0 | BB182: 0.5146775627 | BC182: 0.5146775627 | BD182: 6844.993365 | BE182: -890.6993645 | BF182: 0.3408981728 | BG182: 0.3408981728 | BH182: 43 | BI182: 0.6722275663
A183: 2013-01-08T09:00:00 | B183: 2013-01-08T09:00:00 | C183: 53.93649 | D183: 53.78896 | E183: 53.43753 | F183: 53.78607 | G183: 53.89916 | H183: 53.46053 | I183: 52.18795 | J183: 52.26522 | K183: 52.08303 | L183: 51.91674 | M183: 41.66191 | N183: 41.49321 | O183: 41.48819 | P183: 41.76373 | Q183: 42.07104 | R183: 41.54749 | S183: 41.42359 | T183: 41.84516 | U183: 41.58575 | V183: 41.43643 | W183: 41.78243 | X183: 41.27417 | Y183: 41.47693 | Z183: 41.14914 | AA183: 41.52831 | AB183: 40.98736 | AC183: 530.6939 | AD183: 6494.859 | AE183: 5964.165 | AF183: 51.68484 | AG183: 40.47518 | AH183: 31 | AI183: 31 | AJ183: 463671.8856 | AK183: 309511.5331 | AL183: 3436.012151 | AM183: 48 | AN183: 43 | AO183: 36402.58057 | AP183: 44 | AQ183: 10.029269 | AR183: 10.636409 | AS183: 290178.1002 | AT183: 7259.268961 | AU183: 685.1969274 | AV183: 154.5030274 | AW183: 1 | AX183: -530.694 | AY183: -1295.103961 | AZ183: -0.01361777045 | BA183: 0 | BB183: 0.5090974168 | BC183: 0.5090974168 | BD183: 6844.900488 | BE183: -880.7354881 | BF183: 0.3316374076 | BG183: 0.3316374076 | BH183: 43 | BI183: 0.6666474204
A184: 2013-01-08T10:00:00 | B184: 2013-01-08T10:00:00 | C184: 53.91415 | D184: 53.75565 | E184: 53.40554 | F184: 53.75855 | G184: 53.86911 | H184: 53.4185 | I184: 52.26182 | J184: 52.27277 | K184: 52.06899 | L184: 51.89916 | M184: 41.69405 | N184: 41.51613 | O184: 41.5135 | P184: 41.77014 | Q184: 42.09549 | R184: 41.55025 | S184: 41.44106 | T184: 41.8603 | U184: 41.60825 | V184: 41.458 | W184: 41.79723 | X184: 41.31054 | Y184: 41.53846 | Z184: 41.20272 | AA184: 41.5646 | AB184: 41.0851 | AC184: 435.2803 | AD184: 6385.743 | AE184: 5950.463 | AF184: 51.78341 | AG184: 40.50079 | AH184: 31 | AI184: 31 | AJ184: 463671.8856 | AK184: 309535.5476 | AL184: 2792.116366 | AM184: 49 | AN184: 45 | AO184: 36023.95584 | AP184: 44 | AQ184: 10.13805189 | AR184: 10.74519189 | AS184: 293325.5294 | AT184: 7106.682076 | AU184: 550.8191111 | AV184: 115.5388111 | AW184: 1 | AX184: -435.28 | AY184: -1156.219076 | AZ184: -0.01215742244 | BA184: 0 | BB184: 0.5045205308 | BC184: 0.5045205308 | BD184: 6705.130294 | BE184: -754.6672942 | BF184: 0.3237022253 | BG184: 0.3237022253 | BH184: 43 | BI184: 0.6620705345
A185: 2013-01-08T11:00:00 | B185: 2013-01-08T11:00:00 | C185: 53.91219 | D185: 53.73425 | E185: 53.394 | F185: 53.75521 | G185: 53.85937 | H185: 53.41361 | I185: 52.42018 | J185: 52.28075 | K185: 52.08097 | L185: 51.90264 | M185: 42.43832 | N185: 41.5493 | O185: 41.54659 | P185: 41.79338 | Q185: 42.08501 | R185: 41.55258 | S185: 41.44411 | T185: 41.88442 | U185: 41.64763 | V185: 41.51531 | W185: 41.86047 | X185: 41.35472 | Y185: 41.56949 | Z185: 41.20121 | AA185: 41.55459 | AB185: 41.09151 | AC185: 466.3103 | AD185: 6421.591 | AE185: 5955.28 | AF185: 52.42127 | AG185: 40.49545 | AH185: 31 | AI185: 31 | AJ185: 463671.8856 | AK185: 327805.3698 | AL185: 2989.207569 | AM185: 49 | AN185: 46 | AO185: 38291.36919 | AP185: 44 | AQ185: 10.27621769 | AR185: 10.88335769 | AS185: 297323.0977 | AT185: 7452.424685 | AU185: 581.7719435 | AV185: 115.4616435 | AW185: 1 | AX185: -466.311 | AY185: -1497.144685 | AZ185: -0.01574219002 | BA185: 0 | BB185: 0.4996173599 | BC185: 0.4996173599 | BD185: 7036.683032 | BE185: -1081.403032 | BF185: 0.3123314793 | BG185: 0.3123314793 | BH185: 43 | BI185: 0.6571673635
A186: 2013-01-08T12:00:00 | B186: 2013-01-08T12:00:00 | C186: 53.88927 | D186: 53.72549 | E186: 53.36619 | F186: 53.75159 | G186: 53.85313 | H186: 53.37793 | I186: 52.6194 | J186: 52.28183 | K186: 52.07453 | L186: 51.89559 | M186: 46.28763 | N186: 41.55854 | O186: 41.54431 | P186: 41.8205 | Q186: 42.11569 | R186: 41.57024 | S186: 41.4413 | T186: 41.8796 | U186: 41.63559 | V186: 41.48755 | W186: 41.83067 | X186: 41.32205 | Y186: 41.5416 | Z186: 41.168 | AA186: 41.52296 | AB186: 41.07923 | AC186: 387.0895 | AD186: 6349.945 | AE186: 5962.856 | AF186: 52.19547 | AG186: 40.53656 | AH186: 29 | AI186: 29 | AJ186: 433757.5704 | AK186: 300877.4031 | AL186: 2479.315989 | AM186: 49 | AN186: 46 | AO186: 37016.71863 | AP186: 44 | AQ186: 10.23275211 | AR186: 10.83989211 | AS186: 276964.5024 | AT186: 7234.94877 | AU186: 484.5843941 | AV186: 97.49489407 | AW186: 1 | AX186: -387.089 | AY186: -1272.09277 | AZ186: -0.01337581217 | BA186: 0 | BB186: 0.4955471931 | BC186: 0.4955471931 | BD186: 6829.720863 | BE186: -866.8648626 | BF186: 0.3032165611 | BG186: 0.3032165611 | BH186: 43 | BI186: 0.6530971967
A187: 2013-01-08T13:00:00 | B187: 2013-01-08T13:00:00 | C187: 53.86326 | D187: 53.73381 | E187: 53.36304 | F187: 53.73796 | G187: 53.85688 | H187: 53.37353 | I187: 52.77182 | J187: 52.26145 | K187: 52.05193 | L187: 51.87834 | M187: 48.45974 | N187: 41.56392 | O187: 41.55045 | P187: 41.79197 | Q187: 42.10304 | R187: 41.55563 | S187: 41.44171 | T187: 41.87267 | U187: 41.63786 | V187: 41.50132 | W187: 41.84272 | X187: 41.3261 | Y187: 41.53062 | Z187: 41.16495 | AA187: 41.54653 | AB187: 41.0643 | AC187: 462.8239 | AD187: 6417.363 | AE187: 5954.539 | AF187: 52.37709 | AG187: 40.6152 | AH187: 29 | AI187: 29 | AJ187: 433757.5704 | AK187: 306197.3182 | AL187: 2961.832292 | AM187: 48 | AN187: 47 | AO187: 37740.15885 | AP187: 44 | AQ187: 10.31826842 | AR187: 10.92540842 | AS187: 279279.1272 | AT187: 7315.211685 | AU187: 574.094833 | AV187: 111.270933 | AW187: 1 | AX187: -462.824 | AY187: -1360.672685 | AZ187: -0.01430721304 | BA187: 0 | BB187: 0.4906806872 | BC187: 0.4906806872 | BD187: 6908.695292 | BE187: -954.1562924 | BF187: 0.2931837901 | BG187: 0.2931837901 | BH187: 43 | BI187: 0.6482306908
A188: 2013-01-08T14:00:00 | B188: 2013-01-08T14:00:00 | C188: 53.83927 | D188: 53.71092 | E188: 53.36954 | F188: 53.7392 | G188: 53.85988 | H188: 53.35207 | I188: 52.89713 | J188: 52.25068 | K188: 52.03038 | L188: 51.85809 | M188: 50.18642 | N188: 41.57862 | O188: 41.55873 | P188: 41.82507 | Q188: 42.11995 | R188: 41.56613 | S188: 41.45112 | T188: 41.89193 | U188: 41.65236 | V188: 41.50748 | W188: 41.85699 | X188: 41.33988 | Y188: 41.5407 | Z188: 41.16745 | AA188: 41.55114 | AB188: 41.12885 | AC188: 514.6993 | AD188: 6464.199 | AE188: 5949.5 | AF188: 52.42189 | AG188: 40.60254 | AH188: 29 | AI188: 29 | AJ188: 433757.5704 | AK188: 305662.7554 | AL188: 3271.022138 | AM188: 48 | AN188: 47 | AO188: 38201.31523 | AP188: 44 | AQ188: 10.33399385 | AR188: 10.94113385 | AS188: 279704.7592 | AT188: 7393.330359 | AU188: 633.0605932 | AV188: 118.3612932 | AW188: 1 | AX188: -514.699 | AY188: -1443.830359 | AZ188: -0.01518160007 | BA188: 0 | BB188: 0.4852687257 | BC188: 0.4852687257 | BD188: 6983.063319 | BE188: -1033.563319 | BF188: 0.2823160695 | BG188: 0.2823160695 | BH188: 43 | BI188: 0.6428187293
A189: 2013-01-08T15:00:00 | B189: 2013-01-08T15:00:00 | C189: 53.81379 | D189: 53.69924 | E189: 53.35283 | F189: 53.70857 | G189: 53.77831 | H189: 53.20143 | I189: 53.03585 | J189: 52.43124 | K189: 52.04047 | L189: 51.86283 | M189: 51.9654 | N189: 41.58556 | O189: 41.57605 | P189: 41.82309 | Q189: 42.1402 | R189: 41.58894 | S189: 41.46008 | T189: 41.90283 | U189: 41.66274 | V189: 41.5204 | W189: 41.86018 | X189: 41.34827 | Y189: 41.55546 | Z189: 41.18785 | AA189: 41.55859 | AB189: 41.15009 | AC189: 511.3979 | AD189: 6461.536 | AE189: 5950.138 | AF189: 52.42585 | AG189: 40.54079 | AH189: 29 | AI189: 29 | AJ189: 433757.5704 | AK189: 305195.0467 | AL189: 3238.094793 | AM189: 49 | AN189: 48 | AO189: 38397.87153 | AP189: 44 | AQ189: 10.40154342 | AR189: 11.00868342 | AS189: 281533.0878 | AT189: 7383.110367 | AU189: 622.6181371 | AV189: 111.2202371 | AW189: 1 | AX189: -511.398 | AY189: -1432.972367 | AZ189: -0.01506743036 | BA189: 0 | BB189: 0.4798914735 | BC189: 0.4798914735 | BD189: 6975.92438 | BE189: -1025.78638 | BF189: 0.2715301219 | BG189: 0.2715301219 | BH189: 43 | BI189: 0.6374414771
A190: 2013-01-08T16:00:00 | B190: 2013-01-08T16:00:00 | C190: 53.75973 | D190: 53.66904 | E190: 53.3146 | F190: 53.67488 | G190: 53.70253 | H190: 53.15992 | I190: 53.12948 | J190: 52.47643 | K190: 52.02718 | L190: 51.84724 | M190: 52.19949 | N190: 41.58213 | O190: 41.56979 | P190: 41.83176 | Q190: 42.14829 | R190: 41.58847 | S190: 41.47447 | T190: 41.91677 | U190: 41.68526 | V190: 41.54979 | W190: 41.88564 | X190: 41.37113 | Y190: 41.57351 | Z190: 41.20159 | AA190: 41.56683 | AB190: 41.1139 | AC190: 464.7785 | AD190: 6409.983 | AE190: 5945.205 | AF190: 52.42564 | AG190: 40.51707 | AH190: 29 | AI190: 29 | AJ190: 433757.5704 | AK190: 306168.8984 | AL190: 2938.754949 | AM190: 48 | AN190: 47 | AO190: 38166.86563 | AP190: 44 | AQ190: 10.33281912 | AR190: 10.93995912 | AS190: 279672.9634 | AT190: 7387.502905 | AU190: 568.8195866 | AV190: 104.0410866 | AW190: 1 | AX190: -464.778 | AY190: -1442.297905 | AZ190: -0.01516548661 | BA190: 0 | BB190: 0.4750044218 | BC190: 0.4750044218 | BD190: 6977.51522 | BE190: -1032.31022 | BF190: 0.2606755774 | BG190: 0.2606755774 | BH190: 42 | BI190: 0.6325544254
A191: 2013-01-08T17:00:00 | B191: 2013-01-08T17:00:00 | C191: 53.732 | D191: 53.62458 | E191: 53.26783 | F191: 53.59206 | G191: 53.63249 | H191: 53.07633 | I191: 53.06916 | J191: 52.72959 | K191: 52.07808 | L191: 51.82973 | M191: 52.25618 | N191: 41.61025 | O191: 41.60164 | P191: 41.8648 | Q191: 42.16239 | R191: 41.61155 | S191: 41.4957 | T191: 41.93145 | U191: 41.69411 | V191: 41.56437 | W191: 41.9015 | X191: 41.39002 | Y191: 41.59098 | Z191: 41.22068 | AA191: 41.58454 | AB191: 41.15871 | AC191: 421.6166 | AD191: 6374.307 | AE191: 5952.69 | AF191: 52.32059 | AG191: 40.54063 | AH191: 29 | AI191: 29 | AJ191: 433757.5704 | AK191: 302112.7169 | AL191: 2650.55389 | AM191: 48 | AN191: 47 | AO191: 37544.54074 | AP191: 44 | AQ191: 10.31159784 | AR191: 10.91873784 | AS191: 279098.5782 | AT191: 7282.002524 | AU191: 514.091789 | AV191: 92.47518899 | AW191: 1 | AX191: -421.617 | AY191: -1329.312524 | AZ191: -0.01397746693 | BA191: 0 | BB191: 0.4705711996 | BC191: 0.4705711996 | BD191: 6877.084384 | BE191: -924.394384 | BF191: 0.2509557473 | BG191: 0.2509557473 | BH191: 42 | BI191: 0.6281212033
A192: 2013-01-08T18:00:00 | B192: 2013-01-08T18:00:00 | C192: 53.69932 | D192: 53.54039 | E192: 53.1904 | F192: 53.5328 | G192: 53.6069 | H192: 53.08922 | I192: 53.12527 | J192: 53.04825 | K192: 52.12579 | L192: 51.8284 | M192: 52.24663 | N192: 41.64518 | O192: 41.63395 | P192: 41.88131 | Q192: 42.17844 | R192: 41.64247 | S192: 41.53531 | T192: 41.95644 | U192: 41.7095 | V192: 41.57233 | W192: 41.91021 | X192: 41.40171 | Y192: 41.60625 | Z192: 41.25815 | AA192: 41.62598 | AB192: 41.20812 | AC192: 349.9426 | AD192: 6297.045 | AE192: 5947.332 | AF192: 52.25079 | AG192: 40.54569 | AH192: 29 | AI192: 29 | AJ192: 433757.5704 | AK192: 298886.1227 | AL192: 2185.601503 | AM192: 47 | AN192: 46 | AO192: 36853.77071 | AP192: 44 | AQ192: 10.22719558 | AR192: 10.83433558 | AS192: 276814.1069 | AT192: 7207.01397 | AU192: 427.4097401 | AV192: 77.46714007 | AW192: 1 | AX192: -349.713 | AY192: -1259.68197 | AZ192: -0.01324531498 | BA192: 0 | BB192: 0.4668940343 | BC192: 0.4668940343 | BD192: 6803.143661 | BE192: -855.8116608 | BF192: 0.2419570513 | BG192: 0.2419570513 | BH192: 42 | BI192: 0.624444038
A193: 2013-01-08T19:00:00 | B193: 2013-01-08T19:00:00 | C193: 53.64079 | D193: 53.52404 | E193: 53.17109 | F193: 53.52319 | G193: 53.63188 | H193: 53.12536 | I193: 53.14482 | J193: 52.9399 | K193: 52.23228 | L193: 51.84232 | M193: 52.26163 | N193: 41.73238 | O193: 41.65823 | P193: 41.90936 | Q193: 42.21654 | R193: 41.64924 | S193: 41.54929 | T193: 41.98016 | U193: 41.73628 | V193: 41.58628 | W193: 41.92713 | X193: 41.41605 | Y193: 41.61054 | Z193: 41.2619 | AA193: 41.64327 | AB193: 41.21452 | AC193: 382.5279 | AD193: 6333.346 | AE193: 5950.818 | AF193: 52.18791 | AG193: 40.52843 | AH193: 29 | AI193: 29 | AJ193: 433757.5704 | AK193: 297010.9575 | AL193: 2376.697484 | AM193: 47 | AN193: 46 | AO193: 36921.76051 | AP193: 44 | AQ193: 10.22951403 | AR193: 10.83665403 | AS193: 276876.8592 | AT193: 7218.673417 | AU193: 464.6745635 | AV193: 82.14666347 | AW193: 1 | AX193: -382.528 | AY193: -1267.855417 | AZ193: -0.01333125721 | BA193: 0 | BB193: 0.4628718256 | BC193: 0.4628718256 | BD193: 6814.236276 | BE193: -863.4182756 | BF193: 0.2328783733 | BG193: 0.2328783733 | BH193: 42 | BI193: 0.6204218292
A194: 2013-01-08T20:00:00 | B194: 2013-01-08T20:00:00 | C194: 53.60186 | D194: 53.51452 | E194: 53.15834 | F194: 53.52229 | G194: 53.6567 | H194: 53.13757 | I194: 53.14394 | J194: 53.15743 | K194: 52.1399 | L194: 51.82758 | M194: 52.27946 | N194: 42.48322 | O194: 41.66527 | P194: 41.92705 | Q194: 42.2368 | R194: 41.69941 | S194: 41.54193 | T194: 41.96635 | U194: 41.72021 | V194: 41.55778 | W194: 41.90145 | X194: 41.38938 | Y194: 41.61132 | Z194: 41.27269 | AA194: 41.65239 | AB194: 41.25985 | AC194: 294.8607 | AD194: 6245.895 | AE194: 5952.137 | AF194: 52.21587 | AG194: 40.51693 | AH194: 29 | AI194: 29 | AJ194: 433757.5704 | AK194: 296540.8129 | AL194: 1819.586854 | AM194: 47 | AN194: 46 | AO194: 36535.17543 | AP194: 44 | AQ194: 10.21633148 | AR194: 10.82347148 | AS194: 276520.054 | AT194: 7152.308143 | AU194: 356.2113969 | AV194: 61.35069686 | AW194: 1 | AX194: -293.758 | AY194: -1200.171143 | AZ194: -0.01261957002 | BA194: 0 | BB194: 0.4597830164 | BC194: 0.4597830164 | BD194: 6751.101158 | BE194: -798.9641576 | BF194: 0.224477418 | BG194: 0.224477418 | BH194: 42 | BI194: 0.61733302
A195: 2013-01-08T21:00:00 | B195: 2013-01-08T21:00:00 | C195: 53.59088 | D195: 53.51159 | E195: 53.17688 | F195: 53.54321 | G195: 53.67268 | H195: 53.14514 | I195: 53.15609 | J195: 53.11394 | K195: 52.2664 | L195: 51.84806 | M195: 52.28279 | N195: 42.88384 | O195: 41.66536 | P195: 41.93246 | Q195: 42.24996 | R195: 41.71363 | S195: 41.59195 | T195: 42.0201 | U195: 41.77259 | V195: 41.61001 | W195: 41.96698 | X195: 41.46415 | Y195: 41.66557 | Z195: 41.30237 | AA195: 41.66628 | AB195: 41.28147 | AC195: 266.5345 | AD195: 6213.231 | AE195: 5954.58 | AF195: 51.94967 | AG195: 40.48407 | AH195: 29 | AI195: 29 | AJ195: 433757.5704 | AK195: 288750.5408 | AL195: 1640.44122 | AM195: 46 | AN195: 45 | AO195: 35619.21068 | AP195: 44 | AQ195: 10.12425008 | AR195: 10.73139008 | AS195: 274027.7354 | AT195: 7036.414624 | AU195: 324.0617737 | AV195: 57.5272737 | AW195: 1 | AX195: -258.651 | AY195: -1081.834624 | AZ195: -0.01137528416 | BA195: 0 | BB195: 0.4570633506 | BC195: 0.4570633506 | BD195: 6638.321857 | BE195: -683.7418572 | BF195: 0.2172880032 | BG195: 0.2172880032 | BH195: 42 | BI195: 0.6146133542
A196: 2013-01-08T22:00:00 | B196: 2013-01-08T22:00:00 | C196: 53.56747 | D196: 53.53111 | E196: 53.17872 | F196: 53.50983 | G196: 53.60883 | H196: 53.10216 | I196: 53.16685 | J196: 53.24917 | K196: 52.24183 | L196: 51.84748 | M196: 52.2948 | N196: 43.01618 | O196: 41.70096 | P196: 41.9569 | Q196: 42.2723 | R196: 41.7408 | S196: 41.62829 | T196: 42.05333 | U196: 41.80886 | V196: 41.65226 | W196: 42.00765 | X196: 41.48171 | Y196: 41.67192 | Z196: 41.30859 | AA196: 41.69059 | AB196: 41.27319 | AC196: 130.9613 | AD196: 6020.85 | AE196: 5939.17 | AF196: 51.84404 | AG196: 40.40154 | AH196: 29 | AI196: 29 | AJ196: 433757.5704 | AK196: 286115.6197 | AL196: 805.0374457 | AM196: 47 | AN196: 46 | AO196: 34446.78806 | AP196: 44 | AQ196: 10.14511747 | AR196: 10.75225747 | AS196: 274592.542 | AT196: 6790.811078 | AU196: 158.7044108 | AV196: 27.74311083 | AW196: 1 | AX196: -81.68 | AY196: -851.6410782 | AZ196: -0.008954843049 | BA196: 0 | BB196: 0.456204501 | BC196: 0.456204501 | BD196: 6407.359227 | BE196: -468.1892265 | BF196: 0.212365083 | BG196: 0.212365083 | BH196: 42 | BI196: 0.6137545046
A197: 2013-01-08T23:00:00 | B197: 2013-01-08T23:00:00 | C197: 53.58951 | D197: 53.53319 | E197: 53.20647 | F197: 53.56796 | G197: 53.66354 | H197: 53.14998 | I197: 53.20018 | J197: 53.09261 | K197: 52.2989 | L197: 51.87606 | M197: 52.29242 | N197: 42.5642 | O197: 41.70551 | P197: 41.95972 | Q197: 42.28069 | R197: 41.74902 | S197: 41.63258 | T197: 42.05304 | U197: 41.80473 | V197: 41.65863 | W197: 42.00651 | X197: 41.48979 | Y197: 41.69774 | Z197: 41.34618 | AA197: 41.70716 | AB197: 41.31233 | AC197: 124.3385 | AD197: 6013.35 | AE197: 5960.084 | AF197: 51.30307 | AG197: 40.47554 | AH197: 29 | AI197: 29 | AJ197: 433757.5704 | AK197: 270414.0884 | AL197: 763.2630727 | AM197: 47 | AN197: 46 | AO197: 32554.86376 | AP197: 44 | AQ197: 10.08060285 | AR197: 10.68774285 | AS197: 272846.3589 | AT197: 6458.912078 | AU197: 151.4320292 | AV197: 27.09352916 | AW197: 1 | AX197: -53.266 | AY197: -498.8280776 | AZ197: -0.005245081828 | BA197: 0 | BB197: 0.4556444192 | BC197: 0.4556444192 | BD197: 6091.999818 | BE197: -131.9158182 | BF197: 0.2109780134 | BG197: 0.2109780134 | BH197: 42 | BI197: 0.6131944228
A198: 2013-01-09 | B198: 2013-01-09 | C198: 53.60526 | D198: 53.53378 | E198: 53.20164 | F198: 53.56646 | G198: 53.68139 | H198: 53.17095 | I198: 53.19989 | J198: 53.19038 | K198: 52.16677 | L198: 51.87492 | M198: 52.27982 | N198: 42.56156 | O198: 41.70329 | P198: 41.95991 | Q198: 42.28386 | R198: 41.75298 | S198: 41.62913 | T198: 42.05361 | U198: 41.81271 | V198: 41.68797 | W198: 42.03275 | X198: 41.50977 | Y198: 41.70004 | Z198: 41.34142 | AA198: 41.68994 | AB198: 41.28814 | AC198: 179.1489 | AD198: 6107.215 | AE198: 5939.704 | AF198: 51.35956 | AG198: 40.56092 | AH198: 29 | AI198: 29 | AJ198: 433757.5704 | AK198: 272597.8114 | AL198: 1103.29925 | AM198: 48 | AN198: 47 | AO198: 32974.80809 | AP198: 44 | AQ198: 10.15576996 | AR198: 10.76290996 | AS198: 274880.8671 | AT198: =AO198*1000/(500*AQ198) -> 6493.807606 | AU198: 217.2753527 | AV198: =AU198-AC198 -> 38.1264527 | AW198: 1 | AX198: =AE198-AD198 -> -167.511 | AY198: =AE198-AT198 -> -554.1036063 | AZ198: -0.005826293439 | BA198: 0 | BB198: 0.4538830731 | BC198: 0.4538830731 | BD198: =AO198*1000/(500*AR198) -> 6127.489355 | BE198: =AE198-BD198 -> -187.7853553 | BF198: 0.2090034863 | BG198: 0.2090034863 | BH198: 42 | BI198: 0.6114330767
A199: 2013-01-09T01:00:00 | B199: 2013-01-09T01:00:00 | C199: 53.60238 | D199: 53.52156 | E199: 53.18407 | F199: 53.56338 | G199: 53.66895 | H199: 53.14098 | I199: 53.15616 | J199: 53.17364 | K199: 52.3057 | L199: 51.88607 | M199: 52.28135 | N199: 42.81161 | O199: 41.6966 | P199: 41.96177 | Q199: 42.2801 | R199: 41.7464 | S199: 41.63107 | T199: 42.05714 | U199: 41.82193 | V199: 41.68522 | W199: 42.03184 | X199: 41.49599 | Y199: 41.70625 | Z199: 41.34541 | AA199: 41.7039 | AB199: 41.30711 | AC199: 149.5991 | AD199: 6050.993 | AE199: 5950.125 | AF199: 51.10418 | AG199: 40.43289 | AH199: 29 | AI199: 29 | AJ199: =3.1416*(138/2)^2*AI199 -> 433757.5704 | AK199: =62.4*AJ199*(AF199-AB199)/1000 -> 265172.1247 | AL199: =500*AC199*(C199-AB199)/1000 -> 919.6806631 | AM199: 49 | AN199: 48 | AO199: 32285.95055 | AP199: 44 | AQ199: =19.5286-0.30357*AP199+0.0000341*AO199+0.060847*AN199 -> 10.19312691 | AR199: =19.5286-0.30357*42+0.0000341*AO199+0.060847*AN199 -> 10.80026691 | AS199: =62.4*AJ199*AQ199/1000 -> 275891.9882 | AT199: 6334.847161 | AU199: =AL199*1000/(500*AQ199) -> 180.4511355 | AV199: 30.85203554 | AW199: 1 | AX199: -100.868 | AY199: -384.7221611 | AZ199: -0.00404527994 | BA199: =IF(AZ199>1,1,IF(AZ199<0,0,AZ199)) -> 0 | BB199: 0.4528224654 | BC199: =IF(BB199>1,1,BB199) -> 0.4528224654 | BD199: 5978.731971 | BE199: -28.60697093 | BF199: 0.2087026895 | BG199: =IF(BF199>1,1,IF(BF199<0,0,BF199)) -> 0.2087026895 | BH199: 42 | BI199: 0.610372469
A200: 2013-01-09T02:00:00 | B200: 2013-01-09T02:00:00 | C200: 53.62004 | D200: 53.51448 | E200: 53.17604 | F200: 53.55736 | G200: 53.68241 | H200: 53.16275 | I200: 53.18363 | J200: 53.1863 | K200: 52.20801 | L200: 51.86401 | M200: 52.27808 | N200: 42.25629 | O200: 41.70037 | P200: 41.97102 | Q200: 42.27304 | R200: 41.74543 | S200: 41.63446 | T200: 42.06222 | U200: 41.82351 | V200: 41.67722 | W200: 42.02898 | X200: 41.50732 | Y200: 41.71122 | Z200: 41.3511 | AA200: 41.73743 | AB200: 41.33261 | AC200: 135.3893 | AD200: 6049.02 | AE200: 5946.432 | AF200: 51.29591 | AG200: 40.5109 | AH200: 29 | AI200: 29 | AJ200: 433757.5704 | AK200: 269671.3844 | AL200: 831.7932732 | AM200: 48 | AN200: 47 | AO200: 32619.3706 | AP200: 44 | AQ200: 10.14364954 | AR200: 10.75078954 | AS200: 274552.8102 | AT200: 6431.486119 | AU200: 164.0027626 | AV200: 28.61346255 | AW200: 1 | AX200: -102.588 | AY200: -485.0541185 | AZ200: =IF(AZ199>1,1+AY200*60/$BK$7,IF(AZ199<0,AY200*60/$BK$7,AZ199+AY200*60/$BK$7)) -> -0.005100251283 | BA200: 0 | BB200: =IF(BB199>1,1+AX200*60/$BK$7,BB199+AX200*60/$BK$7) -> 0.4517437722 | BC200: 0.4517437722 | BD200: 6068.274424 | BE200: -121.8424243 | BF200: =IF(BF199>1,1+BE200*60/$BK$7,IF(BF199<0,BE200*60/$BK$7,BF199+BE200*60/$BK$7)) -> 0.2074215397 | BG200: 0.2074215397 | BH200: 42 | BI200: 0.6092937758
... 925 more rows

Sheet tank level pred
D1: dT 44 | E1: dT 43 | F1: dT 42 | G1: dT 41 | H1: dT 40 | I1: dT 39 | J1: dT 38 | K1: dT 37 | L1: dT 36 | N1: ratio 44 | O1: ratio 43 | P1: ratio 42 | Q1: ratio 41 | R1: ratio 40 | S1: ratio 39 | T1: ratio 38 | U1: ratio 37 | V1: ratio 36
A2: 1 | B2: 2 | C2: 3 | D2: 4 | E2: 5 | F2: 6 | G2: 7 | H2: 8 | I2: 9 | J2: 10 | K2: 11 | L2: 12 | M2: 13 | N2: 1 | O2: 1 | P2: 1 | Q2: 1 | R2: 1 | S2: 1 | T2: 1 | U2: 1 | V2: 1 | Y2: 1 | Z2: 1
A3: 2013-01-01 | B3: 2013-01-01 | D3: 9.869858485 | E3: 10.17343069 | F3: 10.47700289 | G3: 10.78057509 | H3: 11.08414729 | I3: 11.38771949 | J3: 11.69129169 | K3: 11.9948639 | L3: 12.2984361 | N3: 1 | O3: 1 | P3: 1 | Q3: 1 | R3: 1 | S3: 1 | T3: 1 | U3: 1 | V3: 1 | X3: 1 | Y3: 1 | Z3: 1 | AA3: =COUNTIF(X3:X3590,"<0") -> 137
A4: 2013-01-01T01:00:00 | B4: 2013-01-01T01:00:00 | D4: 9.854189406 | E4: 10.15776161 | F4: 10.46133381 | G4: 10.76490601 | H4: 11.06847821 | I4: 11.37205041 | J4: 11.67562262 | K4: 11.97919482 | L4: 12.28276702 | N4: 1 | O4: 1 | P4: 1 | Q4: 1 | R4: 1 | S4: 1 | T4: 1 | U4: 1 | V4: 1 | X4: 1 | Y4: 1 | Z4: 1 | AA4: =COUNTIF(Y3:Y3590,"<0") -> 56
A5: 2013-01-01T02:00:00 | B5: 2013-01-01T02:00:00 | D5: 9.796342118 | E5: 10.09991432 | F5: 10.40348652 | G5: 10.70705872 | H5: 11.01063092 | I5: 11.31420313 | J5: 11.61777533 | K5: 11.92134753 | L5: 12.22491973 | N5: 1 | O5: 1 | P5: 1 | Q5: 1 | R5: 1 | S5: 1 | T5: 1 | U5: 1 | V5: 1 | X5: 1 | Y5: 1 | Z5: 1
A6: 2013-01-01T03:00:00 | B6: 2013-01-01T03:00:00 | D6: 9.760359021 | E6: 10.06393122 | F6: 10.36750342 | G6: 10.67107563 | H6: 10.97464783 | I6: 11.27822003 | J6: 11.58179223 | K6: 11.88536443 | L6: 12.18893663 | N6: 1 | O6: 1 | P6: 1 | Q6: 1 | R6: 1 | S6: 1 | T6: 1 | U6: 1 | V6: 1 | X6: 1 | Y6: 1 | Z6: 1
A7: 2013-01-01T04:00:00 | B7: 2013-01-01T04:00:00 | D7: 9.768828996 | E7: 10.0724012 | F7: 10.3759734 | G7: 10.6795456 | H7: 10.9831178 | I7: 11.28669 | J7: 11.59026221 | K7: 11.89383441 | L7: 12.19740661 | N7: 1 | O7: 1 | P7: 1 | Q7: 1 | R7: 1 | S7: 1 | T7: 1 | U7: 1 | V7: 1 | X7: 1 | Y7: 1 | Z7: 1
A8: 2013-01-01T05:00:00 | B8: 2013-01-01T05:00:00 | D8: 9.717127089 | E8: 10.02069929 | F8: 10.32427149 | G8: 10.62784369 | H8: 10.9314159 | I8: 11.2349881 | J8: 11.5385603 | K8: 11.8421325 | L8: 12.1457047 | N8: 1 | O8: 1 | P8: 1 | Q8: 1 | R8: 1 | S8: 1 | T8: 1 | U8: 1 | V8: 1 | X8: 1 | Y8: 1 | Z8: 1
A9: 2013-01-01T06:00:00 | B9: 2013-01-01T06:00:00 | D9: 9.626850868 | E9: 9.93042307 | F9: 10.23399527 | G9: 10.53756747 | H9: 10.84113967 | I9: 11.14471188 | J9: 11.44828408 | K9: 11.75185628 | L9: 12.05542848 | N9: 1 | O9: 1 | P9: 1 | Q9: 1 | R9: 1 | S9: 1 | T9: 1 | U9: 1 | V9: 1 | X9: 1 | Y9: 1 | Z9: 1
A10: 2013-01-01T07:00:00 | B10: 2013-01-01T07:00:00 | D10: 9.528169871 | E10: 9.831742073 | F10: 10.13531427 | G10: 10.43888648 | H10: 10.74245868 | I10: 11.04603088 | J10: 11.34960308 | K10: 11.65317528 | L10: 11.95674748 | N10: 1 | O10: 1 | P10: 1 | Q10: 1 | R10: 1 | S10: 1 | T10: 1 | U10: 1 | V10: 1 | X10: 1 | Y10: 1 | Z10: 1
A11: 2013-01-01T08:00:00 | B11: 2013-01-01T08:00:00 | D11: 9.496653234 | E11: 9.800225436 | F11: 10.10379764 | G11: 10.40736984 | H11: 10.71094204 | I11: 11.01451424 | J11: 11.31808644 | K11: 11.62165865 | L11: 11.92523085 | N11: 1 | O11: 1 | P11: 1 | Q11: 1 | R11: 1 | S11: 1 | T11: 1 | U11: 1 | V11: 1 | X11: 1 | Y11: 1 | Z11: 1
A12: 2013-01-01T09:00:00 | B12: 2013-01-01T09:00:00 | D12: 9.501957678 | E12: 9.80552988 | F12: 10.10910208 | G12: 10.41267428 | H12: 10.71624648 | I12: 11.01981869 | J12: 11.32339089 | K12: 11.62696309 | L12: 11.93053529 | N12: 1 | O12: 1 | P12: 1 | Q12: 1 | R12: 1 | S12: 1 | T12: 1 | U12: 1 | V12: 1 | X12: 1 | Y12: 1 | Z12: 1
A13: 2013-01-01T10:00:00 | B13: 2013-01-01T10:00:00 | D13: 9.513808727 | E13: 9.817380929 | F13: 10.12095313 | G13: 10.42452533 | H13: 10.72809753 | I13: 11.03166974 | J13: 11.33524194 | K13: 11.63881414 | L13: 11.94238634 | N13: 1 | O13: 1 | P13: 1 | Q13: 1 | R13: 1 | S13: 1 | T13: 1 | U13: 1 | V13: 1 | X13: 1 | Y13: 1 | Z13: 1
A14: 2013-01-01T11:00:00 | B14: 2013-01-01T11:00:00 | D14: 9.498742353 | E14: 9.802314555 | F14: 10.10588676 | G14: 10.40945896 | H14: 10.71303116 | I14: 11.01660336 | J14: 11.32017556 | K14: 11.62374776 | L14: 11.92731997 | N14: 1 | O14: 1 | P14: 1 | Q14: 1 | R14: 1 | S14: 1 | T14: 1 | U14: 1 | V14: 1 | X14: 1 | Y14: 1 | Z14: 1
A15: 2013-01-01T12:00:00 | B15: 2013-01-01T12:00:00 | D15: 9.607303711 | E15: 9.910875912 | F15: 10.21444811 | G15: 10.51802032 | H15: 10.82159252 | I15: 11.12516472 | J15: 11.42873692 | K15: 11.73230912 | L15: 12.03588132 | N15: 1 | O15: 1 | P15: 1 | Q15: 1 | R15: 1 | S15: 1 | T15: 1 | U15: 1 | V15: 1 | X15: 1 | Y15: 1 | Z15: 1
A16: 2013-01-01T13:00:00 | B16: 2013-01-01T13:00:00 | D16: 9.586074922 | E16: 9.889647124 | F16: 10.19321933 | G16: 10.49679153 | H16: 10.80036373 | I16: 11.10393593 | J16: 11.40750813 | K16: 11.71108033 | L16: 12.01465254 | N16: 1 | O16: 1 | P16: 1 | Q16: 1 | R16: 1 | S16: 1 | T16: 1 | U16: 1 | V16: 1 | X16: 1 | Y16: 1 | Z16: 1
A17: 2013-01-01T14:00:00 | B17: 2013-01-01T14:00:00 | D17: 9.432494406 | E17: 9.736066608 | F17: 10.03963881 | G17: 10.34321101 | H17: 10.64678321 | I17: 10.95035541 | J17: 11.25392762 | K17: 11.55749982 | L17: 11.86107202 | N17: 1 | O17: 1 | P17: 1 | Q17: 1 | R17: 1 | S17: 1 | T17: 1 | U17: 1 | V17: 1 | X17: 1 | Y17: 1 | Z17: 1
A18: 2013-01-01T15:00:00 | B18: 2013-01-01T15:00:00 | D18: 9.421028573 | E18: 9.724600775 | F18: 10.02817298 | G18: 10.33174518 | H18: 10.63531738 | I18: 10.93888958 | J18: 11.24246178 | K18: 11.54603398 | L18: 11.84960619 | N18: 1 | O18: 1 | P18: 1 | Q18: 1 | R18: 1 | S18: 1 | T18: 1 | U18: 1 | V18: 1 | X18: 1 | Y18: 1 | Z18: 1
A19: 2013-01-01T16:00:00 | B19: 2013-01-01T16:00:00 | D19: 9.345573557 | E19: 9.649145759 | F19: 9.95271796 | G19: 10.25629016 | H19: 10.55986236 | I19: 10.86343457 | J19: 11.16700677 | K19: 11.47057897 | L19: 11.77415117 | N19: 1 | O19: 1 | P19: 1 | Q19: 1 | R19: 1 | S19: 1 | T19: 1 | U19: 1 | V19: 1 | X19: 1 | Y19: 1 | Z19: 1
A20: 2013-01-01T17:00:00 | B20: 2013-01-01T17:00:00 | D20: 9.26667904 | E20: 9.570251242 | F20: 9.873823443 | G20: 10.17739565 | H20: 10.48096785 | I20: 10.78454005 | J20: 11.08811225 | K20: 11.39168445 | L20: 11.69525665 | N20: 0.9996319817 | O20: 1 | P20: 1 | Q20: 1 | R20: 1 | S20: 1 | T20: 1 | U20: 1 | V20: 1 | X20: 1 | Y20: 1 | Z20: 1
A21: 2013-01-01T18:00:00 | B21: 2013-01-01T18:00:00 | D21: 9.327445874 | E21: 9.631018075 | F21: 9.934590277 | G21: 10.23816248 | H21: 10.54173468 | I21: 10.84530688 | J21: 11.14887908 | K21: 11.45245129 | L21: 11.75602349 | N21: 1 | O21: 1 | P21: 1 | Q21: 1 | R21: 1 | S21: 1 | T21: 1 | U21: 1 | V21: 1 | X21: 1 | Y21: 1 | Z21: 1
A22: 2013-01-01T19:00:00 | B22: 2013-01-01T19:00:00 | D22: 9.253695566 | E22: 9.557267767 | F22: 9.860839969 | G22: 10.16441217 | H22: 10.46798437 | I22: 10.77155657 | J22: 11.07512878 | K22: 11.37870098 | L22: 11.68227318 | N22: 1 | O22: 1 | P22: 1 | Q22: 1 | R22: 1 | S22: 1 | T22: 1 | U22: 1 | V22: 1 | X22: 1 | Y22: 1 | Z22: 1
A23: 2013-01-01T20:00:00 | B23: 2013-01-01T20:00:00 | D23: 9.24246788 | E23: 9.546040081 | F23: 9.849612283 | G23: 10.15318448 | H23: 10.45675669 | I23: 10.76032889 | J23: 11.06390109 | K23: 11.36747329 | L23: 11.67104549 | N23: 1 | O23: 1 | P23: 1 | Q23: 1 | R23: 1 | S23: 1 | T23: 1 | U23: 1 | V23: 1 | X23: 1 | Y23: 1 | Z23: 1
A24: 2013-01-01T21:00:00 | B24: 2013-01-01T21:00:00 | D24: 9.1896489 | E24: 9.493221101 | F24: 9.796793303 | G24: 10.1003655 | H24: 10.40393771 | I24: 10.70750991 | J24: 11.01108211 | K24: 11.31465431 | L24: 11.61822651 | N24: 1 | O24: 1 | P24: 1 | Q24: 1 | R24: 1 | S24: 1 | T24: 1 | U24: 1 | V24: 1 | X24: 1 | Y24: 1 | Z24: 1
A25: 2013-01-01T22:00:00 | B25: 2013-01-01T22:00:00 | D25: 9.116840006 | E25: 9.420412208 | F25: 9.723984409 | G25: 10.02755661 | H25: 10.33112881 | I25: 10.63470101 | J25: 10.93827322 | K25: 11.24184542 | L25: 11.54541762 | N25: 1 | O25: 1 | P25: 1 | Q25: 1 | R25: 1 | S25: 1 | T25: 1 | U25: 1 | V25: 1 | X25: 1 | Y25: 1 | Z25: 1
A26: 2013-01-01T23:00:00 | B26: 2013-01-01T23:00:00 | D26: 9.071410125 | E26: 9.374982326 | F26: 9.678554528 | G26: 9.98212673 | H26: 10.28569893 | I26: 10.58927113 | J26: 10.89284333 | K26: 11.19641554 | L26: 11.49998774 | N26: 1 | O26: 1 | P26: 1 | Q26: 1 | R26: 1 | S26: 1 | T26: 1 | U26: 1 | V26: 1 | X26: 1 | Y26: 1 | Z26: 1
A27: 2013-01-02 | B27: 2013-01-02 | D27: 9.04445873 | E27: 9.348030932 | F27: 9.651603133 | G27: 9.955175335 | H27: 10.25874754 | I27: 10.56231974 | J27: 10.86589194 | K27: 11.16946414 | L27: 11.47303634 | N27: 1 | O27: 1 | P27: 1 | Q27: 1 | R27: 1 | S27: 1 | T27: 1 | U27: 1 | V27: 1 | X27: 1 | Y27: 1 | Z27: 1
A28: 2013-01-02T01:00:00 | B28: 2013-01-02T01:00:00 | D28: 8.978552674 | E28: 9.282124875 | F28: 9.585697077 | G28: 9.889269279 | H28: 10.19284148 | I28: 10.49641368 | J28: 10.79998588 | K28: 11.10355809 | L28: 11.40713029 | N28: 1 | O28: 1 | P28: 1 | Q28: 1 | R28: 1 | S28: 1 | T28: 1 | U28: 1 | V28: 1 | X28: 1 | Y28: 1 | Z28: 1
A29: 2013-01-02T02:00:00 | B29: 2013-01-02T02:00:00 | D29: 8.942414301 | E29: 9.245986503 | F29: 9.549558705 | G29: 9.853130906 | H29: 10.15670311 | I29: 10.46027531 | J29: 10.76384751 | K29: 11.06741971 | L29: 11.37099191 | N29: 1 | O29: 1 | P29: 1 | Q29: 1 | R29: 1 | S29: 1 | T29: 1 | U29: 1 | V29: 1 | X29: 1 | Y29: 1 | Z29: 1
A30: 2013-01-02T03:00:00 | B30: 2013-01-02T03:00:00 | D30: 8.88991706 | E30: 9.193489262 | F30: 9.497061463 | G30: 9.800633665 | H30: 10.10420587 | I30: 10.40777807 | J30: 10.71135027 | K30: 11.01492247 | L30: 11.31849467 | N30: 1 | O30: 1 | P30: 1 | Q30: 1 | R30: 1 | S30: 1 | T30: 1 | U30: 1 | V30: 1 | X30: 1 | Y30: 1 | Z30: 1
A31: 2013-01-02T04:00:00 | B31: 2013-01-02T04:00:00 | D31: 8.809515438 | E31: 9.11308764 | F31: 9.416659842 | G31: 9.720232043 | H31: 10.02380424 | I31: 10.32737645 | J31: 10.63094865 | K31: 10.93452085 | L31: 11.23809305 | N31: 1 | O31: 1 | P31: 1 | Q31: 1 | R31: 1 | S31: 1 | T31: 1 | U31: 1 | V31: 1 | X31: 1 | Y31: 1 | Z31: 1
A32: 2013-01-02T05:00:00 | B32: 2013-01-02T05:00:00 | D32: 8.855015115 | E32: 9.158587317 | F32: 9.462159518 | G32: 9.76573172 | H32: 10.06930392 | I32: 10.37287612 | J32: 10.67644832 | K32: 10.98002053 | L32: 11.28359273 | N32: 1 | O32: 1 | P32: 1 | Q32: 1 | R32: 1 | S32: 1 | T32: 1 | U32: 1 | V32: 1 | X32: 1 | Y32: 1 | Z32: 1
A33: 2013-01-02T06:00:00 | B33: 2013-01-02T06:00:00 | D33: 8.792585685 | E33: 9.096157887 | F33: 9.399730089 | G33: 9.70330229 | H33: 10.00687449 | I33: 10.31044669 | J33: 10.6140189 | K33: 10.9175911 | L33: 11.2211633 | N33: 1 | O33: 1 | P33: 1 | Q33: 1 | R33: 1 | S33: 1 | T33: 1 | U33: 1 | V33: 1 | X33: 1 | Y33: 1 | Z33: 1
A34: 2013-01-02T07:00:00 | B34: 2013-01-02T07:00:00 | D34: 8.887529778 | E34: 9.19110198 | F34: 9.494674182 | G34: 9.798246383 | H34: 10.10181858 | I34: 10.40539079 | J34: 10.70896299 | K34: 11.01253519 | L34: 11.31610739 | N34: 1 | O34: 1 | P34: 1 | Q34: 1 | R34: 1 | S34: 1 | T34: 1 | U34: 1 | V34: 1 | X34: 1 | Y34: 1 | Z34: 1
A35: 2013-01-02T08:00:00 | B35: 2013-01-02T08:00:00 | D35: 8.89711715 | E35: 9.200689352 | F35: 9.504261553 | G35: 9.807833755 | H35: 10.11140596 | I35: 10.41497816 | J35: 10.71855036 | K35: 11.02212256 | L35: 11.32569476 | N35: 1 | O35: 1 | P35: 1 | Q35: 1 | R35: 1 | S35: 1 | T35: 1 | U35: 1 | V35: 1 | X35: 1 | Y35: 1 | Z35: 1
A36: 2013-01-02T09:00:00 | B36: 2013-01-02T09:00:00 | D36: 8.969954311 | E36: 9.273526512 | F36: 9.577098714 | G36: 9.880670916 | H36: 10.18424312 | I36: 10.48781532 | J36: 10.79138752 | K36: 11.09495972 | L36: 11.39853192 | N36: 1 | O36: 1 | P36: 1 | Q36: 1 | R36: 1 | S36: 1 | T36: 1 | U36: 1 | V36: 1 | X36: 1 | Y36: 1 | Z36: 1
A37: 2013-01-02T10:00:00 | B37: 2013-01-02T10:00:00 | D37: 8.989921236 | E37: 9.293493438 | F37: 9.59706564 | G37: 9.900637841 | H37: 10.20421004 | I37: 10.50778224 | J37: 10.81135445 | K37: 11.11492665 | L37: 11.41849885 | N37: 1 | O37: 1 | P37: 1 | Q37: 1 | R37: 1 | S37: 1 | T37: 1 | U37: 1 | V37: 1 | X37: 1 | Y37: 1 | Z37: 1
A38: 2013-01-02T11:00:00 | B38: 2013-01-02T11:00:00 | D38: 9.072764984 | E38: 9.376337185 | F38: 9.679909387 | G38: 9.983481589 | H38: 10.28705379 | I38: 10.59062599 | J38: 10.89419819 | K38: 11.1977704 | L38: 11.5013426 | N38: 1 | O38: 1 | P38: 1 | Q38: 1 | R38: 1 | S38: 1 | T38: 1 | U38: 1 | V38: 1 | X38: 1 | Y38: 1 | Z38: 1
A39: 2013-01-02T12:00:00 | B39: 2013-01-02T12:00:00 | D39: 9.023354825 | E39: 9.326927027 | F39: 9.630499228 | G39: 9.93407143 | H39: 10.23764363 | I39: 10.54121583 | J39: 10.84478803 | K39: 11.14836024 | L39: 11.45193244 | N39: 1 | O39: 1 | P39: 1 | Q39: 1 | R39: 1 | S39: 1 | T39: 1 | U39: 1 | V39: 1 | X39: 1 | Y39: 1 | Z39: 1
A40: 2013-01-02T13:00:00 | B40: 2013-01-02T13:00:00 | D40: 9.082650006 | E40: 9.386222208 | F40: 9.689794409 | G40: 9.993366611 | H40: 10.29693881 | I40: 10.60051101 | J40: 10.90408322 | K40: 11.20765542 | L40: 11.51122762 | N40: 0.9996635261 | O40: 1 | P40: 1 | Q40: 1 | R40: 1 | S40: 1 | T40: 1 | U40: 1 | V40: 1 | X40: 1 | Y40: 1 | Z40: 1
A41: 2013-01-02T14:00:00 | B41: 2013-01-02T14:00:00 | D41: 9.151783342 | E41: 9.455355544 | F41: 9.758927746 | G41: 10.06249995 | H41: 10.36607215 | I41: 10.66964435 | J41: 10.97321655 | K41: 11.27678875 | L41: 11.58036096 | N41: 0.9991062413 | O41: 1 | P41: 1 | Q41: 1 | R41: 1 | S41: 1 | T41: 1 | U41: 1 | V41: 1 | X41: 1 | Y41: 1 | Z41: 1
A42: 2013-01-02T15:00:00 | B42: 2013-01-02T15:00:00 | D42: 9.241342456 | E42: 9.544914657 | F42: 9.848486859 | G42: 10.15205906 | H42: 10.45563126 | I42: 10.75920346 | J42: 11.06277567 | K42: 11.36634787 | L42: 11.66992007 | N42: 0.9972766645 | O42: 1 | P42: 1 | Q42: 1 | R42: 1 | S42: 1 | T42: 1 | U42: 1 | V42: 1 | X42: 1 | Y42: 1 | Z42: 1
A43: 2013-01-02T16:00:00 | B43: 2013-01-02T16:00:00 | D43: 9.248347007 | E43: 9.551919208 | F43: 9.85549141 | G43: 10.15906361 | H43: 10.46263581 | I43: 10.76620801 | J43: 11.06978022 | K43: 11.37335242 | L43: 11.67692462 | N43: 0.9950580399 | O43: 0.9997897038 | P43: 1 | Q43: 1 | R43: 1 | S43: 1 | T43: 1 | U43: 1 | V43: 1 | X43: 1 | Y43: 1 | Z43: 1
A44: 2013-01-02T17:00:00 | B44: 2013-01-02T17:00:00 | D44: 9.25398938 | E44: 9.557561582 | F44: 9.861133783 | G44: 10.16470598 | H44: 10.46827819 | I44: 10.77185039 | J44: 11.07542259 | K44: 11.37899479 | L44: 11.68256699 | N44: 0.9925344858 | O44: 0.999284993 | P44: 1 | Q44: 1 | R44: 1 | S44: 1 | T44: 1 | U44: 1 | V44: 1 | X44: 1 | Y44: 1 | Z44: 1
A45: 2013-01-02T18:00:00 | B45: 2013-01-02T18:00:00 | D45: 9.108920815 | E45: 9.412493017 | F45: 9.716065218 | G45: 10.01963742 | H45: 10.32320962 | I45: 10.62678182 | J45: 10.93035403 | K45: 11.23392623 | L45: 11.53749843 | N45: 0.9905892462 | O45: 0.9993691115 | P45: 1 | Q45: 1 | R45: 1 | S45: 1 | T45: 1 | U45: 1 | V45: 1 | X45: 1 | Y45: 1 | Z45: 1
A46: 2013-01-02T19:00:00 | B46: 2013-01-02T19:00:00 | D46: 9.12148614 | E46: 9.425058341 | F46: 9.728630543 | G46: 10.03220274 | H46: 10.33577495 | I46: 10.63934715 | J46: 10.94291935 | K46: 11.24649155 | L46: 11.55006375 | N46: 0.9878869403 | O46: 0.9987171933 | P46: 1 | Q46: 1 | R46: 1 | S46: 1 | T46: 1 | U46: 1 | V46: 1 | X46: 1 | Y46: 1 | Z46: 1
A47: 2013-01-02T20:00:00 | B47: 2013-01-02T20:00:00 | D47: 8.999839481 | E47: 9.303411683 | F47: 9.606983885 | G47: 9.910556086 | H47: 10.21412829 | I47: 10.51770049 | J47: 10.82127269 | K47: 11.12484489 | L47: 11.42841709 | N47: 0.9843119054 | O47: 0.9972451201 | P47: 1 | Q47: 1 | R47: 1 | S47: 1 | T47: 1 | U47: 1 | V47: 1 | X47: 1 | Y47: 1 | Z47: 1
A48: 2013-01-02T21:00:00 | B48: 2013-01-02T21:00:00 | D48: 8.986558105 | E48: 9.290130306 | F48: 9.593702508 | G48: 9.897274709 | H48: 10.20084691 | I48: 10.50441911 | J48: 10.80799131 | K48: 11.11156352 | L48: 11.41513572 | N48: 0.9815149662 | O48: 0.9965301131 | P48: 1 | Q48: 1 | R48: 1 | S48: 1 | T48: 1 | U48: 1 | V48: 1 | X48: 1 | Y48: 1 | Z48: 1
A49: 2013-01-02T22:00:00 | B49: 2013-01-02T22:00:00 | D49: 9.009429292 | E49: 9.313001493 | F49: 9.616573695 | G49: 9.920145897 | H49: 10.2237181 | I49: 10.5272903 | J49: 10.8308625 | K49: 11.1344347 | L49: 11.43800691 | N49: 0.9814518774 | O49: 0.9984543231 | P49: 1 | Q49: 1 | R49: 1 | S49: 1 | T49: 1 | U49: 1 | V49: 1 | X49: 1 | Y49: 1 | Z49: 1
A50: 2013-01-02T23:00:00 | B50: 2013-01-02T23:00:00 | D50: 8.915764282 | E50: 9.219336483 | F50: 9.522908685 | G50: 9.826480887 | H50: 10.13005309 | I50: 10.43362529 | J50: 10.73719749 | K50: 11.04076969 | L50: 11.34434189 | N50: 0.9829975543 | O50: 1 | P50: 1 | Q50: 1 | R50: 1 | S50: 1 | T50: 1 | U50: 1 | V50: 1 | X50: 1 | Y50: 1 | Z50: 1
A51: 2013-01-03 | B51: 2013-01-03 | D51: 8.844882277 | E51: 9.148454478 | F51: 9.45202668 | G51: 9.755598881 | H51: 10.05917108 | I51: 10.36274328 | J51: 10.66631549 | K51: 10.96988769 | L51: 11.27345989 | N51: 0.984879705 | O51: 1 | P51: 1 | Q51: 1 | R51: 1 | S51: 1 | T51: 1 | U51: 1 | V51: 1 | X51: 1 | Y51: 1 | Z51: 1
A52: 2013-01-03T01:00:00 | B52: 2013-01-03T01:00:00 | D52: 8.796100462 | E52: 9.099672663 | F52: 9.403244865 | G52: 9.706817067 | H52: 10.01038927 | I52: 10.31396147 | J52: 10.61753367 | K52: 10.92110587 | L52: 11.22467808 | N52: 0.9897585763 | O52: 1 | P52: 1 | Q52: 1 | R52: 1 | S52: 1 | T52: 1 | U52: 1 | V52: 1 | X52: 1 | Y52: 1 | Z52: 1
A53: 2013-01-03T02:00:00 | B53: 2013-01-03T02:00:00 | D53: 8.664817023 | E53: 8.968389225 | F53: 9.271961426 | G53: 9.575533628 | H53: 9.87910583 | I53: 10.18267803 | J53: 10.48625023 | K53: 10.78982243 | L53: 11.09339464 | N53: 0.9945217846 | O53: 1 | P53: 1 | Q53: 1 | R53: 1 | S53: 1 | T53: 1 | U53: 1 | V53: 1 | X53: 1 | Y53: 1 | Z53: 1
A54: 2013-01-03T03:00:00 | B54: 2013-01-03T03:00:00 | D54: 8.628937077 | E54: 8.932509279 | F54: 9.23608148 | G54: 9.539653682 | H54: 9.843225884 | I54: 10.14679809 | J54: 10.45037029 | K54: 10.75394249 | L54: 11.05751469 | N54: 0.9972451201 | O54: 1 | P54: 1 | Q54: 1 | R54: 1 | S54: 1 | T54: 1 | U54: 1 | V54: 1 | X54: 1 | Y54: 1 | Z54: 1
A55: 2013-01-03T04:00:00 | B55: 2013-01-03T04:00:00 | D55: 8.771993545 | E55: 9.075565746 | F55: 9.379137948 | G55: 9.68271015 | H55: 9.986282351 | I55: 10.28985455 | J55: 10.59342675 | K55: 10.89699896 | L55: 11.20057116 | N55: 0.9994322003 | O55: 1 | P55: 1 | Q55: 1 | R55: 1 | S55: 1 | T55: 1 | U55: 1 | V55: 1 | X55: 1 | Y55: 1 | Z55: 1
A56: 2013-01-03T05:00:00 | B56: 2013-01-03T05:00:00 | D56: 8.693263592 | E56: 8.996835793 | F56: 9.300407995 | G56: 9.603980197 | H56: 9.907552398 | I56: 10.2111246 | J56: 10.5146968 | K56: 10.818269 | L56: 11.12184121 | N56: 1 | O56: 1 | P56: 1 | Q56: 1 | R56: 1 | S56: 1 | T56: 1 | U56: 1 | V56: 1 | X56: 1 | Y56: 1 | Z56: 1
A57: 2013-01-03T06:00:00 | B57: 2013-01-03T06:00:00 | D57: 8.757656034 | E57: 9.061228235 | F57: 9.364800437 | G57: 9.668372639 | H57: 9.97194484 | I57: 10.27551704 | J57: 10.57908924 | K57: 10.88266145 | L57: 11.18623365 | N57: 0.9988328562 | O57: 1 | P57: 1 | Q57: 1 | R57: 1 | S57: 1 | T57: 1 | U57: 1 | V57: 1 | X57: 1 | Y57: 1 | Z57: 1
A58: 2013-01-03T07:00:00 | B58: 2013-01-03T07:00:00 | D58: 8.71352094 | E58: 9.017093142 | F58: 9.320665343 | G58: 9.624237545 | H58: 9.927809747 | I58: 10.23138195 | J58: 10.53495415 | K58: 10.83852635 | L58: 11.14209855 | N58: 1 | O58: 1 | P58: 1 | Q58: 1 | R58: 1 | S58: 1 | T58: 1 | U58: 1 | V58: 1 | X58: 1 | Y58: 1 | Z58: 1
A59: 2013-01-03T08:00:00 | B59: 2013-01-03T08:00:00 | D59: 8.859134027 | E59: 9.162706228 | F59: 9.46627843 | G59: 9.769850632 | H59: 10.07342283 | I59: 10.37699504 | J59: 10.68056724 | K59: 10.98413944 | L59: 11.28771164 | N59: 1 | O59: 1 | P59: 1 | Q59: 1 | R59: 1 | S59: 1 | T59: 1 | U59: 1 | V59: 1 | X59: 1 | Y59: 1 | Z59: 1
A60: 2013-01-03T09:00:00 | B60: 2013-01-03T09:00:00 | D60: 9.030573148 | E60: 9.334145349 | F60: 9.637717551 | G60: 9.941289753 | H60: 10.24486195 | I60: 10.54843416 | J60: 10.85200636 | K60: 11.15557856 | L60: 11.45915076 | N60: 0.998738223 | O60: 1 | P60: 1 | Q60: 1 | R60: 1 | S60: 1 | T60: 1 | U60: 1 | V60: 1 | X60: 1 | Y60: 1 | Z60: 1
A61: 2013-01-03T10:00:00 | B61: 2013-01-03T10:00:00 | D61: 9.239774652 | E61: 9.543346854 | F61: 9.846919056 | G61: 10.15049126 | H61: 10.45406346 | I61: 10.75763566 | J61: 11.06120786 | K61: 11.36478006 | L61: 11.66835227 | N61: 0.9970768832 | O61: 1 | P61: 1 | Q61: 1 | R61: 1 | S61: 1 | T61: 1 | U61: 1 | V61: 1 | X61: 1 | Y61: 1 | Z61: 1
A62: 2013-01-03T11:00:00 | B62: 2013-01-03T11:00:00 | D62: 9.380361038 | E62: 9.683933239 | F62: 9.987505441 | G62: 10.29107764 | H62: 10.59464984 | I62: 10.89822205 | J62: 11.20179425 | K62: 11.50536645 | L62: 11.80893865 | N62: 0.9950790695 | O62: 0.9999789704 | P62: 1 | Q62: 1 | R62: 1 | S62: 1 | T62: 1 | U62: 1 | V62: 1 | X62: 1 | Y62: 1 | Z62: 1
A63: 2013-01-03T12:00:00 | B63: 2013-01-03T12:00:00 | D63: 9.513943662 | E63: 9.817515864 | F63: 10.12108807 | G63: 10.42466027 | H63: 10.72823247 | I63: 11.03180467 | J63: 11.33537687 | K63: 11.63894907 | L63: 11.94252128 | N63: 0.9892012914 | O63: 0.9961620948 | P63: 0.998128364 | Q63: 0.9999579408 | R63: 1 | S63: 1 | T63: 1 | U63: 1 | V63: 1 | X63: 0.998128364 | Y63: 0.998128364 | Z63: 0.998128364
A64: 2013-01-03T13:00:00 | B64: 2013-01-03T13:00:00 | D64: 9.583900983 | E64: 9.887473185 | F64: 10.19104539 | G64: 10.49461759 | H64: 10.79818979 | I64: 11.10176199 | J64: 11.40533419 | K64: 11.70890639 | L64: 12.0124786 | N64: 0.9832604245 | O64: 0.9922821304 | P64: 0.9961831244 | Q64: 0.9998317631 | R64: 1 | S64: 1 | T64: 1 | U64: 1 | V64: 1 | X64: 0.9961831244 | Y64: 0.9961831244 | Z64: 0.9961831244
A65: 2013-01-03T14:00:00 | B65: 2013-01-03T14:00:00 | D65: 9.689572489 | E65: 9.993144691 | F65: 10.29671689 | G65: 10.60028909 | H65: 10.9038613 | I65: 11.2074335 | J65: 11.5110057 | K65: 11.8145779 | L65: 12.1181501 | N65: 0.9713366314 | O65: 0.9825664471 | P65: 0.9885493733 | Q65: 0.9941642812 | R65: 0.9961936392 | S65: 0.9979496123 | T65: 0.9996109521 | U65: 1 | V65: 1 | X65: 0.9885493733 | Y65: 0.9885493733 | Z65: 0.9885493733
A66: 2013-01-03T15:00:00 | B66: 2013-01-03T15:00:00 | D66: 9.692472626 | E66: 9.996044828 | F66: 10.29961703 | G66: 10.60318923 | H66: 10.90676143 | I66: 11.21033363 | J66: 11.51390584 | K66: 11.81747804 | L66: 12.12105024 | N66: 0.959265631 | O66: 0.9727140713 | P66: 0.9807894444 | Q66: 0.9883706215 | R66: 0.9922611008 | S66: 0.9957730469 | T66: 0.9991062413 | U66: 1 | V66: 1 | X66: 0.9807894444 | Y66: 0.9807894444 | Z66: 0.9807894444
A67: 2013-01-03T16:00:00 | B67: 2013-01-03T16:00:00 | D67: 9.710153309 | E67: 10.01372551 | F67: 10.31729771 | G67: 10.62086991 | H67: 10.92444212 | I67: 11.22801432 | J67: 11.53158652 | K67: 11.83515872 | L67: 12.13873092 | N67: 0.9461641793 | O67: 0.9618627887 | P67: 0.9720516384 | Q67: 0.9816201143 | R67: 0.9873927443 | S67: 0.9926816931 | T67: 0.9977077717 | U67: 1 | V67: 1 | X67: 0.9720516384 | Y67: 0.9720516384 | Z67: 0.9720516384
A68: 2013-01-03T17:00:00 | B68: 2013-01-03T17:00:00 | D68: 9.703436373 | E68: 10.00700857 | F68: 10.31058078 | G68: 10.61415298 | H68: 10.91772518 | I68: 11.22129738 | J68: 11.52486958 | K68: 11.82844178 | L68: 12.13201399 | N68: 0.9334938347 | O68: 0.9514320985 | P68: 0.9637239099 | Q68: 0.9752691699 | R68: 0.9829239506 | S68: 0.9899793873 | T68: 0.9966878352 | U68: 1 | V68: 1 | X68: 0.9637239099 | Y68: 0.9637239099 | Z68: 0.9637239099
A69: 2013-01-03T18:00:00 | B69: 2013-01-03T18:00:00 | D69: 9.56812939 | E69: 9.871701592 | F69: 10.17527379 | G69: 10.478846 | H69: 10.7824182 | I69: 11.0859904 | J69: 11.3895626 | K69: 11.6931348 | L69: 11.996707 | N69: 0.9206342237 | O69: 0.9408436861 | P69: 0.9552805184 | Q69: 0.9688341069 | R69: 0.9783815532 | S69: 0.9872350222 | T69: 0.9956468692 | U69: 1 | V69: 1 | X69: 0.9552805184 | Y69: 0.9552805184 | Z69: 0.9552805184
A70: 2013-01-03T19:00:00 | B70: 2013-01-03T19:00:00 | D70: 9.477679667 | E70: 9.781251869 | F70: 10.08482407 | G70: 10.38839627 | H70: 10.69196847 | I70: 10.99554068 | J70: 11.29911288 | K70: 11.60268508 | L70: 11.90625728 | N70: 0.9089943304 | O70: 0.9314539619 | P70: 0.9480147856 | Q70: 0.9635556729 | R70: 0.97498527 | S70: 0.9856157416 | T70: 0.995709958 | U70: 1 | V70: 1 | X70: 0.9480147856 | Y70: 0.9480147856 | Z70: 0.9480147856
A71: 2013-01-03T20:00:00 | B71: 2013-01-03T20:00:00 | D71: 9.501872668 | E71: 9.80544487 | F71: 10.10901707 | G71: 10.41258927 | H71: 10.71616148 | I71: 11.01973368 | J71: 11.32330588 | K71: 11.62687808 | L71: 11.93045028 | N71: 0.8998464468 | O71: 0.9244721289 | P71: 0.9430728255 | Q71: 0.960527408 | R71: 0.973776067 | S71: 0.9861099377 | T71: 0.9978234346 | U71: 1 | V71: 1 | X71: 0.9430728255 | Y71: 0.9430728255 | Z71: 0.9430728255
A72: 2013-01-03T21:00:00 | B72: 2013-01-03T21:00:00 | D72: 9.549451138 | E72: 9.85302334 | F72: 10.15659554 | G72: 10.46016774 | H72: 10.76373994 | I72: 11.06731215 | J72: 11.37088435 | K72: 11.67445655 | L72: 11.97802875 | N72: 0.8920129143 | O72: 0.9187625877 | P72: 0.939361098 | Q72: 0.9586873165 | R72: 0.9737129782 | S72: 0.9877187034 | T72: 1 | U72: 1 | V72: 1 | X72: 0.939361098 | Y72: 0.939361098 | Z72: 0.939361098
A73: 2013-01-03T22:00:00 | B73: 2013-01-03T22:00:00 | D73: 9.431265513 | E73: 9.734837715 | F73: 10.03840992 | G73: 10.34198212 | H73: 10.64555432 | I73: 10.94912652 | J73: 11.25269872 | K73: 11.55627093 | L73: 11.85984313 | N73: 0.8870183801 | O73: 0.9158289561 | P73: 0.9383621912 | Q73: 0.9595074716 | R73: 0.9762470471 | S73: 0.9918720528 | T73: 1 | U73: 1 | V73: 1 | X73: 0.9383621912 | Y73: 0.9383621912 | Z73: 0.9383621912
A74: 2013-01-03T23:00:00 | B74: 2013-01-03T23:00:00 | D74: 9.402025489 | E74: 9.705597691 | F74: 10.00916989 | G74: 10.31274209 | H74: 10.6163143 | I74: 10.9198865 | J74: 11.2234587 | K74: 11.5270309 | L74: 11.8306031 | N74: 0.883674671 | O74: 0.9144935754 | P74: 0.9389194761 | Q74: 0.9618417591 | R74: 0.9802531892 | S74: 0.9974659311 | T74: 1 | U74: 1 | V74: 1 | X74: 0.9389194761 | Y74: 0.9389194761 | Z74: 0.9389194761
A75: 2013-01-04 | B75: 2013-01-04 | D75: 9.419889034 | E75: 9.723461236 | F75: 10.02703344 | G75: 10.33060564 | H75: 10.63417784 | I75: 10.93775004 | J75: 11.24132224 | K75: 11.54489445 | L75: 11.84846665 | N75: 0.8833381971 | O75: 0.9160707967 | P75: 0.9422947297 | Q75: 0.9669098969 | R75: 0.9869195779 | S75: 1 | T75: 1 | U75: 1 | V75: 1 | X75: 0.9422947297 | Y75: 0.9422947297 | Z75: 0.9422947297
A76: 2013-01-04T01:00:00 | B76: 2013-01-04T01:00:00 | D76: 9.263956247 | E76: 9.567528448 | F76: 9.87110065 | G76: 10.17467285 | H76: 10.47824505 | I76: 10.78181725 | J76: 11.08538946 | K76: 11.38896166 | L76: 11.69253386 | N76: 0.8842950447 | O76: 0.9189308246 | P76: 0.9469422751 | Q76: 0.9732398118 | R76: 0.9948372289 | S76: 1 | T76: 1 | U76: 1 | V76: 1 | X76: 0.9469422751 | Y76: 0.9469422751 | Z76: 0.9469422751
A77: 2013-01-04T02:00:00 | B77: 2013-01-04T02:00:00 | D77: 9.233380586 | E77: 9.536952787 | F77: 9.840524989 | G77: 10.14409719 | H77: 10.44766939 | I77: 10.75124159 | J77: 11.0548138 | K77: 11.358386 | L77: 11.6619582 | N77: 0.8870183801 | O77: 0.9235047664 | P77: 0.9532616752 | Q77: 0.9811890072 | R77: 1 | S77: 1 | T77: 1 | U77: 1 | V77: 1 | X77: 0.9532616752 | Y77: 0.9532616752 | Z77: 0.9532616752
A78: 2013-01-04T03:00:00 | B78: 2013-01-04T03:00:00 | D78: 9.230885954 | E78: 9.534458156 | F78: 9.838030357 | G78: 10.14160256 | H78: 10.44517476 | I78: 10.74874696 | J78: 11.05231916 | K78: 11.35589137 | L78: 11.65946357 | N78: 0.8899204673 | O78: 0.9282469452 | P78: 0.9597387974 | Q78: 0.9893064395 | R78: 1 | S78: 1 | T78: 1 | U78: 1 | V78: 1 | X78: 0.9597387974 | Y78: 0.9597387974 | Z78: 0.9597387974
A79: 2013-01-04T04:00:00 | B79: 2013-01-04T04:00:00 | D79: 9.25949701 | E79: 9.563069212 | F79: 9.866641414 | G79: 10.17021362 | H79: 10.47378582 | I79: 10.77735802 | J79: 11.08093022 | K79: 11.38450242 | L79: 11.68807462 | N79: 0.8911401852 | O79: 0.9313698434 | P79: 0.9646386982 | Q79: 0.9958887098 | R79: 1 | S79: 1 | T79: 1 | U79: 1 | V79: 1 | X79: 0.9646386982 | Y79: 0.9646386982 | Z79: 0.9646386982
A80: 2013-01-04T05:00:00 | B80: 2013-01-04T05:00:00 | D80: 9.223728997 | E80: 9.527301199 | F80: 9.8308734 | G80: 10.1344456 | H80: 10.4380178 | I80: 10.74159001 | J80: 11.04516221 | K80: 11.34873441 | L80: 11.65230661 | N80: 0.8903936337 | O80: 0.9325895612 | P80: 0.9676985076 | Q80: 1 | R80: 1 | S80: 1 | T80: 1 | U80: 1 | V80: 1 | X80: 0.9676985076 | Y80: 0.9676985076 | Z80: 0.9676985076
A81: 2013-01-04T06:00:00 | B81: 2013-01-04T06:00:00 | D81: 9.270492199 | E81: 9.5740644 | F81: 9.877636602 | G81: 10.1812088 | H81: 10.48478101 | I81: 10.78835321 | J81: 11.09192541 | K81: 11.39549761 | L81: 11.69906981 | N81: 0.8868922024 | O81: 0.9311280028 | P81: 0.9681611591 | Q81: 1 | R81: 1 | S81: 1 | T81: 1 | U81: 1 | V81: 1 | X81: 0.9681611591 | Y81: 0.9681611591 | Z81: 0.9681611591
A82: 2013-01-04T07:00:00 | B82: 2013-01-04T07:00:00 | D82: 9.292169989 | E82: 9.595742191 | F82: 9.899314393 | G82: 10.20288659 | H82: 10.5064588 | I82: 10.810031 | J82: 11.1136032 | K82: 11.4171754 | L82: 11.7207476 | N82: 0.8820448756 | O82: 0.9283626081 | P82: 0.9673515189 | Q82: 1 | R82: 1 | S82: 1 | T82: 1 | U82: 1 | V82: 1 | X82: 0.9673515189 | Y82: 0.9673515189 | Z82: 0.9673515189
A83: 2013-01-04T08:00:00 | B83: 2013-01-04T08:00:00 | D83: 9.351604134 | E83: 9.655176336 | F83: 9.958748538 | G83: 10.26232074 | H83: 10.56589294 | I83: 10.86946514 | J83: 11.17303734 | K83: 11.47660955 | L83: 11.78018175 | N83: 0.8777653484 | O83: 0.9261439834 | P83: 0.9670571042 | Q83: 1 | R83: 1 | S83: 1 | T83: 1 | U83: 1 | V83: 1 | X83: 0.9670571042 | Y83: 0.9670571042 | Z83: 0.9670571042
A84: 2013-01-04T09:00:00 | B84: 2013-01-04T09:00:00 | D84: 9.361505495 | E84: 9.665077696 | F84: 9.968649898 | G84: 10.2722221 | H84: 10.5757943 | I84: 10.8793665 | J84: 11.1829387 | K84: 11.48651091 | L84: 11.79008311 | N84: 0.872896992 | O84: 0.9233365295 | P84: 0.9661948899 | Q84: 1 | R84: 1 | S84: 1 | T84: 1 | U84: 1 | V84: 1 | X84: 0.9661948899 | Y84: 0.9661948899 | Z84: 0.9661948899
A85: 2013-01-04T10:00:00 | B85: 2013-01-04T10:00:00 | D85: 9.4775223 | E85: 9.781094501 | F85: 10.0846667 | G85: 10.3882389 | H85: 10.69181111 | I85: 10.99538331 | J85: 11.29895551 | K85: 11.60252771 | L85: 11.90609991 | N85: 0.8652422112 | O85: 0.9178162549 | P85: 0.962672429 | Q85: 0.9983702046 | R85: 1 | S85: 1 | T85: 1 | U85: 1 | V85: 1 | X85: 0.962672429 | Y85: 0.962672429 | Z85: 0.962672429
A86: 2013-01-04T11:00:00 | B86: 2013-01-04T11:00:00 | D86: 9.57074202 | E86: 9.874314222 | F86: 10.17788642 | G86: 10.48145863 | H86: 10.78503083 | I86: 11.08860303 | J86: 11.39217523 | K86: 11.69574743 | L86: 11.99931963 | N86: 0.8562310202 | O86: 0.9109605996 | P86: 0.957835617 | Q86: 0.9954470878 | R86: 0.9988749155 | S86: 1 | T86: 1 | U86: 1 | V86: 1 | X86: 0.957835617 | Y86: 0.957835617 | Z86: 0.957835617
A87: 2013-01-04T12:00:00 | B87: 2013-01-04T12:00:00 | D87: 9.627722336 | E87: 9.931294538 | F87: 10.23486674 | G87: 10.53843894 | H87: 10.84201114 | I87: 11.14558334 | J87: 11.44915555 | K87: 11.75272775 | L87: 12.05629995 | N87: 0.8478717472 | O87: 0.9047148032 | P87: 0.9535876342 | Q87: 0.9930812559 | R87: 0.9982860862 | S87: 1 | T87: 1 | U87: 1 | V87: 1 | X87: 0.9535876342 | Y87: 0.9535876342 | Z87: 0.9535876342
A88: 2013-01-04T13:00:00 | B88: 2013-01-04T13:00:00 | D88: 9.686414328 | E88: 9.989986529 | F88: 10.29355873 | G88: 10.59713093 | H88: 10.90070313 | I88: 11.20427534 | J88: 11.50784754 | K88: 11.81141974 | L88: 12.11499194 | N88: 0.836063617 | O88: 0.8951147829 | P88: 0.946069546 | Q88: 0.9875294368 | R88: 0.9945848735 | S88: 0.9980442456 | T88: 0.9997055854 | U88: 1 | V88: 1 | X88: 0.946069546 | Y88: 0.946069546 | Z88: 0.946069546
A89: 2013-01-04T14:00:00 | B89: 2013-01-04T14:00:00 | D89: 9.750077226 | E89: 10.05364943 | F89: 10.35722163 | G89: 10.66079383 | H89: 10.96436603 | I89: 11.26793823 | J89: 11.57151044 | K89: 11.87508264 | L89: 12.17865484 | N89: 0.8246024755 | O89: 0.8858407216 | P89: 0.9388563872 | Q89: 0.9822615177 | R89: 0.991146531 | S89: 0.9963408466 | T89: 0.9996530113 | U89: 1 | V89: 1 | X89: 0.9388563872 | Y89: 0.9388563872 | Z89: 0.9388563872
A90: 2013-01-04T15:00:00 | B90: 2013-01-04T15:00:00 | D90: 9.868236663 | E90: 10.17180886 | F90: 10.47538107 | G90: 10.77895327 | H90: 11.08252547 | I90: 11.38609767 | J90: 11.68966987 | K90: 11.99324207 | L90: 12.29681428 | N90: 0.8104074837 | O90: 0.873885384 | P90: 0.9290145262 | Q90: 0.9744174703 | R90: 0.9851846345 | S90: 0.9921664675 | T90: 0.9971610016 | U90: 0.9991167561 | V90: 1 | X90: 0.9290145262 | Y90: 0.9290145262 | Z90: 0.9290145262
A91: 2013-01-04T16:00:00 | B91: 2013-01-04T16:00:00 | D91: 9.86376061 | E91: 10.16733281 | F91: 10.47090501 | G91: 10.77447721 | H91: 11.07804942 | I91: 11.38162162 | J91: 11.68519382 | K91: 11.98876602 | L91: 12.29233822 | N91: 0.7964963917 | O91: 0.8622139463 | P91: 0.9194460503 | Q91: 0.9668362932 | R91: 0.9794856082 | S91: 0.9882444438 | T91: 0.9949213474 | U91: 0.9984858675 | V91: 1 | X91: 0.9194460503 | Y91: 0.9194460503 | Z91: 0.9194460503
A92: 2013-01-04T17:00:00 | B92: 2013-01-04T17:00:00 | D92: 9.804479281 | E92: 10.10805148 | F92: 10.41162368 | G92: 10.71519589 | H92: 11.01876809 | I92: 11.32234029 | J92: 11.62591249 | K92: 11.92948469 | L92: 12.23305689 | N92: 0.7819964705 | O92: 0.8499852238 | P92: 0.9093518339 | Q92: 0.9587504053 | R92: 0.9733029006 | S92: 0.9838597686 | T92: 0.9922400712 | U92: 0.9974238719 | V92: 1 | X92: 0.9093518339 | Y92: 0.9093518339 | Z92: 0.9093518339
A93: 2013-01-04T18:00:00 | B93: 2013-01-04T18:00:00 | D93: 9.72054712 | E93: 10.02411932 | F93: 10.32769152 | G93: 10.63126372 | H93: 10.93483593 | I93: 11.23840813 | J93: 11.54198033 | K93: 11.84555253 | L93: 12.14912473 | N93: 0.7683377339 | O93: 0.8385871711 | P93: 0.9000777726 | Q93: 0.9514846725 | R93: 0.9679298334 | S93: 0.9802742188 | T93: 0.9903579204 | U93: 0.9971504868 | V93: 1 | X93: 0.9000777726 | Y93: 0.9000777726 | Z93: 0.9000777726
A94: 2013-01-04T19:00:00 | B94: 2013-01-04T19:00:00 | D94: 9.730801726 | E94: 10.03437393 | F94: 10.33794613 | G94: 10.64151833 | H94: 10.94509053 | I94: 11.24866273 | J94: 11.55223494 | K94: 11.85580714 | L94: 12.15937934 | N94: 0.7579596177 | O94: 0.8303645907 | P94: 0.8938845502 | Q94: 0.9472156601 | R94: 0.9654693681 | S94: 0.9795276674 | T94: 0.9912306495 | U94: 0.999558378 | V94: 1 | X94: 0.8938845502 | Y94: 0.8938845502 | Z94: 0.8938845502
A95: 2013-01-04T20:00:00 | B95: 2013-01-04T20:00:00 | D95: 9.672901495 | E95: 9.976473697 | F95: 10.2800459 | G95: 10.5836181 | H95: 10.8871903 | I95: 11.1907625 | J95: 11.49433471 | K95: 11.79790691 | L95: 12.10147911 | N95: 0.7469400982 | O95: 0.8215321513 | P95: 0.8871130134 | Q95: 0.9423893629 | R95: 0.9624726476 | S95: 0.9782658903 | T95: 0.9916091826 | U95: 1 | V95: 1 | X95: 0.8871130134 | Y95: 0.8871130134 | Z95: 0.8871130134
A96: 2013-01-04T21:00:00 | B96: 2013-01-04T21:00:00 | D96: 9.644898289 | E96: 9.948470491 | F96: 10.25204269 | G96: 10.55561489 | H96: 10.8591871 | I96: 11.1627593 | J96: 11.4663315 | K96: 11.7699037 | L96: 12.0734759 | N96: 0.7375398592 | O96: 0.8142769333 | P96: 0.8818766387 | Q96: 0.9390561686 | R96: 0.9609374855 | S96: 0.9784341273 | T96: 0.9933861853 | U96: 1 | V96: 1 | X96: 0.8818766387 | Y96: 0.8818766387 | Z96: 0.8818766387
A97: 2013-01-04T22:00:00 | B97: 2013-01-04T22:00:00 | D97: 9.621535336 | E97: 9.925107538 | F97: 10.22867974 | G97: 10.53225194 | H97: 10.83582414 | I97: 11.13939634 | J97: 11.44296855 | K97: 11.74654075 | L97: 12.05011295 | N97: 0.7294539712 | O97: 0.8082940071 | P97: 0.8778810113 | Q97: 0.9369321772 | R97: 0.9605904969 | S97: 0.9797589932 | T97: 0.9962882725 | U97: 1 | V97: 1 | X97: 0.8778810113 | Y97: 0.8778810113 | Z97: 0.8778810113
A98: 2013-01-04T23:00:00 | B98: 2013-01-04T23:00:00 | D98: 9.544080046 | E98: 9.847652247 | F98: 10.15122445 | G98: 10.45479665 | H98: 10.75836885 | I98: 11.06194105 | J98: 11.36551326 | K98: 11.66908546 | L98: 11.97265766 | N98: 0.7258473918 | O98: 0.8066747266 | P98: 0.8781333668 | Q98: 0.9389510205 | R98: 0.9642706799 | S98: 0.9850163976 | T98: 1 | U98: 1 | V98: 1 | X98: 0.8781333668 | Y98: 0.8781333668 | Z98: 0.8781333668
A99: 2013-01-05 | B99: 2013-01-05 | D99: 9.592720908 | E99: 9.896293109 | F99: 10.19986531 | G99: 10.50343751 | H99: 10.80700971 | I99: 11.11058192 | J99: 11.41415412 | K99: 11.71772632 | L99: 12.02129852 | N99: 0.7232922933 | O99: 0.8060753825 | P99: 0.8793635994 | Q99: 0.9419056817 | R99: 0.9688551365 | S99: 0.9911360162 | T99: 1 | U99: 1 | V99: 1 | X99: 0.8793635994 | Y99: 0.8793635994 | Z99: 0.8793635994
A100: 2013-01-05T01:00:00 | B100: 2013-01-05T01:00:00 | D100: 9.620925238 | E100: 9.92449744 | F100: 10.22806964 | G100: 10.53164184 | H100: 10.83521404 | I100: 11.13878625 | J100: 11.44235845 | K100: 11.74593065 | L100: 12.04950285 | N100: 0.7231030268 | O100: 0.8077577519 | P100: 0.8828124566 | Q100: 0.9470158788 | R100: 0.9755320401 | S100: 0.9992955078 | T100: 1 | U100: 1 | V100: 1 | X100: 0.8828124566 | Y100: 0.8828124566 | Z100: 0.8828124566
A101: 2013-01-05T02:00:00 | B101: 2013-01-05T02:00:00 | D101: 9.525391042 | E101: 9.828963244 | F101: 10.13253545 | G101: 10.43610765 | H101: 10.73967985 | I101: 11.04325205 | J101: 11.34682425 | K101: 11.65039645 | L101: 11.95396866 | N101: 0.7245014963 | O101: 0.8110068278 | P101: 0.8877859612 | Q101: 0.9536191787 | R101: 0.983670502 | S101: 1 | T101: 1 | U101: 1 | V101: 1 | X101: 0.8877859612 | Y101: 0.8877859612 | Z101: 0.8877859612
A102: 2013-01-05T03:00:00 | B102: 2013-01-05T03:00:00 | D102: 9.544479331 | E102: 9.848051533 | F102: 10.15162373 | G102: 10.45519594 | H102: 10.75876814 | I102: 11.06234034 | J102: 11.36591254 | K102: 11.66948474 | L102: 11.97305694 | N102: 0.7247643665 | O102: 0.813141334 | P102: 0.8916764404 | Q102: 0.9591709977 | R102: 0.9907785127 | S102: 1 | T102: 1 | U102: 1 | V102: 1 | X102: 0.8916764404 | Y102: 0.8916764404 | Z102: 0.8916764404
A103: 2013-01-05T04:00:00 | B103: 2013-01-05T04:00:00 | D103: 9.435999149 | E103: 9.739571351 | F103: 10.04314355 | G103: 10.34671575 | H103: 10.65028796 | I103: 10.95386016 | J103: 11.25743236 | K103: 11.56100456 | L103: 11.86457676 | N103: 0.726278499 | O103: 0.8163483506 | P103: 0.8964711932 | Q103: 0.9654693681 | R103: 0.9984858675 | S103: 1 | T103: 1 | U103: 1 | V103: 1 | X103: 0.8964711932 | Y103: 0.8964711932 | Z103: 0.8964711932
A104: 2013-01-05T05:00:00 | B104: 2013-01-05T05:00:00 | D104: 9.315397732 | E104: 9.618969934 | F104: 9.922542136 | G104: 10.22611434 | H104: 10.52968654 | I104: 10.83325874 | J104: 11.13683094 | K104: 11.44040314 | L104: 11.74397535 | N104: 0.7281606498 | O104: 0.8201021373 | P104: 0.9019704382 | Q104: 0.9726194381 | R104: 1 | S104: 1 | T104: 1 | U104: 1 | V104: 1 | X104: 0.9019704382 | Y104: 0.9019704382 | Z104: 0.9019704382
A105: 2013-01-05T06:00:00 | B105: 2013-01-05T06:00:00 | D105: 9.293079269 | E105: 9.59665147 | F105: 9.900223672 | G105: 10.20379587 | H105: 10.50736808 | I105: 10.81094028 | J105: 11.11451248 | K105: 11.41808468 | L105: 11.72165688 | N105: 0.7273089503 | O105: 0.8212061923 | P105: 0.9049145846 | Q105: 0.9772880131 | R105: 1 | S105: 1 | T105: 1 | U105: 1 | V105: 1 | X105: 0.9049145846 | Y105: 0.9049145846 | Z105: 0.9049145846
A106: 2013-01-05T07:00:00 | B106: 2013-01-05T07:00:00 | D106: 9.416687741 | E106: 9.720259943 | F106: 10.02383214 | G106: 10.32740435 | H106: 10.63097655 | I106: 10.93454875 | J106: 11.23812095 | K106: 11.54169315 | L106: 11.84526535 | N106: 0.7272038022 | O106: 0.8230042246 | P106: 0.9085106492 | Q106: 0.9825664471 | R106: 1 | S106: 1 | T106: 1 | U106: 1 | V106: 1 | X106: 0.9085106492 | Y106: 0.9085106492 | Z106: 0.9085106492
A107: 2013-01-05T08:00:00 | B107: 2013-01-05T08:00:00 | D107: 9.456653147 | E107: 9.760225348 | F107: 10.06379755 | G107: 10.36736975 | H107: 10.67094195 | I107: 10.97451415 | J107: 11.27808636 | K107: 11.58165856 | L107: 11.88523076 | N107: 0.7247433369 | O107: 0.8225100285 | P107: 0.9098775743 | Q107: 0.9856788305 | R107: 1 | S107: 1 | T107: 1 | U107: 1 | V107: 1 | X107: 0.9098775743 | Y107: 0.9098775743 | Z107: 0.9098775743
A108: 2013-01-05T09:00:00 | B108: 2013-01-05T09:00:00 | D108: 9.523788098 | E108: 9.8273603 | F108: 10.1309325 | G108: 10.4345047 | H108: 10.7380769 | I108: 11.04164911 | J108: 11.34522131 | K108: 11.64879351 | L108: 11.95236571 | N108: 0.7223144161 | O108: 0.822047377 | P108: 0.9112550143 | Q108: 0.9887912139 | R108: 1 | S108: 1 | T108: 1 | U108: 1 | V108: 1 | X108: 0.9112550143 | Y108: 0.9112550143 | Z108: 0.9112550143
A109: 2013-01-05T10:00:00 | B109: 2013-01-05T10:00:00 | D109: 9.590972302 | E109: 9.894544504 | F109: 10.19811671 | G109: 10.50168891 | H109: 10.80526111 | I109: 11.10883331 | J109: 11.41240551 | K109: 11.71597771 | L109: 12.01954992 | N109: 0.7159845012 | O109: 0.8177783646 | P109: 0.9089312415 | Q109: 0.9882970179 | R109: 1 | S109: 1 | T109: 1 | U109: 1 | V109: 1 | X109: 0.9089312415 | Y109: 0.9089312415 | Z109: 0.9089312415
A110: 2013-01-05T11:00:00 | B110: 2013-01-05T11:00:00 | D110: 9.737193766 | E110: 10.04076597 | F110: 10.34433817 | G110: 10.64791037 | H110: 10.95148257 | I110: 11.25505477 | J110: 11.55862698 | K110: 11.86219918 | L110: 12.16577138 | N110: 0.7090867867 | O110: 0.8129310378 | P110: 0.9060186395 | Q110: 0.9872034778 | R110: 1 | S110: 1 | T110: 1 | U110: 1 | V110: 1 | X110: 0.9060186395 | Y110: 0.9060186395 | Z110: 0.9060186395
A111: 2013-01-05T12:00:00 | B111: 2013-01-05T12:00:00 | D111: 9.858861986 | E111: 10.16243419 | F111: 10.46600639 | G111: 10.76957859 | H111: 11.07315079 | I111: 11.37672299 | J111: 11.6802952 | K111: 11.9838674 | L111: 12.2874396 | N111: 0.6991608073 | O111: 0.8051290497 | P111: 0.9002039503 | Q111: 0.9832709393 | R111: 0.9978444642 | S111: 0.9995268336 | T111: 1 | U111: 1 | V111: 1 | X111: 0.9002039503 | Y111: 0.9002039503 | Z111: 0.9002039503
A112: 2013-01-05T13:00:00 | B112: 2013-01-05T13:00:00 | D112: 9.98558718 | E112: 10.28915938 | F112: 10.59273158 | G112: 10.89630379 | H112: 11.19987599 | I112: 11.50344819 | J112: 11.80702039 | K112: 12.11059259 | L112: 12.41416479 | N112: 0.6861750185 | O112: 0.7943303411 | P112: 0.8914661442 | Q112: 0.976467858 | R112: 0.9928814745 | S112: 0.9963093021 | T112: 0.9984332935 | U112: 1 | V112: 1 | X112: 0.8914661442 | Y112: 0.8914661442 | Z112: 0.8914661442
A113: 2013-01-05T14:00:00 | B113: 2013-01-05T14:00:00 | D113: 10.12779147 | E113: 10.43136368 | F113: 10.73493588 | G113: 11.03850808 | H113: 11.34208028 | I113: 11.64565248 | J113: 11.94922468 | K113: 12.25279689 | L113: 12.55636909 | N113: 0.6692251468 | O113: 0.7796411533 | P113: 0.8789219774 | Q113: 0.9659425345 | R113: 0.9842698461 | S113: 0.9895167357 | T113: 0.9933546409 | U113: 0.9965616575 | V113: 0.9981178492 | X113: 0.8789219774 | Y113: 0.8789219774 | Z113: 0.8789219774
A114: 2013-01-05T15:00:00 | B114: 2013-01-05T15:00:00 | D114: 10.269718 | E114: 10.5732902 | F114: 10.8768624 | G114: 11.1804346 | H114: 11.4840068 | I114: 11.78757901 | J114: 12.09115121 | K114: 12.39472341 | L114: 12.69829561 | N114: 0.6484689144 | O114: 0.761240238 | P114: 0.862729172 | Q114: 0.951842176 | R114: 0.9721567865 | S114: 0.9792858268 | T114: 0.9849112495 | U114: 0.9898216651 | V114: 0.9929971374 | X114: 0.862729172 | Y114: 0.862729172 | Z114: 0.862729172
A115: 2013-01-05T16:00:00 | B115: 2013-01-05T16:00:00 | D115: 10.29851907 | E115: 10.60209127 | F115: 10.90566347 | G115: 11.20923567 | H115: 11.51280788 | I115: 11.81638008 | J115: 12.11995228 | K115: 12.42352448 | L115: 12.72709668 | N115: 0.6298892473 | O115: 0.7449317697 | P115: 0.8485762394 | Q115: 0.9397186015 | R115: 0.9619679368 | S115: 0.9709265538 | T115: 0.97828692 | U115: 0.9848481606 | V115: 0.9896008542 | X115: 0.8485762394 | Y115: 0.8485762394 | Z115: 0.8485762394
A116: 2013-01-05T17:00:00 | B116: 2013-01-05T17:00:00 | D116: 10.210048 | E116: 10.5136202 | F116: 10.8171924 | G116: 11.1207646 | H116: 11.4243368 | I116: 11.727909 | J116: 12.03148121 | K116: 12.33505341 | L116: 12.63862561 | N116: 0.6122769427 | O116: 0.7295906637 | P116: 0.8353801544 | Q116: 0.9285413598 | R116: 0.9527043903 | S116: 0.9634820693 | T116: 0.9725773788 | U116: 0.9807789296 | V116: 0.9870878149 | X116: 0.8353801544 | Y116: 0.8353801544 | Z116: 0.8353801544
A117: 2013-01-05T18:00:00 | B117: 2013-01-05T18:00:00 | D117: 9.951975115 | E117: 10.25554732 | F117: 10.55911952 | G117: 10.86269172 | H117: 11.16626392 | I117: 11.46983612 | J117: 11.77340832 | K117: 12.07698053 | L117: 12.38055273 | N117: 0.597303855 | O117: 0.7168677452 | P117: 0.8247707124 | Q117: 0.9199297315 | R117: 0.9459854275 | S117: 0.9585611388 | T117: 0.9693493325 | U117: 0.9791701639 | V117: 0.9870142112 | X117: 0.8247707124 | Y117: 0.8247707124 | Z117: 0.8247707124
A118: 2013-01-05T19:00:00 | B118: 2013-01-05T19:00:00 | D118: 9.855429274 | E118: 10.15900148 | F118: 10.46257368 | G118: 10.76614588 | H118: 11.06971808 | I118: 11.37329028 | J118: 11.67686248 | K118: 11.98043469 | L118: 12.28400689 | N118: 0.5838764443 | O118: 0.7056589591 | P118: 0.8156648881 | Q118: 0.9128006912 | R118: 0.9407175083 | S118: 0.9550702223 | T118: 0.9675302706 | U118: 0.9789493529 | V118: 0.9883075327 | X118: 0.8156648881 | Y118: 0.8156648881 | Z118: 0.8156648881
A119: 2013-01-05T20:00:00 | B119: 2013-01-05T20:00:00 | D119: 9.745039063 | E119: 10.04861126 | F119: 10.35218347 | G119: 10.65575567 | H119: 10.95932787 | I119: 11.26290007 | J119: 11.56647227 | K119: 11.87004447 | L119: 12.17361668 | N119: 0.5727202322 | O119: 0.6966793124 | P119: 0.8087356291 | Q119: 0.907806157 | R119: 0.9375525509 | S119: 0.9536402083 | T119: 0.967730052 | U119: 0.980705326 | V119: 0.9915460938 | X119: 0.8087356291 | Y119: 0.8087356291 | Z119: 0.8087356291
A120: 2013-01-05T21:00:00 | B120: 2013-01-05T21:00:00 | D120: 9.716527486 | E120: 10.02009969 | F120: 10.32367189 | G120: 10.62724409 | H120: 10.93081629 | I120: 11.23438849 | J120: 11.5379607 | K120: 11.8415329 | L120: 12.1451051 | N120: 0.5631622711 | O120: 0.6892663722 | P120: 0.8033310174 | Q120: 0.9042942109 | R120: 0.9358386371 | S120: 0.9536191787 | T120: 0.9693177881 | U120: 0.9838177094 | V120: 0.996099006 | X120: 0.8033310174 | Y120: 0.8033310174 | Z120: 0.8033310174
A121: 2013-01-05T22:00:00 | B121: 2013-01-05T22:00:00 | D121: 9.66745086 | E121: 9.971023062 | F121: 10.27459526 | G121: 10.57816747 | H121: 10.88173967 | I121: 11.18531187 | J121: 11.48888407 | K121: 11.79245627 | L121: 12.09602847 | N121: 0.5563381602 | O121: 0.6845031639 | P121: 0.8005130487 | Q121: 0.9033058189 | R121: 0.9365746737 | S121: 0.9559955254 | T121: 0.9732398118 | U121: 0.9892118062 | V121: 1 | X121: 0.8005130487 | Y121: 0.8005130487 | Z121: 0.8005130487
A122: 2013-01-05T23:00:00 | B122: 2013-01-05T23:00:00 | D122: 9.537298776 | E122: 9.840870978 | F122: 10.14444318 | G122: 10.44801538 | H122: 10.75158758 | I122: 11.05515978 | J122: 11.35873199 | K122: 11.66230419 | L122: 11.96587639 | N122: 0.5530890843 | O122: 0.6832413868 | P122: 0.8011123928 | Q122: 0.905661136 | R122: 0.9405808158 | S122: 0.9615683741 | T122: 0.9802952484 | U122: 0.9976657125 | V122: 1 | X122: 0.8011123928 | Y122: 0.8011123928 | Z122: 0.8011123928
A123: 2013-01-06 | B123: 2013-01-06 | D123: 9.216513845 | E123: 9.520086047 | F123: 9.823658248 | G123: 10.12723045 | H123: 10.43080265 | I123: 10.73437485 | J123: 11.03794705 | K123: 11.34151926 | L123: 11.64509146 | N123: 0.5487674979 | O123: 0.6810017326 | P123: 0.8008284929 | Q123: 0.9072173277 | R123: 0.9438614362 | S123: 0.9664893046 | T123: 0.9867618558 | U123: 1 | V123: 1 | X123: 0.8008284929 | Y123: 0.8008284929 | Z123: 0.8008284929
A124: 2013-01-06T01:00:00 | B124: 2013-01-06T01:00:00 | D124: 9.360172995 | E124: 9.663745196 | F124: 9.967317398 | G124: 10.2708896 | H124: 10.5744618 | I124: 10.878034 | J124: 11.1816062 | K124: 11.48517841 | L124: 11.78875061 | N124: 0.5479999169 | O124: 0.6821793912 | P124: 0.8038252134 | Q124: 0.911927962 | R124: 0.950191351 | S124: 0.9743438667 | T124: 0.9960569467 | U124: 1 | V124: 1 | X124: 0.8038252134 | Y124: 0.8038252134 | Z124: 0.8038252134
A125: 2013-01-06T02:00:00 | B125: 2013-01-06T02:00:00 | D125: 9.060719039 | E125: 9.36429124 | F125: 9.667863442 | G125: 9.971435644 | H125: 10.27500785 | I125: 10.57858005 | J125: 10.88215225 | K125: 11.18572445 | L125: 11.48929665 | N125: 0.5489672793 | O125: 0.6850919932 | P125: 0.8085568774 | Q125: 0.9183735398 | R125: 0.9582456945 | S125: 0.9839228574 | T125: 1 | U125: 1 | V125: 1 | X125: 0.8085568774 | Y125: 0.8085568774 | Z125: 0.8085568774
A126: 2013-01-06T03:00:00 | B126: 2013-01-06T03:00:00 | D126: 9.145174878 | E126: 9.44874708 | F126: 9.752319282 | G126: 10.05589148 | H126: 10.35946368 | I126: 10.66303589 | J126: 10.96660809 | K126: 11.27018029 | L126: 11.57375249 | N126: 0.5530470251 | O126: 0.6910013157 | P126: 0.8161801137 | Q126: 0.9276055419 | R126: 0.968991829 | S126: 0.9961095208 | T126: 1 | U126: 1 | V126: 1 | X126: 0.8161801137 | Y126: 0.8161801137 | Z126: 0.8161801137
A127: 2013-01-06T04:00:00 | B127: 2013-01-06T04:00:00 | D127: 8.942531157 | E127: 9.246103359 | F127: 9.54967556 | G127: 9.853247762 | H127: 10.15681996 | I127: 10.46039217 | J127: 10.76396437 | K127: 11.06753657 | L127: 11.37110877 | N127: 0.5572003745 | O127: 0.6970157863 | P127: 0.8239400425 | Q127: 0.9370057809 | R127: 0.9799377449 | S127: 1 | T127: 1 | U127: 1 | V127: 1 | X127: 0.8239400425 | Y127: 0.8239400425 | Z127: 0.8239400425
A128: 2013-01-06T05:00:00 | B128: 2013-01-06T05:00:00 | D128: 9.036725987 | E128: 9.340298189 | F128: 9.64387039 | G128: 9.947442592 | H128: 10.25101479 | I128: 10.554587 | J128: 10.8581592 | K128: 11.1617314 | L128: 11.4653036 | N128: 0.5596608398 | O128: 0.7013794319 | P128: 0.8300912056 | Q128: 0.9448287986 | R128: 0.9893379839 | S128: 1 | T128: 1 | U128: 1 | V128: 1 | X128: 0.8300912056 | Y128: 0.8300912056 | Z128: 0.8300912056
A129: 2013-01-06T06:00:00 | B129: 2013-01-06T06:00:00 | D129: 8.972540576 | E129: 9.276112777 | F129: 9.579684979 | G129: 9.883257181 | H129: 10.18682938 | I129: 10.49040158 | J129: 10.79397379 | K129: 11.09754599 | L129: 11.40111819 | N129: 0.5619320385 | O129: 0.7055748406 | P129: 0.8360846466 | Q129: 0.9525046089 | R129: 0.9986015304 | S129: 1 | T129: 1 | U129: 1 | V129: 1 | X129: 0.8360846466 | Y129: 0.8360846466 | Z129: 0.8360846466
A130: 2013-01-06T07:00:00 | B130: 2013-01-06T07:00:00 | D130: 8.918325661 | E130: 9.221897863 | F130: 9.525470064 | G130: 9.829042266 | H130: 10.13261447 | I130: 10.43618667 | J130: 10.73975887 | K130: 11.04333107 | L130: 11.34690327 | N130: 0.5633935969 | O130: 0.7090026682 | P130: 0.841342051 | Q130: 0.9594864419 | R130: 1 | S130: 1 | T130: 1 | U130: 1 | V130: 1 | X130: 0.841342051 | Y130: 0.841342051 | Z130: 0.841342051
A131: 2013-01-06T08:00:00 | B131: 2013-01-06T08:00:00 | D131: 8.966989088 | E131: 9.270561289 | F131: 9.574133491 | G131: 9.877705693 | H131: 10.18127789 | I131: 10.4848501 | J131: 10.7884223 | K131: 11.0919945 | L131: 11.3955667 | N131: 0.5618374052 | O131: 0.7094968643 | P131: 0.8437499422 | Q131: 0.9636923654 | R131: 1 | S131: 1 | T131: 1 | U131: 1 | V131: 1 | X131: 0.8437499422 | Y131: 0.8437499422 | Z131: 0.8437499422
A132: 2013-01-06T09:00:00 | B132: 2013-01-06T09:00:00 | D132: 9.166219639 | E132: 9.46979184 | F132: 9.773364042 | G132: 10.07693624 | H132: 10.38050845 | I132: 10.68408065 | J132: 10.98765285 | K132: 11.29122505 | L132: 11.59479725 | N132: 0.5605335689 | O132: 0.7101908416 | P132: 0.8463260703 | Q132: 0.9680244666 | R132: 1 | S132: 1 | T132: 1 | U132: 1 | V132: 1 | X132: 0.8463260703 | Y132: 0.8463260703 | Z132: 0.8463260703
A133: 2013-01-06T10:00:00 | B133: 2013-01-06T10:00:00 | D133: 9.396050585 | E133: 9.699622786 | F133: 10.00319499 | G133: 10.30676719 | H133: 10.61033939 | I133: 10.91391159 | J133: 11.21748379 | K133: 11.521056 | L133: 11.8246282 | N133: 0.5576104521 | O133: 0.7092655385 | P133: 0.8472829179 | Q133: 0.9707478021 | R133: 1 | S133: 1 | T133: 1 | U133: 1 | V133: 1 | X133: 0.8472829179 | Y133: 0.8472829179 | Z133: 0.8472829179
A134: 2013-01-06T11:00:00 | B134: 2013-01-06T11:00:00 | D134: 9.58908124 | E134: 9.892653442 | F134: 10.19622564 | G134: 10.49979785 | H134: 10.80337005 | I134: 11.10694225 | J134: 11.41051445 | K134: 11.71408665 | L134: 12.01765885 | N134: 0.5513646557 | O134: 0.7050806446 | P134: 0.8450432637 | Q134: 0.9703377246 | R134: 1 | S134: 1 | T134: 1 | U134: 1 | V134: 1 | X134: 0.8450432637 | Y134: 0.8450432637 | Z134: 0.8450432637
A135: 2013-01-06T12:00:00 | B135: 2013-01-06T12:00:00 | D135: 9.77385057 | E135: 10.07742277 | F135: 10.38099497 | G135: 10.68456717 | H135: 10.98813938 | I135: 11.29171158 | J135: 11.59528378 | K135: 11.89885598 | L135: 12.20242818 | N135: 0.5424375831 | O135: 0.6982565337 | P135: 0.8402064516 | Q135: 0.9673620337 | R135: 0.9988013118 | S135: 1 | T135: 1 | U135: 1 | V135: 1 | X135: 0.8402064516 | Y135: 0.8402064516 | Z135: 0.8402064516
A136: 2013-01-06T13:00:00 | B136: 2013-01-06T13:00:00 | D136: 9.864073722 | E136: 10.16764592 | F136: 10.47121813 | G136: 10.77479033 | H136: 11.07836253 | I136: 11.38193473 | J136: 11.68550693 | K136: 11.98907913 | L136: 12.29265134 | N136: 0.5284423726 | O136: 0.6864904627 | P136: 0.8305538572 | Q136: 0.9596967381 | R136: 0.993018167 | S136: 0.9959938579 | T136: 0.9976762273 | U136: 0.999284993 | V136: 1 | X136: 0.8305538572 | Y136: 0.8305538572 | Z136: 0.8305538572
A137: 2013-01-06T14:00:00 | B137: 2013-01-06T14:00:00 | D137: 10.16454391 | E137: 10.46811611 | F137: 10.77168832 | G137: 11.07526052 | H137: 11.37883272 | I137: 11.68240492 | J137: 11.98597712 | K137: 12.28954932 | L137: 12.59312153 | N137: 0.5021553508 | O137: 0.6627375098 | P137: 0.8091877659 | Q137: 0.9405913306 | R137: 0.9760472657 | S137: 0.9810523147 | T137: 0.9846483792 | U137: 0.9880867217 | V137: 0.9905471869 | X137: 0.8091877659 | Y137: 0.8091877659 | Z137: 0.8091877659
A138: 2013-01-06T15:00:00 | B138: 2013-01-06T15:00:00 | D138: 10.10623095 | E138: 10.40980315 | F138: 10.71337535 | G138: 11.01694756 | H138: 11.32051976 | I138: 11.62409196 | J138: 11.92766416 | K138: 12.23123636 | L138: 12.53480856 | N138: 0.4826398658 | O138: 0.6455668271 | P138: 0.794225193 | Q138: 0.9277212048 | R138: 0.9651644387 | S138: 0.9720411236 | T138: 0.9774141908 | U138: 0.9825454175 | V138: 0.9866251633 | X138: 0.794225193 | Y138: 0.794225193 | Z138: 0.794225193
A139: 2013-01-06T16:00:00 | B139: 2013-01-06T16:00:00 | D139: 10.16535407 | E139: 10.46892628 | F139: 10.77249848 | G139: 11.07607068 | H139: 11.37964288 | I139: 11.68321508 | J139: 11.98678728 | K139: 12.29035949 | L139: 12.59393169 | N139: 0.4599699382 | O139: 0.6253258203 | P139: 0.7762658997 | Q139: 0.911927962 | R139: 0.9514215836 | S139: 0.9602329934 | T139: 0.967456667 | U139: 0.9743333519 | V139: 0.9800849523 | X139: 0.7762658997 | Y139: 0.7762658997 | Z139: 0.7762658997
A140: 2013-01-06T17:00:00 | B140: 2013-01-06T17:00:00 | D140: 10.02417891 | E140: 10.32775111 | F140: 10.63132332 | G140: 10.93489552 | H140: 11.23846772 | I140: 11.54203992 | J140: 11.84561212 | K140: 12.14918432 | L140: 12.45275653 | N140: 0.4411484305 | O140: 0.608849115 | P140: 0.7620078191 | Q140: 0.8997518135 | R140: 0.9412222192 | S140: 0.9519052648 | T140: 0.9609059411 | U140: 0.9694755102 | V140: 0.9768358764 | X140: 0.7620078191 | Y140: 0.7620078191 | Z140: 0.7620078191
A141: 2013-01-06T18:00:00 | B141: 2013-01-06T18:00:00 | D141: 9.776351248 | E141: 10.07992345 | F141: 10.38349565 | G141: 10.68706785 | H141: 10.99064005 | I141: 11.29421226 | J141: 11.59778446 | K141: 11.90135666 | L141: 12.20492886 | N141: 0.4205709498 | O141: 0.5907320996 | P141: 0.7462040615 | Q141: 0.8861246214 | R141: 0.9296559296 | S141: 0.9422947297 | T141: 0.9531460123 | U141: 0.9634610396 | V141: 0.9724932603 | X141: 0.7462040615 | Y141: 0.7462040615 | Z141: 0.7462040615
A142: 2013-01-06T19:00:00 | B142: 2013-01-06T19:00:00 | D142: 9.703504903 | E142: 10.0070771 | F142: 10.31064931 | G142: 10.61422151 | H142: 10.91779371 | I142: 11.22136591 | J142: 11.52493811 | K142: 11.82851031 | L142: 12.13208252 | N142: 0.4039785816 | O142: 0.5764950486 | P142: 0.7341856352 | Q142: 0.8761881271 | R142: 0.9216962193 | S142: 0.9361961406 | T142: 0.9488139111 | U142: 0.960800793 | V142: 0.9714312647 | X142: 0.7341856352 | Y142: 0.7341856352 | Z142: 0.7341856352
A143: 2013-01-06T20:00:00 | B143: 2013-01-06T20:00:00 | D143: 9.620238857 | E143: 9.923811059 | F143: 10.22738326 | G143: 10.53095546 | H143: 10.83452766 | I143: 11.13809987 | J143: 11.44167207 | K143: 11.74524427 | L143: 12.04881647 | N143: 0.3881537945 | O143: 0.5630150638 | P143: 0.7229137602 | Q143: 0.8669981843 | R143: 0.9144725457 | S143: 0.9308335881 | T143: 0.9452073317 | U143: 0.9588660682 | V143: 0.971084276 | X143: 0.7229137602 | Y143: 0.7229137602 | Z143: 0.7229137602
A144: 2013-01-06T21:00:00 | B144: 2013-01-06T21:00:00 | D144: 9.576917272 | E144: 9.880489474 | F144: 10.18406168 | G144: 10.48763388 | H144: 10.79120608 | I144: 11.09477828 | J144: 11.39835048 | K144: 11.70192268 | L144: 12.00549489 | N144: 0.374768443 | O144: 0.5519114257 | P144: 0.7139551432 | Q144: 0.8600689253 | R144: 0.9094464672 | S144: 0.9276160567 | T144: 0.943703714 | U144: 0.9589817311 | V144: 0.9727351009 | X144: 0.7139551432 | Y144: 0.7139551432 | Z144: 0.7139551432
A145: 2013-01-06T22:00:00 | B145: 2013-01-06T22:00:00 | D145: 9.365873257 | E145: 9.669445459 | F145: 9.973017661 | G145: 10.27658986 | H145: 10.58016206 | I145: 10.88373427 | J145: 11.18730647 | K145: 11.49087867 | L145: 11.79445087 | N145: 0.3656205594 | O145: 0.544971652 | P145: 0.7090762719 | Q145: 0.8571352937 | R145: 0.9083529271 | S145: 0.9282469452 | T145: 0.9459749127 | U145: 0.9628091215 | V145: 0.9780345646 | X145: 0.7090762719 | Y145: 0.7090762719 | Z145: 0.7090762719
A146: 2013-01-06T23:00:00 | B146: 2013-01-06T23:00:00 | D146: 9.40224673 | E146: 9.705818932 | F146: 10.00939113 | G146: 10.31296334 | H146: 10.61653554 | I146: 10.92010774 | J146: 11.22367994 | K146: 11.52725214 | L146: 11.83082434 | N146: 0.3583758561 | O146: 0.5398719697 | P146: 0.7059744033 | Q146: 0.8559260907 | R146: 0.9089207267 | S146: 0.9304971143 | T146: 0.9498128179 | U146: 0.9681506443 | V146: 0.9848061014 | X146: 0.7059744033 | Y146: 0.7059744033 | Z146: 0.7059744033
A147: 2013-01-07 | B147: 2013-01-07 | D147: 9.167338019 | E147: 9.470910221 | F147: 9.774482422 | G147: 10.07805462 | H147: 10.38162683 | I147: 10.68519903 | J147: 10.98877123 | K147: 11.29234343 | L147: 11.59591563 | N147: 0.3528660964 | O147: 0.5364967161 | P147: 0.7045969634 | Q147: 0.8564202867 | R147: 0.9111814106 | S147: 0.9344296527 | T147: 0.9553225777 | U147: 0.975153507 | V147: 0.9932179484 | X147: 0.7045969634 | Y147: 0.7045969634 | Z147: 0.7045969634
A148: 2013-01-07T01:00:00 | B148: 2013-01-07T01:00:00 | D148: 9.004347448 | E148: 9.30791965 | F148: 9.611491851 | G148: 9.915064053 | H148: 10.21863625 | I148: 10.52220846 | J148: 10.82578066 | K148: 11.12935286 | L148: 11.43292506 | N148: 0.3489230431 | O148: 0.5346671394 | P148: 0.7047441707 | Q148: 0.8584286152 | R148: 0.9149457121 | S148: 0.9398447792 | T148: 0.9622938959 | U148: 0.9835968984 | V148: 1 | X148: 0.7047441707 | Y148: 0.7047441707 | Z148: 0.7047441707
A149: 2013-01-07T02:00:00 | B149: 2013-01-07T02:00:00 | D149: 8.901248376 | E149: 9.204820577 | F149: 9.508392779 | G149: 9.811964981 | H149: 10.11553718 | I149: 10.41910938 | J149: 10.72268159 | K149: 11.02625379 | L149: 11.32982599 | N149: 0.3472196441 | O149: 0.5350351577 | P149: 0.7070469138 | Q149: 0.8625504202 | R149: 0.9207709162 | S149: 0.947278749 | T149: 0.9712419981 | U149: 0.9939750146 | V149: 1 | X149: 0.7070469138 | Y149: 0.7070469138 | Z149: 0.7070469138
A150: 2013-01-07T03:00:00 | B150: 2013-01-07T03:00:00 | D150: 9.050618252 | E150: 9.354190453 | F150: 9.657762655 | G150: 9.961334857 | H150: 10.26490706 | I150: 10.56847926 | J150: 10.87205146 | K150: 11.17562366 | L150: 11.47919586 | N150: 0.3488284098 | O150: 0.5385681334 | P150: 0.7123884367 | Q150: 0.8695848273 | R150: 0.9294035741 | S150: 0.9574150246 | T150: 0.9827977729 | U150: 1 | V150: 1 | X150: 0.7123884367 | Y150: 0.7123884367 | Z150: 0.7123884367
A151: 2013-01-07T04:00:00 | B151: 2013-01-07T04:00:00 | D151: 8.906276442 | E151: 9.209848643 | F151: 9.513420845 | G151: 9.816993047 | H151: 10.12056525 | I151: 10.42413745 | J151: 10.72770965 | K151: 11.03128185 | L151: 11.33485405 | N151: 0.3467990517 | O151: 0.5386207075 | P151: 0.7143862503 | Q151: 0.8734017028 | R151: 0.9349343635 | S151: 0.9645650946 | T151: 0.9914724901 | U151: 1 | V151: 1 | X151: 0.7143862503 | Y151: 0.7143862503 | Z151: 0.7143862503
A152: 2013-01-07T05:00:00 | B152: 2013-01-07T05:00:00 | D152: 8.847186495 | E152: 9.150758697 | F152: 9.454330899 | G152: 9.7579031 | H152: 10.0614753 | I152: 10.3650475 | J152: 10.66861971 | K152: 10.97219191 | L152: 11.27576411 | N152: 0.3442229236 | O152: 0.5381580559 | P152: 0.715889868 | Q152: 0.8767559268 | R152: 0.9400340458 | S152: 0.9712945722 | T152: 0.9997476446 | U152: 1 | V152: 1 | X152: 0.715889868 | Y152: 0.715889868 | Z152: 0.715889868
A153: 2013-01-07T06:00:00 | B153: 2013-01-07T06:00:00 | D153: 8.735966417 | E153: 9.039538619 | F153: 9.34311082 | G153: 9.646683022 | H153: 9.950255224 | I153: 10.25382743 | J153: 10.55739963 | K153: 10.86097183 | L153: 11.16454403 | N153: 0.3400695741 | O153: 0.5361917867 | P153: 0.7159634716 | Q153: 0.8787432257 | R153: 0.9438193769 | S153: 0.9767727875 | T153: 1 | U153: 1 | V153: 1 | X153: 0.7159634716 | Y153: 0.7159634716 | Z153: 0.7159634716
A154: 2013-01-07T07:00:00 | B154: 2013-01-07T07:00:00 | D154: 8.790088132 | E154: 9.093660334 | F154: 9.397232535 | G154: 9.700804737 | H154: 10.00437694 | I154: 10.30794914 | J154: 10.61152134 | K154: 10.91509354 | L154: 11.21866575 | N154: 0.3325199415 | O154: 0.5309238675 | P154: 0.7128405734 | Q154: 0.8776181411 | R154: 0.944586958 | S154: 0.9793068564 | T154: 1 | U154: 1 | V154: 1 | X154: 0.7128405734 | Y154: 0.7128405734 | Z154: 0.7128405734
A155: 2013-01-07T08:00:00 | B155: 2013-01-07T08:00:00 | D155: 8.94851692 | E155: 9.252089122 | F155: 9.555661324 | G155: 9.859233525 | H155: 10.16280573 | I155: 10.46637793 | J155: 10.76995013 | K155: 11.07352233 | L155: 11.37709453 | N155: 0.3236664725 | O155: 0.5243626268 | P155: 0.7084243538 | Q155: 0.8752102499 | R155: 0.9440717323 | S155: 0.9805791483 | T155: 1 | U155: 1 | V155: 1 | X155: 0.7084243538 | Y155: 0.7084243538 | Z155: 0.7084243538
A156: 2013-01-07T09:00:00 | B156: 2013-01-07T09:00:00 | D156: 9.303265968 | E156: 9.60683817 | F156: 9.910410371 | G156: 10.21398257 | H156: 10.51755477 | I156: 10.82112698 | J156: 11.12469918 | K156: 11.42827138 | L156: 11.73184358 | N156: 0.3141610854 | O156: 0.5170863792 | P156: 0.7032300382 | Q156: 0.8719927185 | R156: 0.9427048072 | S156: 0.9809576814 | T156: 1 | U156: 1 | V156: 1 | X156: 0.7032300382 | Y156: 0.7032300382 | Z156: 0.7032300382
A157: 2013-01-07T10:00:00 | B157: 2013-01-07T10:00:00 | D157: 9.475019048 | E157: 9.77859125 | F157: 10.08216345 | G157: 10.38573565 | H157: 10.68930786 | I157: 10.99288006 | J157: 11.29645226 | K157: 11.60002446 | L157: 11.90359666 | N157: 0.3026789143 | O157: 0.5078543771 | P157: 0.6961115127 | Q157: 0.8668614918 | R157: 0.9394557313 | S157: 0.9794856082 | T157: 1 | U157: 1 | V157: 1 | X157: 0.6961115127 | Y157: 0.6961115127 | Z157: 0.6961115127
A158: 2013-01-07T11:00:00 | B158: 2013-01-07T11:00:00 | D158: 9.914305764 | E158: 10.21787797 | F158: 10.52145017 | G158: 10.82502237 | H158: 11.12859457 | I158: 11.43216677 | J158: 11.73573897 | K158: 12.03931118 | L158: 12.34288338 | N158: 0.2859919128 | O158: 0.4934806336 | P158: 0.6839038198 | Q158: 0.8567147014 | R158: 0.9312436657 | S158: 0.9731136341 | T158: 0.9953734842 | U158: 0.9970243091 | V158: 0.9985910156 | X158: 0.6839038198 | Y158: 0.6839038198 | Z158: 0.6839038198
A159: 2013-01-07T12:00:00 | B159: 2013-01-07T12:00:00 | D159: 10.00857511 | E159: 10.31214731 | F159: 10.61571951 | G159: 10.91929171 | H159: 11.22286391 | I159: 11.52643612 | J159: 11.83000832 | K159: 12.13358052 | L159: 12.43715272 | N159: 0.267948501 | O159: 0.4777715093 | P159: 0.6703817758 | Q159: 0.8452640746 | R159: 0.9217487934 | S159: 0.9654798829 | T159: 0.9894957061 | U159: 0.9928183856 | V159: 0.9959728283 | X159: 0.6703817758 | Y159: 0.6703817758 | Z159: 0.6703817758
A160: 2013-01-07T13:00:00 | B160: 2013-01-07T13:00:00 | D160: 10.41548001 | E160: 10.71905221 | F160: 11.02262441 | G160: 11.32619661 | H160: 11.62976882 | I160: 11.93334102 | J160: 12.23691322 | K160: 12.54048542 | L160: 12.84405762 | N160: 0.2361517194 | O160: 0.4486034299 | P160: 0.6436951912 | Q160: 0.8209222924 | R160: 0.8996361506 | S160: 0.9454807167 | T160: 0.9715048683 | U160: 0.9767412431 | V160: 0.9817252624 | X160: 0.6436951912 | Y160: 0.6436951912 | Z160: 0.6436951912
A161: 2013-01-07T14:00:00 | B161: 2013-01-07T14:00:00 | D161: 11.05955107 | E161: 11.36312327 | F161: 11.66669547 | G161: 11.97026767 | H161: 12.27383987 | I161: 12.57741207 | J161: 12.88098428 | K161: 13.18455648 | L161: 13.48812868 | N161: 0.1704446796 | O161: 0.3862821585 | P161: 0.5845914513 | Q161: 0.7648573322 | R161: 0.8464732777 | S161: 0.8950727236 | T161: 0.9237255774 | U161: 0.9314644767 | V161: 0.9388353576 | X161: 0.5845914513 | Y161: 0.5845914513 | Z161: 0.5845914513
A162: 2013-01-07T15:00:00 | B162: 2013-01-07T15:00:00 | D162: 11.04150929 | E162: 11.3450815 | F162: 11.6486537 | G162: 11.9522259 | H162: 12.2557981 | I162: 12.5593703 | J162: 12.8629425 | K162: 13.16651471 | L162: 13.47008691 | N162: 0.1089225337 | O162: 0.3280406329 | P162: 0.5294623091 | Q162: 0.7126723365 | R162: 0.7970957358 | S162: 0.8483659432 | T162: 0.8795528659 | U162: 0.889720686 | V162: 0.8994048248 | X162: 0.5294623091 | Y162: 0.5294623091 | Z162: 0.5294623091
A163: 2013-01-07T16:00:00 | B163: 2013-01-07T16:00:00 | D163: 10.55151932 | E163: 10.85509152 | F163: 11.15866372 | G163: 11.46223592 | H163: 11.76580812 | I163: 12.06938032 | J163: 12.37295253 | K163: 12.67652473 | L163: 12.98009693 | N163: 0.05545473128 | O163: 0.2774644029 | P163: 0.4816094145 | Q163: 0.6674060849 | R163: 0.7542689198 | S163: 0.8078734148 | T163: 0.8412684473 | U163: 0.8535392291 | V163: 0.8652316964 | X163: 0.4816094145 | Y163: 0.4816094145 | Z163: 0.4816094145
A164: 2013-01-07T17:00:00 | B164: 2013-01-07T17:00:00 | D164: 10.42674101 | E164: 10.73031321 | F164: 11.03388542 | G164: 11.33745762 | H164: 11.64102982 | I164: 11.94460202 | J164: 12.24817422 | K164: 12.55174642 | L164: 12.85531863 | N164: 0.0195992335 | O164: 0.2444479035 | P164: 0.4512847061 | Q164: 0.6396259602 | R164: 0.7288966864 | S164: 0.7847934096 | T164: 0.8203650076 | U164: 0.8347072067 | V164: 0.8483659432 | X164: 0.4512847061 | Y164: 0.4512847061 | Z164: 0.4512847061
A165: 2013-01-07T18:00:00 | B165: 2013-01-07T18:00:00 | D165: 10.15680738 | E165: 10.46037958 | F165: 10.76395178 | G165: 11.06752399 | H165: 11.37109619 | I165: 11.67466839 | J165: 11.97824059 | K165: 12.28181279 | L165: 12.58538499 | N165: 0 | O165: 0.2196960437 | P165: 0.4290038264 | Q165: 0.6196898828 | R165: 0.7111792337 | S165: 0.7691789186 | T165: 0.8067483302 | U165: 0.8229937097 | V165: 0.8384504786 | X165: 0.4290038264 | Y165: 0.4290038264 | Z165: 0.4290038264
A166: 2013-01-07T19:00:00 | B166: 2013-01-07T19:00:00 | D166: 9.950599354 | E166: 10.25417156 | F166: 10.55774376 | G166: 10.86131596 | H166: 11.16488816 | I166: 11.46846036 | J166: 11.77203256 | K166: 12.07560477 | L166: 12.37917697 | N166: 0 | O166: 0.20175778 | P166: 0.4133893355 | Q166: 0.6062729869 | R166: 0.699833755 | S166: 0.7598102241 | T166: 0.7992407568 | U166: 0.817263139 | V166: 0.8344022772 | X166: 0.4133893355 | Y166: 0.4133893355 | Z166: 0.4133893355
A167: 2013-01-07T20:00:00 | B167: 2013-01-07T20:00:00 | D167: 9.958627678 | E167: 10.26219988 | F167: 10.56577208 | G167: 10.86934428 | H167: 11.17291648 | I167: 11.47648869 | J167: 11.78006089 | K167: 12.08363309 | L167: 12.38720529 | N167: 0 | O167: 0.1867846924 | P167: 0.4006559021 | Q167: 0.5956425153 | R167: 0.6912010971 | S167: 0.7530597168 | T167: 0.7942882819 | U167: 0.8140035483 | V167: 0.8327619671 | X167: 0.4006559021 | Y167: 0.4006559021 | Z167: 0.4006559021
A168: 2013-01-07T21:00:00 | B168: 2013-01-07T21:00:00 | D168: 9.866236883 | E168: 10.16980908 | F168: 10.47338129 | G168: 10.77695349 | H168: 11.08052569 | I168: 11.38409789 | J168: 11.68767009 | K168: 11.99124229 | L168: 12.2948145 | N168: 0 | O168: 0.1728841152 | P168: 0.3889739496 | Q168: 0.5860530097 | R168: 0.6835883755 | S168: 0.7473186313 | T168: 0.790324199 | U168: 0.8117218348 | V168: 0.8320785045 | X168: 0.3889739496 | Y168: 0.3889739496 | Z168: 0.3889739496
A169: 2013-01-07T22:00:00 | B169: 2013-01-07T22:00:00 | D169: 9.804291662 | E169: 10.10786386 | F169: 10.41143607 | G169: 10.71500827 | H169: 11.01858047 | I169: 11.32215267 | J169: 11.62572487 | K169: 11.92929707 | L169: 12.23286928 | N169: 0 | O169: 0.1623798213 | P169: 0.3806041618 | Q169: 0.5797020652 | R169: 0.6791406114 | S169: 0.7446688995 | T169: 0.7893778662 | U169: 0.8123947825 | V169: 0.8342866143 | X169: 0.3806041618 | Y169: 0.3806041618 | Z169: 0.3806041618
A170: 2013-01-07T23:00:00 | B170: 2013-01-07T23:00:00 | D170: 9.663833294 | E170: 9.967405496 | F170: 10.2709777 | G170: 10.5745499 | H170: 10.8781221 | I170: 11.1816943 | J170: 11.4852665 | K170: 11.78883871 | L170: 12.09241091 | N170: 0 | O170: 0.1559763028 | P170: 0.376251031 | Q170: 0.5772836592 | R170: 0.6785412673 | S170: 0.745793984 | T170: 0.7921327461 | U170: 0.8166953393 | V170: 0.8400592443 | X170: 0.376251031 | Y170: 0.376251031 | Z170: 0.376251031
A171: 2013-01-08 | B171: 2013-01-08 | D171: 9.702988749 | E171: 10.00656095 | F171: 10.31013315 | G171: 10.61370535 | H171: 10.91727756 | I171: 11.22084976 | J171: 11.52442196 | K171: 11.82799416 | L171: 12.13156636 | N171: 0 | O171: 0.1509712538 | P171: 0.3732332809 | Q171: 0.5761480599 | R171: 0.6791826707 | S171: 0.7481072419 | T171: 0.796044255 | U171: 0.8221104658 | V171: 0.8469043848 | X171: 0.3732332809 | Y171: 0.3732332809 | Z171: 0.3732332809
A172: 2013-01-08T01:00:00 | B172: 2013-01-08T01:00:00 | D172: 9.59838901 | E172: 9.901961212 | F172: 10.20553341 | G172: 10.50910561 | H172: 10.81267782 | I172: 11.11625002 | J172: 11.41982222 | K172: 11.72339442 | L172: 12.02696662 | N172: 0 | O172: 0.1481007111 | P172: 0.3723184925 | Q172: 0.577073363 | R172: 0.6818429173 | S172: 0.7524183135 | T172: 0.8019010034 | U172: 0.8294498023 | V172: 0.8556421909 | X172: 0.3723184925 | Y172: 0.3723184925 | Z172: 0.3723184925
A173: 2013-01-08T02:00:00 | B173: 2013-01-08T02:00:00 | D173: 9.663873607 | E173: 9.967445809 | F173: 10.27101801 | G173: 10.57459021 | H173: 10.87816241 | I173: 11.18173462 | J173: 11.48530682 | K173: 11.78887902 | L173: 12.09245122 | N173: 0 | O173: 0.1453142867 | P173: 0.3714773078 | Q173: 0.5780512403 | R173: 0.6845452231 | S173: 0.7567504147 | T173: 0.8077787815 | U173: 0.8367891388 | V173: 0.8643694821 | X173: 0.3714773078 | Y173: 0.3714773078 | Z173: 0.3714773078
A174: 2013-01-08T03:00:00 | B174: 2013-01-08T03:00:00 | D174: 9.72898327 | E174: 10.03255547 | F174: 10.33612767 | G174: 10.63969987 | H174: 10.94327208 | I174: 11.24684428 | J174: 11.55041648 | K174: 11.85398868 | L174: 12.15756088 | N174: 0 | O174: 0.1425804365 | P174: 0.3706676676 | Q174: 0.5790501471 | R174: 0.687247529 | S174: 0.7610720011 | T174: 0.81363553 | U174: 0.8440969309 | V174: 0.8730547141 | X174: 0.3706676676 | Y174: 0.3706676676 | Z174: 0.3706676676
A175: 2013-01-08T04:00:00 | B175: 2013-01-08T04:00:00 | D175: 9.74115343 | E175: 10.04472563 | F175: 10.34829783 | G175: 10.65187004 | H175: 10.95544224 | I175: 11.25901444 | J175: 11.56258664 | K175: 11.86615884 | L175: 12.16973104 | N175: 0 | O175: 0.1393208458 | P175: 0.3693428017 | Q175: 0.5795548579 | R175: 0.6894766684 | S175: 0.7649309359 | T175: 0.8190506565 | U175: 0.8509736158 | V175: 0.8813298686 | X175: 0.3693428017 | Y175: 0.3693428017 | Z175: 0.3693428017
A176: 2013-01-08T05:00:00 | B176: 2013-01-08T05:00:00 | D176: 9.797819508 | E176: 10.10139171 | F176: 10.40496391 | G176: 10.70853611 | H176: 11.01210831 | I176: 11.31568052 | J176: 11.61925272 | K176: 11.92282492 | L176: 12.22639712 | N176: 0 | O176: 0.132875268 | P176: 0.3649160672 | Q176: 0.5770313038 | R176: 0.6887511466 | S176: 0.7659088131 | T176: 0.8216372994 | U176: 0.8550954208 | V176: 0.8869027172 | X176: 0.3649160672 | Y176: 0.3649160672 | Z176: 0.3649160672
A177: 2013-01-08T06:00:00 | B177: 2013-01-08T06:00:00 | D177: 9.917490804 | E177: 10.22106301 | F177: 10.52463521 | G177: 10.82820741 | H177: 11.13177961 | I177: 11.43535181 | J177: 11.73892401 | K177: 12.04249622 | L177: 12.34606842 | N177: 0 | O177: 0.1236012067 | P177: 0.3577134232 | Q177: 0.5717844142 | R177: 0.6853548634 | S177: 0.7642579881 | T177: 0.8216478142 | U177: 0.8566831569 | V177: 0.889994071 | X177: 0.3577134232 | Y177: 0.3577134232 | Z177: 0.3577134232
A178: 2013-01-08T07:00:00 | B178: 2013-01-08T07:00:00 | D178: 9.996855674 | E178: 10.30042788 | F178: 10.60400008 | G178: 10.90757228 | H178: 11.21114448 | I178: 11.51471668 | J178: 11.81828888 | K178: 12.12186109 | L178: 12.42543329 | N178: 0 | O178: 0.1136752273 | P178: 0.3498693759 | Q178: 0.5658961214 | R178: 0.6813171768 | S178: 0.7619762747 | T178: 0.8210274405 | U178: 0.8576400045 | V178: 0.8924545363 | X178: 0.3498693759 | Y178: 0.3498693759 | Z178: 0.3498693759
A179: 2013-01-08T08:00:00 | B179: 2013-01-08T08:00:00 | D179: 10.02869853 | E179: 10.33227073 | F179: 10.63584293 | G179: 10.93941514 | H179: 11.24298734 | I179: 11.54655954 | J179: 11.85013174 | K179: 12.15370394 | L179: 12.45727614 | N179: 0 | O179: 0.1021930561 | P179: 0.3405006813 | Q179: 0.5585252404 | R179: 0.6758389615 | S179: 0.7582855768 | T179: 0.8190296269 | U179: 0.8572614714 | V179: 0.8936111652 | X179: 0.3405006813 | Y179: 0.3405006813 | Z179: 0.3405006813
A180: 2013-01-08T09:00:00 | B180: 2013-01-08T09:00:00 | D180: 10.02867947 | E180: 10.33225167 | F180: 10.63582387 | G180: 10.93939607 | H180: 11.24296828 | I180: 11.54654048 | J180: 11.85011268 | K180: 12.15368488 | L180: 12.45725708 | N180: 0 | O180: 0.09081603306 | P180: 0.3312371348 | Q180: 0.5512595076 | R180: 0.6704658942 | S180: 0.754700027 | T180: 0.8171369613 | U180: 0.8569880864 | V180: 0.8948729423 | X180: 0.3312371348 | Y180: 0.3312371348 | Z180: 0.3312371348
A181: 2013-01-08T10:00:00 | B181: 2013-01-08T10:00:00 | D181: 10.13746714 | E181: 10.44103934 | F181: 10.74461154 | G181: 11.04818375 | H181: 11.35175595 | I181: 11.65532815 | J181: 11.95890035 | K181: 12.26247255 | L181: 12.56604475 | N181: 0 | O181: 0.08082696476 | P181: 0.3232984542 | Q181: 0.5452555518 | R181: 0.66630203 | S181: 0.7522711062 | T181: 0.8163588654 | U181: 0.857776697 | V181: 0.8971546558 | X181: 0.3232984542 | Y181: 0.3232984542 | Z181: 0.3232984542
A182: 2013-01-08T11:00:00 | B182: 2013-01-08T11:00:00 | D182: 10.27560275 | E182: 10.57917495 | F182: 10.88274715 | G182: 11.18631936 | H182: 11.48989156 | I182: 11.79346376 | J182: 12.09703596 | K182: 12.40060816 | L182: 12.70418036 | N182: 0 | O182: 0.06732595035 | P182: 0.3119214312 | Q182: 0.5358868572 | R182: 0.6588365158 | S182: 0.7466141391 | T182: 0.8124158122 | U182: 0.8554634391 | V182: 0.8963870747 | X182: 0.3119214312 | Y182: 0.3119214312 | Z182: 0.3119214312
A183: 2013-01-08T12:00:00 | B183: 2013-01-08T12:00:00 | D183: 10.23215407 | E183: 10.53572627 | F183: 10.83929847 | G183: 11.14287067 | H183: 11.44644287 | I183: 11.75001507 | J183: 12.05358728 | K183: 12.35715948 | L183: 12.66073168 | N183: 0 | O183: 0.05613819385 | P183: 0.302805092 | Q183: 0.5287262725 | R183: 0.6535265374 | S183: 0.7430601337 | T183: 0.8105336614 | U183: 0.8551690245 | V183: 0.8975962777 | X183: 0.302805092 | Y183: 0.302805092 | Z183: 0.302805092
A184: 2013-01-08T13:00:00 | B184: 2013-01-08T13:00:00 | D184: 10.31766066 | E184: 10.62123286 | F184: 10.92480507 | G184: 11.22837727 | H184: 11.53194947 | I184: 11.83552167 | J184: 12.13909387 | K184: 12.44266607 | L184: 12.74623828 | N184: 0 | O184: 0.04402513419 | P184: 0.2927634496 | Q184: 0.5206508994 | R184: 0.6473122854 | S184: 0.7386123696 | T184: 0.8077682667 | U184: 0.8539913659 | V184: 0.8979432664 | X184: 0.2927634496 | Y184: 0.2927634496 | Z184: 0.2927634496
A185: 2013-01-08T14:00:00 | B185: 2013-01-08T14:00:00 | D185: 10.33337998 | E185: 10.63695218 | F185: 10.94052438 | G185: 11.24409659 | H185: 11.54766879 | I185: 11.85124099 | J185: 12.15481319 | K185: 12.45838539 | L185: 12.76195759 | N185: 0 | O185: 0.03106037502 | P185: 0.2818911374 | Q185: 0.511765886 | R185: 0.640298908 | S185: 0.7333865097 | T185: 0.804235291 | U185: 0.8520671559 | V185: 0.8975542185 | X185: 0.2818911374 | Y185: 0.2818911374 | Z185: 0.2818911374
A186: 2013-01-08T15:00:00 | B186: 2013-01-08T15:00:00 | D186: 10.40092682 | E186: 10.70449902 | F186: 11.00807123 | G186: 11.31164343 | H186: 11.61521563 | I186: 11.91878783 | J186: 12.22236003 | K186: 12.52593223 | L186: 12.82950444 | N186: 0 | O186: 0.01819024913 | P186: 0.2711029436 | Q186: 0.5029439615 | R186: 0.6333381046 | S186: 0.728202709 | T186: 0.8007338597 | U186: 0.8501639755 | V186: 0.8971756854 | X186: 0.2711029436 | Y186: 0.2711029436 | Z186: 0.2711029436
A187: 2013-01-08T16:00:00 | B187: 2013-01-08T16:00:00 | D187: 10.33220571 | E187: 10.63577791 | F187: 10.93935011 | G187: 11.24292231 | H187: 11.54649451 | I187: 11.85006672 | J187: 12.15363892 | K187: 12.45721112 | L187: 12.76078332 | N187: 0 | O187: 0.005236004763 | P187: 0.2602411462 | Q187: 0.4940694629 | R187: 0.626335242 | S187: 0.7229873639 | T187: 0.7972008839 | U187: 0.8482502803 | V187: 0.8967866375 | X187: 0.2602411462 | Y187: 0.2602411462 | Z187: 0.2602411462
A188: 2013-01-08T17:00:00 | B188: 2013-01-08T17:00:00 | D188: 10.31099268 | E188: 10.61456488 | F188: 10.91813708 | G188: 11.22170928 | H188: 11.52528149 | I188: 11.82885369 | J188: 12.13242589 | K188: 12.43599809 | L188: 12.73957029 | N188: 0 | O188: 0 | P188: 0.2505149481 | Q188: 0.4862990192 | R188: 0.6204259195 | S188: 0.7188340144 | T188: 0.7947193891 | U188: 0.8473565216 | V188: 0.8974070112 | X188: 0.2505149481 | Y188: 0.2505149481 | Z188: 0.2505149481
A189: 2013-01-08T18:00:00 | B189: 2013-01-08T18:00:00 | D189: 10.2265997 | E189: 10.5301719 | F189: 10.83374411 | G189: 11.13731631 | H189: 11.44088851 | I189: 11.74446071 | J189: 12.04803291 | K189: 12.35160511 | L189: 12.65517732 | N189: 0 | O189: 0 | P189: 0.2415142719 | Q189: 0.4792435826 | R189: 0.6152210891 | S189: 0.7153746423 | T189: 0.7929318716 | U189: 0.8471462254 | V189: 0.8987003326 | X189: 0.2415142719 | Y189: 0.2415142719 | Z189: 0.2415142719
A190: 2013-01-08T19:00:00 | B190: 2013-01-08T19:00:00 | D190: 10.22891725 | E190: 10.53248946 | F190: 10.83606166 | G190: 11.13963386 | H190: 11.44320606 | I190: 11.74677826 | J190: 12.05035046 | K190: 12.35392267 | L190: 12.65749487 | N190: 0 | O190: 0 | P190: 0.2324294771 | Q190: 0.4721145422 | R190: 0.6099426551 | S190: 0.7118521814 | T190: 0.7910707504 | U190: 0.8468623256 | V190: 0.8999305653 | X190: 0.2324294771 | Y190: 0.2324294771 | Z190: 0.2324294771
A191: 2013-01-08T20:00:00 | B191: 2013-01-08T20:00:00 | D191: 10.21573983 | E191: 10.51931203 | F191: 10.82288423 | G191: 11.12645643 | H191: 11.43002863 | I191: 11.73360084 | J191: 12.03717304 | K191: 12.34074524 | L191: 12.64431744 | N191: 0 | O191: 0 | P191: 0.2240281449 | Q191: 0.4656479349 | R191: 0.6053056245 | S191: 0.708960609 | T191: 0.789830003 | U191: 0.8471882846 | V191: 0.9017496272 | X191: 0.2240281449 | Y191: 0.2240281449 | Z191: 0.2240281449
A192: 2013-01-08T21:00:00 | B192: 2013-01-08T21:00:00 | D192: 10.1236707 | E192: 10.4272429 | F192: 10.7308151 | G192: 11.0343873 | H192: 11.3379595 | I192: 11.64153171 | J192: 11.94510391 | K192: 12.24867611 | L192: 12.55224831 | N192: 0 | O192: 0 | P192: 0.2168360158 | Q192: 0.4603800157 | R192: 0.6018462524 | S192: 0.7072256656 | T192: 0.7897353697 | U192: 0.8486498431 | V192: 0.9046832588 | X192: 0.2168360158 | Y192: 0.2168360158 | Z192: 0.2168360158
A193: 2013-01-08T22:00:00 | B193: 2013-01-08T22:00:00 | D193: 10.14455351 | E193: 10.44812571 | F193: 10.75169791 | G193: 11.05527011 | H193: 11.35884232 | I193: 11.66241452 | J193: 11.96598672 | K193: 12.26955892 | L193: 12.57313112 | N193: 0 | O193: 0 | P193: 0.2119045705 | Q193: 0.4572991767 | R193: 0.6005213865 | S193: 0.7075621394 | T193: 0.7916490649 | U193: 0.8520566411 | V193: 0.9095200708 | X193: 0.2119045705 | Y193: 0.2119045705 | Z193: 0.2119045705
A194: 2013-01-08T23:00:00 | B194: 2013-01-08T23:00:00 | D194: 10.08006397 | E194: 10.38363618 | F194: 10.68720838 | G194: 10.99078058 | H194: 11.29435278 | I194: 11.59792498 | J194: 11.90149718 | K194: 12.20506939 | L194: 12.50864159 | N194: 0 | O194: 0 | P194: 0.2105166157 | Q194: 0.4576777098 | R194: 0.6025717742 | S194: 0.7112002633 | T194: 0.7967908064 | U194: 0.8586283966 | V194: 0.9174587514 | X194: 0.2105166157 | Y194: 0.2105166157 | Z194: 0.2105166157
A195: 2013-01-09 | B195: 2013-01-09 | D195: 10.15522539 | E195: 10.45879759 | F195: 10.76236979 | G195: 11.06594199 | H195: 11.36951419 | I195: 11.67308639 | J195: 11.9766586 | K195: 12.2802308 | L195: 12.583803 | N195: 0 | O195: 0 | P195: 0.2085398317 | Q195: 0.4574674137 | R195: 0.6040333326 | S195: 0.7142495578 | T195: 0.8013437186 | U195: 0.8646113227 | V195: 0.9248086027 | X195: 0.2085398317 | Y195: 0.2085398317 | Z195: 0.2085398317
A196: 2013-01-09T01:00:00 | B196: 2013-01-09T01:00:00 | D196: 10.19259135 | E196: 10.49616356 | F196: 10.79973576 | G196: 11.10330796 | H196: 11.40688016 | I196: 11.71045236 | J196: 12.01402456 | K196: 12.31759677 | L196: 12.62116897 | N196: 0 | O196: 0 | P196: 0.2082349022 | Q196: 0.4588869129 | R196: 0.6070721124 | S196: 0.7188340144 | T196: 0.8073897336 | U196: 0.8720558073 | V196: 0.9335779532 | X196: 0.2082349022 | Y196: 0.2082349022 | Z196: 0.2082349022
A197: 2013-01-09T02:00:00 | B197: 2013-01-09T02:00:00 | D197: 10.14310968 | E197: 10.44668188 | F197: 10.75025408 | G197: 11.05382628 | H197: 11.35739849 | I197: 11.66097069 | J197: 11.96454289 | K197: 12.26811509 | L197: 12.57168729 | N197: 0 | O197: 0 | P197: 0.2069520955 | Q197: 0.4593600792 | R197: 0.6091961037 | S197: 0.7225352271 | T197: 0.8125840491 | U197: 0.878669622 | V197: 0.9415376634 | X197: 0.2069520955 | Y197: 0.2069520955 | Z197: 0.2069520955
A198: 2013-01-09T03:00:00 | B198: 2013-01-09T03:00:00 | D198: 10.16513946 | E198: 10.46871166 | F198: 10.77228386 | G198: 11.07585606 | H198: 11.37942826 | I198: 11.68300047 | J198: 11.98657267 | K198: 12.29014487 | L198: 12.59371707 | N198: 0 | O198: 0 | P198: 0.2081507837 | Q198: 0.4622411368 | R198: 0.6136754122 | S198: 0.7285286681 | T198: 0.8200075041 | U198: 0.8874600021 | V198: 0.951621365 | X198: 0.2081507837 | Y198: 0.2081507837 | Z198: 0.2081507837
A199: 2013-01-09T04:00:00 | B199: 2013-01-09T04:00:00 | D199: 10.21474745 | E199: 10.51831966 | F199: 10.82189186 | G199: 11.12546406 | H199: 11.42903626 | I199: 11.73260846 | J199: 12.03618066 | K199: 12.33975287 | L199: 12.64332507 | N199: 0 | O199: 0 | P199: 0.2066892253 | Q199: 0.4625250367 | R199: 0.6156101371 | S199: 0.7320300994 | T199: 0.8250020382 | U199: 0.8938635206 | V199: 0.959370779 | X199: 0.2066892253 | Y199: 0.2066892253 | Z199: 0.2066892253
A200: 2013-01-09T05:00:00 | B200: 2013-01-09T05:00:00 | D200: 10.32542487 | E200: 10.62899707 | F200: 10.93256927 | G200: 11.23614148 | H200: 11.53971368 | I200: 11.84328588 | J200: 12.14685808 | K200: 12.45043028 | L200: 12.75400248 | N200: 0 | O200: 0 | P200: 0.2030405867 | Q200: 0.4606639155 | R200: 0.6154419001 | S200: 0.7334706282 | T200: 0.8279672143 | U200: 0.8982797403 | V200: 0.9651749535 | X200: 0.2030405867 | Y200: 0.2030405867 | Z200: 0.2030405867
... 3390 more rows

Sheet predict
A1: Predicted Power | F1: 6 | G1: 7 | H1: 8 | I1: 9 | J1: 10 | K1: 11 | L1: 12 | M1: 13 | N1: 14 | O1: 15 | P1: 16 | Q1: 17 | R1: 18 | S1: 19 | T1: 20 | U1: 21 | V1: 22 | W1: 23 | X1: 24 | Y1: 25 | Z1: 26 | AA1: 27 | AB1: 28 | AC1: 29 | AD1: 30 | AE1: 31 | AF1: Predicted Power (kWh) | AL1: Predicted Power - current flow (kWh) | AR1: Predicted Power - savings (kWh) | AW1: Predicted Power - current flow - savings (kWh) | BB1: Total savings (kWh) | BC1: Total savings - current flow (kWh) | BD1: Yearly savings | BE1: Yearly savings (current flow) | BF1: Power - current operation | BH1: cooling load (kBtu/h) | BI1: dT | BJ1: chilled water flow (gpm) | BK1: Secondary pumping power | BL1: chilled water flow (gpm) | BM1: Secondary pumping power | BN1: Additional power | BY1: chiller 1 | BZ1: chiller 2 | CA1: chiller 3 | CB1: chiller 4 | CC1: chiller 6
A2: Ch 1 | B2: Ch 2 | C2: Ch 3 | D2: Ch 4 | E2: Ch 6 | I2: DryBulbFarenheit | J2: WetBulbFarenheit | K2: chiller 1 | L2: Ch1 load (kBtu/h) | M2: CW Flow (ft^3/h) | N2: Power 1 (kWh) | O2: chiller 2 | P2: Ch2 load (kBtu/h) | Q2: CW Flow (ft^3/hr) | R2: Power 2 (kWh) | S2: chiller 3 | T2: Ch3 load (kBtu/h) | U2: CW Flow (ft^3/h) | V2: Power 3 (kWh) | W2: chiller 4 | X2: Ch4 load (kBtu/h) | Y2: CW Flow (ft^3/h) | Z2: Power 4 (kWh) | AA2: Chiller6 | AB2: Ch6 load (kBtu/h) | AC2: CW Flow (ft^3/h) | AD2: Power 6 (kWh) | AF2: Ch 1 | AG2: Ch 2 | AH2: Ch 3 | AI2: Ch 4 | AJ2: Ch 6 | AL2: Ch 1 | AM2: Ch 2 | AN2: Ch 3 | AO2: Ch 4 | AP2: Ch 6 | AR2: Ch 1 | AS2: Ch 2 | AT2: Ch 3 | AU2: Ch 4 | AV2: Ch 6 | AW2: Ch 1 | AX2: Ch 2 | AY2: Ch 3 | AZ2: Ch 4 | BA2: Ch 6 | BL2: current operation | BM2: current operation | BN2: kWh
A3: 0 | B3: 0 | C3: 0 | D3: 1856.703905 | E3: 0 | F3: =SUM(A3:E3) -> 1856.703905 | G3: =N3+R3+V3+Z3+AD3 -> 2229.274646 | H3: 2013-01-01 | I3: 45 | J3: 44 | K3: OFF | L3: -29.25551606 | M3: -71.07055674 | N3: -8.848406 | O3: OFF | P3: -6.349498119 | Q3: -108.0323725 | R3: -8.848406 | S3: OFF | T3: -0.3440845636 | U3: -33.39839986 | V3: -1.769681 | W3: ON | X3: 31096.26698 | Y3: 77256.0635 | Z3: 2252.981 | AA3: OFF | AB3: -6.474481103 | AC3: -120.3733881 | AD3: -4.239861 | AF3: 0 | AG3: 0 | AH3: 0 | AI3: 1844.294068 | AJ3: 0 | AK3: =SUM(AF3:AJ3) -> 1844.294068 | AL3: 0 | AM3: 0 | AN3: 0 | AO3: 1877.236352 | AP3: 0 | AQ3: =SUM(AL3:AP3) -> 1877.236352 | AR3: =IF($K3="ON",$N3-AF3,0) -> 0 | AS3: =IF($O3="ON",$R3-AG3,0) -> 0 | AT3: =IF($S3="ON",$V3-AH3,0) -> 0 | AU3: =IF($W3="ON",$Z3-AI3,0) -> 408.6869322 | AV3: =IF($AA3="ON",$AD3-AJ3,0) -> 0 | AW3: =IF($K3="ON",$N3-AL3,0) -> 0 | AX3: =IF($O3="ON",$R3-AM3,0) -> 0 | AY3: =IF($S3="ON",$V3-AN3,0) -> 0 | AZ3: =IF($W3="ON",$Z3-AO3,0) -> 375.7446479 | BA3: =IF($AA3="ON",$AD3-AP3,0) -> 0 | BB3: =SUM(AR3:AV3)+BN3 -> 410.4725192 | BC3: =SUM(AW3:BA3)+BN3 -> 377.5302349 | BD3: =SUM(BB3:BB8057) -> 3237402.45 | BE3: =SUM(BC3:BC8057) -> 1588813.142 | BF3: =N3+R3+V3+Z3+AD3 -> 2229.274646 | BG3: =SUM(BF3:BF8057) -> 41694750.88 | BH3: =-0.6251*I3^3 + 145.21*I3^2 - 8340.3*I3 + 170112 -> 31886.5125 | BI3: =19.5285952781395+42*-0.3035722016559+BH3*0.0000340867411548605+J3*0.0608468772796604 -> 10.54273271 | BJ3: =BH3*1000/(500*BI3) -> 6049.003306 | BK3: =0.00000128*BJ3^2+0*BJ3+24.024 -> 70.85976448 | BL3: =0.094*BH3 + 3165.9 -> 6163.232175 | BM3: =0.00000128*BL3^2+0*BL3+24.024 -> 72.64535148 | BN3: =BM3-BK3 -> 1.785587001 | BX3: =SUM(AF3:AJ3) -> 1844.294068 | BY3: =A3-AF3 -> 0 | BZ3: =B3-AG3 -> 0 | CA3: =C3-AH3 -> 0 | CB3: =D3-AI3 -> 12.40983692 | CC3: =E3-AJ3 -> 0
